Workbook

Sheet Cover
B2: TRMbd_BP2024.xlsm
B3: Home / Contents
B5: Purpose of this Workbook:
B6: This workbook computes TRM billing determinants used for rate making and as a data feed to Contracts and Billing. Input data is provided from the RAM Data Inputs workbook, with outputs to RAM presented in the "RAM Export" sheet. All user modification should be done in the RAM inputs sheet; inputs to the TRM billing determinants are entered as values in this workbook, with no modification to assumptions; that is, settings in this workbook should not be altered. Annual Billing Determinants for Composite, Nonslice and Tier 2 customer charges and included on the TOCA sheet. Subsequent sheets compute Load Shaping and Demand charges by customer for the two-year rate period. This model is fundamentally 2-year monthly/diurnal, but can be accessed iteratively through use of macros for extended forecasts at the user's discretion.
B8: Legend:
B10: Tab Colors | G10: Font Colors | K10: Hyperlink Types
B12: Blue Tab | D12: Cover Sheet | G12: Blue Font | H12: Constant Values | K12: Cover Hyperlink | M12: Cover Page
B13: Green Tab | D13: Table of Contents | G13: Black Font | H13: Calculated Values | K13: TOC Hyperlink | M13: TOC
B14: Grey Tabs | D14: Base Case Sheets | G14: Plum Font | H14: Hyperlinks | K14: Sheet Top Hyperlink | M14: é
B15: Rose Tabs | D15: Assumption Sheets | G15: Red Font | H15: Errors
B16: Tan Tabs | D16: Output Sheets | G16: Black/Yellow | H16: Work in Progress
B17: Teal Tabs | D17: Lookup Sheets | G17: Black/Gold | H17: Modifiable Assumptions
B18: Reb Tabs | D18: Log/Error Sheet | G18: White/Grey | H18: Locked Data
B19: Blue Tabs | D19: Spreadsheet Input
B20: Black Tabs | D20: Locked Data Sheet

Sheet TOC
B1: Table of Contents
A2: TOC
B3: Cover Sheet
B5: Section & Sheet Titles | M5: Page | N5: Input
B7: 1 | C7: Initialize Assumptions | M7: 3
B8: 2 | C8: Slice Shaping for Block Purchase Assumptions | M8: 4
B9: 3 | C9: Slice - Load Following Assumption - LDD BD | M9: 5
B10: 4 | C10: Total Retail Load | M10: 6
B11: 5 | C11: Customer System Peak (includes Above HWM Load) | M11: 7
B12: 6 | C12: Customer Demand Quantity | M12: 8
B13: 7 | C13: New Large Single Load by customer | M13: 9
B14: 8 | C14: Existing Resources by Customer ID | M14: 10
B15: 9 | C15: Existing Resources by Customer ID (SNEERS, CORs, Green Exception) | M15: 11
... 18 more rows

Sheet Init
B1: Initiation Sheet
A2: TOC
B3: Input Parameters | E3: Monthly Hours | M3: Annual Hours | Q3: Preference Customer Parameters | CH3: 9 | CI3: =+CH3+1 -> 10 | CJ3: =+CI3+1 -> 11 | CK3: =+CJ3+1 -> 12 | CL3: 13 | CM3: 14 | CN3: 15 | CO3: 16 | CP3: 17 | CQ3: 18 | CR3: 19 | CS3: =+CR3+1 -> 20 | CT3: =+CS3+1 -> 21 | CU3: =+CT3+1 -> 22 | CV3: =+CU3+1 -> 23 | CW3: =+CV3+1 -> 24 | CX3: =+CW3+1 -> 25 | CY3: =+CX3+1 -> 26 | DB3: 22 | DC3: =+DB3+1 -> 23 | DD3: 24 | DE3: 25 | DF3: 26 | DG3: 27 | DH3: 28 | DI3: =+DH3+1 -> 29 | DJ3: =+DI3+1 -> 30 | DK3: =+DJ3+1 -> 31 | DL3: =+DK3+1 -> 32 | DM3: =+DL3+1 -> 33 | DN3: =+DM3+1 -> 34 | DO3: =+DN3+1 -> 35 | DP3: =+DO3+1 -> 36 | DQ3: =+DP3+1 -> 37 | DR3: =+DQ3+1 -> 38 | DS3: =+DR3+1 -> 39 | DV3: 35 | DW3: =+DV3+1 -> 36 | DX3: =+DW3+1 -> 37 | DY3: 38 | DZ3: 39 | EA3: 40 | EB3: 41 | EC3: 42 | ED3: 43 | EE3: 44 | EF3: 45 | EG3: =+EF3+1 -> 46 | EH3: =+EG3+1 -> 47 | EI3: =+EH3+1 -> 48 | EJ3: =+EI3+1 -> 49 | EK3: =+EJ3+1 -> 50 | EL3: =+EK3+1 -> 51 | EM3: =+EL3+1 -> 52
E4: FiscalID | F4: Cal Date | G4: HLH | H4: LLH | I4: Total | J4: HLH% | K4: LLH% | M4: year | N4: days | O4: hours | Q4: BESID | R4: AccountName | S4: Slice Block or Block | T4: PNGC | U4: Initial CHWM | V4: RHWM Aug 2016 | W4: RHWM Aug 2018 | X4: RHWM Aug 2020 | Y4: RHWM Aug 2022 | Z4: RHWM Aug 2024 | AA4: RHWM Aug 2026 | AB4: RHWM Aug 2028 | AC4: RHWM Aug 2030 | AD4: RHWM Aug 2032 | AE4: RHWM Aug 2034 | AF4: Initial Slice% | AG4: 60-40 | AH4: RHWM 2016 | AI4: RHWM 2018 | AJ4: RHWM 2020 | AK4: RHWM 2022 | AL4: RHWM 2024 | AM4: RHWM 2026 | AN4: RHWM 2028 | AO4: RHWM 2030 | AP4: RHWM 2032 | AQ4: RHWM 2034 | AR4: TRL - NLSL - Existing Resource 2016 | AS4: TRL - NLSL - Existing Resource 2017 | AT4: TRL - NLSL - Existing Resource 2018 | AU4: TRL - NLSL - Existing Resource 2019 | AV4: TRL - NLSL - Existing Resource 2020 | AW4: TRL - NLSL - Existing Resource 2021 | AX4: TRL - NLSL - Existing Resource 2022 | AY4: TRL - NLSL - Existing Resource 2023 | AZ4: TRL - NLSL - Existing Resource 2024 | BA4: TRL - NLSL - Existing Resource 2025 | BB4: TRL - NLSL - Existing Resource 2026 | BC4: TRL - NLSL - Existing Resource 2027 | BD4: TRL - NLSL - Existing Resource 2028 | BE4: TRL - NLSL - Existing Resource 2029 | BF4: TRL - NLSL - Existing Resource 2030 | BG4: TRL - NLSL - Existing Resource 2031 | BH4: TRL - NLSL - Existing Resource 2032 | BI4: TRL - NLSL - Existing Resource 2033 | BJ4: TRL - NLSL - Existing Resource 2034 | BK4: TRL - NLSL - Existing Resource 2035 | BL4: Above RHWM 2016 | BM4: Above RHWM 2017 | BN4: Above RHWM 2018 | BO4: Above RHWM 2019 | BP4: Above RHWM 2020 | BQ4: Above RHWM 2021 | BR4: Above RHWM 2022 | BS4: Above RHWM 2023 | BT4: Above RHWM 2024 | BU4: Above RHWM 2025 | BV4: Above RHWM 2026 | BW4: Above RHWM 2027 | BX4: Above RHWM 2028 | BY4: Above RHWM 2029 | BZ4: Above RHWM 2030 | CA4: Above RHWM 2031 | CB4: Above RHWM 2032 | CC4: Above RHWM 2033 | CD4: Above RHWM 2034 | CE4: Above RHWM 2035 | CF4: Election 2016 | CG4: Election 2017 | CH4: Election 2018 | CI4: Election 2019 | CJ4: Election 2020 | CK4: Election 2021 | CL4: Election 2022 | CM4: Election 2023 | CN4: Election 2024 | CO4: Election 2025 | CP4: Election 2026 | CQ4: Election 2027 | CR4: Election 2028 | CS4: Election 2029 | CT4: Election 2030 | CU4: Election 2031 | CV4: Election 2032 | CW4: Election 2033 | CX4: Election 2034 | CY4: Election 2035 | CZ4: Amount 2016 | DA4: Amount 2017 | DB4: Amount 2018 | DC4: Amount 2019 | DD4: Amount 2020 | DE4: Amount 2021 | DF4: Amount 2022 | DG4: Amount 2023 | DH4: Amount 2024 | DI4: Amount 2025 | DJ4: Amount 2026 | DK4: Amount 2027 | DL4: Amount 2028 | DM4: Amount 2029 | DN4: Amount 2030 | DO4: Amount 2031 | DP4: Amount 2032 | DQ4: Amount 2033 | DR4: Amount 2034 | DS4: Amount 2035 | DT4: Type 2016 | DU4: Type 2017 | DV4: Type 2018 | DW4: Type 2019 | DX4: Type 2020 | DY4: Type 2021 | DZ4: Type 2022 | EA4: Type 2023 | EB4: Type 2024 | EC4: Type 2025 | ED4: Type 2026 | EE4: Type 2027 | EF4: Type 2028 | EG4: Type 2029 | EH4: Type 2030 | EI4: Type 2031 | EJ4: Type 2032 | EK4: Type 2033 | EL4: Type 2034 | EM4: Type 2035 | EN4: Vintage 2014 for 2016 | EO4: Vintage 2014 for 2017 | EP4: Vintage 2014 for 2018 | EQ4: Vintage 2014 for 2019 | ER4: Vintage 2016 for 2016 | ES4: Vintage 2016 for 2017 | ET4: Vintage 2016 for 2018 | EU4: Vintage 2016 for 2019 | EV4: Total Vintage 2016 | EW4: Total Vintage 2017 | EX4: Total Vintage 2018 | EY4: Total Vintage 2019 | EZ4: Total Vintage 2020 | FA4: Total Vintage 2021 | FB4: Total Vintage 2022 | FC4: Total Vintage 2023 | FD4: Total Vintage 2024 | FE4: Total Vintage 2025 | FF4: Total Vintage 2026 | FG4: Total Vintage 2027 | FH4: Total Vintage 2028 | FI4: Total Vintage 2029 | FJ4: Total Vintage 2030 | FK4: Total Vintage 2031 | FL4: Total Vintage 2032 | FM4: Total Vintage 2033 | FN4: Total Vintage 2034 | FO4: Total Vintage 2035 | FP4: Rounddown | FQ4: Eligible LDD | FR4: IRD Loads | FS4: T1 Percentage 2016 | FT4: T1 Percentage 2017 | FU4: T1 Percentage 2018 | FV4: T1 Percentage 2019 | FW4: T1 Percentage 2020 | FX4: T1 Percentage 2021 | FY4: T1 Percentage 2022 | FZ4: T1 Percentage 2023 | GA4: T1 Percentage 2024 | GB4: T1 Percentage 2025 | GC4: T1 Percentage 2026 | GD4: T1 Percentage 2027 | GE4: T1 Percentage 2028 | GF4: T1 Percentage 2029 | GG4: T1 Percentage 2030 | GH4: T1 Percentage 2031 | GI4: T1 Percentage 2032 | GJ4: T1 Percentage 2033 | GK4: T1 Percentage 2034 | GL4: T1 Percentage 2035
E5: 2015_1 | F5: 2014-10-01 | G5: 432 | H5: 312 | I5: 744 | J5: 0.5806451613 | K5: 0.4193548387 | M5: 2009 | N5: 365 | O5: 8760 | Q5: 10005 | R5: Alder Mutual | S5: 0 | T5: 0 | U5: 0.556 | V5: 0 | W5: 0 | X5: 0 | Y5: 0 | Z5: 0 | AA5: 0 | AB5: 0 | AC5: 0 | AD5: 0 | AE5: 0 | AF5: 0 | AG5: 0 | AH5: 0.542 | AI5: 0.539 | AJ5: 0.545 | AK5: 0.523 | AL5: 0.548 | AM5: 0 | AN5: 0 | AO5: 0 | AP5: 0 | AQ5: 0 | AR5: 0.538 | AS5: 0.542 | AT5: 0.531 | AU5: 0.535 | AV5: 0.544 | AW5: 0.545 | AX5: 0.623 | AY5: 0.631 | AZ5: 0.68 | BA5: 0.689 | BB5: 0 | BC5: 0 | BD5: 0 | BE5: 0 | BF5: 0 | BG5: 0 | BH5: 0 | BI5: 0 | BJ5: 0 | BK5: 0 | BL5: 0 | BM5: 0 | BN5: 0 | BO5: 0 | BP5: 0 | BQ5: 0 | BR5: 0.1 | BS5: 0.108 | BT5: 0.132 | BU5: 0.141 | BV5: 0 | BW5: 0 | BX5: 0 | BY5: 0 | BZ5: 0 | CA5: 0 | CB5: 0 | CC5: 0 | CD5: 0 | CE5: 0 | CF5: 1 | CG5: 1 | CH5: 1 | CI5: 1 | CJ5: 1 | CK5: 1 | CL5: 1 | CM5: 1 | CN5: 1 | CO5: 1 | CP5: 1 | CQ5: 1 | CR5: 1 | CS5: =+CR5 -> 1 | CT5: 1 | CU5: 1 | CV5: 1 | CW5: 1 | CX5: =+CW5 -> 1 | CY5: =+CX5 -> 1 | CZ5: 0 | DA5: 0 | DB5: 0 | DC5: 0 | DD5: 0 | DE5: 0 | DF5: 0 | DG5: 0 | DH5: 0 | DI5: 0 | DJ5: 0 | DK5: 0 | DL5: 0 | DM5: =+DL5 -> 0 | DN5: 0 | DO5: 0 | DP5: 0 | DQ5: 0 | DR5: =+DQ5 -> 0 | DS5: =+DR5 -> 0 | DT5: LGR | DU5: LGR | DV5: LGR | DW5: LGR | DX5: LGR | DY5: LGR | DZ5: LGR | EA5: LGR | EB5: LGR | EC5: LGR | ED5: LGR | EE5: LGR | EF5: LGR | EG5: =+EF5 -> LGR | EH5: LGR | EI5: LGR | EJ5: LGR | EK5: LGR | EL5: =+EK5 -> LGR | EM5: =+EL5 -> LGR | EN5: 0 | EO5: 0 | EP5: 0 | EQ5: 0 | ER5: 0 | ES5: 0 | ET5: 0 | EU5: 0 | EV5: =+EN5+ER5 -> 0 | EW5: =+EO5+ES5 -> 0 | EX5: =+EP5+ET5 -> 0 | EY5: =+EQ5+EU5 -> 0 | EZ5: 0 | FA5: 0 | FB5: 0 | FC5: 0 | FD5: 0 | FE5: 0 | FF5: 0 | FG5: 0 | FH5: 0 | FI5: 0 | FJ5: 0 | FK5: 0 | FL5: 0 | FM5: 0 | FN5: 0 | FO5: 0 | FP5: 0 | FQ5: 0.015 | FR5: 0 | FS5: 0.9992982549 | FT5: 1 | FU5: 1 | FV5: 0.9995385832 | FW5: 0.9994434353 | FX5: 1 | FY5: 0.8390713618 | FZ5: 0.8284333731 | GA5: 0.8060545941 | GB5: 0.7955255791 | GC5: 0 | GD5: 0 | GE5: 0 | GF5: 0 | GG5: 0 | GH5: 0 | GI5: 0 | GJ5: 0 | GK5: 0 | GL5: 0
E6: 2015_2 | F6: 2014-11-01 | G6: 384 | H6: 337 | I6: 721 | J6: 0.53259362 | K6: 0.46740638 | M6: 2010 | N6: 365 | O6: 8760 | Q6: 10015 | R6: Asotin County PUD #1 | S6: 0 | T6: 0 | U6: 0.582 | V6: 0 | W6: 0 | X6: 0 | Y6: 0 | Z6: 0 | AA6: 0 | AB6: 0 | AC6: 0 | AD6: 0 | AE6: 0 | AF6: 0 | AG6: 0 | AH6: 0.568 | AI6: 0.564 | AJ6: 0.57 | AK6: 0.547 | AL6: 0.573 | AM6: 0 | AN6: 0 | AO6: 0 | AP6: 0 | AQ6: 0 | AR6: 0.591 | AS6: 0.597 | AT6: 0.618 | AU6: 0.621 | AV6: 0.667 | AW6: 0.67 | AX6: 0.63 | AY6: 0.634 | AZ6: 0.582 | BA6: 0.583 | BB6: 0 | BC6: 0 | BD6: 0 | BE6: 0 | BF6: 0 | BG6: 0 | BH6: 0 | BI6: 0 | BJ6: 0 | BK6: 0 | BL6: 0.023 | BM6: 0.029 | BN6: 0.054 | BO6: 0.057 | BP6: 0.097 | BQ6: 0.1 | BR6: 0.083 | BS6: 0.087 | BT6: 0.009 | BU6: 0.01 | BV6: 0 | BW6: 0 | BX6: 0 | BY6: 0 | BZ6: 0 | CA6: 0 | CB6: 0 | CC6: 0 | CD6: 0 | CE6: 0 | CF6: 1 | CG6: 1 | CH6: 1 | CI6: 1 | CJ6: 1 | CK6: 1 | CL6: 1 | CM6: 1 | CN6: 1 | CO6: 1 | CP6: 1 | CQ6: 1 | CR6: 1 | CS6: =+CR6 -> 1 | CT6: 1 | CU6: 1 | CV6: 1 | CW6: 1 | CX6: 1 | CY6: 1 | CZ6: 0 | DA6: 0 | DB6: 0 | DC6: 0 | DD6: 0 | DE6: 0 | DF6: 0 | DG6: 0 | DH6: 0 | DI6: 0 | DJ6: 0 | DK6: 0 | DL6: 0 | DM6: =+DL6 -> 0 | DN6: 0 | DO6: 0 | DP6: 0 | DQ6: 0 | DR6: 0 | DS6: 0 | DT6: LGR | DU6: LGR | DV6: LGR | DW6: LGR | DX6: LGR | DY6: LGR | DZ6: LGR | EA6: LGR | EB6: LGR | EC6: LGR | ED6: LGR | EE6: LGR | EF6: LGR | EG6: =+EF6 -> LGR | EH6: LGR | EI6: LGR | EJ6: LGR | EK6: LGR | EL6: LGR | EM6: LGR | EN6: 0 | EO6: 0 | EP6: 0 | EQ6: 0 | ER6: 0 | ES6: 0 | ET6: 0 | EU6: 0 | EV6: =+EN6+ER6 -> 0 | EW6: 0 | EX6: 0 | EY6: 0 | EZ6: 0 | FA6: 0 | FB6: 0 | FC6: 0 | FD6: 0 | FE6: 0 | FF6: 0 | FG6: 0 | FH6: 0 | FI6: 0 | FJ6: 0 | FK6: 0 | FL6: 0 | FM6: 0 | FN6: 0 | FO6: 0 | FP6: 0 | FQ6: 0 | FR6: 0 | FS6: 0.9609300997 | FT6: 0.9511712639 | FU6: 0.9124943288 | FV6: 0.9080861436 | FW6: 0.8541048324 | FX6: 0.8502804824 | FY6: 0.8682418267 | FZ6: 0.8627639603 | GA6: 0.9842592809 | GB6: 0.9825710146 | GC6: 0 | GD6: 0 | GE6: 0 | GF6: 0 | GG6: 0 | GH6: 0 | GI6: 0 | GJ6: 0 | GK6: 0 | GL6: 0
B7: Loss Percent Assumption | C7: 0.03209825575 | E7: 2015_3 | F7: 2014-12-01 | G7: 416 | H7: 328 | I7: 744 | J7: 0.5591397849 | K7: 0.4408602151 | M7: 2011 | N7: 365 | O7: 8760 | Q7: 10024 | R7: Benton County PUD #1 | S7: 0 | T7: 0 | U7: 203.92 | V7: 0 | W7: 0 | X7: 0 | Y7: 0 | Z7: 0 | AA7: 0 | AB7: 0 | AC7: 0 | AD7: 0 | AE7: 0 | AF7: 0 | AG7: 0 | AH7: 199.617 | AI7: 198.049 | AJ7: 200.214 | AK7: 192.001 | AL7: 200.923 | AM7: 0 | AN7: 0 | AO7: 0 | AP7: 0 | AQ7: 0 | AR7: 204.386 | AS7: 206.55 | AT7: 209.206 | AU7: 209.939 | AV7: 205.669 | AW7: 206.52 | AX7: 209.048 | AY7: 209.063 | AZ7: 211.167 | BA7: 212.387 | BB7: 0 | BC7: 0 | BD7: 0 | BE7: 0 | BF7: 0 | BG7: 0 | BH7: 0 | BI7: 0 | BJ7: 0 | BK7: 0 | BL7: 4.769 | BM7: 6.933 | BN7: 10.857 | BO7: 11.59 | BP7: 5.455 | BQ7: 6.306 | BR7: 17.047 | BS7: 17.062 | BT7: 10.244 | BU7: 11.464 | BV7: 0 | BW7: 0 | BX7: 0 | BY7: 0 | BZ7: 0 | CA7: 0 | CB7: 0 | CC7: 0 | CD7: 0 | CE7: 0 | CF7: 4 | CG7: 4 | CH7: 4 | CI7: 4 | CJ7: 4 | CK7: 4 | CL7: 4 | CM7: 4 | CN7: 3 | CO7: 3 | CP7: 3 | CQ7: 3 | CR7: 3 | CS7: =+CR7 -> 3 | CT7: 3 | CU7: 3 | CV7: 3 | CW7: 3 | CX7: 3 | CY7: 3 | CZ7: 0 | DA7: 0 | DB7: 0 | DC7: 0 | DD7: 0 | DE7: 0 | DF7: 0 | DG7: 0 | DH7: 0 | DI7: 0 | DJ7: 0 | DK7: 0 | DL7: 0 | DM7: =+DL7 -> 0 | DN7: 0 | DO7: 0 | DP7: 0 | DQ7: 0 | DR7: 0 | DS7: 0 | DT7: 0 | DU7: 0 | DV7: 0 | DW7: 0 | DX7: 0 | DY7: 0 | DZ7: 0 | EA7: 0 | EB7: STR | EC7: STR | ED7: STR | EE7: STR | EF7: STR | EG7: =+EF7 -> STR | EH7: STR | EI7: STR | EJ7: STR | EK7: STR | EL7: STR | EM7: STR | EN7: 0 | EO7: 0 | EP7: 0 | EQ7: 0 | ER7: 0 | ES7: 0 | ET7: 0 | EU7: 0 | EV7: 0 | EW7: 0 | EX7: 0 | EY7: 0 | EZ7: 0 | FA7: 0 | FB7: 0 | FC7: 0 | FD7: 0 | FE7: 0 | FF7: 0 | FG7: 0 | FH7: 0 | FI7: 0 | FJ7: 0 | FK7: 0 | FL7: 0 | FM7: 0 | FN7: 0 | FO7: 0 | FP7: 0 | FQ7: 0 | FR7: 312239.2 | FS7: 0.9767722178 | FT7: 0.9665810551 | FU7: 0.9483306064 | FV7: 0.9450339502 | FW7: 0.9735948822 | FX7: 0.9696009233 | FY7: 0.9171911079 | FZ7: 0.9171255887 | GA7: 0.9516989326 | GB7: 0.9462559333 | GC7: 0 | GD7: 0 | GE7: 0 | GF7: 0 | GG7: 0 | GH7: 0 | GI7: 0 | GJ7: 0 | GK7: 0 | GL7: 0
E8: 2015_4 | F8: 2015-01-01 | G8: 416 | H8: 328 | I8: 744 | J8: 0.5591397849 | K8: 0.4408602151 | M8: 2012 | N8: 366 | O8: 8784 | Q8: 10025 | R8: Benton REA | S8: 0 | T8: 0 | U8: 60.549 | V8: 0 | W8: 0 | X8: 0 | Y8: 0 | Z8: 0 | AA8: 0 | AB8: 0 | AC8: 0 | AD8: 0 | AE8: 0 | AF8: 0 | AG8: 0 | AH8: 66.081 | AI8: 58.702 | AJ8: 59.343 | AK8: 56.909 | AL8: 59.659 | AM8: 0 | AN8: 0 | AO8: 0 | AP8: 0 | AQ8: 0 | AR8: 69.528 | AS8: 70.504 | AT8: 64.711 | AU8: 65.775 | AV8: 66.508 | AW8: 67.372 | AX8: 66.666 | AY8: 67.355 | AZ8: 64.824 | BA8: 65.037 | BB8: 0 | BC8: 0 | BD8: 0 | BE8: 0 | BF8: 0 | BG8: 0 | BH8: 0 | BI8: 0 | BJ8: 0 | BK8: 0 | BL8: 3.447 | BM8: 4.423 | BN8: 7.579 | BO8: 8.643 | BP8: 7.165 | BQ8: 8.029 | BR8: 9.757 | BS8: 10.446 | BT8: 5.165 | BU8: 5.378 | BV8: 0 | BW8: 0 | BX8: 0 | BY8: 0 | BZ8: 0 | CA8: 0 | CB8: 0 | CC8: 0 | CD8: 0 | CE8: 0 | CF8: 3 | CG8: 3 | CH8: 3 | CI8: 3 | CJ8: 1 | CK8: 1 | CL8: 1 | CM8: 1 | CN8: 1 | CO8: 1 | CP8: 1 | CQ8: 1 | CR8: 1 | CS8: =+CR8 -> 1 | CT8: 1 | CU8: 1 | CV8: 1 | CW8: 1 | CX8: 1 | CY8: 1 | CZ8: 10 | DA8: 11 | DB8: 12 | DC8: 14 | DD8: 0 | DE8: 0 | DF8: 0 | DG8: 0 | DH8: 0 | DI8: 0 | DJ8: 0 | DK8: 0 | DL8: 0 | DM8: =+DL8 -> 0 | DN8: 0 | DO8: 0 | DP8: 0 | DQ8: 0 | DR8: 0 | DS8: 0 | DT8: LGR | DU8: LGR | DV8: LGR | DW8: LGR | DX8: STR | DY8: STR | DZ8: STR | EA8: STR | EB8: STR | EC8: STR | ED8: STR | EE8: STR | EF8: STR | EG8: =+EF8 -> STR | EH8: STR | EI8: STR | EJ8: STR | EK8: STR | EL8: STR | EM8: STR | EN8: 0 | EO8: 0 | EP8: 0 | EQ8: 0 | ER8: 0 | ES8: 0 | ET8: 0 | EU8: 0 | EV8: 0 | EW8: 0 | EX8: 0 | EY8: 0 | EZ8: 0 | FA8: 0 | FB8: 0 | FC8: 0 | FD8: 0 | FE8: 0 | FF8: 0 | FG8: 0 | FH8: 0 | FI8: 0 | FJ8: 0 | FK8: 0 | FL8: 0 | FM8: 0 | FN8: 0 | FO8: 0 | FP8: 1 | FQ8: 0.055 | FR8: 82900.857 | FS8: 0.9504215223 | FT8: 0.9372695023 | FU8: 0.8965214833 | FV8: 0.88368387 | FW8: 0.8922697627 | FX8: 0.8808270109 | FY8: 0.8536399489 | FZ8: 0.8449077401 | GA8: 0.9203273448 | GB8: 0.9173132186 | GC8: 0 | GD8: 0 | GE8: 0 | GF8: 0 | GG8: 0 | GH8: 0 | GI8: 0 | GJ8: 0 | GK8: 0 | GL8: 0
B9: Base Year | C9: 2024 | E9: 2015_5 | F9: 2015-02-01 | G9: 384 | H9: 288 | I9: 672 | J9: 0.5714285714 | K9: 0.4285714286 | M9: 2013 | N9: 365 | O9: 8760 | Q9: 10027 | R9: Big Bend Elec Coop | S9: 0 | T9: 0 | U9: 62.107 | V9: 0 | W9: 0 | X9: 0 | Y9: 0 | Z9: 0 | AA9: 0 | AB9: 0 | AC9: 0 | AD9: 0 | AE9: 0 | AF9: 0 | AG9: 0 | AH9: 60.597 | AI9: 60.212 | AJ9: 60.87 | AK9: 58.373 | AL9: 61.194 | AM9: 0 | AN9: 0 | AO9: 0 | AP9: 0 | AQ9: 0 | AR9: 60.704 | AS9: 61.23 | AT9: 63.741 | AU9: 64.451 | AV9: 65.199 | AW9: 65.771 | AX9: 66.27 | AY9: 66.586 | AZ9: 67.791 | BA9: 68.216 | BB9: 0 | BC9: 0 | BD9: 0 | BE9: 0 | BF9: 0 | BG9: 0 | BH9: 0 | BI9: 0 | BJ9: 0 | BK9: 0 | BL9: 0.107 | BM9: 0.633 | BN9: 3.529 | BO9: 4.239 | BP9: 4.329 | BQ9: 4.901 | BR9: 7.897 | BS9: 8.213 | BT9: 6.597 | BU9: 7.022 | BV9: 0 | BW9: 0 | BX9: 0 | BY9: 0 | BZ9: 0 | CA9: 0 | CB9: 0 | CC9: 0 | CD9: 0 | CE9: 0 | CF9: 3 | CG9: 3 | CH9: 3 | CI9: 3 | CJ9: 3 | CK9: 3 | CL9: 3 | CM9: 3 | CN9: 3 | CO9: 3 | CP9: 3 | CQ9: 3 | CR9: 3 | CS9: =+CR9 -> 3 | CT9: 3 | CU9: 3 | CV9: 3 | CW9: 3 | CX9: 3 | CY9: 3 | CZ9: 4.52 | DA9: 5.57 | DB9: 6.45 | DC9: 7.35 | DD9: 24 | DE9: 25 | DF9: 25 | DG9: 26 | DH9: 27 | DI9: 0 | DJ9: 0 | DK9: 0 | DL9: 0 | DM9: =+DL9 -> 0 | DN9: 0 | DO9: 0 | DP9: 0 | DQ9: 0 | DR9: 0 | DS9: 0 | DT9: STR | DU9: STR | DV9: STR | DW9: STR | DX9: STR | DY9: STR | DZ9: STR | EA9: STR | EB9: STR | EC9: STR | ED9: STR | EE9: STR | EF9: STR | EG9: =+EF9 -> STR | EH9: STR | EI9: STR | EJ9: STR | EK9: STR | EL9: STR | EM9: STR | EN9: 1 | EO9: 1 | EP9: 1 | EQ9: 1 | ER9: 0 | ES9: 0 | ET9: 0 | EU9: 0 | EV9: 1 | EW9: 1 | EX9: 1 | EY9: 1 | EZ9: 0 | FA9: 0 | FB9: 0 | FC9: 0 | FD9: 0 | FE9: 0 | FF9: 0 | FG9: 0 | FH9: 0 | FI9: 0 | FJ9: 0 | FK9: 0 | FL9: 0 | FM9: 0 | FN9: 0 | FO9: 0 | FP9: 1 | FQ9: 0.07 | FR9: 209669.54 | FS9: 0.9982323218 | FT9: 0.9896615614 | FU9: 0.9446324159 | FV9: 0.9342262311 | FW9: 0.93360644 | FX9: 0.9254870123 | FY9: 0.8808396752 | FZ9: 0.8766594371 | GA9: 0.9026886904 | GB9: 0.8970647504 | GC9: 0 | GD9: 0 | GE9: 0 | GF9: 0 | GG9: 0 | GH9: 0 | GI9: 0 | GJ9: 0 | GK9: 0 | GL9: 0
E10: 2015_6 | F10: 2015-03-01 | G10: 416 | H10: 327 | I10: 743 | J10: 0.5598923284 | K10: 0.4401076716 | M10: 2014 | N10: 365 | O10: 8760 | Q10: 10029 | R10: Blachly Lane Elec Coop | S10: 0 | T10: 1 | U10: 17.879 | V10: 0 | W10: 0 | X10: 0 | Y10: 0 | Z10: 0 | AA10: 0 | AB10: 0 | AC10: 0 | AD10: 0 | AE10: 0 | AF10: 0 | AG10: 0 | AH10: 17.444 | AI10: 17.333 | AJ10: 17.523 | AK10: 16.804 | AL10: 17.616 | AM10: 0 | AN10: 0 | AO10: 0 | AP10: 0 | AQ10: 0 | AR10: 19.667 | AS10: 19.874 | AT10: 20.024 | AU10: 20.024 | AV10: 21.166 | AW10: 21.178 | AX10: 21.914 | AY10: 22.349 | AZ10: 21.679 | BA10: 21.674 | BB10: 0 | BC10: 0 | BD10: 0 | BE10: 0 | BF10: 0 | BG10: 0 | BH10: 0 | BI10: 0 | BJ10: 0 | BK10: 0 | BL10: 2.223 | BM10: 2.43 | BN10: 2.691 | BO10: 2.691 | BP10: 3.643 | BQ10: 3.655 | BR10: 5.11 | BS10: 5.545 | BT10: 4.063 | BU10: 4.058 | BV10: 0 | BW10: 0 | BX10: 0 | BY10: 0 | BZ10: 0 | CA10: 0 | CB10: 0 | CC10: 0 | CD10: 0 | CE10: 0 | CF10: 6 | CG10: 6 | CH10: 6 | CI10: 6 | CJ10: 6 | CK10: 6 | CL10: 6 | CM10: 6 | CN10: 6 | CO10: 6 | CP10: 6 | CQ10: 6 | CR10: 6 | CS10: =+CR10 -> 6 | CT10: 6 | CU10: 6 | CV10: 6 | CW10: 6 | CX10: 6 | CY10: 6 | CZ10: 0 | DA10: 0 | DB10: 0 | DC10: 0 | DD10: 0 | DE10: 0 | DF10: 0 | DG10: 0 | DH10: 0 | DI10: 0 | DJ10: 0 | DK10: 0 | DL10: 0 | DM10: =+DL10 -> 0 | DN10: 0 | DO10: 0 | DP10: 0 | DQ10: 0 | DR10: 0 | DS10: 0 | DT10: STR | DU10: STR | DV10: STR | DW10: STR | DX10: STR | DY10: STR | DZ10: STR | EA10: STR | EB10: STR | EC10: STR | ED10: STR | EE10: STR | EF10: STR | EG10: =+EF10 -> STR | EH10: STR | EI10: STR | EJ10: STR | EK10: STR | EL10: STR | EM10: STR | EN10: 0 | EO10: 0 | EP10: 0 | EQ10: 0 | ER10: 0 | ES10: 0 | ET10: 0 | EU10: 0 | EV10: 0 | EW10: 0 | EX10: 0 | EY10: 0 | EZ10: 0 | FA10: 0 | FB10: 0 | FC10: 0 | FD10: 0 | FE10: 0 | FF10: 0 | FG10: 0 | FH10: 0 | FI10: 0 | FJ10: 0 | FK10: 0 | FL10: 0 | FM10: 0 | FN10: 0 | FO10: 0 | FP10: 1 | FQ10: 0.065 | FR10: 0 | FS10: 0.8869483627 | FT10: 0.8777277374 | FU10: 0.865608602 | FV10: 0.865608602 | FW10: 0.8278675793 | FX10: 0.8273984882 | FY10: 0.7668087764 | FZ10: 0.7518836425 | GA10: 0.8125850966 | GB10: 0.8127725528 | GC10: 0 | GD10: 0 | GE10: 0 | GF10: 0 | GG10: 0 | GH10: 0 | GI10: 0 | GJ10: 0 | GK10: 0 | GL10: 0
B11: Base Month | C11: 10 | E11: 2015_7 | F11: 2015-04-01 | G11: 416 | H11: 304 | I11: 720 | J11: 0.5777777778 | K11: 0.4222222222 | M11: 2015 | N11: 365 | O11: 8760 | Q11: 10044 | R11: Canby, City of | S11: 0 | T11: 0 | U11: 20.612 | V11: 0 | W11: 0 | X11: 0 | Y11: 0 | Z11: 0 | AA11: 0 | AB11: 0 | AC11: 0 | AD11: 0 | AE11: 0 | AF11: 0 | AG11: 0 | AH11: 20.111 | AI11: 19.983 | AJ11: 20.202 | AK11: 19.373 | AL11: 20.309 | AM11: 0 | AN11: 0 | AO11: 0 | AP11: 0 | AQ11: 0 | AR11: 21.792 | AS11: 21.96 | AT11: 20.635 | AU11: 20.731 | AV11: 20.77 | AW11: 20.893 | AX11: 21.998 | AY11: 22.09 | AZ11: 23.851 | BA11: 24.05 | BB11: 0 | BC11: 0 | BD11: 0 | BE11: 0 | BF11: 0 | BG11: 0 | BH11: 0 | BI11: 0 | BJ11: 0 | BK11: 0 | BL11: 1.681 | BM11: 1.849 | BN11: 0.652 | BO11: 0.748 | BP11: 0.568 | BQ11: 0.691 | BR11: 2.625 | BS11: 2.717 | BT11: 3.542 | BU11: 3.741 | BV11: 0 | BW11: 0 | BX11: 0 | BY11: 0 | BZ11: 0 | CA11: 0 | CB11: 0 | CC11: 0 | CD11: 0 | CE11: 0 | CF11: 1 | CG11: 1 | CH11: 1 | CI11: 1 | CJ11: 1 | CK11: 1 | CL11: 1 | CM11: 1 | CN11: 1 | CO11: 1 | CP11: 1 | CQ11: 1 | CR11: 1 | CS11: =+CR11 -> 1 | CT11: 1 | CU11: 1 | CV11: 1 | CW11: 1 | CX11: 1 | CY11: 1 | CZ11: 0 | DA11: 0 | DB11: 0 | DC11: 0 | DD11: 0 | DE11: 0 | DF11: 0 | DG11: 0 | DH11: 0 | DI11: 0 | DJ11: 0 | DK11: 0 | DL11: 0 | DM11: =+DL11 -> 0 | DN11: 0 | DO11: 0 | DP11: 0 | DQ11: 0 | DR11: 0 | DS11: 0 | DT11: STR | DU11: STR | DV11: STR | DW11: STR | DX11: STR | DY11: STR | DZ11: STR | EA11: STR | EB11: STR | EC11: STR | ED11: STR | EE11: STR | EF11: STR | EG11: =+EF11 -> STR | EH11: STR | EI11: STR | EJ11: STR | EK11: STR | EL11: STR | EM11: STR | EN11: 0 | EO11: 0 | EP11: 0 | EQ11: 0 | ER11: 0 | ES11: 0 | ET11: 0 | EU11: 0 | EV11: 0 | EW11: 0 | EX11: 0 | EY11: 0 | EZ11: 0 | FA11: 0 | FB11: 0 | FC11: 0 | FD11: 0 | FE11: 0 | FF11: 0 | FG11: 0 | FH11: 0 | FI11: 0 | FJ11: 0 | FK11: 0 | FL11: 0 | FM11: 0 | FN11: 0 | FO11: 0 | FP11: 0 | FQ11: 0 | FR11: 0 | FS11: 0.9228727893 | FT11: 0.9158119221 | FU11: 0.9684080388 | FV11: 0.9639235869 | FW11: 0.9726429495 | FX11: 0.966916865 | FY11: 0.8806752818 | FZ11: 0.8770074626 | GA11: 0.851506997 | GB11: 0.8444612634 | GC11: 0 | GD11: 0 | GE11: 0 | GF11: 0 | GG11: 0 | GH11: 0 | GI11: 0 | GJ11: 0 | GK11: 0 | GL11: 0
C12: =DATE((C9-1),C11,1) -> 2023-10-01 | E12: 2015_8 | F12: 2015-05-01 | G12: 400 | H12: 344 | I12: 744 | J12: 0.5376344086 | K12: 0.4623655914 | M12: 2016 | N12: 366 | O12: 8784 | Q12: 10046 | R12: Central Electric Coop | S12: 0 | T12: 1 | U12: 83.072 | V12: 0 | W12: 0 | X12: 0 | Y12: 0 | Z12: 0 | AA12: 0 | AB12: 0 | AC12: 0 | AD12: 0 | AE12: 0 | AF12: 0 | AG12: 0 | AH12: 81.052 | AI12: 80.537 | AJ12: 81.418 | AK12: 78.078 | AL12: 81.851 | AM12: 0 | AN12: 0 | AO12: 0 | AP12: 0 | AQ12: 0 | AR12: 82.298 | AS12: 82.947 | AT12: 82.607 | AU12: 82.967 | AV12: 90.594 | AW12: 92.031 | AX12: 95.832 | AY12: 97.424 | AZ12: 98.879 | BA12: 100.606 | BB12: 0 | BC12: 0 | BD12: 0 | BE12: 0 | BF12: 0 | BG12: 0 | BH12: 0 | BI12: 0 | BJ12: 0 | BK12: 0 | BL12: 1.246 | BM12: 1.895 | BN12: 2.07 | BO12: 2.43 | BP12: 9.176 | BQ12: 10.613 | BR12: 17.754 | BS12: 19.346 | BT12: 17.028 | BU12: 18.755 | BV12: 0 | BW12: 0 | BX12: 0 | BY12: 0 | BZ12: 0 | CA12: 0 | CB12: 0 | CC12: 0 | CD12: 0 | CE12: 0 | CF12: 6 | CG12: 6 | CH12: 6 | CI12: 6 | CJ12: 6 | CK12: 6 | CL12: 6 | CM12: 6 | CN12: 6 | CO12: 6 | CP12: 6 | CQ12: 6 | CR12: 6 | CS12: =+CR12 -> 6 | CT12: 6 | CU12: 6 | CV12: 6 | CW12: 6 | CX12: 6 | CY12: 6 | CZ12: 0 | DA12: 0 | DB12: 0 | DC12: 0 | DD12: 0 | DE12: 0 | DF12: 0 | DG12: 0 | DH12: 0 | DI12: 0 | DJ12: 0 | DK12: 0 | DL12: 0 | DM12: =+DL12 -> 0 | DN12: 0 | DO12: 0 | DP12: 0 | DQ12: 0 | DR12: 0 | DS12: 0 | DT12: STR | DU12: STR | DV12: STR | DW12: STR | DX12: STR | DY12: STR | DZ12: STR | EA12: STR | EB12: STR | EC12: STR | ED12: STR | EE12: STR | EF12: STR | EG12: =+EF12 -> STR | EH12: STR | EI12: STR | EJ12: STR | EK12: STR | EL12: STR | EM12: STR | EN12: 0 | EO12: 0 | EP12: 0 | EQ12: 0 | ER12: 0 | ES12: 0 | ET12: 0 | EU12: 0 | EV12: 0 | EW12: 0 | EX12: 0 | EY12: 0 | EZ12: 0 | FA12: 0 | FB12: 0 | FC12: 0 | FD12: 0 | FE12: 0 | FF12: 0 | FG12: 0 | FH12: 0 | FI12: 0 | FJ12: 0 | FK12: 0 | FL12: 0 | FM12: 0 | FN12: 0 | FO12: 0 | FP12: 1 | FQ12: 0.065 | FR12: 41085.457 | FS12: 0.9848639457 | FT12: 0.9771570969 | FU12: 0.9749451694 | FV12: 0.9707148096 | FW12: 0.8987163475 | FX12: 0.8846835174 | FY12: 0.8147358814 | FZ12: 0.8014223291 | GA12: 0.8277893178 | GB12: 0.8135795077 | GC12: 0 | GD12: 0 | GE12: 0 | GF12: 0 | GG12: 0 | GH12: 0 | GI12: 0 | GJ12: 0 | GK12: 0 | GL12: 0
E13: 2015_9 | F13: 2015-06-01 | G13: 416 | H13: 304 | I13: 720 | J13: 0.5777777778 | K13: 0.4222222222 | M13: 2017 | N13: 365 | O13: 8760 | Q13: 10047 | R13: Central Lincoln PUD | S13: 0 | T13: 0 | U13: 159.01 | V13: 0 | W13: 0 | X13: 0 | Y13: 0 | Z13: 0 | AA13: 0 | AB13: 0 | AC13: 0 | AD13: 0 | AE13: 0 | AF13: 0 | AG13: 0 | AH13: 155.144 | AI13: 154.158 | AJ13: 155.843 | AK13: 149.45 | AL13: 156.673 | AM13: 0 | AN13: 0 | AO13: 0 | AP13: 0 | AQ13: 0 | AR13: 153.104 | AS13: 153.501 | AT13: 152.864 | AU13: 153.239 | AV13: 154.201 | AW13: 154.536 | AX13: 153.656 | AY13: 154.036 | AZ13: 152.313 | BA13: 152.465 | BB13: 0 | BC13: 0 | BD13: 0 | BE13: 0 | BF13: 0 | BG13: 0 | BH13: 0 | BI13: 0 | BJ13: 0 | BK13: 0 | BL13: 0 | BM13: 0 | BN13: 0 | BO13: 0 | BP13: 0 | BQ13: 0 | BR13: 4.206 | BS13: 4.586 | BT13: 0 | BU13: 0 | BV13: 0 | BW13: 0 | BX13: 0 | BY13: 0 | BZ13: 0 | CA13: 0 | CB13: 0 | CC13: 0 | CD13: 0 | CE13: 0 | CF13: 3 | CG13: 3 | CH13: 3 | CI13: 3 | CJ13: 3 | CK13: 3 | CL13: 3 | CM13: 3 | CN13: 3 | CO13: 3 | CP13: 3 | CQ13: 3 | CR13: 3 | CS13: =+CR13 -> 3 | CT13: 3 | CU13: 3 | CV13: 3 | CW13: 3 | CX13: 3 | CY13: 3 | CZ13: 0 | DA13: 0 | DB13: 0 | DC13: 1 | DD13: 9 | DE13: 9 | DF13: 9 | DG13: 9 | DH13: 10 | DI13: 0 | DJ13: 0 | DK13: 0 | DL13: 0 | DM13: =+DL13 -> 0 | DN13: 0 | DO13: 0 | DP13: 0 | DQ13: 0 | DR13: 0 | DS13: 0 | DT13: STR | DU13: STR | DV13: STR | DW13: STR | DX13: STR | DY13: STR | DZ13: STR | EA13: STR | EB13: STR | EC13: STR | ED13: STR | EE13: STR | EF13: STR | EG13: =+EF13 -> STR | EH13: STR | EI13: STR | EJ13: STR | EK13: STR | EL13: STR | EM13: STR | EN13: 0 | EO13: 0 | EP13: 0 | EQ13: 0 | ER13: 0 | ES13: 0 | ET13: 0 | EU13: 0 | EV13: 0 | EW13: 0 | EX13: 0 | EY13: 0 | EZ13: 0 | FA13: 0 | FB13: 0 | FC13: 0 | FD13: 0 | FE13: 0 | FF13: 0 | FG13: 0 | FH13: 0 | FI13: 0 | FJ13: 0 | FK13: 0 | FL13: 0 | FM13: 0 | FN13: 0 | FO13: 0 | FP13: 1 | FQ13: 0 | FR13: 0 | FS13: 1 | FT13: 0.9999976626 | FU13: 0.9999980361 | FV13: 0.9999981824 | FW13: 0.9999979411 | FX13: 0.9999983935 | FY13: 0.972628249 | FZ13: 0.9702288181 | GA13: 0.9999999356 | GB13: 0.9999990328 | GC13: 0 | GD13: 0 | GE13: 0 | GF13: 0 | GG13: 0 | GH13: 0 | GI13: 0 | GJ13: 0 | GK13: 0 | GL13: 0
B14: RHWM Lock | C14: Yes | E14: 2015_10 | F14: 2015-07-01 | G14: 416 | H14: 328 | I14: 744 | J14: 0.5591397849 | K14: 0.4408602151 | M14: 2018 | N14: 365 | O14: 8760 | Q14: 10055 | R14: Albion, City of | S14: 0 | T14: 0 | U14: 0.404 | V14: 0 | W14: 0 | X14: 0 | Y14: 0 | Z14: 0 | AA14: 0 | AB14: 0 | AC14: 0 | AD14: 0 | AE14: 0 | AF14: 0 | AG14: 0 | AH14: 0.394 | AI14: 0.392 | AJ14: 0.396 | AK14: 0.38 | AL14: 0.398 | AM14: 0 | AN14: 0 | AO14: 0 | AP14: 0 | AQ14: 0 | AR14: 0.402 | AS14: 0.405 | AT14: 0.391 | AU14: 0.392 | AV14: 0.385 | AW14: 0.385 | AX14: 0.386 | AY14: 0.386 | AZ14: 0.391 | BA14: 0.39 | BB14: 0 | BC14: 0 | BD14: 0 | BE14: 0 | BF14: 0 | BG14: 0 | BH14: 0 | BI14: 0 | BJ14: 0 | BK14: 0 | BL14: 0.008 | BM14: 0.011 | BN14: 0 | BO14: 0 | BP14: 0 | BQ14: 0 | BR14: 0.006 | BS14: 0.006 | BT14: 0 | BU14: 0 | BV14: 0 | BW14: 0 | BX14: 0 | BY14: 0 | BZ14: 0 | CA14: 0 | CB14: 0 | CC14: 0 | CD14: 0 | CE14: 0 | CF14: 1 | CG14: 1 | CH14: 1 | CI14: 1 | CJ14: 1 | CK14: 1 | CL14: 1 | CM14: 1 | CN14: 1 | CO14: 1 | CP14: 1 | CQ14: 1 | CR14: 1 | CS14: =+CR14 -> 1 | CT14: 1 | CU14: 1 | CV14: 1 | CW14: 1 | CX14: 1 | CY14: 1 | CZ14: 0 | DA14: 0 | DB14: 0 | DC14: 0 | DD14: 0 | DE14: 0 | DF14: 0 | DG14: 0 | DH14: 0 | DI14: 0 | DJ14: 0 | DK14: 0 | DL14: 0 | DM14: =+DL14 -> 0 | DN14: 0 | DO14: 0 | DP14: 0 | DQ14: 0 | DR14: 0 | DS14: 0 | DT14: LGR | DU14: LGR | DV14: LGR | DW14: LGR | DX14: LGR | DY14: LGR | DZ14: LGR | EA14: LGR | EB14: LGR | EC14: LGR | ED14: LGR | EE14: LGR | EF14: LGR | EG14: =+EF14 -> LGR | EH14: LGR | EI14: LGR | EJ14: LGR | EK14: LGR | EL14: LGR | EM14: LGR | EN14: 0 | EO14: 0 | EP14: 0 | EQ14: 0 | ER14: 0 | ES14: 0 | ET14: 0 | EU14: 0 | EV14: 0 | EW14: 0 | EX14: 0 | EY14: 0 | EZ14: 0 | FA14: 0 | FB14: 0 | FC14: 0 | FD14: 0 | FE14: 0 | FF14: 0 | FG14: 0 | FH14: 0 | FI14: 0 | FJ14: 0 | FK14: 0 | FL14: 0 | FM14: 0 | FN14: 0 | FO14: 0 | FP14: 0 | FQ14: 0 | FR14: 0 | FS14: 0.9807334733 | FT14: 0.9734030706 | FU14: 0.999986777 | FV14: 0.9992074347 | FW14: 0.9998526171 | FX14: 0.9998526171 | FY14: 0.9842762891 | FZ14: 0.9842762891 | GA14: 1 | GB14: 0.9997378154 | GC14: 0 | GD14: 0 | GE14: 0 | GF14: 0 | GG14: 0 | GH14: 0 | GI14: 0 | GJ14: 0 | GK14: 0 | GL14: 0
B15: VBARS Study ID | C15: 312 | E15: 2015_11 | F15: 2015-08-01 | G15: 416 | H15: 328 | I15: 744 | J15: 0.5591397849 | K15: 0.4408602151 | M15: 2019 | N15: 365 | O15: 8760 | Q15: 10057 | R15: Ashland, City of | S15: 0 | T15: 0 | U15: 21.383 | V15: 0 | W15: 0 | X15: 0 | Y15: 0 | Z15: 0 | AA15: 0 | AB15: 0 | AC15: 0 | AD15: 0 | AE15: 0 | AF15: 0 | AG15: 0 | AH15: 20.863 | AI15: 20.731 | AJ15: 20.957 | AK15: 20.097 | AL15: 21.069 | AM15: 0 | AN15: 0 | AO15: 0 | AP15: 0 | AQ15: 0 | AR15: 20.876 | AS15: 20.984 | AT15: 20.832 | AU15: 20.878 | AV15: 19.991 | AW15: 19.984 | AX15: 19.976 | AY15: 19.976 | AZ15: 19.994 | BA15: 19.99 | BB15: 0 | BC15: 0 | BD15: 0 | BE15: 0 | BF15: 0 | BG15: 0 | BH15: 0 | BI15: 0 | BJ15: 0 | BK15: 0 | BL15: 0.013 | BM15: 0.121 | BN15: 0.101 | BO15: 0.147 | BP15: 0 | BQ15: 0 | BR15: 0 | BS15: 0 | BT15: 0 | BU15: 0 | BV15: 0 | BW15: 0 | BX15: 0 | BY15: 0 | BZ15: 0 | CA15: 0 | CB15: 0 | CC15: 0 | CD15: 0 | CE15: 0 | CF15: 1 | CG15: 1 | CH15: 1 | CI15: 1 | CJ15: 1 | CK15: 1 | CL15: 1 | CM15: 1 | CN15: 1 | CO15: 3 | CP15: 3 | CQ15: 3 | CR15: 3 | CS15: =+CR15 -> 3 | CT15: 3 | CU15: 3 | CV15: 3 | CW15: 3 | CX15: 3 | CY15: 3 | CZ15: 0 | DA15: 0 | DB15: 0 | DC15: 0 | DD15: 0 | DE15: 0 | DF15: 0 | DG15: 0 | DH15: 0 | DI15: 0 | DJ15: 0 | DK15: 0 | DL15: 0 | DM15: =+DL15 -> 0 | DN15: 0 | DO15: 0 | DP15: 0 | DQ15: 0 | DR15: 0 | DS15: 0 | DT15: STR | DU15: STR | DV15: STR | DW15: STR | DX15: STR | DY15: STR | DZ15: STR | EA15: STR | EB15: STR | EC15: STR | ED15: STR | EE15: STR | EF15: STR | EG15: =+EF15 -> STR | EH15: STR | EI15: STR | EJ15: STR | EK15: STR | EL15: STR | EM15: STR | EN15: 0 | EO15: 0 | EP15: 0 | EQ15: 0 | ER15: 0 | ES15: 0 | ET15: 0 | EU15: 0 | EV15: 0 | EW15: 0 | EX15: 0 | EY15: 0 | EZ15: 0 | FA15: 0 | FB15: 0 | FC15: 0 | FD15: 0 | FE15: 0 | FF15: 0 | FG15: 0 | FH15: 0 | FI15: 0 | FJ15: 0 | FK15: 0 | FL15: 0 | FM15: 0 | FN15: 0 | FO15: 0 | FP15: 0 | FQ15: 0 | FR15: 0 | FS15: 0.9993446014 | FT15: 0.9942772973 | FU15: 0.9951910336 | FV15: 0.993014822 | FW15: 1 | FX15: 1 | FY15: 0.9999999493 | FZ15: 0.9999999493 | GA15: 1 | GB15: 1 | GC15: 0 | GD15: 0 | GE15: 0 | GF15: 0 | GG15: 0 | GH15: 0 | GI15: 0 | GJ15: 0 | GK15: 0 | GL15: 0
... 18 more rows

Sheet EE
B1: Energy Efficiency Inputs | F1: USBR Loads | G1: *This percentage represents the USBR loads that showed up in the BOOM EE report but are not preference customers. This factor is used as an adjustment in the VBA script.
B2: Percent of Non-PNGC Reported EE Savings (Last 3 Years Average) | F2: =1-SUM($D$5:$D$200) -> 0.04597817485
B4: BESID | C4: AccountName | D4: Percent
B5: 10005 | C5: Alder Mutual | D5: 8.443792876e-06
B6: 10015 | C6: Asotin County PUD #1 | D6: 0
B7: 10024 | C7: Benton County PUD #1 | D7: 0.03655499999
B8: 10025 | C8: Benton REA | D8: 0.01243541461
B9: 10027 | C9: Big Bend Elec Coop | D9: 0.008130006523
B10: 10029 | C10: Blachly Lane Elec Coop | D10: 6.754420735e-06
B11: 10044 | C11: Canby, City of | D11: 0.001572403117
B12: 10046 | C12: Central Electric Coop | D12: 0
B13: 10047 | C13: Central Lincoln PUD | D13: 0.01596400583
B14: 10055 | C14: Albion, City of | D14: 2.185402188e-05
B15: 10057 | C15: Ashland, City of | D15: 0.001223760666
... 18 more rows

Sheet ShapingFactors
B1: Slice-Block Inputs
A2: TOC | D2: Monthly Block Shaping Factors
B3: BESID | C3: AccountName | D3: 10 | E3: 11 | F3: 12 | G3: 1 | H3: 2 | I3: 3 | J3: 4 | K3: 5 | L3: 6 | M3: 7 | N3: 8 | O3: 9
B4: 10170 | C4: Eugene Water & Electric Board | D4: 0.081 | E4: 0.077 | F4: 0.099 | G4: 0.105 | H4: 0.093 | I4: 0.092 | J4: 0.081 | K4: 0.066 | L4: 0.066 | M4: 0.081 | N4: 0.083 | O4: 0.076
B5: 10204 | C5: Idaho Falls Power | D5: 0.074 | E5: 0.085 | F5: 0.105 | G5: 0.108 | H5: 0.089 | I5: 0.083 | J5: 0.072 | K5: 0.079 | L5: 0.074 | M5: 0.083 | N5: 0.081 | O5: 0.067
B6: 10349 | C6: Seattle City Light | D6: 0.08 | E6: 0.127 | F6: 0.129 | G6: 0.14 | H6: 0.119 | I6: 0.126 | J6: 0.061 | K6: 0.02 | L6: 0 | M6: 0.048 | N6: 0.057 | O6: 0.093
B7: 10370 | C7: Tacoma Public Utilities | D7: 0.068 | E7: 0.088 | F7: 0.109 | G7: 0.103 | H7: 0.088 | I7: 0.101 | J7: 0.085 | K7: 0.076 | L7: 0.068 | M7: 0.073 | N7: 0.069 | O7: 0.072
B8: 10024 | C8: Benton County PUD #1 | D8: 0.065 | E8: 0.069 | F8: 0.081 | G8: 0.088 | H8: 0.066 | I8: 0.065 | J8: 0.07 | K8: 0.088 | L8: 0.103 | M8: 0.125 | N8: 0.108 | O8: 0.072
B9: 10103 | C9: Clark County PUD #1 | D9: 0.071 | E9: 0.095 | F9: 0.118 | G9: 0.12 | H9: 0.087 | I9: 0.081 | J9: 0.067 | K9: 0.094 | L9: 0.065 | M9: 0.071 | N9: 0.072 | O9: 0.059
B10: 10105 | C10: Clatskanie PUD | D10: 0.083 | E10: 0.083 | F10: 0.092 | G10: 0.09 | H10: 0.083 | I10: 0.091 | J10: 0.086 | K10: 0.067 | L10: 0.084 | M10: 0.08 | N10: 0.081 | O10: 0.08
B11: 10123 | C11: Cowlitz County PUD #1 | D11: 0.083 | E11: 0.086 | F11: 0.092 | G11: 0.091 | H11: 0.079 | I11: 0.084 | J11: 0.082 | K11: 0.081 | L11: 0.078 | M11: 0.082 | N11: 0.082 | O11: 0.08
B12: 10157 | C12: Emerald PUD | D12: 0.076 | E12: 0.093 | F12: 0.114 | G12: 0.105 | H12: 0.091 | I12: 0.087 | J12: 0.079 | K12: 0.071 | L12: 0.066 | M12: 0.076 | N12: 0.075 | O12: 0.067
B13: 10183 | C13: Franklin County PUD #1 | D13: 0.075 | E13: 0.071 | F13: 0.083 | G13: 0.089 | H13: 0.07 | I13: 0.069 | J13: 0.069 | K13: 0.079 | L13: 0.091 | M13: 0.112 | N13: 0.107 | O13: 0.085
B14: 10191 | C14: Grays Harbor PUD #1 | D14: 0.078 | E14: 0.093 | F14: 0.107 | G14: 0.107 | H14: 0.091 | I14: 0.09 | J14: 0.081 | K14: 0.075 | L14: 0.07 | M14: 0.07 | N14: 0.069 | O14: 0.069
B15: 10231 | C15: Klickitat County PUD #1 | D15: 0.08 | E15: 0.083 | F15: 0.104 | G15: 0.113 | H15: 0.087 | I15: 0.079 | J15: 0.074 | K15: 0.066 | L15: 0.062 | M15: 0.087 | N15: 0.088 | O15: 0.077
B16: 10237 | C16: Lewis County PUD #1 | D16: 0.08 | E16: 0.095 | F16: 0.115 | G16: 0.101 | H16: 0.089 | I16: 0.089 | J16: 0.084 | K16: 0.075 | L16: 0.068 | M16: 0.067 | N16: 0.068 | O16: 0.069
B17: 10286 | C17: Okanogan County PUD #1 | D17: 0.077 | E17: 0.086 | F17: 0.119 | G17: 0.131 | H17: 0.108 | I17: 0.107 | J17: 0.071 | K17: 0.055 | L17: 0.038 | M17: 0.08 | N17: 0.061 | O17: 0.067
B18: 10294 | C18: Pacific County PUD #2 | D18: 0.076 | E18: 0.098 | F18: 0.116 | G18: 0.117 | H18: 0.094 | I18: 0.094 | J18: 0.08 | K18: 0.071 | L18: 0.063 | M18: 0.063 | N18: 0.064 | O18: 0.064
B19: 10306 | C19: Pend Oreille County PUD #1 | D19: 0.034 | E19: 0.149 | F19: 0.135 | G19: 0.19 | H19: 0.168 | I19: 0.159 | J19: 0.01 | K19: 0 | L19: 0 | M19: 0.038 | N19: 0.039 | O19: 0.078
B20: 10354 | C20: Snohomish County PUD #1 | D20: 0.082 | E20: 0.092 | F20: 0.107 | G20: 0.105 | H20: 0.088 | I20: 0.089 | J20: 0.078 | K20: 0.074 | L20: 0.071 | M20: 0.071 | N20: 0.071 | O20: 0.072

Sheet I_TRL
B1: Total Retail Loads (MWh)
A2: TOC | D2: 2015-10-01 | E2: 2015-10-01 | F2: 2015-11-01 | G2: 2015-11-01 | H2: 2015-12-01 | I2: 2015-12-01 | J2: 2016-01-01 | K2: 2016-01-01 | L2: 2016-02-01 | M2: 2016-02-01 | N2: 2016-03-01 | O2: 2016-03-01 | P2: 2016-04-01 | Q2: 2016-04-01 | R2: 2016-05-01 | S2: 2016-05-01 | T2: 2016-06-01 | U2: 2016-06-01 | V2: 2016-07-01 | W2: 2016-07-01 | X2: 2016-08-01 | Y2: 2016-08-01 | Z2: 2016-09-01 | AA2: 2016-09-01 | AB2: 2016-10-01 | AC2: 2016-10-01 | AD2: 2016-11-01 | AE2: 2016-11-01 | AF2: 2016-12-01 | AG2: 2016-12-01 | AH2: 2017-01-01 | AI2: 2017-01-01 | AJ2: 2017-02-01 | AK2: 2017-02-01 | AL2: 2017-03-01 | AM2: 2017-03-01 | AN2: 2017-04-01 | AO2: 2017-04-01 | AP2: 2017-05-01 | AQ2: 2017-05-01 | AR2: 2017-06-01 | AS2: 2017-06-01 | AT2: 2017-07-01 | AU2: 2017-07-01 | AV2: 2017-08-01 | AW2: 2017-08-01 | AX2: 2017-09-01 | AY2: 2017-09-01 | AZ2: 2017-10-01 | BA2: 2017-10-01 | BB2: 2017-11-01 | BC2: 2017-11-01 | BD2: 2017-12-01 | BE2: 2017-12-01 | BF2: 2018-01-01 | BG2: 2018-01-01 | BH2: 2018-02-01 | BI2: 2018-02-01 | BJ2: 2018-03-01 | BK2: 2018-03-01 | BL2: 2018-04-01 | BM2: 2018-04-01 | BN2: 2018-05-01 | BO2: 2018-05-01 | BP2: 2018-06-01 | BQ2: 2018-06-01 | BR2: 2018-07-01 | BS2: 2018-07-01 | BT2: 2018-08-01 | BU2: 2018-08-01 | BV2: 2018-09-01 | BW2: 2018-09-01 | BX2: 2018-10-01 | BY2: 2018-10-01 | BZ2: 2018-11-01 | CA2: 2018-11-01 | CB2: 2018-12-01 | CC2: 2018-12-01 | CD2: 2019-01-01 | CE2: 2019-01-01 | CF2: 2019-02-01 | CG2: 2019-02-01 | CH2: 2019-03-01 | CI2: 2019-03-01 | CJ2: 2019-04-01 | CK2: 2019-04-01 | CL2: 2019-05-01 | CM2: 2019-05-01 | CN2: 2019-06-01 | CO2: 2019-06-01 | CP2: 2019-07-01 | CQ2: 2019-07-01 | CR2: 2019-08-01 | CS2: 2019-08-01 | CT2: 2019-09-01 | CU2: 2019-09-01 | CV2: 2019-10-01 | CW2: 2019-10-01 | CX2: 2019-11-01 | CY2: 2019-11-01 | CZ2: 2019-12-01 | DA2: 2019-12-01 | DB2: 2020-01-01 | DC2: 2020-01-01 | DD2: 2020-02-01 | DE2: 2020-02-01 | DF2: 2020-03-01 | DG2: 2020-03-01 | DH2: 2020-04-01 | DI2: 2020-04-01 | DJ2: 2020-05-01 | DK2: 2020-05-01 | DL2: 2020-06-01 | DM2: 2020-06-01 | DN2: 2020-07-01 | DO2: 2020-07-01 | DP2: 2020-08-01 | DQ2: 2020-08-01 | DR2: 2020-09-01 | DS2: 2020-09-01 | DT2: 2020-10-01 | DU2: 2020-10-01 | DV2: 2020-11-01 | DW2: 2020-11-01 | DX2: 2020-12-01 | DY2: 2020-12-01 | DZ2: 2021-01-01 | EA2: 2021-01-01 | EB2: 2021-02-01 | EC2: 2021-02-01 | ED2: 2021-03-01 | EE2: 2021-03-01 | EF2: 2021-04-01 | EG2: 2021-04-01 | EH2: 2021-05-01 | EI2: 2021-05-01 | EJ2: 2021-06-01 | EK2: 2021-06-01 | EL2: 2021-07-01 | EM2: 2021-07-01 | EN2: 2021-08-01 | EO2: 2021-08-01 | EP2: 2021-09-01 | EQ2: 2021-09-01 | ER2: 2021-10-01 | ES2: 2021-10-01 | ET2: 2021-11-01 | EU2: 2021-11-01 | EV2: 2021-12-01 | EW2: 2021-12-01 | EX2: 2022-01-01 | EY2: 2022-01-01 | EZ2: 2022-02-01 | FA2: 2022-02-01 | FB2: 2022-03-01 | FC2: 2022-03-01 | FD2: 2022-04-01 | FE2: 2022-04-01 | FF2: 2022-05-01 | FG2: 2022-05-01 | FH2: 2022-06-01 | FI2: 2022-06-01 | FJ2: 2022-07-01 | FK2: 2022-07-01 | FL2: 2022-08-01 | FM2: 2022-08-01 | FN2: 2022-09-01 | FO2: 2022-09-01 | FP2: 2022-10-01 | FQ2: 2022-10-01 | FR2: 2022-11-01 | FS2: 2022-11-01 | FT2: 2022-12-01 | FU2: 2022-12-01 | FV2: 2023-01-01 | FW2: 2023-01-01 | FX2: 2023-02-01 | FY2: 2023-02-01 | FZ2: 2023-03-01 | GA2: 2023-03-01 | GB2: 2023-04-01 | GC2: 2023-04-01 | GD2: 2023-05-01 | GE2: 2023-05-01 | GF2: 2023-06-01 | GG2: 2023-06-01 | GH2: 2023-07-01 | GI2: 2023-07-01 | GJ2: 2023-08-01 | GK2: 2023-08-01 | GL2: 2023-09-01 | GM2: 2023-09-01 | GN2: 2023-10-01 | GO2: 2023-10-01 | GP2: 2023-11-01 | GQ2: 2023-11-01 | GR2: 2023-12-01 | GS2: 2023-12-01 | GT2: 2024-01-01 | GU2: 2024-01-01 | GV2: 2024-02-01 | GW2: 2024-02-01 | GX2: 2024-03-01 | GY2: 2024-03-01 | GZ2: 2024-04-01 | HA2: 2024-04-01 | HB2: 2024-05-01 | HC2: 2024-05-01 | HD2: 2024-06-01 | HE2: 2024-06-01 | HF2: 2024-07-01 | HG2: 2024-07-01 | HH2: 2024-08-01 | HI2: 2024-08-01 | HJ2: 2024-09-01 | HK2: 2024-09-01 | HL2: 2024-10-01 | HM2: 2024-10-01 | HN2: 2024-11-01 | HO2: 2024-11-01 | HP2: 2024-12-01 | HQ2: 2024-12-01 | HR2: 2025-01-01 | HS2: 2025-01-01 | HT2: 2025-02-01 | HU2: 2025-02-01 | HV2: 2025-03-01 | HW2: 2025-03-01 | HX2: 2025-04-01 | HY2: 2025-04-01 | HZ2: 2025-05-01 | IA2: 2025-05-01 | IB2: 2025-06-01 | IC2: 2025-06-01 | ID2: 2025-07-01 | IE2: 2025-07-01 | IF2: 2025-08-01 | IG2: 2025-08-01 | IH2: 2025-09-01 | II2: 2025-09-01 | IJ2: 2025-10-01 | IK2: 2025-10-01 | IL2: 2025-11-01 | IM2: 2025-11-01 | IN2: 2025-12-01 | IO2: 2025-12-01 | IP2: 2026-01-01 | IQ2: 2026-01-01 | IR2: 2026-02-01 | IS2: 2026-02-01 | IT2: 2026-03-01 | IU2: 2026-03-01 | IV2: 2026-04-01 | IW2: 2026-04-01 | IX2: 2026-05-01 | IY2: 2026-05-01 | IZ2: 2026-06-01 | JA2: 2026-06-01 | JB2: 2026-07-01 | JC2: 2026-07-01 | JD2: 2026-08-01 | JE2: 2026-08-01 | JF2: 2026-09-01 | JG2: 2026-09-01 | JH2: 2026-10-01 | JI2: 2026-10-01 | JJ2: 2026-11-01 | JK2: 2026-11-01 | JL2: 2026-12-01 | JM2: 2026-12-01 | JN2: 2027-01-01 | JO2: 2027-01-01 | JP2: 2027-02-01 | JQ2: 2027-02-01 | JR2: 2027-03-01 | JS2: 2027-03-01 | JT2: 2027-04-01 | JU2: 2027-04-01 | JV2: 2027-05-01 | JW2: 2027-05-01 | JX2: 2027-06-01 | JY2: 2027-06-01 | JZ2: 2027-07-01 | KA2: 2027-07-01 | KB2: 2027-08-01 | KC2: 2027-08-01 | KD2: 2027-09-01 | KE2: 2027-09-01 | KF2: 2027-10-01 | KG2: 2027-10-01 | KH2: 2027-11-01 | KI2: 2027-11-01 | KJ2: 2027-12-01 | KK2: 2027-12-01 | KL2: 2028-01-01 | KM2: 2028-01-01 | KN2: 2028-02-01 | KO2: 2028-02-01 | KP2: 2028-03-01 | KQ2: 2028-03-01 | KR2: 2028-04-01 | KS2: 2028-04-01 | KT2: 2028-05-01 | KU2: 2028-05-01 | KV2: 2028-06-01 | KW2: 2028-06-01 | KX2: 2028-07-01 | KY2: 2028-07-01 | KZ2: 2028-08-01 | LA2: 2028-08-01 | LB2: 2028-09-01 | LC2: 2028-09-01 | LD2: 2028-10-01 | LE2: 2028-10-01 | LF2: 2028-11-01 | LG2: 2028-11-01 | LH2: 2028-12-01 | LI2: 2028-12-01 | LJ2: 2029-01-01 | LK2: 2029-01-01 | LL2: 2029-02-01 | LM2: 2029-02-01 | LN2: 2029-03-01 | LO2: 2029-03-01 | LP2: 2029-04-01 | LQ2: 2029-04-01 | LR2: 2029-05-01 | LS2: 2029-05-01 | LT2: 2029-06-01 | LU2: 2029-06-01 | LV2: 2029-07-01 | LW2: 2029-07-01 | LX2: 2029-08-01 | LY2: 2029-08-01 | LZ2: 2029-09-01 | MA2: 2029-09-01 | MB2: 2029-10-01 | MC2: 2029-10-01 | MD2: 2029-11-01 | ME2: 2029-11-01 | MF2: 2029-12-01 | MG2: 2029-12-01 | MH2: 2030-01-01 | MI2: 2030-01-01 | MJ2: 2030-02-01 | MK2: 2030-02-01 | ML2: 2030-03-01 | MM2: 2030-03-01 | MN2: 2030-04-01 | MO2: 2030-04-01 | MP2: 2030-05-01 | MQ2: 2030-05-01 | MR2: 2030-06-01 | MS2: 2030-06-01 | MT2: 2030-07-01 | MU2: 2030-07-01 | MV2: 2030-08-01 | MW2: 2030-08-01 | MX2: 2030-09-01 | MY2: 2030-09-01 | MZ2: 2030-10-01 | NA2: 2030-10-01 | NB2: 2030-11-01 | NC2: 2030-11-01 | ND2: 2030-12-01 | NE2: 2030-12-01 | NF2: 2031-01-01 | NG2: 2031-01-01 | NH2: 2031-02-01 | NI2: 2031-02-01 | NJ2: 2031-03-01 | NK2: 2031-03-01 | NL2: 2031-04-01 | NM2: 2031-04-01 | NN2: 2031-05-01 | NO2: 2031-05-01 | NP2: 2031-06-01 | NQ2: 2031-06-01 | NR2: 2031-07-01 | NS2: 2031-07-01 | NT2: 2031-08-01 | NU2: 2031-08-01 | NV2: 2031-09-01 | NW2: 2031-09-01 | NX2: =DATE(YEAR(NV2),MONTH(NV2)+1,1) -> 2031-10-01 | NY2: 2031-10-01 | NZ2: 2031-11-01 | OA2: 2031-11-01 | OB2: 2031-12-01 | OC2: 2031-12-01 | OD2: 2032-01-01 | OE2: 2032-01-01 | OF2: 2032-02-01 | OG2: 2032-02-01 | OH2: 2032-03-01 | OI2: 2032-03-01 | OJ2: 2032-04-01 | OK2: 2032-04-01 | OL2: 2032-05-01 | OM2: 2032-05-01 | ON2: 2032-06-01 | OO2: 2032-06-01 | OP2: 2032-07-01 | OQ2: 2032-07-01 | OR2: 2032-08-01 | OS2: 2032-08-01 | OT2: 2032-09-01 | OU2: 2032-09-01 | OV2: 2032-10-01 | OW2: 2032-10-01 | OX2: 2032-11-01 | OY2: 2032-11-01 | OZ2: 2032-12-01 | PA2: 2032-12-01 | PB2: 2033-01-01 | PC2: 2033-01-01 | PD2: 2033-02-01 | PE2: 2033-02-01 | PF2: 2033-03-01 | PG2: 2033-03-01 | PH2: 2033-04-01 | PI2: 2033-04-01 | PJ2: 2033-05-01 | PK2: 2033-05-01 | PL2: 2033-06-01 | PM2: 2033-06-01 | PN2: 2033-07-01 | PO2: 2033-07-01 | PP2: 2033-08-01 | PQ2: 2033-08-01 | PR2: 2033-09-01 | PS2: 2033-09-01 | PT2: 2033-10-01 | PU2: 2033-10-01 | PV2: 2033-11-01 | PW2: 2033-11-01 | PX2: 2033-12-01 | PY2: 2033-12-01 | PZ2: 2034-01-01 | QA2: 2034-01-01 | QB2: 2034-02-01 | QC2: 2034-02-01 | QD2: 2034-03-01 | QE2: 2034-03-01 | QF2: 2034-04-01 | QG2: 2034-04-01 | QH2: 2034-05-01 | QI2: 2034-05-01 | QJ2: 2034-06-01 | QK2: 2034-06-01 | QL2: 2034-07-01 | QM2: 2034-07-01 | QN2: 2034-08-01 | QO2: 2034-08-01 | QP2: 2034-09-01 | QQ2: 2034-09-01 | QR2: 2034-10-01 | QS2: 2034-10-01 | QT2: 2034-11-01 | QU2: 2034-11-01 | QV2: 2034-12-01 | QW2: 2034-12-01 | QX2: 2035-01-01 | QY2: 2035-01-01 | QZ2: 2035-02-01 | RA2: 2035-02-01 | RB2: 2035-03-01 | RC2: 2035-03-01 | RD2: 2035-04-01 | RE2: 2035-04-01 | RF2: 2035-05-01 | RG2: 2035-05-01 | RH2: 2035-06-01 | RI2: 2035-06-01 | RJ2: 2035-07-01 | RK2: 2035-07-01 | RL2: 2035-08-01 | RM2: 2035-08-01 | RN2: 2035-09-01 | RO2: 2035-09-01 | RQ2: 2016 | RR2: 2017 | RS2: 2018 | RT2: 2019 | RU2: 2020 | RV2: 2021 | RW2: 2022 | RX2: 2023 | RY2: 2024 | RZ2: 2025 | SA2: 2026 | SB2: 2027 | SC2: 2028 | SD2: 2029 | SE2: 2030 | SF2: 2031 | SG2: =SF2+1 -> 2032 | SH2: =SG2+1 -> 2033 | SI2: 2034 | SJ2: 2035
B3: BESID | C3: AccountName | D3: HLH | E3: LLH | F3: HLH | G3: LLH | H3: HLH | I3: LLH | J3: HLH | K3: LLH | L3: HLH | M3: LLH | N3: HLH | O3: LLH | P3: HLH | Q3: LLH | R3: HLH | S3: LLH | T3: HLH | U3: LLH | V3: HLH | W3: LLH | X3: HLH | Y3: LLH | Z3: HLH | AA3: LLH | AB3: HLH | AC3: LLH | AD3: HLH | AE3: LLH | AF3: HLH | AG3: LLH | AH3: HLH | AI3: LLH | AJ3: HLH | AK3: LLH | AL3: HLH | AM3: LLH | AN3: HLH | AO3: LLH | AP3: HLH | AQ3: LLH | AR3: HLH | AS3: LLH | AT3: HLH | AU3: LLH | AV3: HLH | AW3: LLH | AX3: HLH | AY3: LLH | AZ3: HLH | BA3: LLH | BB3: HLH | BC3: LLH | BD3: HLH | BE3: LLH | BF3: HLH | BG3: LLH | BH3: HLH | BI3: LLH | BJ3: HLH | BK3: LLH | BL3: HLH | BM3: LLH | BN3: HLH | BO3: LLH | BP3: HLH | BQ3: LLH | BR3: HLH | BS3: LLH | BT3: HLH | BU3: LLH | BV3: HLH | BW3: LLH | BX3: HLH | BY3: LLH | BZ3: HLH | CA3: LLH | CB3: HLH | CC3: LLH | CD3: HLH | CE3: LLH | CF3: HLH | CG3: LLH | CH3: HLH | CI3: LLH | CJ3: HLH | CK3: LLH | CL3: HLH | CM3: LLH | CN3: HLH | CO3: LLH | CP3: HLH | CQ3: LLH | CR3: HLH | CS3: LLH | CT3: HLH | CU3: LLH | CV3: HLH | CW3: LLH | CX3: HLH | CY3: LLH | CZ3: HLH | DA3: LLH | DB3: HLH | DC3: LLH | DD3: HLH | DE3: LLH | DF3: HLH | DG3: LLH | DH3: HLH | DI3: LLH | DJ3: HLH | DK3: LLH | DL3: HLH | DM3: LLH | DN3: HLH | DO3: LLH | DP3: HLH | DQ3: LLH | DR3: HLH | DS3: LLH | DT3: HLH | DU3: LLH | DV3: HLH | DW3: LLH | DX3: HLH | DY3: LLH | DZ3: HLH | EA3: LLH | EB3: HLH | EC3: LLH | ED3: HLH | EE3: LLH | EF3: HLH | EG3: LLH | EH3: HLH | EI3: LLH | EJ3: HLH | EK3: LLH | EL3: HLH | EM3: LLH | EN3: HLH | EO3: LLH | EP3: HLH | EQ3: LLH | ER3: HLH | ES3: LLH | ET3: HLH | EU3: LLH | EV3: HLH | EW3: LLH | EX3: HLH | EY3: LLH | EZ3: HLH | FA3: LLH | FB3: HLH | FC3: LLH | FD3: HLH | FE3: LLH | FF3: HLH | FG3: LLH | FH3: HLH | FI3: LLH | FJ3: HLH | FK3: LLH | FL3: HLH | FM3: LLH | FN3: HLH | FO3: LLH | FP3: HLH | FQ3: LLH | FR3: HLH | FS3: LLH | FT3: HLH | FU3: LLH | FV3: HLH | FW3: LLH | FX3: HLH | FY3: LLH | FZ3: HLH | GA3: LLH | GB3: HLH | GC3: LLH | GD3: HLH | GE3: LLH | GF3: HLH | GG3: LLH | GH3: HLH | GI3: LLH | GJ3: HLH | GK3: LLH | GL3: HLH | GM3: LLH | GN3: HLH | GO3: LLH | GP3: HLH | GQ3: LLH | GR3: HLH | GS3: LLH | GT3: HLH | GU3: LLH | GV3: HLH | GW3: LLH | GX3: HLH | GY3: LLH | GZ3: HLH | HA3: LLH | HB3: HLH | HC3: LLH | HD3: HLH | HE3: LLH | HF3: HLH | HG3: LLH | HH3: HLH | HI3: LLH | HJ3: HLH | HK3: LLH | HL3: HLH | HM3: LLH | HN3: HLH | HO3: LLH | HP3: HLH | HQ3: LLH | HR3: HLH | HS3: LLH | HT3: HLH | HU3: LLH | HV3: HLH | HW3: LLH | HX3: HLH | HY3: LLH | HZ3: HLH | IA3: LLH | IB3: HLH | IC3: LLH | ID3: HLH | IE3: LLH | IF3: HLH | IG3: LLH | IH3: HLH | II3: LLH | IJ3: HLH | IK3: LLH | IL3: HLH | IM3: LLH | IN3: HLH | IO3: LLH | IP3: HLH | IQ3: LLH | IR3: HLH | IS3: LLH | IT3: HLH | IU3: LLH | IV3: HLH | IW3: LLH | IX3: HLH | IY3: LLH | IZ3: HLH | JA3: LLH | JB3: HLH | JC3: LLH | JD3: HLH | JE3: LLH | JF3: HLH | JG3: LLH | JH3: HLH | JI3: LLH | JJ3: HLH | JK3: LLH | JL3: HLH | JM3: LLH | JN3: HLH | JO3: LLH | JP3: HLH | JQ3: LLH | JR3: HLH | JS3: LLH | JT3: HLH | JU3: LLH | JV3: HLH | JW3: LLH | JX3: HLH | JY3: LLH | JZ3: HLH | KA3: LLH | KB3: HLH | KC3: LLH | KD3: HLH | KE3: LLH | KF3: HLH | KG3: LLH | KH3: HLH | KI3: LLH | KJ3: HLH | KK3: LLH | KL3: HLH | KM3: LLH | KN3: HLH | KO3: LLH | KP3: HLH | KQ3: LLH | KR3: HLH | KS3: LLH | KT3: HLH | KU3: LLH | KV3: HLH | KW3: LLH | KX3: HLH | KY3: LLH | KZ3: HLH | LA3: LLH | LB3: HLH | LC3: LLH | LD3: HLH | LE3: LLH | LF3: HLH | LG3: LLH | LH3: HLH | LI3: LLH | LJ3: HLH | LK3: LLH | LL3: HLH | LM3: LLH | LN3: HLH | LO3: LLH | LP3: HLH | LQ3: LLH | LR3: HLH | LS3: LLH | LT3: HLH | LU3: LLH | LV3: HLH | LW3: LLH | LX3: HLH | LY3: LLH | LZ3: HLH | MA3: LLH | MB3: HLH | MC3: LLH | MD3: HLH | ME3: LLH | MF3: HLH | MG3: LLH | MH3: HLH | MI3: LLH | MJ3: HLH | MK3: LLH | ML3: HLH | MM3: LLH | MN3: HLH | MO3: LLH | MP3: HLH | MQ3: LLH | MR3: HLH | MS3: LLH | MT3: HLH | MU3: LLH | MV3: HLH | MW3: LLH | MX3: HLH | MY3: LLH | MZ3: HLH | NA3: LLH | NB3: HLH | NC3: LLH | ND3: HLH | NE3: LLH | NF3: HLH | NG3: LLH | NH3: HLH | NI3: LLH | NJ3: HLH | NK3: LLH | NL3: HLH | NM3: LLH | NN3: HLH | NO3: LLH | NP3: HLH | NQ3: LLH | NR3: HLH | NS3: LLH | NT3: HLH | NU3: LLH | NV3: HLH | NW3: LLH | NX3: HLH | NY3: LLH | NZ3: HLH | OA3: LLH | OB3: HLH | OC3: LLH | OD3: HLH | OE3: LLH | OF3: HLH | OG3: LLH | OH3: HLH | OI3: LLH | OJ3: HLH | OK3: LLH | OL3: HLH | OM3: LLH | ON3: HLH | OO3: LLH | OP3: HLH | OQ3: LLH | OR3: HLH | OS3: LLH | OT3: HLH | OU3: LLH | OV3: HLH | OW3: LLH | OX3: HLH | OY3: LLH | OZ3: HLH | PA3: LLH | PB3: HLH | PC3: LLH | PD3: HLH | PE3: LLH | PF3: HLH | PG3: LLH | PH3: HLH | PI3: LLH | PJ3: HLH | PK3: LLH | PL3: HLH | PM3: LLH | PN3: HLH | PO3: LLH | PP3: HLH | PQ3: LLH | PR3: HLH | PS3: LLH | PT3: HLH | PU3: LLH | PV3: HLH | PW3: LLH | PX3: HLH | PY3: LLH | PZ3: HLH | QA3: LLH | QB3: HLH | QC3: LLH | QD3: HLH | QE3: LLH | QF3: HLH | QG3: LLH | QH3: HLH | QI3: LLH | QJ3: HLH | QK3: LLH | QL3: HLH | QM3: LLH | QN3: HLH | QO3: LLH | QP3: HLH | QQ3: LLH | QR3: HLH | QS3: LLH | QT3: HLH | QU3: LLH | QV3: HLH | QW3: LLH | QX3: HLH | QY3: LLH | QZ3: HLH | RA3: LLH | RB3: HLH | RC3: LLH | RD3: HLH | RE3: LLH | RF3: HLH | RG3: LLH | RH3: HLH | RI3: LLH | RJ3: HLH | RK3: LLH | RL3: HLH | RM3: LLH | RN3: HLH | RO3: LLH
B4: 10005 | C4: Alder Mutual | D4: 218.599 | E4: 143.32 | F4: 284.209 | G4: 203.687 | H4: 316.262 | I4: 229.611 | J4: 312.667 | K4: 227.64 | L4: 282.883 | M4: 187.373 | N4: 273.441 | O4: 180.796 | P4: 237.96 | Q4: 161.839 | R4: 190.142 | S4: 139.716 | T4: 179.102 | U4: 113.523 | V4: 165.07 | W4: 114.456 | X4: 171.397 | Y4: 106.963 | Z4: 172.807 | AA4: 119.204 | AB4: 212.737 | AC4: 139.477 | AD4: 276.252 | AE4: 197.984 | AF4: 306.301 | AG4: 222.379 | AH4: 302.01 | AI4: 219.881 | AJ4: 272.656 | AK4: 180.599 | AL4: 265.179 | AM4: 175.333 | AN4: 230.669 | AO4: 156.881 | AP4: 185.746 | AQ4: 136.485 | AR4: 176.278 | AS4: 111.733 | AT4: 162.814 | AU4: 112.892 | AV4: 169.096 | AW4: 105.527 | AX4: 170.545 | AY4: 117.643 | AZ4: 215.727 | BA4: 148.583 | BB4: 290.723 | BC4: 206.517 | BD4: 309.018 | BE4: 235.732 | BF4: 321.889 | BG4: 227.141 | BH4: 281.422 | BI4: 188.508 | BJ4: 270.583 | BK4: 176.027 | BL4: 225.899 | BM4: 166.421 | BN4: 189.486 | BO4: 135.034 | BP4: 178.353 | BQ4: 112.987 | BR4: 161.425 | BS4: 118.765 | BT4: 175.216 | BU4: 104.404 | BV4: 167.173 | BW4: 126.427 | BX4: 225.217 | BY4: 140.693 | BZ4: 291.641 | CA4: 207.169 | CB4: 309.948 | CC4: 236.442 | CD4: 322.851 | CE4: 227.819 | CF4: 282.308 | CG4: 189.102 | CH4: 261.104 | CI4: 187.156 | CJ4: 236.316 | CK4: 157.594 | CL4: 190.443 | CM4: 135.717 | CN4: 172.266 | CO4: 120.674 | CP4: 168.961 | CQ4: 112.889 | CR4: 176.268 | CS4: 105.032 | CT4: 168.106 | CU4: 127.134 | CV4: 239.121 | CW4: 154.149 | CX4: 329.074 | CY4: 240.526 | CZ4: 348.587 | DA4: 277.283 | DB4: 365.156 | DC4: 263.914 | DD4: 339.197 | DE4: 235.443 | DF4: 300.65 | DG4: 226.16 | DH4: 275.619 | DI4: 190.461 | DJ4: 192.775 | DK4: 156.675 | DL4: 188.588 | DM4: 124.082 | DN4: 179.334 | DO4: 120.266 | DP4: 180.446 | DQ4: 119.744 | DR4: 185.348 | DS4: 131.462 | DT4: 241.638 | DU4: 155.772 | DV4: 315.319 | DW4: 258.291 | DX4: 368.004 | DY4: 262.016 | DZ4: 350.367 | EA4: 282.843 | EB4: 328.116 | EC4: 231.684 | ED4: 317.448 | EE4: 213.502 | EF4: 277.996 | EG4: 192.104 | EH4: 195.059 | EI4: 158.531 | EJ4: 191.006 | EK4: 125.674 | EL4: 181.818 | EM4: 121.932 | EN4: 182.935 | EO4: 121.395 | EP4: 187.694 | EQ4: 133.126 | ER4: 269.978 | ES4: 200.492 | ET4: 303.825 | EU4: 222.835 | EV4: 390.756 | EW4: 281.724 | EX4: 385.006 | EY4: 307.894 | EZ4: 339.291 | FA4: 241.279 | FB4: 350.417 | FC4: 242.463 | FD4: 285.78 | FE4: 201.04 | FF4: 207.553 | FG4: 164.987 | FH4: 201.842 | FI4: 132.568 | FJ4: 184.331 | FK4: 134.609 | FL4: 199.228 | FM4: 117.172 | FN4: 200.178 | FO4: 143.472 | FP4: 271.98 | FQ4: 201.98 | FR4: 305.123 | FS4: 223.787 | FT4: 391.436 | FU4: 282.214 | FV4: 385.006 | FW4: 307.894 | FX4: 339.291 | FY4: 241.279 | FZ4: 350.417 | GA4: 242.463 | GB4: 273.851 | GC4: 212.969 | GD4: 216.388 | GE4: 156.152 | GF4: 201.842 | GG4: 132.568 | GH4: 184.331 | GI4: 134.609 | GJ4: 199.228 | GK4: 117.172 | GL4: 200.178 | GM4: 143.472 | GN4: 285.942 | GO4: 209.475 | GP4: 322.128 | GQ4: 236.748 | GR4: 394.013 | GS4: 310.826 | GT4: 427.948 | GU4: 309.235 | GV4: 350.816 | GW4: 243.839 | GX4: 335.041 | GY4: 256.503 | GZ4: 303.845 | HA4: 212.611 | HB4: 222.411 | HC4: 160.319 | HD4: 209.887 | HE4: 153.083 | HF4: 203.276 | HG4: 135.988 | HH4: 214.295 | HI4: 127.013 | HJ4: 196.446 | HK4: 154.361 | HL4: 302.796 | HM4: 199.732 | HN4: 325.71 | HO4: 239.381 | HP4: 396.987 | HQ4: 313.172 | HR4: 430.519 | HS4: 311.093 | HT4: 365.472 | HU4: 258.122 | HV4: 336.543 | HW4: 257.653 | HX4: 304.883 | HY4: 213.338 | HZ4: 222.924 | IA4: 160.689 | IB4: 209.887 | IC4: 153.083 | ID4: 203.276 | IE4: 135.988 | IF4: 205.636 | IG4: 135.672 | IH4: 205.643 | II4: 145.164 | IJ4: 302.796 | IK4: 199.732 | IL4: 310.916 | IM4: 254.175 | IN4: 415.005 | IO4: 295.155 | IP4: 430.519 | IQ4: 311.093 | IR4: 365.472 | IS4: 258.122 | IT4: 336.543 | IU4: 257.653 | IV4: 304.883 | IW4: 213.338 | IX4: 213.191 | IY4: 170.421 | IZ4: 219.403 | JA4: 143.567 | JB4: 203.276 | JC4: 135.988 | JD4: 205.636 | JE4: 135.672 | JF4: 205.643 | JG4: 145.164 | JH4: 302.796 | JI4: 199.732 | JJ4: 310.916 | JK4: 254.175 | JL4: 415.005 | JM4: 295.155 | JN4: 411.704 | JO4: 329.908 | JP4: 365.472 | JQ4: 258.122 | JR4: 351.638 | JS4: 242.557 | JT4: 304.883 | JU4: 213.338 | JV4: 213.191 | JW4: 170.421 | JX4: 219.403 | JY4: 143.567 | JZ4: 203.276 | KA4: 135.988 | KB4: 205.636 | KC4: 135.672 | KD4: 205.643 | KE4: 145.164 | KF4: 290.046 | KG4: 212.481 | KH4: 325.71 | KI4: 239.381 | KJ4: 415.005 | KK4: 295.155 | KL4: 411.704 | KM4: 329.908 | KN4: 352.903 | KO4: 245.29 | KP4: 351.638 | KQ4: 242.557 | KR4: 291.297 | KS4: 226.923 | KT4: 222.924 | KU4: 160.689 | KV4: 219.403 | KW4: 143.567 | KX4: 194.668 | KY4: 144.595 | KZ4: 214.295 | LA4: 127.013 | LB4: 205.643 | LC4: 145.164 | LD4: 290.046 | LE4: 212.481 | LF4: 325.71 | LG4: 239.381 | LH4: 396.987 | LI4: 313.172 | LJ4: 430.519 | LK4: 311.093 | LL4: 365.472 | LM4: 258.122 | LN4: 351.638 | LO4: 242.557 | LP4: 291.297 | LQ4: 226.923 | LR4: 222.924 | LS4: 160.689 | LT4: 219.403 | LU4: 143.567 | LV4: 194.668 | LW4: 144.595 | LX4: 214.295 | LY4: 127.013 | LZ4: 196.446 | MA4: 154.361 | MB4: 302.796 | MC4: 199.732 | MD4: 325.71 | ME4: 239.381 | MF4: 396.987 | MG4: 313.172 | MH4: 430.519 | MI4: 311.093 | MJ4: 365.472 | MK4: 258.122 | ML4: 336.543 | MM4: 257.653 | MN4: 304.883 | MO4: 213.338 | MP4: 222.924 | MQ4: 160.689 | MR4: 209.887 | MS4: 153.083 | MT4: 203.276 | MU4: 135.988 | MV4: 214.295 | MW4: 127.013 | MX4: 196.446 | MY4: 154.361 | MZ4: 302.796 | NA4: 199.732 | NB4: 325.71 | NC4: 239.381 | ND4: 396.987 | NE4: 313.172 | NF4: 430.519 | NG4: 311.093 | NH4: 365.472 | NI4: 258.122 | NJ4: 336.543 | NK4: 257.653 | NL4: 304.883 | NM4: 213.338 | NN4: 222.924 | NO4: 160.689 | NP4: 209.887 | NQ4: 153.083 | NR4: 203.276 | NS4: 135.988 | NT4: 205.636 | NU4: 135.672 | NV4: 205.643 | NW4: 145.164 | NX4: 302.796 | NY4: 199.732 | NZ4: 310.916 | OA4: 254.175 | OB4: 415.005 | OC4: 295.155 | OD4: 430.519 | OE4: 311.093 | OF4: 336.68 | OG4: 261.513 | OH4: 351.638 | OI4: 242.557 | OJ4: 304.883 | OK4: 213.338 | OL4: 213.191 | OM4: 170.421 | ON4: 219.403 | OO4: 143.567 | OP4: 203.276 | OQ4: 135.988 | OR4: 205.636 | OS4: 135.672 | OT4: 205.643 | OU4: 145.164 | OV4: 290.046 | OW4: 212.481 | OX4: 325.71 | OY4: 239.381 | OZ4: 415.005 | PA4: 295.155 | PB4: 411.704 | PC4: 329.908 | PD4: 365.472 | PE4: 258.122 | PF4: 351.638 | PG4: 242.557 | PH4: 304.883 | PI4: 213.338 | PJ4: 213.191 | PK4: 170.421 | PL4: 219.403 | PM4: 143.567 | PN4: 194.668 | PO4: 144.595 | PP4: 214.295 | PQ4: 127.013 | PR4: 205.643 | PS4: 145.164 | PT4: 290.046 | PU4: 212.481 | PV4: 325.71 | PW4: 239.381 | PX4: 415.005 | PY4: 295.155 | PZ4: 411.704 | QA4: 329.908 | QB4: 365.472 | QC4: 258.122 | QD4: 351.638 | QE4: 242.557 | QF4: 291.297 | QG4: 226.923 | QH4: 222.924 | QI4: 160.689 | QJ4: 219.403 | QK4: 143.567 | QL4: 194.668 | QM4: 144.595 | QN4: 214.295 | QO4: 127.013 | QP4: 205.643 | QQ4: 145.164 | QR4: 290.046 | QS4: 212.481 | QT4: 325.71 | QU4: 239.381 | QV4: 396.987 | QW4: 313.172 | QX4: 430.519 | QY4: 311.093 | QZ4: 365.472 | RA4: 258.122 | RB4: 351.638 | RC4: 242.557 | RD4: 291.297 | RE4: 226.923 | RF4: 222.924 | RG4: 160.689 | RH4: 219.403 | RI4: 143.567 | RJ4: 194.668 | RK4: 144.595 | RL4: 214.295 | RM4: 127.013 | RN4: 196.446 | RO4: 154.361 | RQ4: =+SUM(D4:AA4) -> 4732.667 | RR4: =+SUM(AB4:AY4) -> 4607.097 | RS4: =+SUM(AZ4:BW4) -> 4733.46 | RT4: =+SUM(BX4:CU4) -> 4752.85 | RU4: =+SUM(CV4:DS4) -> 5364.06 | RV4: =+SUM(DT4:EQ4) -> 5394.27 | RW4: =+SUM(ER4:FO4) -> 5708.72 | RX4: =+SUM(FP4:GM4) -> 5715.63 | RY4: =+SUM(GN4:HK4) -> 5976.049 | RZ4: =+SUM(HL4:II4) -> 6033.363 | SA4: =+SUM(IJ4:JG4) -> 6033.363 | SB4: =+SUM(JH4:KE4) -> 6033.362 | SC4: =+SUM(KF4:LC4) -> 6007.959 | SD4: =+SUM(LD4:MA4) -> 6033.359 | SE4: =+SUM(MB4:MY4) -> 6033.363 | SF4: =+SUM(MZ4:NW4) -> 6033.363 | SG4: =+SUM(NX4:OU4) -> 6007.961 | SH4: =+SUM(OV4:PS4) -> 6033.36 | SI4: =+SUM(PT4:QQ4) -> 6033.36 | SJ4: =+SUM(QR4:RO4) -> 6033.359
B5: 10015 | C5: Asotin County PUD #1 | D5: 158.885 | E5: 123.417 | F5: 100.217 | G5: 62.326 | H5: 89.961 | I5: 79.094 | J5: 103.249 | K5: 66.466 | L5: 99.565 | M5: 52.422 | N5: 113.772 | O5: 69.469 | P5: 154.892 | Q5: 99.356 | R5: 273.82 | S5: 232.806 | T5: 341.515 | U5: 284.089 | V5: 561.288 | W5: 486.719 | X5: 578.046 | Y5: 455.044 | Z5: 307.885 | AA5: 341.17 | AB5: 172.27 | AC5: 133.814 | AD5: 102.518 | AE5: 63.757 | AF5: 92.009 | AG5: 80.895 | AH5: 104.336 | AI5: 67.166 | AJ5: 100.624 | AK5: 52.979 | AL5: 110.394 | AM5: 67.407 | AN5: 148.752 | AO5: 95.417 | AP5: 285.888 | AQ5: 243.066 | AR5: 373.447 | AS5: 310.651 | AT5: 564.223 | AU5: 489.264 | AV5: 572.096 | AW5: 450.361 | AX5: 336.64 | AY5: 373.033 | AZ5: 183.658 | BA5: 149.874 | BB5: 91.794 | BC5: 69.553 | BD5: 93.705 | BE5: 75.12 | BF5: 114.116 | BG5: 65.23 | BH5: 98.208 | BI5: 53.588 | BJ5: 117.713 | BK5: 66.923 | BL5: 193.528 | BM5: 116.367 | BN5: 333.53 | BO5: 301.659 | BP5: 419.482 | BQ5: 375.444 | BR5: 593.344 | BS5: 508.135 | BT5: 546.458 | BU5: 459.45 | BV5: 312.637 | BW5: 338.989 | BX5: 186.781 | BY5: 152.423 | BZ5: 93.366 | CA5: 70.745 | CB5: 95.313 | CC5: 76.409 | CD5: 116.037 | CE5: 66.328 | CF5: 99.886 | CG5: 54.504 | CH5: 119.718 | CI5: 68.062 | CJ5: 196.796 | CK5: 118.332 | CL5: 339.196 | CM5: 306.783 | CN5: 426.622 | CO5: 381.834 | CP5: 603.42 | CQ5: 516.764 | CR5: 555.748 | CS5: 467.261 | CT5: 317.892 | CU5: 344.687 | CV5: 178.256 | CW5: 144.568 | CX5: 86.028 | CY5: 70.26 | CZ5: 90.56 | DA5: 72.869 | DB5: 106.746 | DC5: 66.779 | DD5: 91.007 | DE5: 54.8 | DF5: 111.991 | DG5: 65.138 | DH5: 182.541 | DI5: 114.543 | DJ5: 308.813 | DK5: 297.993 | DL5: 402.135 | DM5: 357.263 | DN5: 559.144 | DO5: 494.955 | DP5: 520.757 | DQ5: 441.094 | DR5: 300.222 | DS5: 326.646 | DT5: 179.433 | DU5: 145.522 | DV5: 86.587 | DW5: 70.717 | DX5: 91.14 | DY5: 73.336 | DZ5: 107.564 | EA5: 67.291 | EB5: 91.622 | EC5: 55.171 | ED5: 112.743 | EE5: 65.575 | EF5: 183.786 | EG5: 115.324 | EH5: 310.788 | EI5: 299.899 | EJ5: 404.693 | EK5: 359.535 | EL5: 562.809 | EM5: 498.199 | EN5: 524.122 | EO5: 443.944 | EP5: 302.386 | EQ5: 329 | ER5: 153.537 | ES5: 126.395 | ET5: 88.894 | EU5: 64.995 | EV5: 91.014 | EW5: 70.412 | EX5: 102.65 | EY5: 63.261 | EZ5: 79.611 | FA5: 60.773 | FB5: 105.019 | FC5: 62.116 | FD5: 159.479 | FE5: 101.58 | FF5: 262.877 | FG5: 247.764 | FH5: 388.938 | FI5: 337.909 | FJ5: 533.1 | FK5: 479.193 | FL5: 510.388 | FM5: 430.571 | FN5: 283.02 | FO5: 306.63 | FP5: 153.537 | FQ5: 126.395 | FR5: 88.894 | FS5: 64.995 | FT5: 91.014 | FU5: 70.412 | FV5: 102.65 | FW5: 63.261 | FX5: 79.611 | FY5: 60.773 | FZ5: 105.019 | GA5: 62.116 | GB5: 159.479 | GC5: 101.58 | GD5: 262.877 | GE5: 247.764 | GF5: 388.938 | GG5: 337.909 | GH5: 533.1 | GI5: 479.193 | GJ5: 510.388 | GK5: 430.571 | GL5: 283.02 | GM5: 306.63 | GN5: 153.537 | GO5: 126.395 | GP5: 88.894 | GQ5: 64.995 | GR5: 91.014 | GS5: 70.412 | GT5: 102.65 | GU5: 63.261 | GV5: 82.455 | GW5: 62.944 | GX5: 105.019 | GY5: 62.116 | GZ5: 159.479 | HA5: 101.58 | HB5: 262.877 | HC5: 247.764 | HD5: 388.938 | HE5: 337.909 | HF5: 533.1 | HG5: 479.193 | HH5: 510.388 | HI5: 430.571 | HJ5: 283.02 | HK5: 306.63 | HL5: 153.537 | HM5: 126.395 | HN5: 88.894 | HO5: 64.995 | HP5: 91.014 | HQ5: 70.412 | HR5: 102.65 | HS5: 63.261 | HT5: 79.611 | HU5: 60.773 | HV5: 105.019 | HW5: 62.116 | HX5: 159.479 | HY5: 101.58 | HZ5: 262.877 | IA5: 247.764 | IB5: 388.938 | IC5: 337.909 | ID5: 533.1 | IE5: 479.193 | IF5: 510.388 | IG5: 430.571 | IH5: 283.02 | II5: 306.63 | IJ5: 153.537 | IK5: 126.395 | IL5: 88.894 | IM5: 64.995 | IN5: 91.014 | IO5: 70.412 | IP5: 102.65 | IQ5: 63.261 | IR5: 79.611 | IS5: 60.773 | IT5: 105.019 | IU5: 62.116 | IV5: 159.479 | IW5: 101.58 | IX5: 262.877 | IY5: 247.764 | IZ5: 388.938 | JA5: 337.909 | JB5: 533.1 | JC5: 479.193 | JD5: 510.388 | JE5: 430.571 | JF5: 283.02 | JG5: 306.63 | JH5: 153.537 | JI5: 126.395 | JJ5: 88.894 | JK5: 64.995 | JL5: 91.014 | JM5: 70.412 | JN5: 102.65 | JO5: 63.261 | JP5: 79.611 | JQ5: 60.773 | JR5: 105.019 | JS5: 62.116 | JT5: 159.479 | JU5: 101.58 | JV5: 262.877 | JW5: 247.764 | JX5: 388.938 | JY5: 337.909 | JZ5: 533.1 | KA5: 479.193 | KB5: 510.388 | KC5: 430.571 | KD5: 283.02 | KE5: 306.63 | KF5: 153.537 | KG5: 126.395 | KH5: 88.894 | KI5: 64.995 | KJ5: 91.014 | KK5: 70.412 | KL5: 102.65 | KM5: 63.261 | KN5: 82.455 | KO5: 62.944 | KP5: 105.019 | KQ5: 62.116 | KR5: 159.479 | KS5: 101.58 | KT5: 262.877 | KU5: 247.764 | KV5: 388.938 | KW5: 337.909 | KX5: 533.1 | KY5: 479.193 | KZ5: 510.388 | LA5: 430.571 | LB5: 283.02 | LC5: 306.63 | LD5: 153.537 | LE5: 126.395 | LF5: 88.894 | LG5: 64.995 | LH5: 91.014 | LI5: 70.412 | LJ5: 102.65 | LK5: 63.261 | LL5: 79.611 | LM5: 60.773 | LN5: 105.019 | LO5: 62.116 | LP5: 159.479 | LQ5: 101.58 | LR5: 262.877 | LS5: 247.764 | LT5: 388.938 | LU5: 337.909 | LV5: 533.1 | LW5: 479.193 | LX5: 510.388 | LY5: 430.571 | LZ5: 283.02 | MA5: 306.63 | MB5: 153.537 | MC5: 126.395 | MD5: 88.894 | ME5: 64.995 | MF5: 91.014 | MG5: 70.412 | MH5: 102.65 | MI5: 63.261 | MJ5: 79.611 | MK5: 60.773 | ML5: 105.019 | MM5: 62.116 | MN5: 159.479 | MO5: 101.58 | MP5: 262.877 | MQ5: 247.764 | MR5: 388.938 | MS5: 337.909 | MT5: 533.1 | MU5: 479.193 | MV5: 510.388 | MW5: 430.571 | MX5: 283.02 | MY5: 306.63 | MZ5: 153.537 | NA5: 126.395 | NB5: 88.894 | NC5: 64.995 | ND5: 91.014 | NE5: 70.412 | NF5: 102.65 | NG5: 63.261 | NH5: 79.611 | NI5: 60.773 | NJ5: 105.019 | NK5: 62.116 | NL5: 159.479 | NM5: 101.58 | NN5: 262.877 | NO5: 247.764 | NP5: 388.938 | NQ5: 337.909 | NR5: 533.1 | NS5: 479.193 | NT5: 510.388 | NU5: 430.571 | NV5: 283.02 | NW5: 306.63 | NX5: 153.537 | NY5: 126.395 | NZ5: 88.894 | OA5: 64.995 | OB5: 91.014 | OC5: 70.412 | OD5: 102.65 | OE5: 63.261 | OF5: 82.455 | OG5: 62.944 | OH5: 105.019 | OI5: 62.116 | OJ5: 159.479 | OK5: 101.58 | OL5: 262.877 | OM5: 247.764 | ON5: 388.938 | OO5: 337.909 | OP5: 533.1 | OQ5: 479.193 | OR5: 510.388 | OS5: 430.571 | OT5: 283.02 | OU5: 306.63 | OV5: 153.537 | OW5: 126.395 | OX5: 88.894 | OY5: 64.995 | OZ5: 91.014 | PA5: 70.412 | PB5: 102.65 | PC5: 63.261 | PD5: 79.611 | PE5: 60.773 | PF5: 105.019 | PG5: 62.116 | PH5: 159.479 | PI5: 101.58 | PJ5: 262.877 | PK5: 247.764 | PL5: 388.938 | PM5: 337.909 | PN5: 533.1 | PO5: 479.193 | PP5: 510.388 | PQ5: 430.571 | PR5: 283.02 | PS5: 306.63 | PT5: 153.537 | PU5: 126.395 | PV5: 88.894 | PW5: 64.995 | PX5: 91.014 | PY5: 70.412 | PZ5: 102.65 | QA5: 63.261 | QB5: 79.611 | QC5: 60.773 | QD5: 105.019 | QE5: 62.116 | QF5: 159.479 | QG5: 101.58 | QH5: 262.877 | QI5: 247.764 | QJ5: 388.938 | QK5: 337.909 | QL5: 533.1 | QM5: 479.193 | QN5: 510.388 | QO5: 430.571 | QP5: 283.02 | QQ5: 306.63 | QR5: 153.537 | QS5: 126.395 | QT5: 88.894 | QU5: 64.995 | QV5: 91.014 | QW5: 70.412 | QX5: 102.65 | QY5: 63.261 | QZ5: 79.611 | RA5: 60.773 | RB5: 105.019 | RC5: 62.116 | RD5: 159.479 | RE5: 101.58 | RF5: 262.877 | RG5: 247.764 | RH5: 388.938 | RI5: 337.909 | RJ5: 533.1 | RK5: 479.193 | RL5: 510.388 | RM5: 430.571 | RN5: 283.02 | RO5: 306.63 | RQ5: =+SUM(D5:AA5) -> 5235.473 | RR5: =+SUM(AB5:AY5) -> 5391.007 | RS5: =+SUM(AZ5:BW5) -> 5678.505 | RT5: =+SUM(BX5:CU5) -> 5774.907 | RU5: =+SUM(CV5:DS5) -> 5445.108 | RV5: =+SUM(DT5:EQ5) -> 5481.186 | RW5: =+SUM(ER5:FO5) -> 5110.126 | RX5: =+SUM(FP5:GM5) -> 5110.126 | RY5: =+SUM(GN5:HK5) -> 5115.141 | RZ5: =+SUM(HL5:II5) -> 5110.126 | SA5: =+SUM(IJ5:JG5) -> 5110.126 | SB5: =+SUM(JH5:KE5) -> 5110.126 | SC5: =+SUM(KF5:LC5) -> 5115.141 | SD5: =+SUM(LD5:MA5) -> 5110.126 | SE5: =+SUM(MB5:MY5) -> 5110.126 | SF5: =+SUM(MZ5:NW5) -> 5110.126 | SG5: =+SUM(NX5:OU5) -> 5115.141 | SH5: =+SUM(OV5:PS5) -> 5110.126 | SI5: =+SUM(PT5:QQ5) -> 5110.126 | SJ5: =+SUM(QR5:RO5) -> 5110.126
B6: 10024 | C6: Benton County PUD #1 | D6: 72609.945 | E6: 43984.938 | F6: 71716.602 | G6: 51043.328 | H6: 91608.961 | I6: 65984.563 | J6: 86698.867 | K6: 62828.375 | L6: 70522.555 | M6: 47630.105 | N6: 73297.82 | O6: 47714.246 | P6: 77232.797 | Q6: 47207.531 | R6: 97686.75 | S6: 66967.156 | T6: 110656.219 | U6: 70497.375 | V6: 136540.297 | W6: 92112.398 | X6: 123164.805 | Y6: 74705.641 | Z6: 81168.203 | AA6: 52364.414 | AB6: 73736.148 | AC6: 44666.449 | AD6: 64744.391 | AE6: 46080.98 | AF6: 79217.398 | AG6: 57059.137 | AH6: 87501.523 | AI6: 63397.582 | AJ6: 78718.32 | AK6: 53165.301 | AL6: 74797.617 | AM6: 48690.629 | AN6: 83715.266 | AO6: 51169.625 | AP6: 95241.703 | AQ6: 65284.594 | AR6: 116283.359 | AS6: 74078.734 | AT6: 131957.203 | AU6: 88992.328 | AV6: 130424.359 | AW6: 79104.766 | AX6: 89995.047 | AY6: 58041.34 | AZ6: 73766.078 | BA6: 44684.578 | BB6: 64822.059 | BC6: 46136.273 | BD6: 79315.688 | BE6: 57125.789 | BF6: 87878.523 | BG6: 63659.508 | BH6: 79054.578 | BI6: 53388.039 | BJ6: 75136.789 | BK6: 48911.43 | BL6: 84013.328 | BM6: 51350.563 | BN6: 95499.422 | BO6: 65452.82 | BP6: 116513.086 | BQ6: 74225.063 | BR6: 132195 | BS6: 89140.539 | BT6: 130687.617 | BU6: 79264.422 | BV6: 90263.203 | BW6: 58214.238 | BX6: 74055.641 | BY6: 44859.988 | BZ6: 65125.246 | CA6: 46352.055 | CB6: 79670.859 | CC6: 57381.605 | CD6: 88283.281 | CE6: 63952.711 | CF6: 79419.828 | CG6: 53634.703 | CH6: 75512.336 | CI6: 49155.887 | CJ6: 84347.227 | CK6: 51554.637 | CL6: 95788.43 | CM6: 65650.898 | CN6: 116779.422 | CO6: 74394.734 | CP6: 132462.609 | CQ6: 89320.992 | CR6: 130988.883 | CS6: 79447.148 | CT6: 90567.758 | CU6: 58410.637 | CV6: 72397.75 | CW6: 43869.008 | CX6: 71024.617 | CY6: 50555.836 | CZ6: 91341.648 | DA6: 65792.102 | DB6: 87491.203 | DC6: 63390.156 | DD6: 72530.148 | DE6: 48985.914 | DF6: 70803.492 | DG6: 46091.695 | DH6: 76819.781 | DI6: 46954.922 | DJ6: 96111.844 | DK6: 65881.078 | DL6: 115202.148 | DM6: 73406.102 | DN6: 135540.453 | DO6: 91408.906 | DP6: 120963.148 | DQ6: 73385.898 | DR6: 76824.445 | DS6: 49567.563 | DT6: 72348.313 | DU6: 43839.047 | DV6: 70984.023 | DW6: 50526.93 | DX6: 91305.141 | DY6: 65765.797 | DZ6: 87527.641 | EA6: 63416.547 | EB6: 73278.977 | EC6: 49491.672 | ED6: 70809.469 | EE6: 46095.586 | EF6: 76831.102 | EG6: 46961.836 | EH6: 96237.117 | EI6: 65966.961 | EJ6: 115452.523 | EK6: 73565.633 | EL6: 136032.219 | EM6: 91740.547 | EN6: 121391.539 | EO6: 73645.805 | EP6: 76896.305 | EQ6: 49613.93 | ER6: 76456.023 | ES6: 46327.875 | ET6: 73041.203 | EU6: 51991.094 | EV6: 92563.891 | EW6: 66672.313 | EX6: 90704.43 | EY6: 65718.07 | EZ6: 73646.703 | FA6: 49739.898 | FB6: 71650.414 | FC6: 46642.883 | FD6: 80391.141 | FE6: 49137.656 | FF6: 97044.297 | FG6: 66520 | FH6: 118688.492 | FI6: 75627.414 | FJ6: 135120.375 | FK6: 91125.422 | FL6: 121308.047 | FM6: 73594.953 | FN6: 76343.367 | FO6: 49256.93 | FP6: 76542.578 | FQ6: 46380.32 | FR6: 72993.422 | FS6: 51957.078 | FT6: 92151.289 | FU6: 66375.117 | FV6: 90368.977 | FW6: 65475.023 | FX6: 73547.195 | FY6: 49672.703 | FZ6: 71760.719 | GA6: 46714.68 | GB6: 80558.344 | GC6: 49239.859 | GD6: 97199.391 | GE6: 66626.313 | GF6: 118827.008 | GG6: 75715.695 | GH6: 135205.422 | GI6: 91182.781 | GJ6: 121400.539 | GK6: 73651.055 | GL6: 76522.258 | GM6: 49372.344 | GN6: 74943.727 | GO6: 45411.516 | GP6: 69721.969 | GQ6: 49628.445 | GR6: 92794.141 | GS6: 66838.156 | GT6: 90293.898 | GU6: 65420.617 | GV6: 71104.703 | GW6: 48023.07 | GX6: 74919.906 | GY6: 48771.242 | GZ6: 74999.695 | HA6: 45842.227 | HB6: 93557.938 | HC6: 64130.25 | HD6: 116436.969 | HE6: 74192.781 | HF6: 133922.875 | HG6: 90317.828 | HH6: 119949.648 | HI6: 72770.836 | HJ6: 76564.281 | HK6: 49399.461 | HL6: 75176.258 | HM6: 45552.414 | HN6: 69881.367 | HO6: 49741.914 | HP6: 92673.508 | HQ6: 66751.273 | HR6: 90255.469 | HS6: 65392.781 | HT6: 71046.922 | HU6: 47984.047 | HV6: 75093.992 | HW6: 48884.578 | HX6: 75208.242 | HY6: 45969.695 | HZ6: 93754.453 | IA6: 64264.938 | IB6: 116630.523 | IC6: 74316.102 | ID6: 134122.391 | IE6: 90452.391 | IF6: 120108.977 | IG6: 72867.492 | IH6: 76703.234 | II6: 49489.117 | IJ6: 75332.055 | IK6: 45646.82 | IL6: 69980.969 | IM6: 49812.797 | IN6: 92519.992 | IO6: 66640.695 | IP6: 90387.883 | IQ6: 65488.711 | IR6: 71375.484 | IS6: 48205.961 | IT6: 75457.281 | IU6: 49121.063 | IV6: 75614.711 | IW6: 46218.148 | IX6: 94120.25 | IY6: 64515.688 | IZ6: 116978.688 | JA6: 74537.953 | JB6: 134433.641 | JC6: 90662.297 | JD6: 120414.906 | JE6: 73053.094 | JF6: 77046.094 | JG6: 49710.336 | JH6: 75712.992 | JI6: 45877.648 | JJ6: 70296.828 | JK6: 50037.625 | JL6: 92580.406 | JM6: 66684.219 | JN6: 90490.242 | JO6: 65562.867 | JP6: 71679.469 | JQ6: 48411.258 | JR6: 75803.523 | JS6: 49346.469 | JT6: 76009.602 | JU6: 46459.523 | JV6: 94496.063 | JW6: 64773.281 | JX6: 117363.859 | JY6: 74783.375 | JZ6: 134821.531 | KA6: 90923.891 | KB6: 120793.648 | KC6: 73282.867 | KD6: 77408.719 | KE6: 49944.305 | KF6: 76098.391 | KG6: 46111.172 | KH6: 70609.953 | KI6: 50260.508 | KJ6: 92629.867 | KK6: 66719.836 | KL6: 90252.938 | KM6: 65390.953 | KN6: 71800.672 | KO6: 48493.125 | KP6: 75773 | KQ6: 49326.594 | KR6: 76014.539 | KS6: 46462.539 | KT6: 94511.219 | KU6: 64783.672 | KV6: 117389.219 | KW6: 74799.547 | KX6: 134882.297 | KY6: 90964.859 | KZ6: 120820.672 | LA6: 73299.266 | LB6: 77391.531 | LC6: 49933.211 | LD6: 76082.508 | LE6: 46101.547 | LF6: 70546.258 | LG6: 50215.172 | LH6: 92324.352 | LI6: 66499.773 | LJ6: 90156.117 | LK6: 65320.805 | LL6: 71699.141 | LM6: 48424.555 | LN6: 75894.852 | LO6: 49405.922 | LP6: 76175.867 | LQ6: 46561.141 | LR6: 94676.609 | LS6: 64897.047 | LT6: 117566.961 | LU6: 74912.789 | LV6: 135094.594 | LW6: 91108.047 | LX6: 121011.813 | LY6: 73415.219 | LZ6: 77535.258 | MA6: 50025.945 | MB6: 76231.492 | MC6: 46191.828 | MD6: 70637.422 | ME6: 50280.07 | MF6: 92172.563 | MG6: 66390.438 | MH6: 90178.117 | MI6: 65336.742 | MJ6: 71907.023 | MK6: 48564.945 | ML6: 76144.773 | MM6: 49568.602 | MN6: 76470.219 | MO6: 46741.063 | MP6: 94976.289 | MQ6: 65102.461 | MR6: 117890.578 | MS6: 75119 | MT6: 135469.953 | MU6: 91361.188 | MV6: 121372.609 | MW6: 73634.109 | MX6: 77827.25 | MY6: 50214.336 | MZ6: 76530.531 | NA6: 46373.031 | NB6: 70877.68 | NC6: 50451.086 | ND6: 92198.93 | NE6: 66409.43 | NF6: 90482.281 | NG6: 65557.109 | NH6: 72369.68 | NI6: 48877.422 | NJ6: 76643.852 | NK6: 49893.508 | NL6: 77010.992 | NM6: 47071.594 | NN6: 95513.32 | NO6: 65470.57 | NP6: 118461.969 | NQ6: 75483.094 | NR6: 136107.406 | NS6: 91791.078 | NT6: 122003.391 | NU6: 74016.797 | NV6: 78363.617 | NW6: 50560.398 | NX6: 77077.305 | NY6: 46704.336 | NZ6: 71365.531 | OA6: 50798.344 | OB6: 92529.938 | OC6: 66647.859 | OD6: 90586.977 | OE6: 65632.977 | OF6: 72796.133 | OG6: 49165.438 | OH6: 76925.156 | OI6: 50076.617 | OJ6: 77324.617 | OK6: 47263.289 | OL6: 95834.789 | OM6: 65690.93 | ON6: 118813.547 | OO6: 75707.109 | OP6: 136550.781 | OQ6: 92090.094 | OR6: 122428.992 | OS6: 74274.992 | OT6: 78677.703 | OU6: 50763.047 | OV6: 77390.711 | OW6: 46894.242 | OX6: 71632.555 | OY6: 50988.406 | OZ6: 92632.477 | PA6: 66721.727 | PB6: 91054.602 | PC6: 65971.773 | PD6: 73196.023 | PE6: 49435.516 | PF6: 77519.922 | PG6: 50463.797 | PH6: 77946.367 | PI6: 47643.336 | PJ6: 96453.57 | PK6: 66115.07 | PL6: 119476.078 | PM6: 76129.266 | PN6: 137316.328 | PO6: 92606.391 | PP6: 123185.25 | PQ6: 74733.797 | PR6: 79293.867 | PS6: 51160.609 | PT6: 78010.594 | PU6: 47269.852 | PV6: 72201.758 | PW6: 51393.57 | PX6: 93098.781 | PY6: 67057.578 | PZ6: 91270.594 | QA6: 66128.266 | QB6: 73504.867 | QC6: 49644.109 | QD6: 77842.109 | QE6: 50673.539 | QF6: 78285.43 | QG6: 47850.578 | QH6: 96800.461 | QI6: 66352.852 | QJ6: 119856.391 | QK6: 76371.594 | QL6: 137807.188 | QM6: 92937.406 | QN6: 123652.352 | QO6: 75017.18 | QP6: 79625.461 | QQ6: 51374.547 | QR6: 78337.844 | QS6: 47468.148 | QT6: 72497.008 | QU6: 51603.734 | QV6: 93294.656 | QW6: 67198.672 | QX6: 91746.68 | QY6: 66473.211 | QZ6: 74091.203 | RA6: 50040.109 | RB6: 78445.563 | RC6: 51066.367 | RD6: 78914.953 | RE6: 48235.367 | RF6: 97421.648 | RG6: 66778.664 | RH6: 120514.672 | RI6: 76791.047 | RJ6: 138567.109 | RK6: 93449.922 | RL6: 124403.82 | RM6: 75473.086 | RN6: 80240.414 | RO6: 51771.32 | RQ6: 1815943.891 | RR6: 1836063.799 | RS6: 1840698.633 | RT6: 1847117.515 | RU6: 1806339.857 | RV6: 1809724.66 | RW6: 1839312.891 | RX6: 1839440.11 | RY6: 1809956.179 | RZ6: 1812322.078 | SA6: 1817275.517 | SB6: 1823544.21 | SC6: 1824719.58 | SD6: 1825652.292 | SE6: 1829783.07 | SF6: 1838518.766 | SG6: 1845726.501 | SH6: 1855961.68 | SI6: 1864027.057 | SJ6: 1874825.217
B7: 10025 | C7: Benton REA | D7: 29712.207 | E7: 19697.816 | F7: 25326.461 | G7: 19050.641 | H7: 27593.699 | I7: 22459.621 | J7: 28448.922 | K7: 20720.895 | L7: 24088.52 | M7: 16569.59 | N7: 22644.83 | O7: 16486.225 | P7: 25723.578 | Q7: 17148.938 | R7: 30686.449 | S7: 20992.164 | T7: 34903.113 | U7: 24497.34 | V7: 44305.18 | W7: 29579.305 | X7: 44576.93 | Y7: 28399.867 | Z7: 34342.484 | AA7: 26538.629 | AB7: 28380.9 | AC7: 18316.451 | AD7: 24845.463 | AE7: 18684.955 | AF7: 29097.768 | AG7: 23683.826 | AH7: 29932.113 | AI7: 21859.631 | AJ7: 24309.641 | AK7: 16738.188 | AL7: 22344.219 | AM7: 16267.812 | AN7: 27637.609 | AO7: 18236.697 | AP7: 32181.133 | AQ7: 22172.824 | AR7: 34073.883 | AS7: 24066.369 | AT7: 43806.156 | AU7: 29556.441 | AV7: 42547.344 | AW7: 27330.166 | AX7: 29679.924 | AY7: 22774.41 | AZ7: 27290.064 | BA7: 17363.023 | BB7: 23320.867 | BC7: 17558.045 | BD7: 27795.92 | BE7: 22610.156 | BF7: 27819.793 | BG7: 20321.115 | BH7: 22377.855 | BI7: 15409.19 | BJ7: 20855.035 | BK7: 15183.343 | BL7: 26145.738 | BM7: 17253.311 | BN7: 29335.139 | BO7: 20224.916 | BP7: 30359.283 | BQ7: 21441.775 | BR7: 39133.492 | BS7: 26403.957 | BT7: 36996.52 | BU7: 23765.334 | BV7: 24831.375 | BW7: 19020.588 | BX7: 27714.283 | BY7: 17636.805 | BZ7: 23691.293 | CA7: 17836.619 | CB7: 28232.539 | CC7: 22965.537 | CD7: 28261.256 | CE7: 20642.652 | CF7: 22735.688 | CG7: 15655.358 | CH7: 21180.813 | CI7: 15420.565 | CJ7: 26554.391 | CK7: 17522.658 | CL7: 29802.365 | CM7: 20544.689 | CN7: 30869.084 | CO7: 21801.975 | CP7: 39790.918 | CQ7: 26847.531 | CR7: 37634.656 | CS7: 24175.197 | CT7: 25263.678 | CU7: 19355.285 | CV7: 27630.699 | CW7: 17788.223 | CX7: 23726.443 | CY7: 17858.426 | CZ7: 27870.803 | DA7: 22788.582 | DB7: 28405.098 | DC7: 20714.57 | DD7: 23653.412 | DE7: 16304.315 | DF7: 21019.861 | DG7: 15311.217 | DH7: 25581.619 | DI7: 16914.469 | DJ7: 30121.365 | DK7: 20679.881 | DL7: 32117.367 | DM7: 22698.57 | DN7: 41937.902 | DO7: 28364.674 | DP7: 41202.578 | DQ7: 26489.078 | DR7: 29122.943 | DS7: 22536.26 | DT7: 28323.652 | DU7: 18266.527 | DV7: 24365.146 | DW7: 18356.65 | DX7: 28466.068 | DY7: 23393.684 | DZ7: 29080.574 | EA7: 21231.674 | EB7: 23603.494 | EC7: 16296.041 | ED7: 21627.182 | EE7: 15757.426 | EF7: 26181.729 | EG7: 17346.643 | EH7: 30730.326 | EI7: 21121.42 | EJ7: 32713.637 | EK7: 23124.07 | EL7: 42560.949 | EM7: 28816.611 | EN7: 41820.512 | EO7: 26895.938 | EP7: 29621.256 | EQ7: 22934.66 | ER7: 27591.42 | ES7: 17806.939 | ET7: 23445.393 | EU7: 17632.041 | EV7: 27469.689 | EW7: 22358.666 | EX7: 28434.082 | EY7: 20706.141 | EZ7: 22175.17 | FA7: 15258.787 | FB7: 22737.133 | FC7: 16559.074 | FD7: 23259.805 | FE7: 15290.281 | FF7: 30025.232 | FG7: 20529.295 | FH7: 33954.594 | FI7: 23935.639 | FJ7: 39573.855 | FK7: 26682.043 | FL7: 37355.801 | FM7: 23970.895 | FN7: 28390.693 | FO7: 21913.799 | FP7: 28061.531 | FQ7: 18088.965 | FR7: 23832.1 | FS7: 17919.908 | FT7: 27781.33 | FU7: 22608.826 | FV7: 28659.814 | FW7: 20870.557 | FX7: 22447.623 | FY7: 15446.217 | FZ7: 23039.689 | GA7: 16779.393 | GB7: 23602.096 | GC7: 15515.893 | GD7: 30431.785 | GE7: 20807.547 | GF7: 34393.523 | GG7: 24245.764 | GH7: 40052.801 | GI7: 27005.191 | GJ7: 37814.371 | GK7: 24265.43 | GL7: 28783.879 | GM7: 22218.211 | GN7: 26497.182 | GO7: 17704.635 | GP7: 22645.314 | GQ7: 17271.979 | GR7: 27037.705 | GS7: 20911.033 | GT7: 26669.256 | GU7: 20289.479 | GV7: 20754.172 | GW7: 15202.773 | GX7: 22229.912 | GY7: 15552.838 | GZ7: 22101.455 | HA7: 15022.721 | HB7: 28303.74 | HC7: 20343.244 | HD7: 33856.871 | HE7: 21814.664 | HF7: 37238.117 | HG7: 26393.172 | HH7: 36332.266 | HI7: 22518.68 | HJ7: 27914.09 | HK7: 20416.305 | HL7: 26580.818 | HM7: 17760.518 | HN7: 22715.324 | HO7: 17325.375 | HP7: 27001.578 | HQ7: 20883.094 | HR7: 26557.75 | HS7: 20204.648 | HT7: 20742.229 | HU7: 15194.025 | HV7: 22238.461 | HW7: 15558.82 | HX7: 22137.662 | HY7: 15047.334 | HZ7: 28342.25 | IA7: 20370.926 | IB7: 33900.68 | IC7: 21842.887 | ID7: 37264.836 | IE7: 26412.109 | IF7: 36352.742 | IG7: 22531.371 | IH7: 27942.398 | II7: 20437.008 | IJ7: 26610.453 | IK7: 17780.32 | IL7: 22719.055 | IM7: 17328.219 | IN7: 26894.285 | IO7: 20800.113 | IP7: 26613.033 | IQ7: 20246.705 | IR7: 20872.1 | IS7: 15289.158 | IT7: 22380.492 | IU7: 15658.191 | IV7: 22290.445 | IW7: 15151.18 | IX7: 28481.217 | IY7: 20470.807 | IZ7: 34035.23 | JA7: 21929.582 | JB7: 37402.145 | JC7: 26509.43 | JD7: 36500.082 | JE7: 22622.691 | JF7: 28088.928 | JG7: 20544.182 | JH7: 26771.367 | JI7: 17887.84 | JJ7: 22858.506 | JK7: 17434.58 | JL7: 26937.172 | JM7: 20833.285 | JN7: 26607.342 | JO7: 20242.377 | JP7: 20945.436 | JQ7: 15342.877 | JR7: 22475.395 | JS7: 15724.59 | JT7: 22405.758 | JU7: 15229.563 | JV7: 28596.539 | JW7: 20553.695 | JX7: 34158.129 | JY7: 22008.766 | JZ7: 37502.871 | KA7: 26580.816 | KB7: 36576.215 | KC7: 22669.879 | KD7: 28133.836 | KE7: 20577.023 | KF7: 26794.217 | KG7: 17903.107 | KH7: 22838.408 | KI7: 17419.252 | KJ7: 26796.652 | KK7: 20724.605 | KL7: 26635.41 | KM7: 20263.73 | KN7: 21005.395 | KO7: 15386.797 | KP7: 22537.445 | KQ7: 15768 | KR7: 22456.141 | KS7: 15263.805 | KT7: 28620.053 | KU7: 20570.592 | KV7: 34155.293 | KW7: 22006.941 | KX7: 37528.301 | KY7: 26598.84 | KZ7: 36618.121 | LA7: 22695.852 | LB7: 28186.59 | LC7: 20615.609 | LD7: 26868.6 | LE7: 17952.807 | LF7: 22909.928 | LG7: 17473.799 | LH7: 26794.965 | LI7: 20723.301 | LJ7: 26491.891 | LK7: 20154.543 | LL7: 20958.203 | LM7: 15352.23 | LN7: 22510.105 | LO7: 15748.871 | LP7: 22460.422 | LQ7: 15266.719 | LR7: 28641.77 | LS7: 20586.203 | LT7: 34195.344 | LU7: 22032.742 | LV7: 37580.109 | LW7: 26635.566 | LX7: 36674.813 | LY7: 22730.988 | LZ7: 28240.176 | MA7: 20654.801 | MB7: 26929.268 | MC7: 17993.342 | MD7: 22954.598 | ME7: 17507.871 | MF7: 26753.234 | MG7: 20691.027 | MH7: 26510.98 | MI7: 20169.066 | MJ7: 21047.783 | MK7: 15417.846 | ML7: 22620.064 | MM7: 15825.803 | MN7: 22588.936 | MO7: 15354.068 | MP7: 28773.057 | MQ7: 20680.568 | MR7: 34337.715 | MS7: 22124.48 | MT7: 37729.195 | MU7: 26741.23 | MV7: 36825.926 | MW7: 22824.645 | MX7: 28369.475 | MY7: 20749.373 | MZ7: 27060.047 | NA7: 18080.727 | NB7: 23060.324 | NC7: 17588.512 | ND7: 26772.404 | NE7: 20705.854 | NF7: 26544.213 | NG7: 20194.35 | NH7: 21138.383 | NI7: 15484.211 | NJ7: 22722.68 | NK7: 15897.598 | NL7: 22701.773 | NM7: 15430.766 | NN7: 28882.732 | NO7: 20759.393 | NP7: 34450.727 | NQ7: 22197.293 | NR7: 37843.336 | NS7: 26822.129 | NT7: 36929.48 | NU7: 22888.828 | NV7: 28441.494 | NW7: 20802.049 | NX7: 27120.48 | NY7: 18121.105 | NZ7: 23091.471 | OA7: 17612.268 | OB7: 26716.109 | OC7: 20662.313 | OD7: 26595.84 | OE7: 20233.625 | OF7: 21222.176 | OG7: 15545.594 | OH7: 22824.859 | OI7: 15969.086 | OJ7: 22804.088 | OK7: 15500.311 | OL7: 28973.436 | OM7: 20824.588 | ON7: 34534.738 | OO7: 22251.426 | OP7: 37941.074 | OQ7: 26891.406 | OR7: 37024.887 | OS7: 22947.961 | OT7: 28512.012 | OU7: 20853.625 | OV7: 27187.668 | OW7: 18165.996 | OX7: 23136.957 | OY7: 17646.961 | OZ7: 26680.131 | PA7: 20634.486 | PB7: 26583.59 | PC7: 20224.305 | PD7: 21275.225 | PE7: 15584.455 | PF7: 22870.635 | PG7: 16001.111 | PH7: 22857.098 | PI7: 15536.344 | PJ7: 29025.096 | PK7: 20861.717 | PL7: 34587.422 | PM7: 22285.371 | PN7: 38011.313 | PO7: 26941.188 | PP7: 37094.988 | PQ7: 22991.41 | PR7: 28562.697 | PS7: 20890.693 | PT7: 27238.053 | PU7: 18199.662 | PV7: 23171.908 | PW7: 17673.615 | PX7: 26645.967 | PY7: 20608.064 | PZ7: 26490.77 | QA7: 20153.691 | QB7: 21234.1 | QC7: 15554.326 | QD7: 22840.168 | QE7: 15979.793 | QF7: 22836.555 | QG7: 15522.383 | QH7: 29007.393 | QI7: 20848.994 | QJ7: 34570.063 | QK7: 22274.184 | QL7: 38014.512 | QM7: 26943.457 | QN7: 37098.273 | QO7: 22993.449 | QP7: 28556.803 | QQ7: 20886.381 | QR7: 27233.494 | QS7: 18196.619 | QT7: 23157.793 | QU7: 17662.852 | QV7: 26565.619 | QW7: 20545.924 | QX7: 26521.98 | QY7: 20177.434 | QZ7: 21321.533 | RA7: 15618.373 | RB7: 22943.563 | RC7: 16052.133 | RD7: 22954.723 | RE7: 15602.699 | RF7: 29128.197 | RG7: 20935.822 | RH7: 34700.629 | RI7: 22358.309 | RJ7: 38171.254 | RK7: 27054.543 | RL7: 37276.207 | RM7: 23103.73 | RN7: 28727.244 | RO7: 21011.045 | RQ7: 634493.404 | RR7: 628523.923 | RS7: 572815.834 | RT7: 582135.835 | RU7: 600838.355 | RV7: 612635.869 | RW7: 587056.467 | RX7: 594672.444 | RY7: 565021.603 | RZ7: 565344.843 | SA7: 567218.043 | SB7: 569053.857 | SC7: 569389.156 | SD7: 569638.896 | SE7: 571519.55 | SF7: 573399.303 | SG7: 574774.478 | SH7: 575636.857 | SI7: 575342.564 | SJ7: 577021.719
B8: 10027 | C8: Big Bend Elec Coop | D8: 21513.086 | E8: 14715.813 | F8: 13251.338 | G8: 9881.162 | H8: 15817.067 | I8: 11782.233 | J8: 15545.653 | K8: 11437.546 | L8: 12959.495 | M8: 9008.204 | N8: 12804.505 | O8: 8590.396 | P8: 22933.857 | Q8: 15721.443 | R8: 34279.961 | S8: 25465.738 | T8: 41382.516 | U8: 28182.281 | V8: 45614.664 | W8: 34317.938 | X8: 43359.336 | Y8: 29669.367 | Z8: 31536.848 | AA8: 23457.254 | AB8: 22829.391 | AC8: 15471.355 | AD8: 14325.249 | AE8: 10680.446 | AF8: 16843.117 | AG8: 12558.838 | AH8: 15295.813 | AI8: 11262.022 | AJ8: 13843.08 | AK8: 9639.91 | AL8: 14317.738 | AM8: 9469.305 | AN8: 24449.273 | AO8: 16639.887 | AP8: 37373.891 | AQ8: 27875.586 | AR8: 43250.137 | AS8: 29637.895 | AT8: 46985.773 | AU8: 35652.375 | AV8: 44403.324 | AW8: 30634.066 | AX8: 32947.977 | AY8: 24530.926 | AZ8: 22822.725 | BA8: 15467.501 | BB8: 14622.054 | BC8: 10901.735 | BD8: 17142.391 | BE8: 12777.66 | BF8: 15594.213 | BG8: 11481.727 | BH8: 14148.497 | BI8: 9852.593 | BJ8: 14629.589 | BK8: 9675.552 | BL8: 24353.107 | BM8: 16586.008 | BN8: 36964.844 | BO8: 27539.742 | BP8: 42581.688 | BQ8: 29201.025 | BR8: 46205.684 | BS8: 35037.563 | BT8: 43711.047 | BU8: 30185.223 | BV8: 32598.051 | BW8: 24294.336 | BX8: 23131.541 | BY8: 15676.786 | BZ8: 14918.863 | CA8: 11123.027 | CB8: 17439.23 | CC8: 12998.92 | CD8: 15892.603 | CE8: 11701.427 | CF8: 14453.914 | CG8: 10065.275 | CH8: 14941.44 | CI8: 9881.8 | CJ8: 24661.391 | CK8: 16795.822 | CL8: 37261.602 | CM8: 27761.086 | CN8: 42889.109 | CO8: 29411.697 | CP8: 46500.258 | CQ8: 35261.09 | CR8: 44017.641 | CS8: 30396.746 | CT8: 32895.035 | CU8: 24515.453 | CV8: 23787.539 | CW8: 16121.354 | CX8: 15625.582 | CY8: 11649.934 | CZ8: 18256.492 | DA8: 13608.094 | DB8: 17752.979 | DC8: 13071.188 | DD8: 15233.338 | DE8: 10608.043 | DF8: 15686.213 | DG8: 10374.371 | DH8: 25796 | DI8: 17568.025 | DJ8: 35417.461 | DK8: 26385.617 | DL8: 44227.086 | DM8: 30328.564 | DN8: 45728.102 | DO8: 34675.184 | DP8: 43835.719 | DQ8: 30271.238 | DR8: 32485.93 | DS8: 24210.859 | DT8: 23981.061 | DU8: 16252.505 | DV8: 15811.938 | DW8: 11788.874 | DX8: 18442.943 | DY8: 13747.072 | DZ8: 17940.973 | EA8: 13209.604 | EB8: 15158.565 | EC8: 10555.974 | ED8: 15882.019 | EE8: 10503.87 | EF8: 25989.258 | EG8: 17699.553 | EH8: 35603.215 | EI8: 26524.164 | EJ8: 44419.59 | EK8: 30460.482 | EL8: 45912.543 | EM8: 34815.133 | EN8: 44027.652 | EO8: 30403.648 | EP8: 32671.855 | EQ8: 24349.285 | ER8: 23616.064 | ES8: 16018.583 | ET8: 15556.135 | EU8: 11521.268 | EV8: 18588.633 | EW8: 13756.594 | EX8: 18472.557 | EY8: 13597.803 | EZ8: 15475.735 | FA8: 10807.876 | FB8: 14530.353 | FC8: 9735.968 | FD8: 19890.738 | FE8: 13263.612 | FF8: 37430.484 | FG8: 28198.912 | FH8: 49519.953 | FI8: 34259.688 | FJ8: 48666.66 | FK8: 36655.766 | FL8: 44233.012 | FM8: 29921.9 | FN8: 32366.777 | FO8: 24443.57 | FP8: 23753.238 | FQ8: 16111.62 | FR8: 15688.392 | FS8: 11619.22 | FT8: 18720.936 | FU8: 13854.504 | FV8: 18605.158 | FW8: 13695.412 | FX8: 15611.282 | FY8: 10902.538 | FZ8: 14668.199 | GA8: 9828.33 | GB8: 20028.867 | GC8: 13355.694 | GD8: 37561.746 | GE8: 28297.854 | GF8: 49656.047 | GG8: 34353.805 | GH8: 48797.945 | GI8: 36754.691 | GJ8: 44370.348 | GK8: 30014.768 | GL8: 32497.98 | GM8: 24542.578 | GN8: 24282.41 | GO8: 16542.656 | GP8: 16261.106 | GQ8: 12006.714 | GR8: 19270.881 | GS8: 14264.768 | GT8: 19144.5 | GU8: 14116.281 | GV8: 16574.203 | GW8: 11566.521 | GX8: 15247.51 | GY8: 10209.229 | GZ8: 20616.037 | HA8: 13728.731 | HB8: 38086.125 | HC8: 28733.686 | HD8: 50258.262 | HE8: 34711.801 | HF8: 49376.004 | HG8: 37136.844 | HH8: 44928.625 | HI8: 30416.701 | HJ8: 33068.781 | HK8: 24931.984 | HL8: 24419.34 | HM8: 16635.938 | HN8: 16393.533 | HO8: 12104.496 | HP8: 19403.168 | HQ8: 14362.688 | HR8: 19277.006 | HS8: 14213.982 | HT8: 16317.124 | HU8: 11387.114 | HV8: 15385.395 | HW8: 10301.553 | HX8: 20754.238 | HY8: 13820.741 | HZ8: 38217.313 | IA8: 28832.709 | IB8: 50394.453 | IC8: 34805.813 | ID8: 49507.363 | IE8: 37235.688 | IF8: 45065.918 | IG8: 30509.619 | IH8: 33200.078 | II8: 25030.898 | IJ8: 24556.273 | IK8: 16729.215 | IL8: 16525.963 | IM8: 12202.275 | IN8: 19535.457 | IO8: 14460.609 | IP8: 19409.512 | IQ8: 14311.688 | IR8: 16452.711 | IS8: 11481.736 | IT8: 15523.281 | IU8: 10393.877 | IV8: 20892.439 | IW8: 13912.751 | IX8: 38348.5 | IY8: 28931.732 | IZ8: 50530.645 | JA8: 34899.832 | JB8: 49638.723 | JC8: 37334.539 | JD8: 45203.207 | JE8: 30602.541 | JF8: 33331.371 | JG8: 25129.82 | JH8: 24693.203 | JI8: 16822.496 | JJ8: 16658.391 | JK8: 12300.057 | JL8: 19667.744 | JM8: 14558.533 | JN8: 19542.016 | JO8: 14409.391 | JP8: 16588.299 | JQ8: 11576.357 | JR8: 15661.168 | JS8: 10486.199 | JT8: 21030.641 | JU8: 14004.761 | JV8: 38479.688 | JW8: 29030.756 | JX8: 50666.832 | JY8: 34993.855 | JZ8: 49770.094 | KA8: 37433.387 | KB8: 45340.504 | KC8: 30695.455 | KD8: 33462.664 | KE8: 25228.734 | KF8: 24830.135 | KG8: 16915.775 | KH8: 16790.818 | KI8: 12397.838 | KJ8: 19800.033 | KK8: 14656.455 | KL8: 19674.523 | KM8: 14507.094 | KN8: 17116.555 | KO8: 11945.008 | KP8: 15799.053 | KQ8: 10578.523 | KR8: 21168.84 | KS8: 14096.769 | KT8: 38610.871 | KU8: 29129.775 | KV8: 50803.023 | KW8: 35087.875 | KX8: 49901.449 | KY8: 37532.234 | KZ8: 45477.789 | LA8: 30788.373 | LB8: 33593.957 | LC8: 25327.652 | LD8: 24967.063 | LE8: 17009.055 | LF8: 16923.246 | LG8: 12495.619 | LH8: 19932.318 | LI8: 14754.377 | LJ8: 19807.025 | LK8: 14604.799 | LL8: 16859.475 | LM8: 11765.6 | LN8: 15936.938 | LO8: 10670.848 | LP8: 21307.043 | LQ8: 14188.776 | LR8: 38742.059 | LS8: 29228.799 | LT8: 50939.207 | LU8: 35181.895 | LV8: 50032.82 | LW8: 37631.082 | LX8: 45615.082 | LY8: 30881.291 | LZ8: 33725.25 | MA8: 25426.566 | MB8: 25103.996 | MC8: 17102.332 | MD8: 17055.676 | ME8: 12593.4 | MF8: 20064.605 | MG8: 14852.301 | MH8: 19939.533 | MI8: 14702.502 | MJ8: 16995.063 | MK8: 11860.223 | ML8: 16074.825 | MM8: 10763.171 | MN8: 21445.24 | MO8: 14280.786 | MP8: 38873.246 | MQ8: 29327.822 | MR8: 51075.402 | MS8: 35275.91 | MT8: 50164.176 | MU8: 37729.922 | MV8: 45752.379 | MW8: 30974.205 | MX8: 33856.543 | MY8: 25525.484 | MZ8: 25240.924 | NA8: 17195.611 | NB8: 17188.105 | NC8: 12691.182 | ND8: 20196.891 | NE8: 14950.223 | NF8: 20072.039 | NG8: 14800.207 | NH8: 17130.65 | NI8: 11954.846 | NJ8: 16212.71 | NK8: 10855.495 | NL8: 21583.443 | NM8: 14372.794 | NN8: 39004.434 | NO8: 29426.846 | NP8: 51211.594 | NQ8: 35369.93 | NR8: 50295.539 | NS8: 37828.777 | NT8: 45889.668 | NU8: 31067.127 | NV8: 33987.836 | NW8: 25624.398 | NX8: 25377.855 | NY8: 17288.891 | NZ8: 17320.533 | OA8: 12788.963 | OB8: 20329.18 | OC8: 15048.145 | OD8: 20204.543 | OE8: 14897.91 | OF8: 17658.906 | OG8: 12323.494 | OH8: 16350.595 | OI8: 10947.819 | OJ8: 21721.645 | OK8: 14464.804 | OL8: 39135.617 | OM8: 29525.865 | ON8: 51347.781 | OO8: 35463.953 | OP8: 50426.902 | OQ8: 37927.625 | OR8: 46026.957 | OS8: 31160.041 | OT8: 34119.129 | OU8: 25723.316 | OV8: 25514.783 | OW8: 17382.17 | OX8: 17452.961 | OY8: 12886.744 | OZ8: 20461.467 | PA8: 15146.064 | PB8: 20337.051 | PC8: 14995.613 | PD8: 17401.826 | PE8: 12144.088 | PF8: 16488.48 | PG8: 11040.143 | PH8: 21859.842 | PI8: 14556.813 | PJ8: 39266.805 | PK8: 29624.889 | PL8: 51483.973 | PM8: 35557.973 | PN8: 50558.266 | PO8: 38026.473 | PP8: 46164.25 | PQ8: 31252.959 | PR8: 34250.422 | PS8: 25822.23 | PT8: 25651.715 | PU8: 17475.449 | PV8: 17585.389 | PW8: 12984.525 | PX8: 20593.754 | PY8: 15243.988 | PZ8: 20469.555 | QA8: 15093.316 | QB8: 17537.414 | QC8: 12238.709 | QD8: 16626.367 | QE8: 11132.465 | QF8: 21998.045 | QG8: 14648.821 | QH8: 39397.992 | QI8: 29723.912 | QJ8: 51620.156 | QK8: 35651.992 | QL8: 50689.625 | QM8: 38125.316 | QN8: 46301.543 | QO8: 31345.877 | QP8: 34381.715 | QQ8: 25921.148 | QR8: 25788.645 | QS8: 17568.73 | QT8: 17717.818 | QU8: 13082.305 | QV8: 20726.039 | QW8: 15341.91 | QX8: 20602.061 | QY8: 15191.021 | QZ8: 17673.002 | RA8: 12333.33 | RB8: 16764.252 | RC8: 11224.789 | RD8: 22136.242 | RE8: 14740.831 | RF8: 39529.18 | RG8: 29822.936 | RH8: 51756.348 | RI8: 35746.012 | RJ8: 50820.984 | RK8: 38224.168 | RL8: 46438.832 | RM8: 31438.799 | RN8: 34513.008 | RO8: 26020.066 | RQ8: 533227.701 | RR8: 560917.374 | RS8: 558374.555 | RT8: 564591.756 | RU8: 572704.912 | RV8: 576151.776 | RW8: 580528.641 | RX8: 583291.152 | RY8: 595480.36 | RZ8: 597576.168 | SA8: 600338.697 | SB8: 603101.225 | SC8: 606530.417 | SD8: 608626.233 | SE8: 611388.742 | SF8: 614151.269 | SG8: 617580.469 | SH8: 619676.285 | SI8: 622438.788 | SJ8: 625201.308
B9: 10029 | C9: Blachly Lane Elec Coop | D9: 8987.786 | E9: 4688.754 | F9: 9182.613 | G9: 5859.493 | H9: 10370.279 | I9: 6218.675 | J9: 10454.674 | K9: 6597.378 | L9: 9908.985 | M9: 5558.084 | N9: 9793.305 | O9: 5360.581 | P9: 9412.046 | Q9: 5154.786 | R9: 8243.752 | S9: 5013.926 | T9: 8700.613 | U9: 4557.468 | V9: 8227.113 | W9: 4861.131 | X9: 8870.017 | Y9: 4531.24 | Z9: 8177.497 | AA9: 4535.59 | AB9: 8912.844 | AC9: 5004.375 | AD9: 9779.031 | AE9: 5799.013 | AF9: 10480.322 | AG9: 6284.665 | AH9: 10425.88 | AI9: 6579.209 | AJ9: 9927.284 | AK9: 5630.463 | AL9: 9935.862 | AM9: 5438.612 | AN9: 9353.297 | AO9: 5521.052 | AP9: 8540.456 | AQ9: 4834.116 | AR9: 8687.688 | AS9: 4550.698 | AT9: 8351.894 | AU9: 4934.858 | AV9: 9029.969 | AW9: 4612.952 | AX9: 8228.624 | AY9: 4563.948 | AZ9: 8732.387 | BA9: 4908.583 | BB9: 9382.453 | BC9: 5556.914 | BD9: 9934.25 | BE9: 6396.465 | BF9: 10369.415 | BG9: 6094.255 | BH9: 9571.111 | BI9: 5429.097 | BJ9: 9952.958 | BK9: 5450.867 | BL9: 9097.54 | BM9: 5377.306 | BN9: 8306.649 | BO9: 4720.977 | BP9: 8460.266 | BQ9: 4452.161 | BR9: 8121.61 | BS9: 4804.461 | BT9: 9061.939 | BU9: 4646.96 | BV9: 7986.202 | BW9: 4783.687 | BX9: 8962.799 | BY9: 4678.17 | BZ9: 9382.453 | CA9: 5556.914 | CB9: 9934.25 | CC9: 6396.465 | CD9: 10369.415 | CE9: 6094.255 | CF9: 9571.111 | CG9: 5429.097 | CH9: 9692.42 | CI9: 5711.404 | CJ9: 9350.188 | CK9: 5124.659 | CL9: 8306.649 | CM9: 4720.977 | CN9: 8234.89 | CO9: 4677.537 | CP9: 8339.946 | CQ9: 4586.125 | CR9: 9061.939 | CS9: 4646.96 | CT9: 7986.202 | CU9: 4783.687 | CV9: 9836.74 | CW9: 5167.726 | CX9: 10091.908 | CY9: 6033.387 | CZ9: 11120.971 | DA9: 7186.165 | DB9: 11245.355 | DC9: 6675.118 | DD9: 10856.315 | DE9: 6126.806 | DF9: 10376.212 | DG9: 6147.777 | DH9: 10062.282 | DI9: 5561.245 | DJ9: 8812.032 | DK9: 5423.962 | DL9: 9464.813 | DM9: 5029.785 | DN9: 9314.549 | DO9: 5177.946 | DP9: 9553.773 | DQ9: 5296.109 | DR9: 8874.253 | DS9: 5002.121 | DT9: 9926.176 | DU9: 5221.073 | DV9: 9861.519 | DW9: 6329.415 | DX9: 11415.077 | DY9: 6892.059 | DZ9: 10956.24 | EA9: 6964.233 | EB9: 10451.225 | EC9: 5961.325 | ED9: 10641.45 | EE9: 5882.539 | EF9: 10062.282 | EG9: 5561.245 | EH9: 8812.032 | EI9: 5423.962 | EJ9: 9464.813 | EK9: 5029.785 | EL9: 9314.549 | EM9: 5177.946 | EN9: 9553.773 | EO9: 5296.109 | EP9: 8874.253 | EQ9: 5002.121 | ER9: 9364.296 | ES9: 5360.448 | ET9: 8900.123 | EU9: 5364.712 | EV9: 10530.587 | EW9: 6422.161 | EX9: 10911.128 | EY9: 6948.458 | EZ9: 9710.449 | FA9: 5578.943 | FB9: 10638.438 | FC9: 5824.798 | FD9: 9677.58 | FE9: 5251.539 | FF9: 8315.484 | FG9: 5128.628 | FH9: 8813.744 | FI9: 4704.797 | FJ9: 8614.854 | FK9: 5156.623 | FL9: 9207.836 | FM9: 4873.14 | FN9: 8297.97 | FO9: 4670.208 | FP9: 9364.296 | FQ9: 5360.448 | FR9: 8900.123 | FS9: 5364.712 | FT9: 10530.587 | FU9: 6422.161 | FV9: 10911.128 | FW9: 6948.458 | FX9: 9710.449 | FY9: 5578.943 | FZ9: 10638.438 | GA9: 5824.798 | GB9: 9396.667 | GC9: 5532.452 | GD9: 8560.294 | GE9: 4883.818 | GF9: 8813.744 | GG9: 4704.797 | GH9: 8614.854 | GI9: 5156.623 | GJ9: 9207.836 | GK9: 4873.14 | GL9: 8297.97 | GM9: 4670.208 | GN9: 9991.521 | GO9: 5695.811 | GP9: 9507.558 | GQ9: 5719.516 | GR9: 10837.093 | GS9: 7077.411 | GT9: 11866.858 | GU9: 6970.827 | GV9: 10751.012 | GW9: 6063.164 | GX9: 11036.403 | GY9: 6473.219 | GZ9: 10314.747 | HA9: 5584.672 | HB9: 9153.612 | HC9: 5219.337 | HD9: 9229.433 | HE9: 5302.847 | HF9: 9464.484 | HG9: 5231.133 | HH9: 9831.97 | HI9: 5197.569 | HJ9: 8664.693 | HK9: 5240.533 | HL9: 10259.65 | HM9: 5427.681 | HN9: 9507.558 | HO9: 5719.516 | HP9: 10837.093 | HQ9: 7077.411 | HR9: 11866.858 | HS9: 6970.827 | HT9: 10349.106 | HU9: 5903.039 | HV9: 11036.403 | HW9: 6473.219 | HX9: 10314.747 | HY9: 5584.672 | HZ9: 9153.612 | IA9: 5219.337 | IB9: 9229.433 | IC9: 5302.847 | ID9: 9464.484 | IE9: 5231.133 | IF9: 9575.562 | IG9: 5453.977 | IH9: 8908.709 | II9: 4996.518 | IJ9: 10259.65 | IK9: 5427.681 | IL9: 9239.516 | IM9: 5987.557 | IN9: 11145.793 | IO9: 6768.711 | IP9: 11866.858 | IQ9: 6970.827 | IR9: 10349.106 | IS9: 5903.039 | IT9: 11036.403 | IU9: 6473.219 | IV9: 10314.747 | IW9: 5584.672 | IX9: 8908.802 | IY9: 5464.147 | IZ9: 9483.804 | JA9: 5048.476 | JB9: 9464.484 | JC9: 5231.133 | JD9: 9575.562 | JE9: 5453.977 | JF9: 8908.709 | JG9: 4996.518 | JH9: 10259.65 | JI9: 5427.681 | JJ9: 9239.516 | JK9: 5987.557 | JL9: 11145.793 | JM9: 6768.711 | JN9: 11541.645 | JO9: 7296.041 | JP9: 10349.106 | JQ9: 5903.039 | JR9: 11336.593 | JS9: 6173.03 | JT9: 10314.747 | JU9: 5584.672 | JV9: 8908.802 | JW9: 5464.147 | JX9: 9483.804 | JY9: 5048.476 | JZ9: 9464.484 | KA9: 5231.133 | KB9: 9575.562 | KC9: 5453.977 | KD9: 8908.709 | KE9: 4996.518 | KF9: 9991.521 | KG9: 5695.811 | KH9: 9507.558 | KI9: 5719.516 | KJ9: 11145.793 | KK9: 6768.711 | KL9: 11541.645 | KM9: 7296.041 | KN9: 10751.012 | KO9: 6063.164 | KP9: 11336.593 | KQ9: 6173.03 | KR9: 10033.834 | KS9: 5865.585 | KT9: 9153.612 | KU9: 5219.337 | KV9: 9483.804 | KW9: 5048.476 | KX9: 9213.713 | KY9: 5481.904 | KZ9: 9831.97 | LA9: 5197.569 | LB9: 8908.709 | LC9: 4996.518 | LD9: 9991.521 | LE9: 5695.811 | LF9: 9507.558 | LG9: 5719.516 | LH9: 10837.093 | LI9: 7077.411 | LJ9: 11866.858 | LK9: 6970.827 | LL9: 10349.106 | LM9: 5903.039 | LN9: 11336.593 | LO9: 6173.03 | LP9: 10033.834 | LQ9: 5865.585 | LR9: 9153.612 | LS9: 5219.337 | LT9: 9483.804 | LU9: 5048.476 | LV9: 9213.713 | LW9: 5481.904 | LX9: 9831.97 | LY9: 5197.569 | LZ9: 8664.693 | MA9: 5240.533 | MB9: 10259.65 | MC9: 5427.681 | MD9: 9507.558 | ME9: 5719.516 | MF9: 10837.093 | MG9: 7077.411 | MH9: 11866.858 | MI9: 6970.827 | MJ9: 10349.106 | MK9: 5903.039 | ML9: 11036.403 | MM9: 6473.219 | MN9: 10314.747 | MO9: 5584.672 | MP9: 9153.612 | MQ9: 5219.337 | MR9: 9229.433 | MS9: 5302.847 | MT9: 9464.484 | MU9: 5231.133 | MV9: 9831.97 | MW9: 5197.569 | MX9: 8664.693 | MY9: 5240.533 | MZ9: 10259.65 | NA9: 5427.681 | NB9: 9507.558 | NC9: 5719.516 | ND9: 10837.093 | NE9: 7077.411 | NF9: 11866.858 | NG9: 6970.827 | NH9: 10349.106 | NI9: 5903.039 | NJ9: 11036.403 | NK9: 6473.219 | NL9: 10314.747 | NM9: 5584.672 | NN9: 9153.612 | NO9: 5219.337 | NP9: 9229.433 | NQ9: 5302.847 | NR9: 9464.484 | NS9: 5231.133 | NT9: 9575.562 | NU9: 5453.977 | NV9: 8908.709 | NW9: 4996.518 | NX9: 10259.65 | NY9: 5427.681 | NZ9: 9239.516 | OA9: 5987.557 | OB9: 11145.793 | OC9: 6768.711 | OD9: 11866.858 | OE9: 6970.827 | OF9: 10443.129 | OG9: 6371.046 | OH9: 11336.593 | OI9: 6173.03 | OJ9: 10314.747 | OK9: 5584.672 | OL9: 8908.802 | OM9: 5464.147 | ON9: 9483.804 | OO9: 5048.476 | OP9: 9464.484 | OQ9: 5231.133 | OR9: 9575.562 | OS9: 5453.977 | OT9: 8908.709 | OU9: 4996.518 | OV9: 9991.521 | OW9: 5695.811 | OX9: 9507.558 | OY9: 5719.516 | OZ9: 11145.793 | PA9: 6768.711 | PB9: 11541.645 | PC9: 7296.041 | PD9: 10349.106 | PE9: 5903.039 | PF9: 11336.593 | PG9: 6173.03 | PH9: 10314.747 | PI9: 5584.672 | PJ9: 8908.802 | PK9: 5464.147 | PL9: 9483.804 | PM9: 5048.476 | PN9: 9213.713 | PO9: 5481.904 | PP9: 9831.97 | PQ9: 5197.569 | PR9: 8908.709 | PS9: 4996.518 | PT9: 9991.521 | PU9: 5695.811 | PV9: 9507.558 | PW9: 5719.516 | PX9: 11145.793 | PY9: 6768.711 | PZ9: 11541.645 | QA9: 7296.041 | QB9: 10349.106 | QC9: 5903.039 | QD9: 11336.593 | QE9: 6173.03 | QF9: 10033.834 | QG9: 5865.585 | QH9: 9153.612 | QI9: 5219.337 | QJ9: 9483.804 | QK9: 5048.476 | QL9: 9213.713 | QM9: 5481.904 | QN9: 9831.97 | QO9: 5197.569 | QP9: 8908.709 | QQ9: 4996.518 | QR9: 9991.521 | QS9: 5695.811 | QT9: 9507.558 | QU9: 5719.516 | QV9: 10837.093 | QW9: 7077.411 | QX9: 11866.858 | QY9: 6970.827 | QZ9: 10349.106 | RA9: 5903.039 | RB9: 11336.593 | RC9: 6173.03 | RD9: 10033.834 | RE9: 5865.585 | RF9: 9153.612 | RG9: 5219.337 | RH9: 9483.804 | RI9: 5048.476 | RJ9: 9213.713 | RK9: 5481.904 | RL9: 9831.97 | RM9: 5197.569 | RN9: 8664.693 | RO9: 5240.533 | RQ9: 173265.786 | RR9: 175407.112 | RS9: 171598.513 | RT9: 171598.512 | RU9: 188437.35 | RV9: 188075.201 | RW9: 178266.944 | RX9: 178266.944 | RY9: 190425.423 | RZ9: 189863.392 | SA9: 189863.391 | SB9: 189863.393 | SC9: 190425.426 | SD9: 189863.393 | SE9: 189863.391 | SF9: 189863.392 | SG9: 190425.422 | SH9: 189863.395 | SI9: 189863.395 | SJ9: 189863.393
B10: 10044 | C10: Canby, City of | D10: 9530.083 | E10: 4919.665 | F10: 10323.782 | G10: 6602.677 | H10: 12154.946 | I10: 7105.22 | J10: 11332.89 | K10: 7166.81 | L10: 10521.146 | M10: 5682.753 | N10: 10158.859 | O10: 5328.671 | P10: 9463.064 | Q10: 5021.92 | R10: 8811.851 | S10: 5278.779 | T10: 9201.647 | U10: 4714.934 | V10: 9833.667 | W10: 5792.103 | X10: 10499.475 | Y10: 5216.49 | Z10: 8935.397 | AA10: 4954.072 | AB10: 8759.803 | AC10: 4973.744 | AD10: 10207.023 | AE10: 6042.545 | AF10: 11659.224 | AG10: 6869.756 | AH10: 10833.36 | AI10: 6951.744 | AJ10: 9816.252 | AK10: 5438.438 | AL10: 9701.263 | AM10: 5105.008 | AN10: 8712.765 | AO10: 5084.697 | AP10: 8598.546 | AQ10: 4776.362 | AR10: 8701.468 | AS10: 4524.643 | AT10: 9281.74 | AU10: 5638.121 | AV10: 9950.019 | AW10: 5058.24 | AX10: 8484.952 | AY10: 4717.734 | AZ10: 8756.853 | BA10: 4971.372 | BB10: 10209.616 | BC10: 6043.601 | BD10: 11274.307 | BE10: 7263.707 | BF10: 11218.042 | BG10: 6580.543 | BH10: 9830.698 | BI10: 5446.762 | BJ10: 9717.832 | BK10: 5113.482 | BL10: 8723.088 | BM10: 5092.771 | BN10: 8611.672 | BO10: 4782.032 | BP10: 8719.151 | BQ10: 4533.158 | BR10: 9296.766 | BS10: 5647.207 | BT10: 9965.48 | BU10: 5065.953 | BV10: 8211.381 | BW10: 5013.967 | BX10: 9107.053 | BY10: 4712.61 | BZ10: 10263.229 | CA10: 6075.375 | CB10: 11323.146 | CC10: 7294.989 | CD10: 11265.211 | CE10: 6608.471 | CF10: 9878.479 | CG10: 5473.211 | CH10: 9451.373 | CI10: 5453.802 | CJ10: 9072.976 | CK10: 4817.053 | CL10: 8659.143 | CM10: 4808.521 | CN10: 8476.777 | CO10: 4848.786 | CP10: 9659.086 | CQ10: 5358.114 | CR10: 10013.939 | CS10: 5090.615 | CT10: 8256.729 | CU10: 5041.577 | CV10: 9130.538 | CW10: 4725.213 | CX10: 10304.729 | CY10: 6100.029 | CZ10: 11357.404 | DA10: 7316.489 | DB10: 11300.285 | DC10: 6630.604 | DD10: 10163.474 | DE10: 5552.413 | DF10: 9486.163 | DG10: 5472.721 | DH10: 9118.656 | DI10: 4840.874 | DJ10: 8373.217 | DK10: 5092.556 | DL10: 8808.957 | DM10: 4580.14 | DN10: 9698.535 | DO10: 5380.829 | DP10: 9737.303 | DQ10: 5431.3 | DR10: 8588.777 | DS10: 4775.014 | DT10: 9192.267 | DU10: 4758.159 | DV10: 10001.327 | DW10: 6490.657 | DX10: 11801.466 | DY10: 6953.262 | DZ10: 10968.218 | EA10: 7037.662 | EB10: 9960.949 | EC10: 5518.688 | ED10: 9842.485 | EE10: 5179.19 | EF10: 9155.944 | EG10: 4860.785 | EH10: 8413.177 | EI10: 5116.864 | EJ10: 8851.048 | EK10: 4602.078 | EL10: 9739.605 | EM10: 5403.688 | EN10: 9778.262 | EO10: 5454.162 | EP10: 8629.624 | EQ10: 4797.787 | ER10: 9632.176 | ES10: 5640.131 | ET10: 10354.18 | EU10: 6341.374 | EV10: 11913.128 | EW10: 7174.902 | EX10: 11523.938 | EY10: 7579.709 | EZ10: 9915.72 | FA10: 5615.697 | FB10: 10530.874 | FC10: 5692.655 | FD10: 9658.257 | FE10: 5218.625 | FF10: 8460.366 | FG10: 5258.597 | FH10: 9385.653 | FI10: 5031.239 | FJ10: 9961.146 | FK10: 6178.536 | FL10: 10717.621 | FM10: 5609.156 | FN10: 8907.49 | FO10: 5170.499 | FP10: 9665.138 | FQ10: 5659.441 | FR10: 10416.269 | FS10: 6379.401 | FT10: 11984.6 | FU10: 7217.947 | FV10: 11593.067 | FW10: 7625.182 | FX10: 9975.184 | FY10: 5649.369 | FZ10: 10594.032 | GA10: 5726.793 | GB10: 9380.252 | GC10: 5585.838 | GD10: 8810.891 | GE10: 4990.316 | GF10: 9441.929 | GG10: 5061.407 | GH10: 10020.884 | GI10: 6215.587 | GJ10: 10781.903 | GK10: 5642.795 | GL10: 8960.898 | GM10: 5201.498 | GN10: 10456.862 | GO10: 6124.291 | GP10: 10676.819 | GQ10: 6537.007 | GR10: 12462.782 | GS10: 8190.686 | GT10: 12867.27 | GU10: 7794.74 | GV10: 11238.717 | GW10: 6305.138 | GX10: 11115.585 | GY10: 6650.214 | GZ10: 10603.74 | HA10: 5757.387 | HB10: 9795.228 | HC10: 5624.52 | HD10: 10039.406 | HE10: 5931.132 | HF10: 11367.804 | HG10: 6456.271 | HH10: 11750.44 | HI10: 6222.325 | HJ10: 9478.985 | HK10: 6057.799 | HL10: 10980.617 | HM10: 5892.934 | HN10: 10862.372 | HO10: 6643.03 | HP10: 12547.826 | HQ10: 8247.128 | HR10: 12955.532 | HS10: 7848.018 | HT10: 10871.764 | HU10: 6181.635 | HV10: 11191.073 | HW10: 6695.507 | HX10: 10675.629 | HY10: 5796.408 | HZ10: 9861.448 | IA10: 5662.25 | IB10: 10107.224 | IC10: 5971.42 | ID10: 11445.131 | IE10: 6500.14 | IF10: 11464.938 | IG10: 6630.078 | IH10: 9867.418 | II10: 5774.363 | IJ10: 11053.52 | IK10: 5931.852 | IL10: 10567.004 | IM10: 7054.833 | IN10: 13057.46 | IO10: 7876.8 | IP10: 13042.439 | IQ10: 7900.479 | IR10: 10944.188 | IS10: 6222.903 | IT10: 11265.402 | IU10: 6740.105 | IV10: 10746.412 | IW10: 5834.829 | IX10: 9613.562 | IY10: 6012.486 | IZ10: 10510.435 | JA10: 5674.653 | JB10: 11521.263 | JC10: 6543.331 | JD10: 11541.21 | JE10: 6674.185 | JF10: 9932.636 | JG10: 5812.533 | JH10: 11105.919 | JI10: 5959.824 | JJ10: 10616.983 | JK10: 7088.552 | JL10: 13119.789 | JM10: 7914.626 | JN10: 12676.7 | JO10: 8366.406 | JP10: 10996.241 | JQ10: 6252.564 | JR10: 11684.825 | JS10: 6406.173 | JT10: 10797.293 | JU10: 5862.446 | JV10: 9658.87 | JW10: 6040.754 | JX10: 10560.12 | JY10: 5701.49 | JZ10: 11575.998 | KA10: 6574.383 | KB10: 11596.038 | KC10: 6705.891 | KD10: 9979.512 | KE10: 5839.967 | KF10: 10811.548 | KG10: 6332.384 | KH10: 11036.679 | KI10: 6750.283 | KJ10: 13180.427 | KK10: 7951.427 | KL10: 12735.419 | KM10: 8405.173 | KN10: 11497.595 | KO10: 6450.592 | KP10: 11738.584 | KQ10: 6435.597 | KR10: 10498.262 | KS10: 6237.855 | KT10: 10019.119 | KU10: 5752.082 | KV10: 10608.451 | KW10: 5727.595 | KX10: 11260.734 | KY10: 6973.103 | KZ10: 12021.128 | LA10: 6364.993 | LB10: 10025.117 | LC10: 5866.657 | LD10: 10859.255 | LE10: 6360.317 | LF10: 11085.437 | LG10: 6780.285 | LH10: 12806.976 | LI10: 8419.127 | LJ10: 13224.504 | LK10: 8010.377 | LL10: 11095.877 | LM10: 6309.341 | LN10: 11790.58 | LO10: 6464.056 | LP10: 10544.521 | LQ10: 6265.468 | LR10: 10063.221 | LS10: 5777.209 | LT10: 10655.208 | LU10: 5752.849 | LV10: 11310.524 | LW10: 7004.038 | LX10: 12074.456 | LY10: 6393.1 | LZ10: 9737.7 | MA10: 6224.003 | MB10: 11254.056 | MC10: 6038.904 | MD10: 11132.75 | ME10: 6809.397 | MF10: 12861.939 | MG10: 8455.607 | MH10: 13281.554 | MI10: 8044.815 | MJ10: 11143.406 | MK10: 6336.424 | ML10: 11469.89 | MM10: 6862.801 | MN10: 10941.142 | MO10: 5940.527 | MP10: 10106.017 | MQ10: 5801.592 | MR10: 10357.702 | MS10: 6120.218 | MT10: 11730.72 | MU10: 6662.16 | MV10: 12126.193 | MW10: 6420.368 | MX10: 9779.009 | MY10: 6250.54 | MZ10: 11302.119 | NA10: 6064.562 | NB10: 11180.278 | NC10: 6838.642 | ND10: 12917.157 | NE10: 8492.254 | NF10: 13338.862 | NG10: 8079.408 | NH10: 11191.154 | NI10: 6363.633 | NJ10: 11518.902 | NK10: 6892.21 | NL10: 10987.813 | NM10: 5965.86 | NN10: 10149.001 | NO10: 5826.082 | NP10: 10401.729 | NQ10: 6146.373 | NR10: 11780.925 | NS10: 6690.641 | NT10: 11801.329 | NU10: 6824.606 | NV10: 10155.026 | NW10: 5942.686 | NX10: 11348.692 | NY10: 6089.423 | NZ10: 10848.533 | OA10: 7244.763 | OB10: 13408.55 | OC10: 8089.872 | OD10: 13394.387 | OE10: 8112.926 | OF10: 11300.169 | OG10: 6957.832 | OH10: 11940.808 | OI10: 6546.279 | OJ10: 11033.03 | OK10: 5990.405 | OL10: 9868.757 | OM10: 6171.709 | ON10: 10790.29 | OO10: 5825.813 | OP10: 11829.562 | OQ10: 6718.234 | OR10: 11850.054 | OS10: 6852.783 | OT10: 10196.688 | OU10: 5967.067 | OV10: 11045.672 | OW10: 6469.467 | OX10: 11275.983 | OY10: 6897.531 | OZ10: 13468.282 | PA10: 8126.123 | PB10: 13014.144 | PC10: 8589.191 | PD10: 11287.312 | PE10: 6418.425 | PF10: 11993.762 | PG10: 6575.263 | PH10: 11081.795 | PI10: 6016.873 | PJ10: 9912.178 | PK10: 6198.801 | PL10: 10837.9 | PM10: 5851.529 | PN10: 11505.088 | PO10: 7124.923 | PP10: 12282.839 | PQ10: 6502.93 | PR10: 10241.608 | PS10: 5993.357 | PT10: 11092.813 | PU10: 6497.066 | PV10: 11324.16 | PW10: 6927.176 | PX10: 13526.233 | PY10: 8161.292 | PZ10: 13070.261 | QA10: 8626.241 | QB10: 11335.718 | QC10: 6446.008 | QD10: 12045.14 | QE10: 6603.382 | QF10: 10771.006 | QG10: 6400.659 | QH10: 10279.149 | QI10: 5900.235 | QJ10: 10884.102 | QK10: 5876.484 | QL10: 11554.284 | QM10: 7155.49 | QN10: 12335.531 | QO10: 6530.702 | QP10: 10285.201 | QQ10: 6018.869 | QR10: 11140.162 | QS10: 6524.792 | QT10: 11372.563 | QU10: 6956.957 | QV10: 13140.555 | QW10: 8640.524 | QX10: 13570.724 | QY10: 8219.365 | QZ10: 11384.346 | RA10: 6473.717 | RB10: 12096.745 | RC10: 6631.627 | RD10: 10816.927 | RE10: 6428.068 | RF10: 10322.934 | RG10: 5925.18 | RH10: 10930.507 | RI10: 5901.549 | RJ10: 11603.703 | RK10: 7186.195 | RL10: 12388.461 | RM10: 6558.6 | RN10: 9988.415 | RO10: 6385.068 | RQ10: 188550.901 | RR10: 179887.447 | RS10: 180089.441 | RT10: 181010.265 | RU10: 181966.22 | RV10: 182507.354 | RW10: 191471.669 | RX10: 192580.621 | RY10: 209505.148 | RZ10: 210673.883 | SA10: 212074.52 | SB10: 213081.364 | SC10: 214680.804 | SD10: 215008.429 | SE10: 215927.731 | SF10: 216851.252 | SG10: 218376.626 | SH10: 218710.976 | SI10: 219647.202 | SJ10: 220587.684
B11: 10046 | C11: Central Electric Coop | D11: 29899.125 | E11: 18322.51 | F11: 37306.445 | G11: 26737.055 | H11: 47900.324 | I11: 33370.129 | J11: 42722.449 | K11: 31289.334 | L11: 37632.191 | M11: 25122.1 | N11: 34444.773 | O11: 22839.076 | P11: 31666.473 | Q11: 20331.674 | R11: 32630.199 | S11: 22901.002 | T11: 33622.547 | U11: 20905.438 | V11: 36966.012 | W11: 24541.545 | X11: 36670.406 | Y11: 22231.984 | Z11: 31710.783 | AA11: 21138.813 | AB11: 29944.375 | AC11: 18350.234 | AD11: 37279.078 | AE11: 26717.441 | AF11: 48188.047 | AG11: 33570.57 | AH11: 42363.648 | AI11: 31026.049 | AJ11: 36719.797 | AK11: 24513.008 | AL11: 34331.391 | AM11: 22763.957 | AN11: 31699.629 | AO11: 20275.137 | AP11: 32719.756 | AQ11: 22963.16 | AR11: 33598.109 | AS11: 20889.887 | AT11: 36884.895 | AU11: 24486.486 | AV11: 36377.383 | AW11: 22190.699 | AX11: 31574.275 | AY11: 21047.816 | AZ11: 30931.77 | BA11: 18955.326 | BB11: 38043.559 | BC11: 27265.566 | BD11: 49212.723 | BE11: 34284.422 | BF11: 43476.094 | BG11: 31841.299 | BH11: 37701.66 | BI11: 25168.469 | BJ11: 35367.816 | BK11: 23451.111 | BL11: 32823.176 | BM11: 20994.547 | BN11: 33682.273 | BO11: 23639.385 | BP11: 34869.328 | BQ11: 21680.646 | BR11: 37816.59 | BS11: 25106.098 | BT11: 37440.008 | BU11: 22839.316 | BV11: 32450.74 | BW11: 21632.074 | BX11: 31192.656 | BY11: 19115.199 | BZ11: 38288.676 | CA11: 27441.242 | CB11: 49460.738 | CC11: 34457.195 | CD11: 43718.992 | CE11: 32019.189 | CF11: 37953.969 | CG11: 25336.908 | CH11: 35620.813 | CI11: 23618.863 | CJ11: 33079.793 | CK11: 21158.686 | CL11: 33929.508 | CM11: 23812.906 | CN11: 35128.777 | CO11: 21841.967 | CP11: 38069.477 | CQ11: 25273.986 | CR11: 37701.352 | CS11: 22998.74 | CT11: 32703.209 | CU11: 21800.375 | CV11: 34054.18 | CW11: 20868.771 | CX11: 41200.273 | CY11: 29527.969 | CZ11: 52575.516 | DA11: 36627.129 | DB11: 47122.965 | DC11: 34512.219 | DD11: 42192.742 | DE11: 28166.586 | DF11: 38998.375 | DG11: 25858.4 | DH11: 36561.871 | DI11: 23385.908 | DJ11: 36918.641 | DK11: 25910.777 | DL11: 38777.141 | DM11: 24110.398 | DN11: 41155.543 | DO11: 27322.801 | DP11: 41739.012 | DQ11: 25461.807 | DR11: 35849.699 | DS11: 23897.867 | DT11: 34774.367 | DU11: 21310.107 | DV11: 41876.93 | DW11: 30012.922 | DX11: 53260.148 | DY11: 37104.094 | DZ11: 47793.496 | EA11: 35003.297 | EB11: 42180.902 | EC11: 28158.676 | ED11: 39696.781 | EE11: 26321.484 | EF11: 37270.27 | EG11: 23839.018 | EH11: 37601.152 | EI11: 26389.787 | EJ11: 39493.359 | EK11: 24555.719 | EL11: 41853.645 | EM11: 27786.262 | EN11: 42460.453 | EO11: 25901.908 | EP11: 36546.652 | EQ11: 24362.461 | ER11: 35607.613 | ES11: 21638.387 | ET11: 43213.512 | EU11: 29837.953 | EV11: 54220.992 | EW11: 37304.852 | EX11: 49551.91 | EY11: 34406.488 | EZ11: 43278.914 | FA11: 28222.156 | FB11: 40921.766 | FC11: 26258.006 | FD11: 38136.313 | FE11: 24134.484 | FF11: 38569.375 | FG11: 26583.084 | FH11: 40375.039 | FI11: 24835.592 | FJ11: 42681.855 | FK11: 28119.615 | FL11: 43556.707 | FM11: 25967.201 | FN11: 37223.574 | FO11: 24847.096 | FP11: 36330.09 | FQ11: 22077.434 | FR11: 43900.66 | FS11: 30312.412 | FT11: 54909.141 | FU11: 37778.313 | FV11: 50237.484 | FW11: 34882.523 | FX11: 43981.957 | FY11: 28680.609 | FZ11: 41629.277 | GA11: 26711.99 | GB11: 38847.648 | GC11: 24584.656 | GD11: 39256.98 | GE11: 27056.998 | GF11: 41094.207 | GG11: 25277.971 | GH11: 43382.098 | GI11: 28580.938 | GJ11: 44284.414 | GK11: 26401.037 | GL11: 37920.152 | GM11: 25312.066 | GN11: 37895.941 | GO11: 23028.98 | GP11: 39219.129 | GQ11: 27079.92 | GR11: 57053.949 | GS11: 39253.977 | GT11: 54134.895 | GU11: 37588.691 | GV11: 42988.406 | GW11: 28032.715 | GX11: 45353.672 | GY11: 29101.801 | GZ11: 41723.813 | HA11: 26404.832 | HB11: 37227.453 | HC11: 25658.191 | HD11: 38316.02 | HE11: 23569.045 | HF11: 42603.445 | HG11: 28067.951 | HH11: 43471.363 | HI11: 25916.32 | HJ11: 34327.273 | HK11: 22913.781 | HL11: 38450.824 | HM11: 23366.176 | HN11: 39746.875 | HO11: 27444.32 | HP11: 57582.461 | HQ11: 39617.602 | HR11: 54661.434 | HS11: 37954.297 | HT11: 42573.727 | HU11: 27762.309 | HV11: 45897.063 | HW11: 29450.473 | HX11: 42270.141 | HY11: 26750.564 | HZ11: 37755.551 | IA11: 26022.17 | IB11: 38868.355 | IC11: 23908.799 | ID11: 43141.25 | IE11: 28422.266 | IF11: 44030.262 | IG11: 26249.52 | IH11: 34862.258 | II11: 23270.893 | IJ11: 39005.707 | IK11: 23703.377 | IL11: 40274.625 | IM11: 27808.719 | IN11: 58110.977 | IO11: 39981.227 | IP11: 55187.973 | IQ11: 38319.895 | IR11: 43113.688 | IS11: 28114.414 | IT11: 46440.445 | IU11: 29799.148 | IV11: 42816.473 | IW11: 27096.311 | IX11: 38283.648 | IY11: 26386.148 | IZ11: 39420.695 | JA11: 24248.557 | JB11: 43679.051 | JC11: 28776.576 | JD11: 44589.156 | JE11: 26582.715 | JF11: 35397.25 | JG11: 23628.004 | JH11: 39560.59 | JI11: 24040.574 | JJ11: 40802.375 | JK11: 28173.115 | JL11: 58639.492 | JM11: 40344.852 | JN11: 55714.512 | JO11: 38685.504 | JP11: 43653.645 | JQ11: 28466.516 | JR11: 46983.828 | JS11: 30147.816 | JT11: 43362.797 | JU11: 27442.055 | JV11: 38811.746 | JW11: 26750.131 | JX11: 39973.035 | JY11: 24588.311 | JZ11: 44216.848 | KA11: 29130.891 | KB11: 45148.059 | KC11: 26915.918 | KD11: 35932.238 | KE11: 23985.115 | KF11: 40115.477 | KG11: 24377.771 | KH11: 41330.121 | KI11: 28537.512 | KJ11: 59168.004 | KK11: 40708.473 | KL11: 56241.051 | KM11: 39051.109 | KN11: 45148.215 | KO11: 29441.129 | KP11: 47527.223 | KQ11: 30496.488 | KR11: 43909.125 | KS11: 27787.793 | KT11: 39339.844 | KU11: 27114.109 | KV11: 40525.375 | KW11: 24928.068 | KX11: 44754.645 | KY11: 29485.195 | KZ11: 45706.957 | LA11: 27249.113 | LB11: 36467.227 | LC11: 24342.227 | LD11: 40670.359 | LE11: 24714.967 | LF11: 41857.867 | LG11: 28901.914 | LH11: 59696.52 | LI11: 41072.098 | LJ11: 56767.594 | LK11: 39416.711 | LL11: 44733.547 | LM11: 29170.723 | LN11: 48070.609 | LO11: 30845.164 | LP11: 44455.445 | LQ11: 28133.535 | LR11: 39867.941 | LS11: 27478.092 | LT11: 41077.707 | LU11: 25267.824 | LV11: 45292.438 | LW11: 29839.514 | LX11: 46265.855 | LY11: 27582.313 | LZ11: 37002.215 | MA11: 24699.334 | MB11: 41225.242 | MC11: 25052.164 | MD11: 42385.621 | ME11: 29266.307 | MF11: 60225.031 | MG11: 41435.727 | MH11: 57294.125 | MI11: 39782.316 | MJ11: 45273.5 | MK11: 29522.832 | ML11: 48613.996 | MM11: 31193.836 | MN11: 45001.77 | MO11: 28479.279 | MP11: 40396.039 | MQ11: 27842.07 | MR11: 41630.047 | MS11: 25607.578 | MT11: 45830.238 | MU11: 30193.824 | MV11: 46824.75 | MW11: 27915.506 | MX11: 37537.203 | MY11: 25056.443 | MZ11: 41780.129 | NA11: 25389.357 | NB11: 42913.367 | NC11: 29630.707 | ND11: 60753.547 | NE11: 41799.352 | NF11: 57820.672 | NG11: 40147.918 | NH11: 45813.457 | NI11: 29874.932 | NJ11: 49157.379 | NK11: 31542.504 | NL11: 45548.102 | NM11: 28825.018 | NN11: 40924.133 | NO11: 28206.049 | NP11: 42182.387 | NQ11: 25947.332 | NR11: 46368.043 | NS11: 30548.139 | NT11: 47383.648 | NU11: 28248.705 | NV11: 38072.191 | NW11: 25413.555 | NX11: 42335.012 | NY11: 25726.555 | NZ11: 43441.117 | OA11: 29995.105 | OB11: 61282.059 | OC11: 42162.977 | OD11: 58347.215 | OE11: 40513.523 | OF11: 47308.027 | OG11: 30849.545 | OH11: 49700.773 | OI11: 31891.18 | OJ11: 46094.434 | OK11: 29170.762 | OL11: 41452.23 | OM11: 28570.025 | ON11: 42734.727 | OO11: 26287.09 | OP11: 46905.836 | OQ11: 30902.449 | OR11: 47942.543 | OS11: 28581.904 | OT11: 38607.184 | OU11: 25770.666 | OV11: 42889.895 | OW11: 26063.754 | OX11: 43968.867 | OY11: 30359.502 | OZ11: 61810.574 | PA11: 42526.598 | PB11: 58873.75 | PC11: 40879.129 | PD11: 46893.359 | PE11: 30579.139 | PF11: 50244.16 | PG11: 32239.852 | PH11: 46640.75 | PI11: 29516.504 | PJ11: 41980.332 | PK11: 28934.008 | PL11: 43287.063 | PM11: 26626.85 | PN11: 47443.637 | PO11: 31256.758 | PP11: 48501.449 | PQ11: 28915.104 | PR11: 39142.172 | PS11: 26127.773 | PT11: 43444.777 | PU11: 26400.951 | PV11: 44496.609 | PW11: 30723.9 | PX11: 62339.09 | PY11: 42890.223 | PZ11: 59400.289 | QA11: 41244.73 | QB11: 47433.316 | QC11: 30931.24 | QD11: 50787.551 | QE11: 32588.52 | QF11: 47187.082 | QG11: 29862.242 | QH11: 42508.434 | QI11: 29297.986 | QJ11: 43839.406 | QK11: 26966.6 | QL11: 47981.434 | QM11: 31611.072 | QN11: 49060.344 | QO11: 29248.299 | QP11: 39677.16 | QQ11: 26484.889 | QR11: 43999.656 | QS11: 26738.145 | QT11: 45024.355 | QU11: 31088.297 | QV11: 62867.602 | QW11: 43253.848 | QX11: 59926.828 | QY11: 41610.332 | QZ11: 47973.27 | RA11: 31283.346 | RB11: 51330.93 | RC11: 32937.195 | RD11: 47733.41 | RE11: 30207.99 | RF11: 43036.523 | RG11: 29661.965 | RH11: 44391.742 | RI11: 27306.357 | RJ11: 48519.238 | RK11: 31965.387 | RL11: 49619.234 | RM11: 29581.502 | RN11: 40212.148 | RO11: 26842 | RQ11: 722902.387 | RR11: 720474.827 | RS11: 740673.996 | RT11: 745723.216 | RU11: 812796.59 | RV11: 825553.89 | RW11: 839492.484 | RX11: 853431.055 | RY11: 850931.563 | RZ11: 860059.59 | SA11: 870764.779 | SB11: 881469.963 | SC11: 893752.251 | SD11: 902880.286 | SE11: 913585.444 | SF11: 924290.623 | SG11: 936572.938 | SH11: 945700.979 | SI11: 956406.144 | SJ11: 967111.3
B12: 10047 | C12: Central Lincoln PUD | D12: 67564.672 | E12: 42982.121 | F12: 68227.125 | G12: 53843.613 | H12: 78400.234 | I12: 53990.848 | J12: 76012.609 | K12: 58311.453 | L12: 70249.016 | M12: 46089.398 | N12: 72723.164 | O12: 46270.559 | P12: 64208.27 | Q12: 41973.508 | R12: 57868.273 | S12: 44872.426 | T12: 59238.773 | U12: 38906.59 | V12: 56734.945 | W12: 44253.605 | X12: 61178.293 | Y12: 39509.242 | Z12: 59213.953 | AA12: 42562.496 | AB12: 65509.203 | AC12: 45823.559 | AD12: 71679.711 | AE12: 51453.688 | AF12: 78463.281 | AG12: 54049.152 | AH12: 76263.43 | AI12: 58480.852 | AJ12: 66952.18 | AK12: 44518.594 | AL12: 72276.047 | AM12: 45993.426 | AN12: 59964.215 | AO12: 43161.66 | AP12: 59016.109 | AQ12: 41771.469 | AR12: 58852.164 | AS12: 38656.883 | AT12: 56042.566 | AU12: 43711.574 | AV12: 61276.109 | AW12: 39549.66 | AX12: 59546.172 | AY12: 42803.781 | AZ12: 65905.75 | BA12: 46101.008 | BB12: 72089 | BC12: 51747.641 | BD12: 75891.547 | BE12: 57347.461 | BF12: 79730.008 | BG12: 55746.238 | BH12: 67357.234 | BI12: 44787.781 | BJ12: 72698.5 | BK12: 46262.035 | BL12: 60344.191 | BM12: 43435.113 | BN12: 59395.559 | BO12: 42039.535 | BP12: 59238.078 | BQ12: 38910.27 | BR12: 56404.816 | BS12: 43994.184 | BT12: 61669.73 | BU12: 39803.52 | BV12: 57526.758 | BW12: 45474.281 | BX12: 68596.391 | BY12: 43683.758 | BZ12: 72265.133 | CA12: 51874.082 | CB12: 76077.094 | CC12: 57487.664 | CD12: 79924.922 | CE12: 55882.523 | CF12: 67521.508 | CG12: 44897.016 | CH12: 70185.445 | CI12: 49065.367 | CJ12: 62913.215 | CK12: 41118.828 | CL12: 59540.141 | CM12: 42141.863 | CN12: 57091.586 | CO12: 41295.602 | CP12: 58809.625 | CQ12: 41833.633 | CR12: 61819.754 | CS12: 39900.352 | CT12: 57666.703 | CU12: 45584.91 | CV12: 67900.281 | CW12: 43534.563 | CX12: 72108.844 | CY12: 52332.602 | CZ12: 75132.484 | DA12: 57653.418 | DB12: 77592.945 | DC12: 55390.742 | DD12: 68596.445 | DE12: 45336.281 | DF12: 68709.359 | DG12: 48479.484 | DH12: 62768.461 | DI12: 41544.996 | DJ12: 56743.348 | DK12: 44539.648 | DL12: 59019.992 | DM12: 39047.582 | DN12: 58569.016 | DO12: 41866.711 | DP12: 59113.59 | DQ12: 41997.148 | DR12: 59695.09 | DS12: 43233.48 | DT12: 68067.242 | DU12: 43641.625 | DV12: 69417.383 | DW12: 55330.395 | DX12: 78284.328 | DY12: 54828.762 | DZ12: 74812.891 | EA12: 58498.27 | EB12: 66049.797 | EC12: 44272.922 | ED12: 71499.984 | EE12: 45976.895 | EF12: 62922.473 | EG12: 41646.934 | EH12: 56882.496 | EI12: 44648.871 | EJ12: 59164.625 | EK12: 39143.273 | EL12: 58712.563 | EM12: 41969.324 | EN12: 59258.453 | EO12: 42100.07 | EP12: 59841.387 | EQ12: 43339.434 | ER12: 64525.313 | ES12: 45569.957 | ET12: 65538.305 | EU12: 47388.289 | EV12: 81221.016 | EW12: 57153.258 | EX12: 73935.281 | EY12: 57516.68 | EZ12: 64989.105 | FA12: 43667.758 | FB12: 72686.648 | FC12: 47009.176 | FD12: 67098.141 | FE12: 44533.004 | FF12: 53650.715 | FG12: 41884.594 | FH12: 56417.73 | FI12: 37281.777 | FJ12: 55050.125 | FK12: 43118.41 | FL12: 60581.262 | FM12: 39203.25 | FN12: 54512.363 | FO12: 39490.27 | FP12: 64629.445 | FQ12: 45643.496 | FR12: 65644.102 | FS12: 47464.777 | FT12: 81352.148 | FU12: 57245.52 | FV12: 74054.617 | FW12: 57609.508 | FX12: 65094.012 | FY12: 43738.246 | FZ12: 72803.977 | GA12: 47085.063 | GB12: 64629.789 | GC12: 47181.609 | GD12: 55871.355 | GE12: 39818.184 | GF12: 56508.773 | GG12: 37341.941 | GH12: 55138.957 | GI12: 43187.988 | GJ12: 60679.016 | GK12: 39266.508 | GL12: 54600.34 | GM12: 39554 | GN12: 65346.301 | GO12: 46127.539 | GP12: 66185.555 | GQ12: 48099.211 | GR12: 78777.031 | GS12: 60727.375 | GT12: 77755.07 | GU12: 55157.695 | GV12: 69574.039 | GW12: 46218.434 | GX12: 71821.664 | GY12: 51208.547 | GZ12: 67100.258 | HA12: 44832.91 | HB12: 57031.367 | HC12: 40734.07 | HD12: 54272.586 | HE12: 39515.922 | HF12: 58016.711 | HG12: 41565.656 | HH12: 61222.109 | HI12: 39726.738 | HJ12: 53948.281 | HK12: 42948.027 | HL12: 67885.453 | HM12: 43728.277 | HN12: 66268.617 | HO12: 48159.586 | HP12: 78875.945 | HQ12: 60803.621 | HR12: 77852.672 | HS12: 55226.949 | HT12: 66891.367 | HU12: 45048.676 | HV12: 71911.828 | HW12: 51272.832 | HX12: 67184.477 | HY12: 44889.18 | HZ12: 57102.941 | IA12: 40785.191 | IB12: 54340.695 | IC12: 39565.504 | ID12: 58089.504 | IE12: 41617.805 | IF12: 59073.773 | IG12: 42001.738 | IH12: 56222.988 | II12: 40794.895 | IJ12: 67953.43 | IK12: 43772.078 | IL12: 63732.93 | IM12: 50809.891 | IN12: 82033.063 | IO12: 57786.457 | IP12: 77930.664 | IQ12: 55282.273 | IR12: 66958.375 | IS12: 45093.809 | IT12: 71983.867 | IU12: 51324.199 | IV12: 67251.773 | IW12: 44934.145 | IX12: 55002.996 | IY12: 42983.176 | IZ12: 56533.477 | JA12: 37466.758 | JB12: 58147.668 | JC12: 41659.48 | JD12: 59132.922 | JE12: 42043.793 | JF12: 56279.285 | JG12: 40835.746 | JH12: 68021.477 | JI12: 43815.91 | JJ12: 63796.762 | JK12: 50860.785 | JL12: 82115.266 | JM12: 57844.359 | JN12: 75073.148 | JO12: 58273.25 | JP12: 67025.453 | JQ12: 45138.977 | JR12: 74776.953 | JS12: 48654.648 | JT12: 67319.133 | JU12: 44979.152 | JV12: 55058.082 | JW12: 43026.227 | JX12: 56590.09 | JY12: 37504.273 | JZ12: 58205.891 | KA12: 41701.195 | KB12: 59192.137 | KC12: 42085.898 | KD12: 56335.641 | KE12: 40876.641 | KF12: 65608.453 | KG12: 46312.594 | KH12: 66451.125 | KI12: 48292.219 | KJ12: 82176.734 | KK12: 57887.664 | KL12: 75129.344 | KM12: 58316.855 | KN12: 69853.25 | KO12: 46403.918 | KP12: 74832.914 | KQ12: 48691.063 | KR12: 64812.965 | KS12: 47569.34 | KT12: 57260.188 | KU12: 40897.496 | KV12: 56632.418 | KW12: 37532.324 | KX12: 56048.359 | KY12: 43933.453 | KZ12: 61467.688 | LA12: 39886.094 | LB12: 56377.773 | LC12: 40907.211 | LD12: 65690.789 | LE12: 46370.711 | LF12: 66534.531 | LG12: 48352.828 | LH12: 79192.563 | LI12: 61047.691 | LJ12: 78165.133 | LK12: 55448.594 | LL12: 67159.813 | LM12: 45229.457 | LN12: 74926.859 | LO12: 48752.188 | LP12: 64894.309 | LQ12: 47629.047 | LR12: 57332.051 | LS12: 40948.824 | LT12: 56703.484 | LU12: 37579.422 | LV12: 56118.68 | LW12: 43988.582 | LX12: 61544.813 | LY12: 39936.141 | LZ12: 54232.648 | MA12: 43174.41 | MB12: 68226.047 | MC12: 43947.672 | MD12: 66601.164 | ME12: 48401.262 | MF12: 79271.914 | MG12: 61108.867 | MH12: 78243.438 | MI12: 55504.141 | MJ12: 67227.094 | MK12: 45274.766 | ML12: 72272.773 | MM12: 51530.18 | MN12: 67521.625 | MO12: 45114.438 | MP12: 57389.469 | MQ12: 40989.836 | MR12: 54613.316 | MS12: 39764 | MT12: 58380.91 | MU12: 41826.586 | MV12: 61606.438 | MW12: 39976.129 | MX12: 54286.945 | MY12: 43217.645 | MZ12: 68294.375 | NA12: 43991.684 | NB12: 66667.883 | NC12: 48449.734 | ND12: 79351.352 | NE12: 61170.105 | NF12: 78321.828 | NG12: 55559.746 | NH12: 67294.438 | NI12: 45320.125 | NJ12: 72345.164 | NK12: 51581.809 | NL12: 67589.242 | NM12: 45159.629 | NN12: 57446.945 | NO12: 41030.887 | NP12: 54668.004 | NQ12: 39803.82 | NR12: 58439.367 | NS12: 41868.465 | NT12: 59429.574 | NU12: 42254.711 | NV12: 56561.621 | NW12: 41040.605 | NX12: 68345.453 | NY12: 44024.59 | NZ12: 64100.672 | OA12: 51103.078 | OB12: 82506.602 | OC12: 58120.027 | OD12: 78380.438 | OE12: 55601.328 | OF12: 67386.719 | OG12: 49336.992 | OH12: 75133.242 | OI12: 48886.477 | OJ12: 67639.82 | OK12: 45193.414 | OL12: 55320.34 | OM12: 43231.168 | ON12: 56859.602 | OO12: 37682.891 | OP12: 58483.082 | OQ12: 41899.781 | OR12: 59474.023 | OS12: 42286.313 | OT12: 56603.922 | OU12: 41071.301 | OV12: 65954.328 | OW12: 46556.738 | OX12: 66801.5 | OY12: 48546.848 | OZ12: 82610.195 | PA12: 58193.008 | PB12: 75525.555 | PC12: 58624.41 | PD12: 67429.328 | PE12: 45410.973 | PF12: 75227.563 | PG12: 48947.852 | PH12: 67724.719 | PI12: 45250.137 | PJ12: 55389.766 | PK12: 43285.422 | PL12: 56930.949 | PM12: 37730.172 | PN12: 56343.789 | PO12: 44165.023 | PP12: 61791.68 | PQ12: 40096.328 | PR12: 56674.941 | PS12: 41122.836 | PT12: 66020.367 | PU12: 46603.363 | PV12: 66868.406 | PW12: 48595.477 | PX12: 82692.969 | PY12: 58251.313 | PZ12: 75601.227 | QA12: 58683.141 | QB12: 67496.875 | QC12: 45456.461 | QD12: 75302.938 | QE12: 48996.883 | QF12: 65219.953 | QG12: 47868.051 | QH12: 57619.719 | QI12: 41154.297 | QJ12: 56987.957 | QK12: 37767.957 | QL12: 56400.203 | QM12: 44209.25 | QN12: 61853.547 | QO12: 40136.48 | QP12: 56731.691 | QQ12: 41164.012 | QR12: 66086.484 | QS12: 46650.035 | QT12: 66935.391 | QU12: 48644.145 | QV12: 79669.867 | QW12: 61415.645 | QX12: 78636.164 | QY12: 55782.73 | QZ12: 67564.492 | RA12: 45502 | RB12: 75378.367 | RC12: 49045.969 | RD12: 65285.277 | RE12: 47915.996 | RF12: 57677.426 | RG12: 41195.512 | RH12: 57045.02 | RI12: 37805.773 | RJ12: 56456.676 | RK12: 44253.512 | RL12: 61915.484 | RM12: 40176.672 | RN12: 54559.281 | RO12: 43434.445 | RQ12: 1345185.186 | RR12: 1335815.485 | RS12: 1343900.238 | RT12: 1347177.115 | RU12: 1340906.51 | RV12: 1340310.397 | RW12: 1314022.427 | RX12: 1316143.371 | RY12: 1337913.096 | RZ12: 1335594.514 | SA12: 1336932.255 | SB12: 1338271.348 | SC12: 1343281.442 | SD12: 1340953.568 | SE12: 1342296.655 | SF12: 1343641.113 | SG12: 1348671.275 | SH12: 1346334.06 | SI12: 1347682.537 | SJ12: 1349032.363
B13: 10055 | C13: Albion, City of | D13: 147.375 | E13: 94.445 | F13: 172.27 | G13: 144.254 | H13: 254.517 | I13: 188.465 | J13: 234.413 | K13: 197.44 | L13: 215.435 | M13: 153.795 | N13: 179.367 | O13: 123.916 | P13: 153.147 | Q13: 104.671 | R13: 127.728 | S13: 97.231 | T13: 130.618 | U13: 74.566 | V13: 143.087 | W13: 91.797 | X13: 142.385 | Y13: 74.614 | Z13: 122.074 | AA13: 77.466 | AB13: 140.766 | AC13: 98.826 | AD13: 179.94 | AE13: 137.538 | AF13: 254.113 | AG13: 189.091 | AH13: 234.262 | AI13: 197.57 | AJ13: 203.351 | AK13: 148.441 | AL13: 178.599 | AM13: 123.6 | AN13: 146.267 | AO13: 110.23 | AP13: 131.769 | AQ13: 91.439 | AR13: 129.745 | AS13: 73.818 | AT13: 140.873 | AU13: 90.661 | AV13: 142.533 | AW13: 74.883 | AX13: 122.859 | AY13: 78.26 | AZ13: 132.197 | BA13: 92.436 | BB13: 172.571 | BC13: 132.082 | BD13: 237.562 | BE13: 194.268 | BF13: 237.007 | BG13: 183.161 | BH13: 195.852 | BI13: 143.187 | BJ13: 170.621 | BK13: 117.917 | BL13: 138.23 | BM13: 104.257 | BN13: 123.073 | BO13: 85.575 | BP13: 121.277 | BQ13: 68.668 | BR13: 132.822 | BS13: 85.765 | BT13: 132.7 | BU13: 69.944 | BV13: 110.105 | BW13: 77.366 | BX13: 137.781 | BY13: 87.693 | BZ13: 173.047 | CA13: 132.447 | CB13: 238.025 | CC13: 194.647 | CD13: 237.482 | CE13: 183.527 | CF13: 196.337 | CG13: 143.542 | CH13: 164.579 | CI13: 124.8 | CJ13: 144.384 | CK13: 98.944 | CL13: 123.569 | CM13: 85.92 | CN13: 117.364 | CO13: 73.421 | CP13: 138.285 | CQ13: 81.143 | CR13: 133.251 | CS13: 70.234 | CT13: 110.598 | CU13: 77.713 | CV13: 142.06 | CW13: 90.913 | CX13: 179.221 | CY13: 137.338 | CZ13: 243.266 | DA13: 200.893 | DB13: 247.634 | DC13: 193.284 | DD13: 213.749 | DE13: 154.54 | DF13: 171.807 | DG13: 131.539 | DH13: 150.638 | DI13: 103.572 | DJ13: 121.062 | DK13: 93.282 | DL13: 125.508 | DM13: 71.429 | DN13: 141.099 | DO13: 82.776 | DP13: 130.282 | DQ13: 76.229 | DR13: 115.664 | DS13: 74.176 | DT13: 142.06 | DU13: 90.913 | DV13: 171.828 | DW13: 144.731 | DX13: 253.318 | DY13: 190.841 | DZ13: 237.656 | EA13: 203.262 | EB13: 205.15 | EC13: 150.44 | ED13: 178.681 | EE13: 124.665 | EF13: 150.638 | EG13: 103.572 | EH13: 121.062 | EI13: 93.282 | EJ13: 125.508 | EK13: 71.429 | EL13: 141.099 | EM13: 82.776 | EN13: 130.282 | EO13: 76.229 | EP13: 115.664 | EQ13: 74.176 | ER13: 150.502 | ES13: 106.838 | ET13: 164.839 | EU13: 127.281 | EV13: 258.32 | EW13: 195.017 | EX13: 236.124 | EY13: 201.777 | EZ13: 195.049 | FA13: 143.282 | FB13: 183.611 | FC13: 128.798 | FD13: 150.476 | FE13: 103.59 | FF13: 118.421 | FG13: 90.916 | FH13: 123.561 | FI13: 70.846 | FJ13: 134.754 | FK13: 87.22 | FL13: 134.981 | FM13: 71.929 | FN13: 113.804 | FO13: 73.567 | FP13: 150.502 | FQ13: 106.838 | FR13: 164.839 | FS13: 127.281 | FT13: 258.32 | FU13: 195.017 | FV13: 236.124 | FW13: 201.777 | FX13: 195.049 | FY13: 143.282 | FZ13: 183.611 | GA13: 128.798 | GB13: 144.623 | GC13: 109.443 | GD13: 123.088 | GE13: 86.249 | GF13: 123.561 | GG13: 70.846 | GH13: 134.754 | GI13: 87.22 | GJ13: 134.981 | GK13: 71.929 | GL13: 113.804 | GM13: 73.567 | GN13: 152.294 | GO13: 108.109 | GP13: 167.835 | GQ13: 129.594 | GR13: 250.248 | GS13: 206.806 | GT13: 248.468 | GU13: 194.031 | GV13: 206.45 | GW13: 149.555 | GX13: 178.899 | GY13: 137.512 | GZ13: 153.177 | HA13: 105.449 | HB13: 125.215 | HC13: 87.739 | HD13: 122.481 | HE13: 77.474 | HF13: 143.281 | HG13: 84.379 | HH13: 137.838 | HI13: 73.452 | HJ13: 111.376 | HK13: 79.226 | HL13: 158.099 | HM13: 102.304 | HN13: 167.835 | HO13: 129.594 | HP13: 250.248 | HQ13: 206.806 | HR13: 248.468 | HS13: 194.031 | HT13: 198.224 | HU13: 145.614 | HV13: 178.899 | HW13: 137.512 | HX13: 153.177 | HY13: 105.449 | HZ13: 125.215 | IA13: 87.739 | IB13: 122.481 | IC13: 77.474 | ID13: 143.281 | IE13: 84.379 | IF13: 133.127 | IG13: 78.162 | IH13: 115.767 | II13: 74.835 | IJ13: 158.099 | IK13: 102.304 | IL13: 160.992 | IM13: 136.436 | IN13: 260.438 | IO13: 196.616 | IP13: 248.468 | IQ13: 194.031 | IR13: 198.224 | IS13: 145.614 | IT13: 178.899 | IU13: 137.512 | IV13: 153.177 | IW13: 105.449 | IX13: 120.468 | IY13: 92.487 | IZ13: 127.087 | JA13: 72.868 | JB13: 143.281 | JC13: 84.379 | JD13: 133.127 | JE13: 78.162 | JF13: 115.767 | JG13: 74.835 | JH13: 158.099 | JI13: 102.304 | JJ13: 160.992 | JK13: 136.436 | JL13: 260.438 | JM13: 196.616 | JN13: 238.603 | JO13: 203.896 | JP13: 198.224 | JQ13: 145.614 | JR13: 185.963 | JS13: 130.448 | JT13: 153.177 | JU13: 105.449 | JV13: 120.468 | JW13: 92.487 | JX13: 127.087 | JY13: 72.868 | JZ13: 143.281 | KA13: 84.379 | KB13: 133.127 | KC13: 78.162 | KD13: 115.767 | KE13: 74.835 | KF13: 152.294 | KG13: 108.109 | KH13: 167.835 | KI13: 129.594 | KJ13: 260.438 | KK13: 196.616 | KL13: 238.603 | KM13: 203.896 | KN13: 206.45 | KO13: 149.555 | KP13: 185.963 | KQ13: 130.448 | KR13: 147.219 | KS13: 111.407 | KT13: 125.215 | KU13: 87.739 | KV13: 127.087 | KW13: 72.868 | KX13: 138.205 | KY13: 89.454 | KZ13: 137.838 | LA13: 73.452 | LB13: 115.767 | LC13: 74.835 | LD13: 152.294 | LE13: 108.109 | LF13: 167.835 | LG13: 129.594 | LH13: 250.248 | LI13: 206.806 | LJ13: 248.468 | LK13: 194.031 | LL13: 198.224 | LM13: 145.614 | LN13: 185.963 | LO13: 130.448 | LP13: 147.219 | LQ13: 111.407 | LR13: 125.215 | LS13: 87.739 | LT13: 127.087 | LU13: 72.868 | LV13: 138.205 | LW13: 89.454 | LX13: 137.838 | LY13: 73.452 | LZ13: 111.376 | MA13: 79.226 | MB13: 158.099 | MC13: 102.304 | MD13: 167.835 | ME13: 129.594 | MF13: 250.248 | MG13: 206.806 | MH13: 248.468 | MI13: 194.031 | MJ13: 198.224 | MK13: 145.614 | ML13: 178.899 | MM13: 137.512 | MN13: 153.177 | MO13: 105.449 | MP13: 125.215 | MQ13: 87.739 | MR13: 122.481 | MS13: 77.474 | MT13: 143.281 | MU13: 84.379 | MV13: 137.838 | MW13: 73.452 | MX13: 111.376 | MY13: 79.226 | MZ13: 158.099 | NA13: 102.304 | NB13: 167.835 | NC13: 129.594 | ND13: 250.248 | NE13: 206.806 | NF13: 248.468 | NG13: 194.031 | NH13: 198.224 | NI13: 145.614 | NJ13: 178.899 | NK13: 137.512 | NL13: 153.177 | NM13: 105.449 | NN13: 125.215 | NO13: 87.739 | NP13: 122.481 | NQ13: 77.474 | NR13: 143.281 | NS13: 84.379 | NT13: 133.127 | NU13: 78.162 | NV13: 115.767 | NW13: 74.835 | NX13: 158.099 | NY13: 102.304 | NZ13: 160.992 | OA13: 136.436 | OB13: 260.438 | OC13: 196.616 | OD13: 248.468 | OE13: 194.031 | OF13: 197.966 | OG13: 158.039 | OH13: 185.963 | OI13: 130.448 | OJ13: 153.177 | OK13: 105.449 | OL13: 120.468 | OM13: 92.487 | ON13: 127.087 | OO13: 72.868 | OP13: 143.281 | OQ13: 84.379 | OR13: 133.127 | OS13: 78.162 | OT13: 115.767 | OU13: 74.835 | OV13: 152.294 | OW13: 108.109 | OX13: 167.835 | OY13: 129.594 | OZ13: 260.438 | PA13: 196.616 | PB13: 238.603 | PC13: 203.896 | PD13: 198.224 | PE13: 145.614 | PF13: 185.963 | PG13: 130.448 | PH13: 153.177 | PI13: 105.449 | PJ13: 120.468 | PK13: 92.487 | PL13: 127.087 | PM13: 72.868 | PN13: 138.205 | PO13: 89.454 | PP13: 137.838 | PQ13: 73.452 | PR13: 115.767 | PS13: 74.835 | PT13: 152.294 | PU13: 108.109 | PV13: 167.835 | PW13: 129.594 | PX13: 260.438 | PY13: 196.616 | PZ13: 238.603 | QA13: 203.896 | QB13: 198.224 | QC13: 145.614 | QD13: 185.963 | QE13: 130.448 | QF13: 147.219 | QG13: 111.407 | QH13: 125.215 | QI13: 87.739 | QJ13: 127.087 | QK13: 72.868 | QL13: 138.205 | QM13: 89.454 | QN13: 137.838 | QO13: 73.452 | QP13: 115.767 | QQ13: 74.835 | QR13: 152.294 | QS13: 108.109 | QT13: 167.835 | QU13: 129.594 | QV13: 250.248 | QW13: 206.806 | QX13: 248.468 | QY13: 194.031 | QZ13: 198.224 | RA13: 145.614 | RB13: 185.963 | RC13: 130.448 | RD13: 147.219 | RE13: 111.407 | RF13: 125.215 | RG13: 87.739 | RH13: 127.087 | RI13: 72.868 | RJ13: 138.205 | RK13: 89.454 | RL13: 137.838 | RM13: 73.452 | RN13: 111.376 | RO13: 79.226 | RQ13: 3445.076 | RR13: 3419.434 | RS13: 3258.643 | RT13: 3268.733 | RU13: 3391.961 | RV13: 3379.262 | RW13: 3365.503 | RX13: 3365.503 | RY13: 3430.888 | RZ13: 3418.72 | SA13: 3418.72 | SB13: 3418.72 | SC13: 3430.887 | SD13: 3418.72 | SE13: 3418.721 | SF13: 3418.72 | SG13: 3430.887 | SH13: 3418.721 | SI13: 3418.72 | SJ13: 3418.72
B14: 10057 | C14: Ashland, City of | D14: 9275.919 | E14: 4835.144 | F14: 10026.972 | G14: 6746.062 | H14: 11502.778 | I14: 6930.567 | J14: 11288.175 | K14: 7518.079 | L14: 10300.496 | M14: 5821.833 | N14: 9863.293 | O14: 5376.762 | P14: 9263.47 | Q14: 5011.36 | R14: 8221.579 | S14: 5201.742 | T14: 8454.343 | U14: 4400.6 | V14: 9920.263 | W14: 5925.064 | X14: 10199.979 | Y14: 5050.73 | Z14: 7891.823 | AA14: 4459.587 | AB14: 8987.99 | AC14: 5192.559 | AD14: 10457.183 | AE14: 6352.214 | AF14: 11528.401 | AG14: 6942.749 | AH14: 11305.262 | AI14: 7535.154 | AJ14: 9927.731 | AK14: 5698.396 | AL14: 9884.841 | AM14: 5389.758 | AN14: 8933.663 | AO14: 5376.108 | AP14: 8552.345 | AQ14: 4920.277 | AR14: 8484.262 | AS14: 4413.106 | AT14: 9921.165 | AU14: 5930.956 | AV14: 10209.14 | AW14: 5049.664 | AX14: 7937.084 | AY14: 4486.918 | AZ14: 8616.324 | BA14: 4977.749 | BB14: 10111.185 | BC14: 6142.031 | BD14: 10712.182 | BE14: 7130.701 | BF14: 11379.161 | BG14: 6861.796 | BH14: 9667.987 | BI14: 5548.163 | BJ14: 9579.046 | BK14: 5222.771 | BL14: 8573.955 | BM14: 5159.592 | BN14: 8137.574 | BO14: 4680.977 | BP14: 8004.426 | BQ14: 4162.341 | BR14: 9565.919 | BS14: 5717.732 | BT14: 9811.252 | BU14: 4853.319 | BV14: 7265.506 | BW14: 4562.389 | BX14: 8939.39 | BY14: 4654.684 | BZ14: 10111.185 | CA14: 6142.031 | CB14: 10712.182 | CC14: 7130.701 | CD14: 11379.161 | CE14: 6861.796 | CF14: 9667.987 | CG14: 5548.163 | CH14: 9226.805 | CI14: 5575.012 | CJ14: 8911.215 | CK14: 4822.332 | CL14: 8137.574 | CM14: 4680.977 | CN14: 7705.642 | CO14: 4461.125 | CP14: 9929.138 | CQ14: 5354.514 | CR14: 9811.252 | CS14: 4853.319 | CT14: 7265.506 | CU14: 4562.389 | CV14: 8757.063 | CW14: 4559.748 | CX14: 10098.551 | CY14: 6134.359 | CZ14: 10750.429 | DA14: 7156.161 | DB14: 11374.332 | DC14: 6858.877 | DD14: 9924.726 | DE14: 5606.778 | DF14: 9234.012 | DG14: 5579.363 | DH14: 8846.936 | DI14: 4787.541 | DJ14: 7733.906 | DK14: 4922.57 | DL14: 8024.084 | DM14: 4172.559 | DN14: 9923.991 | DO14: 5351.732 | DP14: 9751.764 | DQ14: 5360.688 | DR14: 7639.472 | DS14: 4319.129 | DT14: 8757.063 | DU14: 4559.748 | DV14: 9700.468 | DW14: 6532.442 | DX14: 11175.981 | DY14: 6730.608 | DZ14: 10941.018 | EA14: 7292.191 | EB14: 9534.645 | EC14: 5471.636 | ED14: 9586.526 | EE14: 5226.849 | EF14: 8846.936 | EG14: 4787.541 | EH14: 7733.906 | EI14: 4922.57 | EJ14: 8024.084 | EK14: 4172.559 | EL14: 9923.991 | EM14: 5351.732 | EN14: 9751.764 | EO14: 5360.688 | EP14: 7639.472 | EQ14: 4319.129 | ER14: 8440.66 | ES14: 4876.266 | ET14: 10098.481 | EU14: 6134.316 | EV14: 11175.98 | EW14: 6730.607 | EX14: 10940.983 | EY14: 7292.169 | EZ14: 9534.637 | FA14: 5471.63 | FB14: 9586.534 | FC14: 5226.854 | FD14: 8847.056 | FE14: 4787.606 | FF14: 7734.449 | FG14: 4922.917 | FH14: 8028.38 | FI14: 4174.793 | FJ14: 9562.445 | FK14: 5715.648 | FL14: 10112.3 | FM14: 5002.225 | FN14: 7650.12 | FO14: 4325.148 | FP14: 8440.66 | FQ14: 4876.266 | FR14: 10098.481 | FS14: 6134.316 | FT14: 11175.98 | FU14: 6730.607 | FV14: 10940.983 | FW14: 7292.169 | FX14: 9534.637 | FY14: 5471.63 | FZ14: 9586.534 | GA14: 5226.854 | GB14: 8512.226 | GC14: 5122.437 | GD14: 8035.252 | GE14: 4622.113 | GF14: 8028.38 | GG14: 4174.793 | GH14: 9562.445 | GI14: 5715.648 | GJ14: 10112.3 | GK14: 5002.225 | GL14: 7650.12 | GM14: 4325.148 | GN14: 8271.977 | GO14: 4778.813 | GP14: 9248.331 | GQ14: 5617.894 | GR14: 11240.218 | GS14: 7482.194 | GT14: 11215.081 | GU14: 6762.845 | GV14: 9793.14 | GW14: 5532.442 | GX14: 9476.292 | GY14: 5725.754 | GZ14: 8518.747 | HA14: 4609.942 | HB14: 7865.33 | HC14: 4524.368 | HD14: 8034.873 | HE14: 4651.723 | HF14: 10127.19 | HG14: 5461.312 | HH14: 10294.019 | HI14: 5092.114 | HJ14: 7795.926 | HK14: 4895.455 | HL14: 8582.129 | HM14: 4468.661 | HN14: 9248.331 | HO14: 5617.894 | HP14: 11240.218 | HQ14: 7482.194 | HR14: 11215.081 | HS14: 6762.845 | HT14: 9408.318 | HU14: 5399.142 | HV14: 9476.292 | HW14: 5725.754 | HX14: 8518.747 | HY14: 4609.942 | HZ14: 7865.33 | IA14: 4524.368 | IB14: 8034.873 | IC14: 4651.723 | ID14: 10127.19 | IE14: 5461.312 | IF14: 9928.365 | IG14: 5457.768 | IH14: 8107.592 | II14: 4583.789 | IJ14: 8582.129 | IK14: 4468.661 | IL14: 8883.764 | IM14: 5982.461 | IN14: 11685.157 | IO14: 7037.255 | IP14: 11215.081 | IQ14: 6762.845 | IR14: 9408.318 | IS14: 5399.142 | IT14: 9476.292 | IU14: 5725.754 | IV14: 8518.747 | IW14: 4609.942 | IX14: 7570.887 | IY14: 4818.812 | IZ14: 8346.421 | JA14: 4340.175 | JB14: 10127.19 | JC14: 5461.312 | JD14: 9928.365 | JE14: 5457.768 | JF14: 8107.592 | JG14: 4583.789 | JH14: 8582.129 | JI14: 4468.661 | JJ14: 8883.764 | JK14: 5982.461 | JL14: 11685.157 | JM14: 7037.255 | JN14: 10787.832 | JO14: 7190.094 | JP14: 9408.318 | JQ14: 5399.142 | JR14: 9838.056 | JS14: 5363.99 | JT14: 8518.747 | JU14: 4609.942 | JV14: 7570.887 | JW14: 4818.812 | JX14: 8346.421 | JY14: 4340.175 | JZ14: 10127.19 | KA14: 5461.312 | KB14: 9928.365 | KC14: 5457.768 | KD14: 8107.592 | KE14: 4583.789 | KF14: 8271.977 | KG14: 4778.813 | KH14: 9248.331 | KI14: 5617.894 | KJ14: 11685.157 | KK14: 7037.255 | KL14: 10787.832 | KM14: 7190.094 | KN14: 9793.14 | KO14: 5532.442 | KP14: 9838.056 | KQ14: 5363.99 | KR14: 8196.343 | KS14: 4932.347 | KT14: 7865.33 | KU14: 4524.368 | KV14: 8346.421 | KW14: 4340.175 | KX14: 9756.728 | KY14: 5831.774 | KZ14: 10294.019 | LA14: 5092.114 | LB14: 8107.592 | LC14: 4583.789 | LD14: 8271.977 | LE14: 4778.813 | LF14: 9248.331 | LG14: 5617.894 | LH14: 11240.218 | LI14: 7482.194 | LJ14: 11215.081 | LK14: 6762.845 | LL14: 9408.318 | LM14: 5399.142 | LN14: 9838.056 | LO14: 5363.99 | LP14: 8196.343 | LQ14: 4932.347 | LR14: 7865.33 | LS14: 4524.368 | LT14: 8346.421 | LU14: 4340.175 | LV14: 9756.728 | LW14: 5831.774 | LX14: 10294.019 | LY14: 5092.114 | LZ14: 7795.926 | MA14: 4895.455 | MB14: 8582.129 | MC14: 4468.661 | MD14: 9248.331 | ME14: 5617.894 | MF14: 11240.218 | MG14: 7482.194 | MH14: 11215.081 | MI14: 6762.845 | MJ14: 9408.318 | MK14: 5399.142 | ML14: 9476.292 | MM14: 5725.754 | MN14: 8518.747 | MO14: 4609.942 | MP14: 7865.33 | MQ14: 4524.368 | MR14: 8034.873 | MS14: 4651.723 | MT14: 10127.19 | MU14: 5461.312 | MV14: 10294.019 | MW14: 5092.114 | MX14: 7795.926 | MY14: 4895.455 | MZ14: 8582.129 | NA14: 4468.661 | NB14: 9248.331 | NC14: 5617.894 | ND14: 11240.218 | NE14: 7482.194 | NF14: 11215.081 | NG14: 6762.845 | NH14: 9408.318 | NI14: 5399.142 | NJ14: 9476.292 | NK14: 5725.754 | NL14: 8518.747 | NM14: 4609.942 | NN14: 7865.33 | NO14: 4524.368 | NP14: 8034.873 | NQ14: 4651.723 | NR14: 10127.19 | NS14: 5461.312 | NT14: 9928.365 | NU14: 5457.768 | NV14: 8107.592 | NW14: 4583.789 | NX14: 8582.129 | NY14: 4468.661 | NZ14: 8883.764 | OA14: 5982.461 | OB14: 11685.157 | OC14: 7037.255 | OD14: 11215.081 | OE14: 6762.845 | OF14: 9403.808 | OG14: 5921.774 | OH14: 9838.056 | OI14: 5363.99 | OJ14: 8518.747 | OK14: 4609.942 | OL14: 7570.887 | OM14: 4818.812 | ON14: 8346.421 | OO14: 4340.175 | OP14: 10127.19 | OQ14: 5461.312 | OR14: 9928.365 | OS14: 5457.768 | OT14: 8107.592 | OU14: 4583.789 | OV14: 8271.977 | OW14: 4778.813 | OX14: 9248.331 | OY14: 5617.894 | OZ14: 11685.157 | PA14: 7037.255 | PB14: 10787.832 | PC14: 7190.094 | PD14: 9408.318 | PE14: 5399.142 | PF14: 9838.056 | PG14: 5363.99 | PH14: 8518.747 | PI14: 4609.942 | PJ14: 7570.887 | PK14: 4818.812 | PL14: 8346.421 | PM14: 4340.175 | PN14: 9756.728 | PO14: 5831.774 | PP14: 10294.019 | PQ14: 5092.114 | PR14: 8107.592 | PS14: 4583.789 | PT14: 8271.977 | PU14: 4778.813 | PV14: 9248.331 | PW14: 5617.894 | PX14: 11685.157 | PY14: 7037.255 | PZ14: 10787.832 | QA14: 7190.094 | QB14: 9408.318 | QC14: 5399.142 | QD14: 9838.056 | QE14: 5363.99 | QF14: 8196.343 | QG14: 4932.347 | QH14: 7865.33 | QI14: 4524.368 | QJ14: 8346.421 | QK14: 4340.175 | QL14: 9756.728 | QM14: 5831.774 | QN14: 10294.019 | QO14: 5092.114 | QP14: 8107.592 | QQ14: 4583.789 | QR14: 8271.977 | QS14: 4778.813 | QT14: 9248.331 | QU14: 5617.894 | QV14: 11240.218 | QW14: 7482.194 | QX14: 11215.081 | QY14: 6762.845 | QZ14: 9408.318 | RA14: 5399.142 | RB14: 9838.056 | RC14: 5363.99 | RD14: 8196.343 | RE14: 4932.347 | RF14: 7865.33 | RG14: 4524.368 | RH14: 8346.421 | RI14: 4340.175 | RJ14: 9756.728 | RK14: 5831.774 | RL14: 10294.019 | RM14: 5092.114 | RN14: 7795.926 | RO14: 4895.455 | RQ14: 183486.62 | RR14: 183416.926 | RS14: 176444.078 | RT14: 176444.08 | RU14: 176868.771 | RV14: 176343.547 | RW14: 176372.204 | RX14: 176372.204 | RY14: 177015.98 | RZ14: 176497.858 | SA14: 176497.859 | SB14: 176497.859 | SC14: 177015.981 | SD14: 176497.859 | SE14: 176497.858 | SF14: 176497.858 | SG14: 177015.981 | SH14: 176497.859 | SI14: 176497.859 | SJ14: 176497.859
B15: 10059 | C15: Bandon, City of | D15: 3291.089 | E15: 1769.144 | F15: 3699.018 | G15: 2550.542 | H15: 4153.158 | I15: 2611.47 | J15: 4236.726 | K15: 2977.043 | L15: 3854.986 | M15: 2249.686 | N15: 3733.568 | O15: 2149.633 | P15: 3468.747 | Q15: 2047.263 | R15: 2762.619 | S15: 1883.515 | T15: 2829.275 | U15: 1578.71 | V15: 2663.381 | W15: 1752.987 | X15: 2924.745 | Y15: 1563.969 | Z15: 2839.539 | AA15: 1698.706 | AB15: 3185.497 | AC15: 1887.311 | AD15: 3853.201 | AE15: 2411.886 | AF15: 4163.47 | AG15: 2617.954 | AH15: 4247.244 | AI15: 2984.434 | AJ15: 3711.058 | AK15: 2197.739 | AL15: 3742.833 | AM15: 2154.967 | AN15: 3349.202 | AO15: 2180.493 | AP15: 2873.931 | AQ15: 1783.728 | AR15: 2836.292 | AS15: 1582.625 | AT15: 2669.985 | AU15: 1757.334 | AV15: 2931.996 | AW15: 1567.846 | AX15: 2846.58 | AY15: 1702.918 | AZ15: 3152.335 | BA15: 1868.601 | BB15: 3836.129 | BC15: 2400.591 | BD15: 3991.674 | BE15: 2747.801 | BF15: 4398.943 | BG15: 2822.024 | BH15: 3712.697 | BI15: 2204.018 | BJ15: 3823.497 | BK15: 2199.82 | BL15: 3294.9 | BM15: 2153.792 | BN15: 2875.888 | BO15: 1784.271 | BP15: 2830.277 | BQ15: 1578.848 | BR15: 2637.94 | BS15: 1741.427 | BT15: 2889.683 | BU15: 1547.548 | BV15: 2732.367 | BW15: 1803.483 | BX15: 3274.146 | BY15: 1759.342 | BZ15: 3845.719 | CA15: 2406.593 | CB15: 4001.653 | CC15: 2754.671 | CD15: 4409.94 | CE15: 2829.08 | CF15: 3721.979 | CG15: 2209.528 | CH15: 3696.196 | CI15: 2342.18 | CJ15: 3430.896 | CK15: 2031.418 | CL15: 2883.077 | CM15: 1788.732 | CN15: 2733.969 | CO15: 1686.179 | CP15: 2743.907 | CQ15: 1646.406 | CR15: 2896.907 | CS15: 1551.417 | CT15: 2739.198 | CU15: 1807.991 | CV15: 3333.658 | CW15: 1797.231 | CX15: 3902.055 | CY15: 2510.581 | CZ15: 4066.327 | DA15: 2865.106 | DB15: 4494.553 | DC15: 2909.882 | DD15: 3935.166 | DE15: 2342.848 | DF15: 3713.923 | DG15: 2400.046 | DH15: 3527.276 | DI15: 2105.387 | DJ15: 2777.008 | DK15: 1929.075 | DL15: 2880.15 | DM15: 1630.281 | DN15: 2797.952 | DO15: 1699.7 | DP15: 2823.946 | DQ15: 1703.475 | DR15: 2871.328 | DS15: 1739.221 | DT15: 3341.96 | DU15: 1801.707 | DV15: 3749.353 | DW15: 2679.249 | DX15: 4246.584 | DY15: 2702.11 | DZ15: 4323.999 | EA15: 3098.864 | EB15: 3867.758 | EC15: 2339.743 | ED15: 3873.429 | EE15: 2255.75 | EF15: 3536.049 | EG15: 2110.624 | EH15: 2783.913 | EI15: 1933.872 | EJ15: 2887.31 | EK15: 1634.335 | EL15: 2804.906 | EM15: 1703.925 | EN15: 2830.964 | EO15: 1707.708 | EP15: 2878.462 | EQ15: 1743.542 | ER15: 3253.465 | ES15: 1950.085 | ET15: 3543.9 | EU15: 2280.144 | EV15: 4390.303 | EW15: 2793.559 | EX15: 4357.65 | EY15: 3122.98 | EZ15: 4068.082 | FA15: 2460.926 | FB15: 3942.326 | FC15: 2295.873 | FD15: 3578.705 | FE15: 2136.085 | FF15: 2846.426 | FG15: 1977.297 | FH15: 2823.997 | FI15: 1598.497 | FJ15: 2641.081 | FK15: 1778.34 | FL15: 2851.256 | FM15: 1547.292 | FN15: 2693.605 | FO15: 1631.57 | FP15: 3253.465 | FQ15: 1950.085 | FR15: 3543.9 | FS15: 2280.144 | FT15: 4390.303 | FU15: 2793.559 | FV15: 4357.65 | FW15: 3122.98 | FX15: 4068.082 | FY15: 2460.926 | FZ15: 3942.326 | GA15: 2295.873 | GB15: 3434.121 | GC15: 2280.669 | GD15: 2964.529 | GE15: 1859.194 | GF15: 2823.997 | GG15: 1598.497 | GH15: 2641.081 | GI15: 1778.34 | GJ15: 2851.256 | GK15: 1547.292 | GL15: 2693.605 | GM15: 1631.57 | GN15: 3253.465 | GO15: 1950.085 | GP15: 3543.9 | GQ15: 2280.144 | GR15: 4214.415 | GS15: 2969.447 | GT15: 4540.804 | GU15: 2939.826 | GV15: 4238.654 | GW15: 2523.533 | GX15: 3789.386 | GY15: 2448.812 | GZ15: 3578.705 | HA15: 2136.085 | HB15: 2964.529 | HC15: 1859.194 | HD15: 2712.108 | HE15: 1710.385 | HF15: 2749.285 | HG15: 1670.136 | HH15: 2851.256 | HI15: 1547.292 | HJ15: 2584.178 | HK15: 1740.997 | HL15: 3380.868 | HM15: 1822.683 | HN15: 3543.9 | HO15: 2280.144 | HP15: 4214.415 | HQ15: 2969.447 | HR15: 4540.804 | HS15: 2939.826 | HT15: 4068.082 | HU15: 2460.926 | HV15: 3789.386 | HW15: 2448.812 | HX15: 3578.705 | HY15: 2136.085 | HZ15: 2964.529 | IA15: 1859.194 | IB15: 2712.108 | IC15: 1710.385 | ID15: 2749.285 | IE15: 1670.136 | IF15: 2743.563 | IG15: 1654.986 | IH15: 2693.605 | II15: 1631.57 | IJ15: 3380.868 | IK15: 1822.683 | IL15: 3396.756 | IM15: 2427.287 | IN15: 4390.303 | IO15: 2793.559 | IP15: 4540.804 | IQ15: 2939.826 | IR15: 4068.082 | IS15: 2460.926 | IT15: 3789.386 | IU15: 2448.812 | IV15: 3578.705 | IW15: 2136.085 | IX15: 2846.426 | IY15: 1977.297 | IZ15: 2823.997 | JA15: 1598.497 | JB15: 2749.285 | JC15: 1670.136 | JD15: 2743.563 | JE15: 1654.986 | JF15: 2693.605 | JG15: 1631.57 | JH15: 3380.868 | JI15: 1822.683 | JJ15: 3396.756 | JK15: 2427.287 | JL15: 4390.303 | JM15: 2793.559 | JN15: 4357.65 | JO15: 3122.98 | JP15: 4068.082 | JQ15: 2460.926 | JR15: 3942.326 | JS15: 2295.873 | JT15: 3578.705 | JU15: 2136.085 | JV15: 2846.426 | JW15: 1977.297 | JX15: 2823.997 | JY15: 1598.497 | JZ15: 2749.285 | KA15: 1670.136 | KB15: 2743.563 | KC15: 1654.986 | KD15: 2693.605 | KE15: 1631.57 | KF15: 3253.465 | KG15: 1950.085 | KH15: 3543.9 | KI15: 2280.144 | KJ15: 4390.303 | KK15: 2793.559 | KL15: 4357.65 | KM15: 3122.98 | KN15: 4238.654 | KO15: 2523.533 | KP15: 3942.326 | KQ15: 2295.873 | KR15: 3434.121 | KS15: 2280.669 | KT15: 2964.529 | KU15: 1859.194 | KV15: 2823.997 | KW15: 1598.497 | KX15: 2641.081 | KY15: 1778.34 | KZ15: 2851.256 | LA15: 1547.292 | LB15: 2693.605 | LC15: 1631.57 | LD15: 3253.465 | LE15: 1950.085 | LF15: 3543.9 | LG15: 2280.144 | LH15: 4214.415 | LI15: 2969.447 | LJ15: 4540.804 | LK15: 2939.826 | LL15: 4068.082 | LM15: 2460.926 | LN15: 3942.326 | LO15: 2295.873 | LP15: 3434.121 | LQ15: 2280.669 | LR15: 2964.529 | LS15: 1859.194 | LT15: 2823.997 | LU15: 1598.497 | LV15: 2641.081 | LW15: 1778.34 | LX15: 2851.256 | LY15: 1547.292 | LZ15: 2584.178 | MA15: 1740.997 | MB15: 3380.868 | MC15: 1822.683 | MD15: 3543.9 | ME15: 2280.144 | MF15: 4214.415 | MG15: 2969.447 | MH15: 4540.804 | MI15: 2939.826 | MJ15: 4068.082 | MK15: 2460.926 | ML15: 3789.386 | MM15: 2448.812 | MN15: 3578.705 | MO15: 2136.085 | MP15: 2964.529 | MQ15: 1859.194 | MR15: 2712.108 | MS15: 1710.385 | MT15: 2749.285 | MU15: 1670.136 | MV15: 2851.256 | MW15: 1547.292 | MX15: 2584.178 | MY15: 1740.997 | MZ15: 3380.868 | NA15: 1822.683 | NB15: 3543.9 | NC15: 2280.144 | ND15: 4214.415 | NE15: 2969.447 | NF15: 4540.804 | NG15: 2939.826 | NH15: 4068.082 | NI15: 2460.926 | NJ15: 3789.386 | NK15: 2448.812 | NL15: 3578.705 | NM15: 2136.085 | NN15: 2964.529 | NO15: 1859.194 | NP15: 2712.108 | NQ15: 1710.385 | NR15: 2749.285 | NS15: 1670.136 | NT15: 2743.563 | NU15: 1654.986 | NV15: 2693.605 | NW15: 1631.57 | NX15: 3380.868 | NY15: 1822.683 | NZ15: 3396.756 | OA15: 2427.287 | OB15: 4390.303 | OC15: 2793.559 | OD15: 4540.804 | OE15: 2939.826 | OF15: 4061.671 | OG15: 2700.516 | OH15: 3942.326 | OI15: 2295.873 | OJ15: 3578.705 | OK15: 2136.085 | OL15: 2846.426 | OM15: 1977.297 | ON15: 2823.997 | OO15: 1598.497 | OP15: 2749.285 | OQ15: 1670.136 | OR15: 2743.563 | OS15: 1654.986 | OT15: 2693.605 | OU15: 1631.57 | OV15: 3253.465 | OW15: 1950.085 | OX15: 3543.9 | OY15: 2280.144 | OZ15: 4390.303 | PA15: 2793.559 | PB15: 4357.65 | PC15: 3122.98 | PD15: 4068.082 | PE15: 2460.926 | PF15: 3942.326 | PG15: 2295.873 | PH15: 3578.705 | PI15: 2136.085 | PJ15: 2846.426 | PK15: 1977.297 | PL15: 2823.997 | PM15: 1598.497 | PN15: 2641.081 | PO15: 1778.34 | PP15: 2851.256 | PQ15: 1547.292 | PR15: 2693.605 | PS15: 1631.57 | PT15: 3253.465 | PU15: 1950.085 | PV15: 3543.9 | PW15: 2280.144 | PX15: 4390.303 | PY15: 2793.559 | PZ15: 4357.65 | QA15: 3122.98 | QB15: 4068.082 | QC15: 2460.926 | QD15: 3942.326 | QE15: 2295.873 | QF15: 3434.121 | QG15: 2280.669 | QH15: 2964.529 | QI15: 1859.194 | QJ15: 2823.997 | QK15: 1598.497 | QL15: 2641.081 | QM15: 1778.34 | QN15: 2851.256 | QO15: 1547.292 | QP15: 2693.605 | QQ15: 1631.57 | QR15: 3253.465 | QS15: 1950.085 | QT15: 3543.9 | QU15: 2280.144 | QV15: 4214.415 | QW15: 2969.447 | QX15: 4540.804 | QY15: 2939.826 | QZ15: 4068.082 | RA15: 2460.926 | RB15: 3942.326 | RC15: 2295.873 | RD15: 3434.121 | RE15: 2280.669 | RF15: 2964.529 | RG15: 1859.194 | RH15: 2823.997 | RI15: 1598.497 | RJ15: 2641.081 | RK15: 1778.34 | RL15: 2851.256 | RM15: 1547.292 | RN15: 2584.178 | RO15: 1740.997 | RQ15: 65289.519 | RR15: 65240.524 | RS15: 65028.554 | RT15: 65191.124 | RU15: 66756.175 | RV15: 66836.116 | RW15: 66563.444 | RX15: 66563.444 | RY15: 66796.621 | RZ15: 66563.444 | SA15: 66563.444 | SB15: 66563.445 | SC15: 66796.623 | SD15: 66563.444 | SE15: 66563.443 | SF15: 66563.444 | SG15: 66796.624 | SH15: 66563.444 | SI15: 66563.444 | SJ15: 66563.444
... 18 more rows

Sheet I_CSP
B1: Customer System Peak (MW)
A2: TOC
B3: BESID | C3: AccountName | D3: JOE | E3: 2015-10-01 | F3: 2015-11-01 | G3: 2015-12-01 | H3: 2016-01-01 | I3: 2016-02-01 | J3: 2016-03-01 | K3: 2016-04-01 | L3: 2016-05-01 | M3: 2016-06-01 | N3: 2016-07-01 | O3: 2016-08-01 | P3: 2016-09-01 | Q3: 2016-10-01 | R3: 2016-11-01 | S3: 2016-12-01 | T3: 2017-01-01 | U3: 2017-02-01 | V3: 2017-03-01 | W3: 2017-04-01 | X3: 2017-05-01 | Y3: 2017-06-01 | Z3: 2017-07-01 | AA3: 2017-08-01 | AB3: 2017-09-01 | AC3: 2017-10-01 | AD3: 2017-11-01 | AE3: 2017-12-01 | AF3: 2018-01-01 | AG3: 2018-02-01 | AH3: 2018-03-01 | AI3: 2018-04-01 | AJ3: 2018-05-01 | AK3: 2018-06-01 | AL3: 2018-07-01 | AM3: 2018-08-01 | AN3: 2018-09-01 | AO3: 2018-10-01 | AP3: 2018-11-01 | AQ3: 2018-12-01 | AR3: 2019-01-01 | AS3: 2019-02-01 | AT3: 2019-03-01 | AU3: 2019-04-01 | AV3: 2019-05-01 | AW3: 2019-06-01 | AX3: 2019-07-01 | AY3: 2019-08-01 | AZ3: 2019-09-01 | BA3: 2019-10-01 | BB3: 2019-11-01 | BC3: 2019-12-01 | BD3: 2020-01-01 | BE3: 2020-02-01 | BF3: 2020-03-01 | BG3: 2020-04-01 | BH3: 2020-05-01 | BI3: 2020-06-01 | BJ3: 2020-07-01 | BK3: 2020-08-01 | BL3: 2020-09-01 | BM3: 2020-10-01 | BN3: 2020-11-01 | BO3: 2020-12-01 | BP3: 2021-01-01 | BQ3: 2021-02-01 | BR3: 2021-03-01 | BS3: 2021-04-01 | BT3: 2021-05-01 | BU3: 2021-06-01 | BV3: 2021-07-01 | BW3: 2021-08-01 | BX3: 2021-09-01 | BY3: 2021-10-01 | BZ3: 2021-11-01 | CA3: 2021-12-01 | CB3: 2022-01-01 | CC3: 2022-02-01 | CD3: 2022-03-01 | CE3: 2022-04-01 | CF3: 2022-05-01 | CG3: 2022-06-01 | CH3: 2022-07-01 | CI3: 2022-08-01 | CJ3: 2022-09-01 | CK3: 2022-10-01 | CL3: 2022-11-01 | CM3: 2022-12-01 | CN3: 2023-01-01 | CO3: 2023-02-01 | CP3: 2023-03-01 | CQ3: 2023-04-01 | CR3: 2023-05-01 | CS3: 2023-06-01 | CT3: 2023-07-01 | CU3: 2023-08-01 | CV3: 2023-09-01 | CW3: 2023-10-01 | CX3: 2023-11-01 | CY3: 2023-12-01 | CZ3: 2024-01-01 | DA3: 2024-02-01 | DB3: 2024-03-01 | DC3: 2024-04-01 | DD3: 2024-05-01 | DE3: 2024-06-01 | DF3: 2024-07-01 | DG3: 2024-08-01 | DH3: 2024-09-01 | DI3: 2024-10-01 | DJ3: 2024-11-01 | DK3: 2024-12-01 | DL3: 2025-01-01 | DM3: 2025-02-01 | DN3: 2025-03-01 | DO3: 2025-04-01 | DP3: 2025-05-01 | DQ3: 2025-06-01 | DR3: 2025-07-01 | DS3: 2025-08-01 | DT3: 2025-09-01 | DU3: 2025-10-01 | DV3: 2025-11-01 | DW3: 2025-12-01 | DX3: 2026-01-01 | DY3: 2026-02-01 | DZ3: 2026-03-01 | EA3: 2026-04-01 | EB3: 2026-05-01 | EC3: 2026-06-01 | ED3: 2026-07-01 | EE3: 2026-08-01 | EF3: 2026-09-01 | EG3: 2026-10-01 | EH3: 2026-11-01 | EI3: 2026-12-01 | EJ3: 2027-01-01 | EK3: 2027-02-01 | EL3: 2027-03-01 | EM3: 2027-04-01 | EN3: 2027-05-01 | EO3: 2027-06-01 | EP3: 2027-07-01 | EQ3: 2027-08-01 | ER3: 2027-09-01 | ES3: 2027-10-01 | ET3: 2027-11-01 | EU3: 2027-12-01 | EV3: 2028-01-01 | EW3: 2028-02-01 | EX3: 2028-03-01 | EY3: 2028-04-01 | EZ3: 2028-05-01 | FA3: 2028-06-01 | FB3: 2028-07-01 | FC3: 2028-08-01 | FD3: 2028-09-01 | FE3: 2028-10-01 | FF3: =+EOMONTH(FE3,0)+1 -> 2028-11-01 | FG3: =+EOMONTH(FF3,0)+1 -> 2028-12-01 | FH3: 2029-01-01 | FI3: 2029-02-01 | FJ3: 2029-03-01 | FK3: 2029-04-01 | FL3: 2029-05-01 | FM3: 2029-06-01 | FN3: 2029-07-01 | FO3: 2029-08-01 | FP3: 2029-09-01 | FQ3: 2029-10-01 | FR3: =+EOMONTH(FQ3,0)+1 -> 2029-11-01 | FS3: =+EOMONTH(FR3,0)+1 -> 2029-12-01 | FT3: 2030-01-01 | FU3: 2030-02-01 | FV3: 2030-03-01 | FW3: 2030-04-01 | FX3: 2030-05-01 | FY3: 2030-06-01 | FZ3: 2030-07-01 | GA3: 2030-08-01 | GB3: 2030-09-01 | GC3: 2030-10-01 | GD3: =+EOMONTH(GC3,0)+1 -> 2030-11-01 | GE3: =+EOMONTH(GD3,0)+1 -> 2030-12-01 | GF3: 2031-01-01 | GG3: 2031-02-01 | GH3: 2031-03-01 | GI3: 2031-04-01 | GJ3: 2031-05-01 | GK3: 2031-06-01 | GL3: 2031-07-01 | GM3: 2031-08-01 | GN3: 2031-09-01 | GO3: =DATE(YEAR(GN3),MONTH(GN3)+1,1) -> 2031-10-01 | GP3: =DATE(YEAR(GO3),MONTH(GO3)+1,1) -> 2031-11-01 | GQ3: 2031-12-01 | GR3: 2032-01-01 | GS3: 2032-02-01 | GT3: 2032-03-01 | GU3: 2032-04-01 | GV3: 2032-05-01 | GW3: 2032-06-01 | GX3: 2032-07-01 | GY3: 2032-08-01 | GZ3: 2032-09-01 | HA3: 2032-10-01 | HB3: 2032-11-01 | HC3: =DATE(YEAR(HB3),MONTH(HB3)+1,1) -> 2032-12-01 | HD3: 2033-01-01 | HE3: 2033-02-01 | HF3: 2033-03-01 | HG3: 2033-04-01 | HH3: 2033-05-01 | HI3: 2033-06-01 | HJ3: 2033-07-01 | HK3: 2033-08-01 | HL3: =DATE(YEAR(HK3),MONTH(HK3)+1,1) -> 2033-09-01 | HM3: =DATE(YEAR(HL3),MONTH(HL3)+1,1) -> 2033-10-01 | HN3: 2033-11-01 | HO3: =DATE(YEAR(HN3),MONTH(HN3)+1,1) -> 2033-12-01 | HP3: 2034-01-01 | HQ3: =DATE(YEAR(HP3),MONTH(HP3)+1,1) -> 2034-02-01 | HR3: 2034-03-01 | HS3: =DATE(YEAR(HR3),MONTH(HR3)+1,1) -> 2034-04-01 | HT3: 2034-05-01 | HU3: =DATE(YEAR(HT3),MONTH(HT3)+1,1) -> 2034-06-01 | HV3: 2034-07-01 | HW3: =DATE(YEAR(HV3),MONTH(HV3)+1,1) -> 2034-08-01 | HX3: 2034-09-01 | HY3: =DATE(YEAR(HX3),MONTH(HX3)+1,1) -> 2034-10-01 | HZ3: 2034-11-01 | IA3: =DATE(YEAR(HZ3),MONTH(HZ3)+1,1) -> 2034-12-01 | IB3: =DATE(YEAR(IA3),MONTH(IA3)+1,1) -> 2035-01-01 | IC3: =DATE(YEAR(IB3),MONTH(IB3)+1,1) -> 2035-02-01 | ID3: =DATE(YEAR(IC3),MONTH(IC3)+1,1) -> 2035-03-01 | IE3: =DATE(YEAR(ID3),MONTH(ID3)+1,1) -> 2035-04-01 | IF3: =DATE(YEAR(IE3),MONTH(IE3)+1,1) -> 2035-05-01 | IG3: =DATE(YEAR(IF3),MONTH(IF3)+1,1) -> 2035-06-01 | IH3: =DATE(YEAR(IG3),MONTH(IG3)+1,1) -> 2035-07-01 | II3: =DATE(YEAR(IH3),MONTH(IH3)+1,1) -> 2035-08-01 | IJ3: =DATE(YEAR(II3),MONTH(II3)+1,1) -> 2035-09-01
A4: 0 | B4: 10005 | C4: Alder Mutual | D4: =VLOOKUP(B4,TOCA!$B$3:$E$138,4,FALSE) -> 0 | E4: 0.961 | F4: 1.173 | G4: 1.336 | H4: 1.331 | I4: 1.245 | J4: 1.125 | K4: 0.911 | L4: 0.738 | M4: 0.602 | N4: 0.568 | O4: 0.55 | P4: 0.62 | Q4: 1.316 | R4: 1.225 | S4: 1.095 | T4: 0.881 | U4: 0.729 | V4: 0.598 | W4: 0.566 | X4: 0.549 | Y4: 0.615 | Z4: 0.937 | AA4: 1.138 | AB4: 1.309 | AC4: 0.86 | AD4: 1.16 | AE4: 1.23 | AF4: 1.29 | AG4: 1.15 | AH4: 1 | AI4: 0.89 | AJ4: 0.74 | AK4: 0.61 | AL4: 0.53 | AM4: 0.53 | AN4: 0.65 | AO4: 0.86 | AP4: 1.16 | AQ4: 1.23 | AR4: 1.29 | AS4: 1.15 | AT4: 1 | AU4: 0.89 | AV4: 0.74 | AW4: 0.61 | AX4: 0.54 | AY4: 0.54 | AZ4: 0.66 | BA4: 0.84 | BB4: 1.22 | BC4: 1.24 | BD4: 1.36 | BE4: 1.24 | BF4: 1.11 | BG4: 1.04 | BH4: 0.74 | BI4: 0.61 | BJ4: 0.57 | BK4: 0.59 | BL4: 0.65 | BM4: 0.84 | BN4: 1.23 | BO4: 1.25 | BP4: 1.37 | BQ4: 1.23 | BR4: 1.12 | BS4: 1.05 | BT4: 0.75 | BU4: 0.62 | BV4: 0.58 | BW4: 0.6 | BX4: 0.65 | BY4: 1.047 | BZ4: 1.146 | CA4: 1.354 | CB4: 1.399 | CC4: 1.26 | CD4: 1.225 | CE4: 1.12 | CF4: 0.817 | CG4: 0.701 | CH4: 0.646 | CI4: 0.668 | CJ4: 0.785 | CK4: 1.055 | CL4: 1.151 | CM4: 1.356 | CN4: 1.399 | CO4: 1.26 | CP4: 1.225 | CQ4: 1.12 | CR4: 0.817 | CS4: 0.701 | CT4: 0.646 | CU4: 0.668 | CV4: 0.785 | CW4: 1.009 | CX4: 1.184 | CY4: 1.362 | CZ4: 1.511 | DA4: 1.248 | DB4: 1.245 | DC4: 1.092 | DD4: 0.862 | DE4: 0.776 | DF4: 0.675 | DG4: 0.707 | DH4: 0.815 | DI4: 1.024 | DJ4: 1.197 | DK4: 1.373 | DL4: 1.52 | DM4: 1.404 | DN4: 1.25 | DO4: 1.096 | DP4: 0.864 | DQ4: 0.776 | DR4: 0.675 | DS4: 0.707 | DT4: 0.815 | DU4: 1.024 | DV4: 1.197 | DW4: 1.373 | DX4: 1.52 | DY4: 1.404 | DZ4: 1.25 | EA4: 1.096 | EB4: 0.864 | EC4: 0.776 | ED4: 0.675 | EE4: 0.707 | EF4: 0.815 | EG4: 1.024 | EH4: 1.197 | EI4: 1.373 | EJ4: 1.52 | EK4: 1.404 | EL4: 1.25 | EM4: 1.096 | EN4: 0.864 | EO4: 0.776 | EP4: 0.675 | EQ4: 0.707 | ER4: 0.815 | ES4: 1.024 | ET4: 1.197 | EU4: 1.373 | EV4: 1.52 | EW4: 1.255 | EX4: 1.25 | EY4: 1.096 | EZ4: 0.864 | FA4: 0.776 | FB4: 0.675 | FC4: 0.707 | FD4: 0.815 | FE4: 1.024 | FF4: 1.197 | FG4: 1.373 | FH4: 1.52 | FI4: 1.404 | FJ4: 1.25 | FK4: 1.096 | FL4: 0.864 | FM4: 0.776 | FN4: 0.675 | FO4: 0.707 | FP4: 0.815 | FQ4: 1.024 | FR4: 1.197 | FS4: 1.373 | FT4: 1.52 | FU4: 1.404 | FV4: 1.25 | FW4: 1.096 | FX4: 0.864 | FY4: 0.776 | FZ4: 0.675 | GA4: 0.707 | GB4: 0.815 | GC4: 1.024 | GD4: 1.197 | GE4: 1.373 | GF4: 1.52 | GG4: 1.404 | GH4: 1.25 | GI4: 1.096 | GJ4: 0.864 | GK4: 0.776 | GL4: 0.675 | GM4: 0.707 | GN4: 0.815 | GO4: 1.024 | GP4: 1.197 | GQ4: 1.373 | GR4: 1.52 | GS4: 1.255 | GT4: 1.25 | GU4: 1.096 | GV4: 0.864 | GW4: 0.776 | GX4: 0.675 | GY4: 0.707 | GZ4: 0.815 | HA4: 1.024 | HB4: 1.197 | HC4: 1.373 | HD4: 1.52 | HE4: 1.404 | HF4: 1.25 | HG4: 1.096 | HH4: 0.864 | HI4: 0.776 | HJ4: 0.675 | HK4: 0.707 | HL4: 0.815 | HM4: 1.024 | HN4: 1.197 | HO4: 1.373 | HP4: 1.52 | HQ4: 1.404 | HR4: 1.25 | HS4: 1.096 | HT4: 0.864 | HU4: 0.776 | HV4: 0.675 | HW4: 0.707 | HX4: 0.815 | HY4: 1.024 | HZ4: 1.197 | IA4: 1.373 | IB4: 1.52 | IC4: 1.404 | ID4: 1.25 | IE4: 1.096 | IF4: 0.864 | IG4: 0.776 | IH4: 0.675 | II4: 0.707 | IJ4: 0.815
A5: 0 | B5: 10015 | C5: Asotin County PUD #1 | D5: =VLOOKUP(B5,TOCA!$B$3:$E$138,4,FALSE) -> 0 | E5: 1.433 | F5: 1.005 | G5: 0.871 | H5: 1.014 | I5: 0.907 | J5: 0.964 | K5: 1.012 | L5: 1.742 | M5: 1.92 | N5: 2.719 | O5: 3.036 | P5: 2.243 | Q5: 1.06 | R5: 0.919 | S5: 0.965 | T5: 0.991 | U5: 1.769 | V5: 2.107 | W5: 2.715 | X5: 3.144 | Y5: 2.449 | Z5: 1.548 | AA5: 1.114 | AB5: 0.877 | AC5: 1.899 | AD5: 1.116 | AE5: 1.16 | AF5: 1.397 | AG5: 1.252 | AH5: 1.289 | AI5: 1.808 | AJ5: 2.327 | AK5: 2.829 | AL5: 3.113 | AM5: 3.023 | AN5: 2.395 | AO5: 1.93 | AP5: 1.135 | AQ5: 1.18 | AR5: 1.42 | AS5: 1.318 | AT5: 1.31 | AU5: 1.838 | AV5: 2.366 | AW5: 2.877 | AX5: 3.165 | AY5: 3.074 | AZ5: 2.435 | BA5: 1.874 | BB5: 1.095 | BC5: 1.139 | BD5: 1.379 | BE5: 1.244 | BF5: 1.244 | BG5: 1.756 | BH5: 2.273 | BI5: 2.739 | BJ5: 3.012 | BK5: 2.915 | BL5: 2.327 | BM5: 1.891 | BN5: 1.105 | BO5: 1.149 | BP5: 1.392 | BQ5: 1.303 | BR5: 1.253 | BS5: 1.771 | BT5: 2.293 | BU5: 2.76 | BV5: 3.035 | BW5: 2.937 | BX5: 2.346 | BY5: 1.526 | BZ5: 1.095 | CA5: 1.16 | CB5: 1.224 | CC5: 1.234 | CD5: 1.18 | CE5: 1.51 | CF5: 1.959 | CG5: 2.639 | CH5: 2.888 | CI5: 2.904 | CJ5: 2.215 | CK5: 1.526 | CL5: 1.095 | CM5: 1.16 | CN5: 1.224 | CO5: 1.234 | CP5: 1.18 | CQ5: 1.51 | CR5: 1.959 | CS5: 2.639 | CT5: 2.888 | CU5: 2.904 | CV5: 2.215 | CW5: 1.526 | CX5: 1.095 | CY5: 1.16 | CZ5: 1.224 | DA5: 1.234 | DB5: 1.18 | DC5: 1.51 | DD5: 1.959 | DE5: 2.639 | DF5: 2.888 | DG5: 2.904 | DH5: 2.215 | DI5: 1.526 | DJ5: 1.095 | DK5: 1.16 | DL5: 1.224 | DM5: 1.234 | DN5: 1.18 | DO5: 1.51 | DP5: 1.959 | DQ5: 2.639 | DR5: 2.888 | DS5: 2.904 | DT5: 2.215 | DU5: 1.526 | DV5: 1.095 | DW5: 1.16 | DX5: 1.224 | DY5: 1.234 | DZ5: 1.18 | EA5: 1.51 | EB5: 1.959 | EC5: 2.639 | ED5: 2.888 | EE5: 2.904 | EF5: 2.215 | EG5: 1.526 | EH5: 1.095 | EI5: 1.16 | EJ5: 1.224 | EK5: 1.234 | EL5: 1.18 | EM5: 1.51 | EN5: 1.959 | EO5: 2.639 | EP5: 2.888 | EQ5: 2.904 | ER5: 2.215 | ES5: 1.526 | ET5: 1.095 | EU5: 1.16 | EV5: 1.224 | EW5: 1.234 | EX5: 1.18 | EY5: 1.51 | EZ5: 1.959 | FA5: 2.639 | FB5: 2.888 | FC5: 2.904 | FD5: 2.215 | FE5: 1.526 | FF5: 1.095 | FG5: 1.16 | FH5: 1.224 | FI5: 1.234 | FJ5: 1.18 | FK5: 1.51 | FL5: 1.959 | FM5: 2.639 | FN5: 2.888 | FO5: 2.904 | FP5: 2.215 | FQ5: 1.526 | FR5: 1.095 | FS5: 1.16 | FT5: 1.224 | FU5: 1.234 | FV5: 1.18 | FW5: 1.51 | FX5: 1.959 | FY5: 2.639 | FZ5: 2.888 | GA5: 2.904 | GB5: 2.215 | GC5: 1.526 | GD5: 1.095 | GE5: 1.16 | GF5: 1.224 | GG5: 1.234 | GH5: 1.18 | GI5: 1.51 | GJ5: 1.959 | GK5: 2.639 | GL5: 2.888 | GM5: 2.904 | GN5: 2.215 | GO5: 1.526 | GP5: 1.095 | GQ5: 1.16 | GR5: 1.224 | GS5: 1.234 | GT5: 1.18 | GU5: 1.51 | GV5: 1.959 | GW5: 2.639 | GX5: 2.888 | GY5: 2.904 | GZ5: 2.215 | HA5: 1.526 | HB5: 1.095 | HC5: 1.16 | HD5: 1.224 | HE5: 1.234 | HF5: 1.18 | HG5: 1.51 | HH5: 1.959 | HI5: 2.639 | HJ5: 2.888 | HK5: 2.904 | HL5: 2.215 | HM5: 1.526 | HN5: 1.095 | HO5: 1.16 | HP5: 1.224 | HQ5: 1.234 | HR5: 1.18 | HS5: 1.51 | HT5: 1.959 | HU5: 2.639 | HV5: 2.888 | HW5: 2.904 | HX5: 2.215 | HY5: 1.526 | HZ5: 1.095 | IA5: 1.16 | IB5: 1.224 | IC5: 1.234 | ID5: 1.18 | IE5: 1.51 | IF5: 1.959 | IG5: 2.639 | IH5: 2.888 | II5: 2.904 | IJ5: 2.215
A6: 0 | B6: 10024 | C6: Benton County PUD #1 | D6: =VLOOKUP(B6,TOCA!$B$3:$E$138,4,FALSE) -> 0 | E6: 223.501 | F6: 262.465 | G6: 295.813 | H6: 294.47 | I6: 270.489 | J6: 241.716 | K6: 235.285 | L6: 297.237 | M6: 399.998 | N6: 429.067 | O6: 386.093 | P6: 297.35 | Q6: 301.09 | R6: 281.731 | S6: 232.325 | T6: 275.546 | U6: 323.644 | V6: 407.383 | W6: 441.883 | X6: 410.283 | Y6: 302.983 | Z6: 249.554 | AA6: 249.212 | AB6: 292.58 | AC6: 249.653 | AD6: 249.513 | AE6: 292.93 | AF6: 302.371 | AG6: 282.931 | AH6: 233.375 | AI6: 276.526 | AJ6: 324.505 | AK6: 408.183 | AL6: 442.653 | AM6: 411.113 | AN6: 303.884 | AO6: 250.633 | AP6: 250.682 | AQ6: 294.241 | AR6: 303.76 | AS6: 284.231 | AT6: 234.545 | AU6: 277.626 | AV6: 325.485 | AW6: 409.123 | AX6: 443.553 | AY6: 412.053 | AZ6: 304.913 | BA6: 238.872 | BB6: 256.3 | BC6: 299.931 | BD6: 303.872 | BE6: 286.395 | BF6: 244.323 | BG6: 255.688 | BH6: 360.895 | BI6: 400.004 | BJ6: 428.66 | BK6: 403.99 | BL6: 299.168 | BM6: 239.811 | BN6: 257.31 | BO6: 301.115 | BP6: 305.072 | BQ6: 287.525 | BR6: 245.285 | BS6: 256.695 | BT6: 362.323 | BU6: 401.588 | BV6: 430.358 | BW6: 405.589 | BX6: 300.349 | BY6: 236.467 | BZ6: 253.685 | CA6: 296.827 | CB6: 300.689 | CC6: 283.362 | CD6: 241.712 | CE6: 252.922 | CF6: 356.928 | CG6: 395.553 | CH6: 423.833 | CI6: 399.393 | CJ6: 295.74 | CK6: 237.043 | CL6: 254.304 | CM6: 297.552 | CN6: 301.424 | CO6: 284.054 | CP6: 242.3 | CQ6: 253.538 | CR6: 357.801 | CS6: 396.521 | CT6: 424.872 | CU6: 400.371 | CV6: 296.461 | CW6: 231.287 | CX6: 252.952 | CY6: 303.055 | CZ6: 314.341 | DA6: 263.949 | DB6: 246.941 | DC6: 272.159 | DD6: 311.551 | DE6: 403.529 | DF6: 425.071 | DG6: 409.262 | DH6: 257.483 | DI6: 231.809 | DJ6: 253.528 | DK6: 303.755 | DL6: 315.068 | DM6: 264.552 | DN6: 247.502 | DO6: 272.782 | DP6: 312.271 | DQ6: 404.475 | DR6: 426.07 | DS6: 410.221 | DT6: 258.069 | DU6: 232.332 | DV6: 254.104 | DW6: 304.454 | DX6: 315.795 | DY6: 265.155 | DZ6: 248.063 | EA6: 273.405 | EB6: 312.991 | EC6: 405.421 | ED6: 427.068 | EE6: 411.181 | EF6: 258.655 | EG6: 232.855 | EH6: 254.68 | EI6: 305.153 | EJ6: 316.522 | EK6: 265.758 | EL6: 248.623 | EM6: 274.028 | EN6: 313.71 | EO6: 406.367 | EP6: 428.067 | EQ6: 412.141 | ER6: 259.241 | ES6: 233.377 | ET6: 255.256 | EU6: 305.853 | EV6: 317.249 | EW6: 266.36 | EX6: 249.184 | EY6: 274.65 | EZ6: 314.43 | FA6: 407.313 | FB6: 429.066 | FC6: 413.1 | FD6: 259.827 | FE6: 233.9 | FF6: 255.832 | FG6: 306.552 | FH6: 317.976 | FI6: 266.963 | FJ6: 249.745 | FK6: 275.273 | FL6: 315.149 | FM6: 408.259 | FN6: 430.064 | FO6: 414.06 | FP6: 260.413 | FQ6: 234.423 | FR6: 256.408 | FS6: 307.252 | FT6: 318.703 | FU6: 267.566 | FV6: 250.305 | FW6: 275.896 | FX6: 315.869 | FY6: 409.204 | FZ6: 431.063 | GA6: 415.02 | GB6: 260.999 | GC6: 234.946 | GD6: 256.984 | GE6: 307.951 | GF6: 319.43 | GG6: 268.168 | GH6: 250.866 | GI6: 276.518 | GJ6: 316.588 | GK6: 410.151 | GL6: 432.062 | GM6: 415.979 | GN6: 261.585 | GO6: 235.468 | GP6: 257.56 | GQ6: 308.65 | GR6: 320.157 | GS6: 268.771 | GT6: 251.427 | GU6: 277.141 | GV6: 317.308 | GW6: 411.096 | GX6: 433.061 | GY6: 416.939 | GZ6: 262.171 | HA6: 235.991 | HB6: 258.136 | HC6: 309.35 | HD6: 320.884 | HE6: 269.374 | HF6: 251.988 | HG6: 277.764 | HH6: 318.028 | HI6: 412.042 | HJ6: 434.059 | HK6: 417.898 | HL6: 262.757 | HM6: 236.514 | HN6: 258.712 | HO6: 310.049 | HP6: 321.611 | HQ6: 269.977 | HR6: 252.548 | HS6: 278.387 | HT6: 318.747 | HU6: 412.988 | HV6: 435.058 | HW6: 418.858 | HX6: 263.343 | HY6: 237.036 | HZ6: 259.288 | IA6: 310.749 | IB6: 322.338 | IC6: 270.58 | ID6: 253.109 | IE6: 279.01 | IF6: 319.467 | IG6: 413.934 | IH6: 436.057 | II6: 419.817 | IJ6: 263.929
A7: 0 | B7: 10025 | C7: Benton REA | D7: =VLOOKUP(B7,TOCA!$B$3:$E$138,4,FALSE) -> 0 | E7: 88.278 | F7: 96.661 | G7: 95.101 | H7: 98.483 | I7: 93.882 | J7: 82.053 | K7: 91.517 | L7: 96.816 | M7: 120.441 | N7: 130.583 | O7: 128.492 | P7: 117.882 | Q7: 104.394 | R7: 97.055 | S7: 80.68 | T7: 90.179 | U7: 102.645 | V7: 113.348 | W7: 130.186 | X7: 124.419 | Y7: 110.05 | Z7: 85.127 | AA7: 85.577 | AB7: 99.02 | AC7: 78.985 | AD7: 77.415 | AE7: 94.23 | AF7: 96.668 | AG7: 89.349 | AH7: 74.115 | AI7: 81.122 | AJ7: 92.519 | AK7: 99.42 | AL7: 114.48 | AM7: 105.454 | AN7: 90.146 | AO7: 80.255 | AP7: 78.685 | AQ7: 95.7 | AR7: 98.208 | AS7: 90.769 | AT7: 75.285 | AU7: 82.442 | AV7: 93.999 | AW7: 101.11 | AX7: 116.43 | AY7: 107.314 | AZ7: 91.756 | BA7: 81.95 | BB7: 81.004 | BC7: 95.02 | BD7: 94.354 | BE7: 88.867 | BF7: 75.428 | BG7: 84.355 | BH7: 96.408 | BI7: 109.85 | BJ7: 123.921 | BK7: 120.948 | BL7: 100.843 | BM7: 84.342 | BN7: 83.415 | BO7: 97.447 | BP7: 96.739 | BQ7: 91.246 | BR7: 77.69 | BS7: 86.588 | BT7: 98.66 | BU7: 112.105 | BV7: 126.16 | BW7: 123.117 | BX7: 102.866 | BY7: 75.679 | BZ7: 77.752 | CA7: 101.164 | CB7: 97.249 | CC7: 82.614 | CD7: 78.659 | CE7: 76.755 | CF7: 94.081 | CG7: 110.904 | CH7: 121.033 | CI7: 118.319 | CJ7: 94.761 | CK7: 77.436 | CL7: 79.529 | CM7: 103.174 | CN7: 98.209 | CO7: 83.435 | CP7: 79.432 | CQ7: 77.516 | CR7: 95.015 | CS7: 111.996 | CT7: 122.235 | CU7: 119.493 | CV7: 95.699 | CW7: 73.454 | CX7: 75.4 | CY7: 98.027 | CZ7: 93.184 | DA7: 78.953 | DB7: 75.062 | DC7: 73.165 | DD7: 89.821 | DE7: 105.962 | DF7: 115.638 | DG7: 112.926 | DH7: 90.181 | DI7: 73.454 | DJ7: 75.4 | DK7: 98.027 | DL7: 93.184 | DM7: 78.953 | DN7: 75.062 | DO7: 73.165 | DP7: 89.821 | DQ7: 105.962 | DR7: 115.638 | DS7: 112.926 | DT7: 90.181 | DU7: 73.454 | DV7: 75.4 | DW7: 98.027 | DX7: 93.184 | DY7: 78.953 | DZ7: 75.062 | EA7: 73.165 | EB7: 89.821 | EC7: 105.962 | ED7: 115.638 | EE7: 112.926 | EF7: 90.181 | EG7: 73.454 | EH7: 75.4 | EI7: 98.027 | EJ7: 93.184 | EK7: 78.953 | EL7: 75.062 | EM7: 73.165 | EN7: 89.821 | EO7: 105.962 | EP7: 115.638 | EQ7: 112.926 | ER7: 90.181 | ES7: 73.454 | ET7: 75.4 | EU7: 98.027 | EV7: 93.184 | EW7: 78.953 | EX7: 75.062 | EY7: 73.165 | EZ7: 89.821 | FA7: 105.962 | FB7: 115.638 | FC7: 112.926 | FD7: 90.181 | FE7: 73.454 | FF7: 75.4 | FG7: 98.027 | FH7: 93.184 | FI7: 78.953 | FJ7: 75.062 | FK7: 73.165 | FL7: 89.821 | FM7: 105.962 | FN7: 115.638 | FO7: 112.926 | FP7: 90.181 | FQ7: 73.454 | FR7: 75.4 | FS7: 98.027 | FT7: 93.184 | FU7: 78.953 | FV7: 75.062 | FW7: 73.165 | FX7: 89.821 | FY7: 105.962 | FZ7: 115.638 | GA7: 112.926 | GB7: 90.181 | GC7: 73.454 | GD7: 75.4 | GE7: 98.027 | GF7: 93.184 | GG7: 78.953 | GH7: 75.062 | GI7: 73.165 | GJ7: 89.821 | GK7: 105.962 | GL7: 115.638 | GM7: 112.926 | GN7: 90.181 | GO7: 73.454 | GP7: 75.4 | GQ7: 98.027 | GR7: 93.184 | GS7: 78.953 | GT7: 75.062 | GU7: 73.165 | GV7: 89.821 | GW7: 105.962 | GX7: 115.638 | GY7: 112.926 | GZ7: 90.181 | HA7: 73.454 | HB7: 75.4 | HC7: 98.027 | HD7: 93.184 | HE7: 78.953 | HF7: 75.062 | HG7: 73.165 | HH7: 89.821 | HI7: 105.962 | HJ7: 115.638 | HK7: 112.926 | HL7: 90.181 | HM7: 73.454 | HN7: 75.4 | HO7: 98.027 | HP7: 93.184 | HQ7: 78.953 | HR7: 75.062 | HS7: 73.165 | HT7: 89.821 | HU7: 105.962 | HV7: 115.638 | HW7: 112.926 | HX7: 90.181 | HY7: 73.454 | HZ7: 75.4 | IA7: 98.027 | IB7: 93.184 | IC7: 78.953 | ID7: 75.062 | IE7: 73.165 | IF7: 89.821 | IG7: 105.962 | IH7: 115.638 | II7: 112.926 | IJ7: 90.181
A8: 0 | B8: 10027 | C8: Big Bend Elec Coop | D8: =VLOOKUP(B8,TOCA!$B$3:$E$138,4,FALSE) -> 0 | E8: 71.7 | F8: 46 | G8: 51.5 | H8: 51.2 | I8: 46.2 | J8: 42.8 | K8: 78.8 | L8: 111.5 | M8: 128.6 | N8: 131.1 | O8: 121.7 | P8: 105.9 | Q8: 53.178 | R8: 49.483 | S8: 47.529 | T8: 82.703 | U8: 115.435 | V8: 132.241 | W8: 135.062 | X8: 125.324 | Y8: 108.328 | Z8: 74.193 | AA8: 48.731 | AB8: 54.745 | AC8: 73.882 | AD8: 49.47 | AE8: 55.472 | AF8: 53.89 | AG8: 50.236 | AH8: 48.282 | AI8: 82.019 | AJ8: 113.798 | AK8: 130.201 | AL8: 132.631 | AM8: 123.367 | AN8: 107.057 | AO8: 74.691 | AP8: 50.279 | AQ8: 56.282 | AR8: 54.7 | AS8: 51.045 | AT8: 49.091 | AU8: 82.828 | AV8: 114.608 | AW8: 131.01 | AX8: 133.44 | AY8: 124.176 | AZ8: 107.866 | BA8: 80.942 | BB8: 56.193 | BC8: 62.265 | BD8: 61.78 | BE8: 55.899 | BF8: 56.741 | BG8: 90.161 | BH8: 120.134 | BI8: 137.036 | BJ8: 136.268 | BK8: 128.725 | BL8: 111.741 | BM8: 81.885 | BN8: 57.136 | BO8: 63.208 | BP8: 62.724 | BQ8: 56.842 | BR8: 57.684 | BS8: 91.104 | BT8: 121.078 | BU8: 137.979 | BV8: 137.211 | BW8: 129.668 | BX8: 112.684 | BY8: 79.995 | BZ8: 52.888 | CA8: 61.719 | CB8: 58.185 | CC8: 54.871 | CD8: 53.083 | CE8: 90.97 | CF8: 127.443 | CG8: 141.189 | CH8: 138.382 | CI8: 130.772 | CJ8: 109.596 | CK8: 80.79 | CL8: 53.684 | CM8: 62.515 | CN8: 58.981 | CO8: 55.666 | CP8: 53.878 | CQ8: 91.765 | CR8: 128.238 | CS8: 141.984 | CT8: 139.177 | CU8: 131.567 | CV8: 110.391 | CW8: 81.585 | CX8: 54.479 | CY8: 63.31 | CZ8: 59.776 | DA8: 56.461 | DB8: 54.673 | DC8: 92.561 | DD8: 129.034 | DE8: 142.779 | DF8: 139.972 | DG8: 132.362 | DH8: 111.187 | DI8: 82.38 | DJ8: 55.274 | DK8: 64.105 | DL8: 60.571 | DM8: 57.257 | DN8: 55.468 | DO8: 93.356 | DP8: 129.829 | DQ8: 143.574 | DR8: 140.767 | DS8: 133.157 | DT8: 111.982 | DU8: 83.176 | DV8: 56.069 | DW8: 64.9 | DX8: 61.366 | DY8: 58.052 | DZ8: 56.263 | EA8: 94.151 | EB8: 130.624 | EC8: 144.369 | ED8: 141.562 | EE8: 133.952 | EF8: 112.777 | EG8: 83.971 | EH8: 56.864 | EI8: 65.695 | EJ8: 62.161 | EK8: 58.847 | EL8: 57.058 | EM8: 94.946 | EN8: 131.419 | EO8: 145.165 | EP8: 142.357 | EQ8: 134.747 | ER8: 113.572 | ES8: 84.766 | ET8: 57.659 | EU8: 66.49 | EV8: 62.957 | EW8: 59.642 | EX8: 57.854 | EY8: 95.741 | EZ8: 132.214 | FA8: 145.96 | FB8: 143.153 | FC8: 135.543 | FD8: 114.367 | FE8: 85.561 | FF8: 58.455 | FG8: 67.286 | FH8: 63.752 | FI8: 60.437 | FJ8: 58.649 | FK8: 96.536 | FL8: 133.009 | FM8: 146.755 | FN8: 143.948 | FO8: 136.338 | FP8: 115.162 | FQ8: 86.356 | FR8: 59.25 | FS8: 68.081 | FT8: 64.547 | FU8: 61.232 | FV8: 59.444 | FW8: 97.332 | FX8: 133.805 | FY8: 147.55 | FZ8: 144.743 | GA8: 137.133 | GB8: 115.958 | GC8: 87.151 | GD8: 60.045 | GE8: 68.876 | GF8: 65.342 | GG8: 62.028 | GH8: 60.239 | GI8: 98.127 | GJ8: 134.6 | GK8: 148.345 | GL8: 145.538 | GM8: 137.928 | GN8: 116.753 | GO8: 87.947 | GP8: 60.84 | GQ8: 69.671 | GR8: 66.137 | GS8: 62.823 | GT8: 61.034 | GU8: 98.922 | GV8: 135.395 | GW8: 149.14 | GX8: 146.333 | GY8: 138.723 | GZ8: 117.548 | HA8: 88.742 | HB8: 61.635 | HC8: 70.466 | HD8: 66.932 | HE8: 63.618 | HF8: 61.829 | HG8: 99.717 | HH8: 136.19 | HI8: 149.936 | HJ8: 147.128 | HK8: 139.518 | HL8: 118.343 | HM8: 89.537 | HN8: 62.43 | HO8: 71.261 | HP8: 67.728 | HQ8: 64.413 | HR8: 62.625 | HS8: 100.512 | HT8: 136.985 | HU8: 150.731 | HV8: 147.924 | HW8: 140.314 | HX8: 119.138 | HY8: 90.332 | HZ8: 63.226 | IA8: 72.057 | IB8: 68.523 | IC8: 65.208 | ID8: 63.42 | IE8: 101.307 | IF8: 137.78 | IG8: 151.526 | IH8: 148.719 | II8: 141.109 | IJ8: 119.933
A9: 1 | B9: 10029 | C9: Blachly Lane Elec Coop | D9: =VLOOKUP(B9,TOCA!$B$3:$E$138,4,FALSE) -> 1 | E9: 29.787 | F9: 32.231 | G9: 34.956 | H9: 34.924 | I9: 33.493 | J9: 32.735 | K9: 31.131 | L9: 26.612 | M9: 25.6 | N9: 25.333 | O9: 24.92 | P9: 25.173 | Q9: 34.924 | R9: 33.493 | S9: 32.735 | T9: 31.131 | U9: 26.612 | V9: 25.6 | W9: 25.333 | X9: 24.92 | Y9: 25.173 | Z9: 29.787 | AA9: 32.231 | AB9: 34.956 | AC9: 29.229 | AD9: 31.757 | AE9: 34.481 | AF9: 34.422 | AG9: 32.989 | AH9: 32.232 | AI9: 30.86 | AJ9: 25.923 | AK9: 25.068 | AL9: 24.843 | AM9: 24.154 | AN9: 24.666 | AO9: 29.229 | AP9: 31.757 | AQ9: 34.481 | AR9: 34.422 | AS9: 32.989 | AT9: 32.232 | AU9: 30.86 | AV9: 25.923 | AW9: 25.068 | AX9: 24.843 | AY9: 24.154 | AZ9: 24.666 | BA9: 31.764 | BB9: 34.371 | BC9: 36.927 | BD9: 37.157 | BE9: 36.62 | BF9: 35.32 | BG9: 33.983 | BH9: 29.155 | BI9: 28.044 | BJ9: 27.827 | BK9: 28.006 | BL9: 27.881 | BM9: 32.094 | BN9: 34.537 | BO9: 36.927 | BP9: 37.157 | BQ9: 36.62 | BR9: 35.32 | BS9: 33.983 | BT9: 29.155 | BU9: 28.044 | BV9: 27.827 | BW9: 28.006 | BX9: 27.881 | BY9: 29.546 | BZ9: 31.293 | CA9: 35.105 | CB9: 34.592 | CC9: 33.484 | CD9: 33.425 | CE9: 31.107 | CF9: 27.723 | CG9: 26.268 | CH9: 26.176 | CI9: 26.455 | CJ9: 26.156 | CK9: 29.546 | CL9: 31.293 | CM9: 35.105 | CN9: 34.592 | CO9: 33.484 | CP9: 33.425 | CQ9: 31.107 | CR9: 27.723 | CS9: 26.268 | CT9: 26.176 | CU9: 26.455 | CV9: 26.156 | CW9: 30.122 | CX9: 32.865 | CY9: 36.408 | CZ9: 36.373 | DA9: 35.392 | DB9: 35.216 | DC9: 32.904 | DD9: 29.735 | DE9: 27.972 | DF9: 27.72 | DG9: 28.258 | DH9: 27.776 | DI9: 30.122 | DJ9: 32.865 | DK9: 36.408 | DL9: 36.373 | DM9: 35.392 | DN9: 35.216 | DO9: 32.904 | DP9: 29.735 | DQ9: 27.972 | DR9: 27.72 | DS9: 28.258 | DT9: 27.776 | DU9: 30.122 | DV9: 32.865 | DW9: 36.408 | DX9: 36.373 | DY9: 35.392 | DZ9: 35.216 | EA9: 32.904 | EB9: 29.735 | EC9: 27.972 | ED9: 27.72 | EE9: 28.258 | EF9: 27.776 | EG9: 30.122 | EH9: 32.865 | EI9: 36.408 | EJ9: 36.373 | EK9: 35.392 | EL9: 35.216 | EM9: 32.904 | EN9: 29.735 | EO9: 27.972 | EP9: 27.72 | EQ9: 28.258 | ER9: 27.776 | ES9: 30.122 | ET9: 32.865 | EU9: 36.408 | EV9: 36.373 | EW9: 35.392 | EX9: 35.216 | EY9: 32.904 | EZ9: 29.735 | FA9: 27.972 | FB9: 27.72 | FC9: 28.258 | FD9: 27.776 | FE9: 30.122 | FF9: 32.865 | FG9: 36.408 | FH9: 36.373 | FI9: 35.392 | FJ9: 35.216 | FK9: 32.904 | FL9: 29.735 | FM9: 27.972 | FN9: 27.72 | FO9: 28.258 | FP9: 27.776 | FQ9: 30.122 | FR9: 32.865 | FS9: 36.408 | FT9: 36.373 | FU9: 35.392 | FV9: 35.216 | FW9: 32.904 | FX9: 29.735 | FY9: 27.972 | FZ9: 27.72 | GA9: 28.258 | GB9: 27.776 | GC9: 30.122 | GD9: 32.865 | GE9: 36.408 | GF9: 36.373 | GG9: 35.392 | GH9: 35.216 | GI9: 32.904 | GJ9: 29.735 | GK9: 27.972 | GL9: 27.72 | GM9: 28.258 | GN9: 27.776 | GO9: 30.122 | GP9: 32.865 | GQ9: 36.408 | GR9: 36.373 | GS9: 35.392 | GT9: 35.216 | GU9: 32.904 | GV9: 29.735 | GW9: 27.972 | GX9: 27.72 | GY9: 28.258 | GZ9: 27.776 | HA9: 30.122 | HB9: 32.865 | HC9: 36.408 | HD9: 36.373 | HE9: 35.392 | HF9: 35.216 | HG9: 32.904 | HH9: 29.735 | HI9: 27.972 | HJ9: 27.72 | HK9: 28.258 | HL9: 27.776 | HM9: 30.122 | HN9: 32.865 | HO9: 36.408 | HP9: 36.373 | HQ9: 35.392 | HR9: 35.216 | HS9: 32.904 | HT9: 29.735 | HU9: 27.972 | HV9: 27.72 | HW9: 28.258 | HX9: 27.776 | HY9: 30.122 | HZ9: 32.865 | IA9: 36.408 | IB9: 36.373 | IC9: 35.392 | ID9: 35.216 | IE9: 32.904 | IF9: 29.735 | IG9: 27.972 | IH9: 27.72 | II9: 28.258 | IJ9: 27.776
A10: 0 | B10: 10044 | C10: Canby, City of | D10: =VLOOKUP(B10,TOCA!$B$3:$E$138,4,FALSE) -> 0 | E10: 29.246 | F10: 34.326 | G10: 37.248 | H10: 37.988 | I10: 36.033 | J10: 32.982 | K10: 30.902 | L10: 28.241 | M10: 29.529 | N10: 33.079 | O10: 33.637 | P10: 30.809 | Q10: 36.024 | R10: 33.577 | S10: 30.499 | T10: 28.42 | U10: 25.716 | V10: 27.034 | W10: 30.558 | X10: 31.14 | Y10: 28.317 | Z10: 26.752 | AA10: 31.848 | AB10: 34.791 | AC10: 26.742 | AD10: 31.849 | AE10: 34.801 | AF10: 36.044 | AG10: 33.598 | AH10: 30.519 | AI10: 28.441 | AJ10: 25.738 | AK10: 27.056 | AL10: 30.58 | AM10: 31.162 | AN10: 28.34 | AO10: 26.909 | AP10: 32.005 | AQ10: 34.948 | AR10: 36.18 | AS10: 33.734 | AT10: 30.655 | AU10: 28.577 | AV10: 25.873 | AW10: 27.191 | AX10: 30.714 | AY10: 31.296 | AZ10: 28.474 | BA10: 27.05 | BB10: 32.158 | BC10: 35.111 | BD10: 36.354 | BE10: 33.918 | BF10: 30.848 | BG10: 28.78 | BH10: 26.062 | BI10: 27.378 | BJ10: 30.902 | BK10: 31.484 | BL10: 28.66 | BM10: 27.227 | BN10: 32.323 | BO10: 35.264 | BP10: 36.496 | BQ10: 34.049 | BR10: 30.967 | BS10: 28.887 | BT10: 26.184 | BU10: 27.5 | BV10: 31.023 | BW10: 31.604 | BX10: 28.781 | BY10: 27.17 | BZ10: 35.036 | CA10: 35.71 | CB10: 36.376 | CC10: 34.332 | CD10: 32.423 | CE10: 28.21 | CF10: 27.597 | CG10: 34.063 | CH10: 33.459 | CI10: 35.5 | CJ10: 29.63 | CK10: 27.169 | CL10: 35.035 | CM10: 35.709 | CN10: 36.376 | CO10: 34.332 | CP10: 32.423 | CQ10: 28.21 | CR10: 27.597 | CS10: 34.114 | CT10: 33.509 | CU10: 35.552 | CV10: 29.673 | CW10: 28.646 | CX10: 33.462 | CY10: 37.36 | CZ10: 34.7 | DA10: 38.476 | DB10: 33.151 | DC10: 30.164 | DD10: 29.018 | DE10: 34.595 | DF10: 36.138 | DG10: 37.801 | DH10: 33.761 | DI10: 29.001 | DJ10: 33.827 | DK10: 37.432 | DL10: 34.766 | DM10: 38.55 | DN10: 33.215 | DO10: 30.222 | DP10: 29.073 | DQ10: 34.727 | DR10: 36.276 | DS10: 37.946 | DT10: 33.89 | DU10: 29.057 | DV10: 33.892 | DW10: 37.504 | DX10: 34.833 | DY10: 38.624 | DZ10: 33.278 | EA10: 30.279 | EB10: 29.129 | EC10: 34.859 | ED10: 36.415 | EE10: 38.09 | EF10: 34.019 | EG10: 29.111 | EH10: 33.956 | EI10: 37.575 | EJ10: 34.9 | EK10: 38.698 | EL10: 33.341 | EM10: 30.337 | EN10: 29.184 | EO10: 34.993 | EP10: 36.555 | EQ10: 38.237 | ER10: 34.149 | ES10: 29.166 | ET10: 34.021 | EU10: 37.648 | EV10: 34.966 | EW10: 38.772 | EX10: 33.405 | EY10: 30.394 | EZ10: 29.239 | FA10: 35.126 | FB10: 36.694 | FC10: 38.383 | FD10: 34.279 | FE10: 29.221 | FF10: 34.085 | FG10: 37.719 | FH10: 35.033 | FI10: 38.846 | FJ10: 33.468 | FK10: 30.452 | FL10: 29.296 | FM10: 35.26 | FN10: 36.835 | FO10: 38.531 | FP10: 34.41 | FQ10: 29.277 | FR10: 34.151 | FS10: 37.792 | FT10: 35.1 | FU10: 38.921 | FV10: 33.532 | FW10: 30.509 | FX10: 29.351 | FY10: 35.395 | FZ10: 36.976 | GA10: 38.678 | GB10: 34.541 | GC10: 29.332 | GD10: 34.217 | GE10: 37.864 | GF10: 35.167 | GG10: 38.996 | GH10: 33.596 | GI10: 30.567 | GJ10: 29.407 | GK10: 35.53 | GL10: 37.117 | GM10: 38.826 | GN10: 34.673 | GO10: 29.388 | GP10: 34.281 | GQ10: 37.937 | GR10: 35.234 | GS10: 39.07 | GT10: 33.66 | GU10: 30.625 | GV10: 29.463 | GW10: 35.665 | GX10: 37.26 | GY10: 38.976 | GZ10: 34.805 | HA10: 29.443 | HB10: 34.346 | HC10: 38.01 | HD10: 35.302 | HE10: 39.146 | HF10: 33.725 | HG10: 30.683 | HH10: 29.52 | HI10: 35.802 | HJ10: 37.402 | HK10: 39.125 | HL10: 34.938 | HM10: 29.499 | HN10: 34.413 | HO10: 38.082 | HP10: 35.37 | HQ10: 39.221 | HR10: 33.789 | HS10: 30.742 | HT10: 29.576 | HU10: 35.939 | HV10: 37.545 | HW10: 39.276 | HX10: 35.071 | HY10: 29.555 | HZ10: 34.478 | IA10: 38.156 | IB10: 35.438 | IC10: 39.297 | ID10: 33.853 | IE10: 30.8 | IF10: 29.632 | IG10: 36.076 | IH10: 37.689 | II10: 39.426 | IJ10: 35.205
A11: 1 | B11: 10046 | C11: Central Electric Coop | D11: =VLOOKUP(B11,TOCA!$B$3:$E$138,4,FALSE) -> 1 | E11: 114.708 | F11: 167.647 | G11: 198.859 | H11: 172.355 | I11: 164.605 | J11: 132.072 | K11: 129.429 | L11: 117.401 | M11: 106.792 | N11: 110.438 | O11: 106.771 | P11: 109.034 | Q11: 182.394 | R11: 174.439 | S11: 145.144 | T11: 137.208 | U11: 124.915 | V11: 113.076 | W11: 118.066 | X11: 114.14 | Y11: 114.689 | Z11: 121.655 | AA11: 177.299 | AB11: 215.369 | AC11: 125.672 | AD11: 183.557 | AE11: 219.99 | AF11: 189.586 | AG11: 178.92 | AH11: 148.647 | AI11: 141.057 | AJ11: 129.889 | AK11: 119.832 | AL11: 123.81 | AM11: 119.463 | AN11: 118.546 | AO11: 127.145 | AP11: 185.03 | AQ11: 221.463 | AR11: 191.059 | AS11: 180.393 | AT11: 150.12 | AU11: 142.53 | AV11: 131.362 | AW11: 121.305 | AX11: 125.283 | AY11: 120.936 | AZ11: 120.019 | BA11: 135.141 | BB11: 192.878 | BC11: 223.059 | BD11: 196.793 | BE11: 191.969 | BF11: 160.718 | BG11: 152.557 | BH11: 136.228 | BI11: 129.926 | BJ11: 134.47 | BK11: 131.473 | BL11: 123.639 | BM11: 137.873 | BN11: 195.61 | BO11: 225.792 | BP11: 199.525 | BQ11: 194.701 | BR11: 163.45 | BS11: 155.289 | BT11: 138.96 | BU11: 132.658 | BV11: 137.202 | BW11: 134.205 | BX11: 126.371 | BY11: 140.605 | BZ11: 198.343 | CA11: 228.523 | CB11: 202.257 | CC11: 197.433 | CD11: 166.182 | CE11: 158.021 | CF11: 141.692 | CG11: 135.39 | CH11: 139.934 | CI11: 136.937 | CJ11: 129.102 | CK11: 143.336 | CL11: 201.075 | CM11: 231.256 | CN11: 204.989 | CO11: 200.165 | CP11: 168.914 | CQ11: 160.753 | CR11: 144.424 | CS11: 138.122 | CT11: 142.666 | CU11: 139.669 | CV11: 131.835 | CW11: 146.068 | CX11: 203.806 | CY11: 233.988 | CZ11: 207.721 | DA11: 202.897 | DB11: 171.646 | DC11: 163.485 | DD11: 147.156 | DE11: 140.854 | DF11: 145.398 | DG11: 142.401 | DH11: 134.567 | DI11: 148.801 | DJ11: 206.539 | DK11: 236.72 | DL11: 210.453 | DM11: 205.629 | DN11: 174.378 | DO11: 166.217 | DP11: 149.889 | DQ11: 143.586 | DR11: 148.131 | DS11: 145.133 | DT11: 137.299 | DU11: 151.533 | DV11: 209.271 | DW11: 239.452 | DX11: 213.185 | DY11: 208.362 | DZ11: 177.11 | EA11: 168.949 | EB11: 152.62 | EC11: 146.318 | ED11: 150.862 | EE11: 147.866 | EF11: 140.03 | EG11: 154.265 | EH11: 212.003 | EI11: 242.184 | EJ11: 215.918 | EK11: 211.093 | EL11: 179.842 | EM11: 171.681 | EN11: 155.352 | EO11: 149.051 | EP11: 153.594 | EQ11: 150.598 | ER11: 142.762 | ES11: 156.996 | ET11: 214.736 | EU11: 244.916 | EV11: 218.65 | EW11: 213.825 | EX11: 182.574 | EY11: 174.413 | EZ11: 158.084 | FA11: 151.783 | FB11: 156.327 | FC11: 153.329 | FD11: 145.495 | FE11: 159.729 | FF11: 217.467 | FG11: 247.648 | FH11: 221.381 | FI11: 216.557 | FJ11: 185.306 | FK11: 177.145 | FL11: 160.816 | FM11: 154.514 | FN11: 159.059 | FO11: 156.061 | FP11: 148.227 | FQ11: 162.461 | FR11: 220.199 | FS11: 250.381 | FT11: 224.113 | FU11: 219.289 | FV11: 188.038 | FW11: 179.877 | FX11: 163.549 | FY11: 157.246 | FZ11: 161.791 | GA11: 158.794 | GB11: 150.959 | GC11: 165.193 | GD11: 222.931 | GE11: 253.112 | GF11: 226.846 | GG11: 222.022 | GH11: 190.77 | GI11: 182.609 | GJ11: 166.28 | GK11: 159.979 | GL11: 164.523 | GM11: 161.526 | GN11: 153.69 | GO11: 167.925 | GP11: 225.664 | GQ11: 255.844 | GR11: 229.578 | GS11: 224.753 | GT11: 193.502 | GU11: 185.341 | GV11: 169.012 | GW11: 162.711 | GX11: 167.255 | GY11: 164.258 | GZ11: 156.423 | HA11: 170.657 | HB11: 228.395 | HC11: 258.577 | HD11: 232.31 | HE11: 227.485 | HF11: 196.234 | HG11: 188.073 | HH11: 171.744 | HI11: 165.443 | HJ11: 169.987 | HK11: 166.989 | HL11: 159.155 | HM11: 173.389 | HN11: 231.127 | HO11: 261.309 | HP11: 235.042 | HQ11: 230.217 | HR11: 198.966 | HS11: 190.805 | HT11: 174.477 | HU11: 168.175 | HV11: 172.719 | HW11: 169.722 | HX11: 161.887 | HY11: 176.121 | HZ11: 233.86 | IA11: 264.041 | IB11: 237.774 | IC11: 232.949 | ID11: 201.698 | IE11: 193.537 | IF11: 177.209 | IG11: 170.907 | IH11: 175.452 | II11: 172.454 | IJ11: 164.619
A12: 0 | B12: 10047 | C12: Central Lincoln PUD | D12: =VLOOKUP(B12,TOCA!$B$3:$E$138,4,FALSE) -> 0 | E12: 203.76 | F12: 225.786 | G12: 248.217 | H12: 245.278 | I12: 241.202 | J12: 228.565 | K12: 214.371 | L12: 172.124 | M12: 160.158 | N12: 154.243 | O12: 153.321 | P12: 163.369 | Q12: 245.175 | R12: 238.594 | S12: 228.477 | T12: 213.009 | U12: 170.219 | V12: 157.522 | W12: 153.047 | X12: 154.132 | Y12: 160.348 | Z12: 201.301 | AA12: 227.105 | AB12: 247.56 | AC12: 201.8 | AD12: 227.668 | AE12: 250.251 | AF12: 247.86 | AG12: 241.263 | AH12: 229.043 | AI12: 213.536 | AJ12: 170.641 | AK12: 157.912 | AL12: 153.426 | AM12: 154.513 | AN12: 160.744 | AO12: 202.299 | AP12: 228.23 | AQ12: 250.869 | AR12: 248.473 | AS12: 241.859 | AT12: 229.608 | AU12: 214.063 | AV12: 171.062 | AW12: 158.302 | AX12: 153.805 | AY12: 154.894 | AZ12: 161.14 | BA12: 198.047 | BB12: 227.583 | BC12: 250.365 | BD12: 245.995 | BE12: 233.073 | BF12: 221.222 | BG12: 211.593 | BH12: 164.786 | BI12: 153.123 | BJ12: 153.073 | BK12: 154.774 | BL12: 157.504 | BM12: 198.53 | BN12: 228.14 | BO12: 250.978 | BP12: 246.597 | BQ12: 233.643 | BR12: 221.763 | BS12: 212.109 | BT12: 165.186 | BU12: 153.493 | BV12: 153.444 | BW12: 155.149 | BX12: 157.886 | BY12: 186.986 | BZ12: 206.165 | CA12: 241.362 | CB12: 232.996 | CC12: 206.878 | CD12: 223.55 | CE12: 219.641 | CF12: 175.652 | CG12: 148.581 | CH12: 148.721 | CI12: 152.108 | CJ12: 162.252 | CK12: 186.986 | CL12: 206.165 | CM12: 241.362 | CN12: 232.996 | CO12: 206.878 | CP12: 223.55 | CQ12: 219.641 | CR12: 175.652 | CS12: 148.581 | CT12: 148.721 | CU12: 152.108 | CV12: 162.252 | CW12: 184.642 | CX12: 214.999 | CY12: 242.24 | CZ12: 229.519 | DA12: 235.399 | DB12: 229.464 | DC12: 217.576 | DD12: 173.844 | DE12: 157.034 | DF12: 144.934 | DG12: 150.265 | DH12: 164.665 | DI12: 184.642 | DJ12: 214.999 | DK12: 242.24 | DL12: 229.519 | DM12: 235.399 | DN12: 229.464 | DO12: 217.576 | DP12: 173.844 | DQ12: 157.034 | DR12: 144.934 | DS12: 150.265 | DT12: 164.665 | DU12: 184.642 | DV12: 214.999 | DW12: 242.24 | DX12: 229.519 | DY12: 235.399 | DZ12: 229.464 | EA12: 217.576 | EB12: 173.844 | EC12: 157.034 | ED12: 144.934 | EE12: 150.265 | EF12: 164.665 | EG12: 184.642 | EH12: 214.999 | EI12: 242.24 | EJ12: 229.519 | EK12: 235.399 | EL12: 229.464 | EM12: 217.576 | EN12: 173.844 | EO12: 157.034 | EP12: 144.934 | EQ12: 150.265 | ER12: 164.665 | ES12: 184.642 | ET12: 214.999 | EU12: 242.24 | EV12: 229.519 | EW12: 235.399 | EX12: 229.464 | EY12: 217.576 | EZ12: 173.844 | FA12: 157.034 | FB12: 144.934 | FC12: 150.265 | FD12: 164.665 | FE12: 184.642 | FF12: 214.999 | FG12: 242.24 | FH12: 229.519 | FI12: 235.399 | FJ12: 229.464 | FK12: 217.576 | FL12: 173.844 | FM12: 157.034 | FN12: 144.934 | FO12: 150.265 | FP12: 164.665 | FQ12: 184.642 | FR12: 214.999 | FS12: 242.24 | FT12: 229.519 | FU12: 235.399 | FV12: 229.464 | FW12: 217.576 | FX12: 173.844 | FY12: 157.034 | FZ12: 144.934 | GA12: 150.265 | GB12: 164.665 | GC12: 184.642 | GD12: 214.999 | GE12: 242.24 | GF12: 229.519 | GG12: 235.399 | GH12: 229.464 | GI12: 217.576 | GJ12: 173.844 | GK12: 157.034 | GL12: 144.934 | GM12: 150.265 | GN12: 164.665 | GO12: 184.642 | GP12: 214.999 | GQ12: 242.24 | GR12: 229.519 | GS12: 235.399 | GT12: 229.464 | GU12: 217.576 | GV12: 173.844 | GW12: 157.034 | GX12: 144.934 | GY12: 150.265 | GZ12: 164.665 | HA12: 184.642 | HB12: 214.999 | HC12: 242.24 | HD12: 229.519 | HE12: 235.399 | HF12: 229.464 | HG12: 217.576 | HH12: 173.844 | HI12: 157.034 | HJ12: 144.934 | HK12: 150.265 | HL12: 164.665 | HM12: 184.642 | HN12: 214.999 | HO12: 242.24 | HP12: 229.519 | HQ12: 235.399 | HR12: 229.464 | HS12: 217.576 | HT12: 173.844 | HU12: 157.034 | HV12: 144.934 | HW12: 150.265 | HX12: 164.665 | HY12: 184.642 | HZ12: 214.999 | IA12: 242.24 | IB12: 229.519 | IC12: 235.399 | ID12: 229.464 | IE12: 217.576 | IF12: 173.844 | IG12: 157.034 | IH12: 144.934 | II12: 150.265 | IJ12: 164.665
A13: 0 | B13: 10055 | C13: Albion, City of | D13: =VLOOKUP(B13,TOCA!$B$3:$E$138,4,FALSE) -> 0 | E13: 0.62 | F13: 0.788 | G13: 0.914 | H13: 1.002 | I13: 0.835 | J13: 0.775 | K13: 0.648 | L13: 0.525 | M13: 0.437 | N13: 0.473 | O13: 0.459 | P13: 0.419 | Q13: 1.01 | R13: 0.843 | S13: 0.787 | T13: 0.678 | U13: 0.525 | V13: 0.441 | W13: 0.474 | X13: 0.462 | Y13: 0.424 | Z13: 0.625 | AA13: 0.802 | AB13: 1.031 | AC13: 0.616 | AD13: 0.799 | AE13: 1.039 | AF13: 1.013 | AG13: 0.839 | AH13: 0.753 | AI13: 0.668 | AJ13: 0.513 | AK13: 0.43 | AL13: 0.463 | AM13: 0.444 | AN13: 0.41 | AO13: 0.617 | AP13: 0.801 | AQ13: 1.04 | AR13: 1.014 | AS13: 0.841 | AT13: 0.755 | AU13: 0.669 | AV13: 0.515 | AW13: 0.431 | AX13: 0.464 | AY13: 0.446 | AZ13: 0.412 | BA13: 0.614 | BB13: 0.793 | BC13: 1.062 | BD13: 1.006 | BE13: 0.844 | BF13: 0.766 | BG13: 0.647 | BH13: 0.508 | BI13: 0.418 | BJ13: 0.45 | BK13: 0.439 | BL13: 0.398 | BM13: 0.614 | BN13: 0.793 | BO13: 1.062 | BP13: 1.006 | BQ13: 0.844 | BR13: 0.766 | BS13: 0.647 | BT13: 0.508 | BU13: 0.418 | BV13: 0.45 | BW13: 0.439 | BX13: 0.398 | BY13: 0.655 | BZ13: 0.692 | CA13: 1.043 | CB13: 0.976 | CC13: 0.804 | CD13: 0.711 | CE13: 0.628 | CF13: 0.503 | CG13: 0.421 | CH13: 0.45 | CI13: 0.442 | CJ13: 0.403 | CK13: 0.655 | CL13: 0.692 | CM13: 1.043 | CN13: 0.976 | CO13: 0.804 | CP13: 0.711 | CQ13: 0.628 | CR13: 0.503 | CS13: 0.421 | CT13: 0.45 | CU13: 0.442 | CV13: 0.403 | CW13: 0.629 | CX13: 0.672 | CY13: 1.016 | CZ13: 0.953 | DA13: 0.779 | DB13: 0.687 | DC13: 0.61 | DD13: 0.473 | DE13: 0.398 | DF13: 0.426 | DG13: 0.418 | DH13: 0.374 | DI13: 0.629 | DJ13: 0.672 | DK13: 1.016 | DL13: 0.953 | DM13: 0.779 | DN13: 0.687 | DO13: 0.61 | DP13: 0.473 | DQ13: 0.398 | DR13: 0.426 | DS13: 0.418 | DT13: 0.374 | DU13: 0.629 | DV13: 0.672 | DW13: 1.016 | DX13: 0.953 | DY13: 0.779 | DZ13: 0.687 | EA13: 0.61 | EB13: 0.473 | EC13: 0.398 | ED13: 0.426 | EE13: 0.418 | EF13: 0.374 | EG13: 0.629 | EH13: 0.672 | EI13: 1.016 | EJ13: 0.953 | EK13: 0.779 | EL13: 0.687 | EM13: 0.61 | EN13: 0.473 | EO13: 0.398 | EP13: 0.426 | EQ13: 0.418 | ER13: 0.374 | ES13: 0.629 | ET13: 0.672 | EU13: 1.016 | EV13: 0.953 | EW13: 0.779 | EX13: 0.687 | EY13: 0.61 | EZ13: 0.473 | FA13: 0.398 | FB13: 0.426 | FC13: 0.418 | FD13: 0.374 | FE13: 0.629 | FF13: 0.672 | FG13: 1.016 | FH13: 0.953 | FI13: 0.779 | FJ13: 0.687 | FK13: 0.61 | FL13: 0.473 | FM13: 0.398 | FN13: 0.426 | FO13: 0.418 | FP13: 0.374 | FQ13: 0.629 | FR13: 0.672 | FS13: 1.016 | FT13: 0.953 | FU13: 0.779 | FV13: 0.687 | FW13: 0.61 | FX13: 0.473 | FY13: 0.398 | FZ13: 0.426 | GA13: 0.418 | GB13: 0.374 | GC13: 0.629 | GD13: 0.672 | GE13: 1.016 | GF13: 0.953 | GG13: 0.779 | GH13: 0.687 | GI13: 0.61 | GJ13: 0.473 | GK13: 0.398 | GL13: 0.426 | GM13: 0.418 | GN13: 0.374 | GO13: 0.629 | GP13: 0.672 | GQ13: 1.016 | GR13: 0.953 | GS13: 0.779 | GT13: 0.687 | GU13: 0.61 | GV13: 0.473 | GW13: 0.398 | GX13: 0.426 | GY13: 0.418 | GZ13: 0.374 | HA13: 0.629 | HB13: 0.672 | HC13: 1.016 | HD13: 0.953 | HE13: 0.779 | HF13: 0.687 | HG13: 0.61 | HH13: 0.473 | HI13: 0.398 | HJ13: 0.426 | HK13: 0.418 | HL13: 0.374 | HM13: 0.629 | HN13: 0.672 | HO13: 1.016 | HP13: 0.953 | HQ13: 0.779 | HR13: 0.687 | HS13: 0.61 | HT13: 0.473 | HU13: 0.398 | HV13: 0.426 | HW13: 0.418 | HX13: 0.374 | HY13: 0.629 | HZ13: 0.672 | IA13: 1.016 | IB13: 0.953 | IC13: 0.779 | ID13: 0.687 | IE13: 0.61 | IF13: 0.473 | IG13: 0.398 | IH13: 0.426 | II13: 0.418 | IJ13: 0.374
A14: 0 | B14: 10057 | C14: Ashland, City of | D14: =VLOOKUP(B14,TOCA!$B$3:$E$138,4,FALSE) -> 0 | E14: 28.48 | F14: 33.025 | G14: 37.048 | H14: 35.993 | I14: 33.685 | J14: 32.344 | K14: 30.743 | L14: 26.515 | M14: 30.072 | N14: 37.834 | O14: 36.142 | P14: 30.665 | Q14: 36.137 | R14: 33.827 | S14: 32.486 | T14: 30.884 | U14: 26.597 | V14: 30.158 | W14: 37.929 | X14: 36.223 | Y14: 30.743 | Z14: 28.631 | AA14: 33.209 | AB14: 37.21 | AC14: 27.409 | AD14: 32.573 | AE14: 36.765 | AF14: 36.455 | AG14: 33.384 | AH14: 32.669 | AI14: 29.754 | AJ14: 24.873 | AK14: 28.858 | AL14: 36.967 | AM14: 35.195 | AN14: 29.612 | AO14: 27.409 | AP14: 32.573 | AQ14: 36.765 | AR14: 36.455 | AS14: 33.384 | AT14: 32.669 | AU14: 29.754 | AV14: 24.873 | AW14: 28.858 | AX14: 36.967 | AY14: 35.195 | AZ14: 29.612 | BA14: 26.712 | BB14: 31.206 | BC14: 35.554 | BD14: 34.107 | BE14: 33.048 | BF14: 31.542 | BG14: 28.511 | BH14: 24.151 | BI14: 31.249 | BJ14: 37.73 | BK14: 35.667 | BL14: 29.939 | BM14: 26.712 | BN14: 31.206 | BO14: 35.554 | BP14: 34.107 | BQ14: 33.048 | BR14: 31.542 | BS14: 28.511 | BT14: 24.151 | BU14: 31.249 | BV14: 37.73 | BW14: 35.667 | BX14: 29.939 | BY14: 26.712 | BZ14: 31.206 | CA14: 35.554 | CB14: 34.107 | CC14: 33.048 | CD14: 31.542 | CE14: 28.511 | CF14: 24.147 | CG14: 31.243 | CH14: 37.727 | CI14: 35.664 | CJ14: 29.915 | CK14: 26.712 | CL14: 31.206 | CM14: 35.554 | CN14: 34.107 | CO14: 33.048 | CP14: 31.542 | CQ14: 28.511 | CR14: 24.147 | CS14: 31.243 | CT14: 37.727 | CU14: 35.664 | CV14: 29.915 | CW14: 24.512 | CX14: 28.564 | CY14: 34.474 | CZ14: 32.365 | DA14: 31.791 | DB14: 30.221 | DC14: 26.625 | DD14: 18.176 | DE14: 32.509 | DF14: 35.035 | DG14: 34.906 | DH14: 19.397 | DI14: 24.512 | DJ14: 28.564 | DK14: 34.474 | DL14: 32.365 | DM14: 31.791 | DN14: 30.221 | DO14: 26.625 | DP14: 18.176 | DQ14: 32.509 | DR14: 35.035 | DS14: 34.906 | DT14: 19.397 | DU14: 24.512 | DV14: 28.564 | DW14: 34.474 | DX14: 32.365 | DY14: 31.791 | DZ14: 30.221 | EA14: 26.625 | EB14: 18.176 | EC14: 32.509 | ED14: 35.035 | EE14: 34.906 | EF14: 19.397 | EG14: 24.512 | EH14: 28.564 | EI14: 34.474 | EJ14: 32.365 | EK14: 31.791 | EL14: 30.221 | EM14: 26.625 | EN14: 18.176 | EO14: 32.509 | EP14: 35.035 | EQ14: 34.906 | ER14: 19.397 | ES14: 24.512 | ET14: 28.564 | EU14: 34.474 | EV14: 32.365 | EW14: 31.791 | EX14: 30.221 | EY14: 26.625 | EZ14: 18.176 | FA14: 32.509 | FB14: 35.035 | FC14: 34.906 | FD14: 19.397 | FE14: 24.512 | FF14: 28.564 | FG14: 34.474 | FH14: 32.365 | FI14: 31.791 | FJ14: 30.221 | FK14: 26.625 | FL14: 18.176 | FM14: 32.509 | FN14: 35.035 | FO14: 34.906 | FP14: 19.397 | FQ14: 24.512 | FR14: 28.564 | FS14: 34.474 | FT14: 32.365 | FU14: 31.791 | FV14: 30.221 | FW14: 26.625 | FX14: 18.176 | FY14: 32.509 | FZ14: 35.035 | GA14: 34.906 | GB14: 19.397 | GC14: 24.512 | GD14: 28.564 | GE14: 34.474 | GF14: 32.365 | GG14: 31.791 | GH14: 30.221 | GI14: 26.625 | GJ14: 18.176 | GK14: 32.509 | GL14: 35.035 | GM14: 34.906 | GN14: 19.397 | GO14: 24.512 | GP14: 28.564 | GQ14: 34.474 | GR14: 32.365 | GS14: 31.791 | GT14: 30.221 | GU14: 26.625 | GV14: 18.176 | GW14: 32.509 | GX14: 35.035 | GY14: 34.906 | GZ14: 19.397 | HA14: 24.512 | HB14: 28.564 | HC14: 34.474 | HD14: 32.365 | HE14: 31.791 | HF14: 30.221 | HG14: 26.625 | HH14: 18.176 | HI14: 32.509 | HJ14: 35.035 | HK14: 34.906 | HL14: 19.397 | HM14: 24.512 | HN14: 28.564 | HO14: 34.474 | HP14: 32.365 | HQ14: 31.791 | HR14: 30.221 | HS14: 26.625 | HT14: 18.176 | HU14: 32.509 | HV14: 35.035 | HW14: 34.906 | HX14: 19.397 | HY14: 24.512 | HZ14: 28.564 | IA14: 34.474 | IB14: 32.365 | IC14: 31.791 | ID14: 30.221 | IE14: 26.625 | IF14: 18.176 | IG14: 32.509 | IH14: 35.035 | II14: 34.906 | IJ14: 19.397
A15: 0 | B15: 10059 | C15: Bandon, City of | D15: =VLOOKUP(B15,TOCA!$B$3:$E$138,4,FALSE) -> 0 | E15: 11.802 | F15: 13.669 | G15: 14.776 | H15: 16.508 | I15: 14.857 | J15: 15.587 | K15: 13.567 | L15: 8.69 | M15: 8.089 | N15: 7.96 | O15: 8.114 | P15: 8.388 | Q15: 16.549 | R15: 14.894 | S15: 15.625 | T15: 13.601 | U15: 8.712 | V15: 8.109 | W15: 7.98 | X15: 8.134 | Y15: 8.409 | Z15: 11.831 | AA15: 13.703 | AB15: 14.812 | AC15: 11.814 | AD15: 13.684 | AE15: 14.791 | AF15: 16.525 | AG15: 14.873 | AH15: 15.603 | AI15: 13.581 | AJ15: 8.7 | AK15: 8.098 | AL15: 7.969 | AM15: 8.123 | AN15: 8.397 | AO15: 11.844 | AP15: 13.718 | AQ15: 14.828 | AR15: 16.567 | AS15: 14.91 | AT15: 15.642 | AU15: 13.615 | AV15: 8.721 | AW15: 8.118 | AX15: 7.988 | AY15: 8.143 | AZ15: 8.418 | BA15: 11.26 | BB15: 14.274 | BC15: 15.679 | BD15: 16.968 | BE15: 15.873 | BF15: 14.989 | BG15: 13.493 | BH15: 8.554 | BI15: 8.174 | BJ15: 7.887 | BK15: 8.073 | BL15: 8.684 | BM15: 11.288 | BN15: 14.309 | BO15: 15.718 | BP15: 17.01 | BQ15: 15.912 | BR15: 15.026 | BS15: 13.527 | BT15: 8.575 | BU15: 8.195 | BV15: 7.907 | BW15: 8.093 | BX15: 8.705 | BY15: 11.32 | BZ15: 12.482 | CA15: 15.578 | CB15: 17.021 | CC15: 15.674 | CD15: 14.415 | CE15: 13.533 | CF15: 9.523 | CG15: 8.759 | CH15: 7.923 | CI15: 8.101 | CJ15: 9.15 | CK15: 11.348 | CL15: 12.513 | CM15: 15.617 | CN15: 17.063 | CO15: 15.712 | CP15: 14.45 | CQ15: 13.567 | CR15: 9.547 | CS15: 8.781 | CT15: 7.943 | CU15: 8.122 | CV15: 9.172 | CW15: 11.233 | CX15: 12.384 | CY15: 15.453 | CZ15: 16.88 | DA15: 15.541 | DB15: 14.29 | DC15: 13.413 | DD15: 9.437 | DE15: 8.678 | DF15: 7.848 | DG15: 8.023 | DH15: 9.059 | DI15: 11.233 | DJ15: 12.384 | DK15: 15.453 | DL15: 16.88 | DM15: 15.541 | DN15: 14.29 | DO15: 13.413 | DP15: 9.437 | DQ15: 8.678 | DR15: 7.848 | DS15: 8.023 | DT15: 9.059 | DU15: 11.233 | DV15: 12.384 | DW15: 15.453 | DX15: 16.88 | DY15: 15.541 | DZ15: 14.29 | EA15: 13.413 | EB15: 9.437 | EC15: 8.678 | ED15: 7.848 | EE15: 8.023 | EF15: 9.059 | EG15: 11.233 | EH15: 12.384 | EI15: 15.453 | EJ15: 16.88 | EK15: 15.541 | EL15: 14.29 | EM15: 13.413 | EN15: 9.437 | EO15: 8.678 | EP15: 7.848 | EQ15: 8.023 | ER15: 9.059 | ES15: 11.233 | ET15: 12.384 | EU15: 15.453 | EV15: 16.88 | EW15: 15.541 | EX15: 14.29 | EY15: 13.413 | EZ15: 9.437 | FA15: 8.678 | FB15: 7.848 | FC15: 8.023 | FD15: 9.059 | FE15: 11.233 | FF15: 12.384 | FG15: 15.453 | FH15: 16.88 | FI15: 15.541 | FJ15: 14.29 | FK15: 13.413 | FL15: 9.437 | FM15: 8.678 | FN15: 7.848 | FO15: 8.023 | FP15: 9.059 | FQ15: 11.233 | FR15: 12.384 | FS15: 15.453 | FT15: 16.88 | FU15: 15.541 | FV15: 14.29 | FW15: 13.413 | FX15: 9.437 | FY15: 8.678 | FZ15: 7.848 | GA15: 8.023 | GB15: 9.059 | GC15: 11.233 | GD15: 12.384 | GE15: 15.453 | GF15: 16.88 | GG15: 15.541 | GH15: 14.29 | GI15: 13.413 | GJ15: 9.437 | GK15: 8.678 | GL15: 7.848 | GM15: 8.023 | GN15: 9.059 | GO15: 11.233 | GP15: 12.384 | GQ15: 15.453 | GR15: 16.88 | GS15: 15.541 | GT15: 14.29 | GU15: 13.413 | GV15: 9.437 | GW15: 8.678 | GX15: 7.848 | GY15: 8.023 | GZ15: 9.059 | HA15: 11.233 | HB15: 12.384 | HC15: 15.453 | HD15: 16.88 | HE15: 15.541 | HF15: 14.29 | HG15: 13.413 | HH15: 9.437 | HI15: 8.678 | HJ15: 7.848 | HK15: 8.023 | HL15: 9.059 | HM15: 11.233 | HN15: 12.384 | HO15: 15.453 | HP15: 16.88 | HQ15: 15.541 | HR15: 14.29 | HS15: 13.413 | HT15: 9.437 | HU15: 8.678 | HV15: 7.848 | HW15: 8.023 | HX15: 9.059 | HY15: 11.233 | HZ15: 12.384 | IA15: 15.453 | IB15: 16.88 | IC15: 15.541 | ID15: 14.29 | IE15: 13.413 | IF15: 9.437 | IG15: 8.678 | IH15: 7.848 | II15: 8.023 | IJ15: 9.059
... 16 more rows

Sheet I_CDQ
B1: Customer Demand Quantity (MW)
A2: TOC
B3: BESID | C3: AccountName | D3: 10 | E3: 11 | F3: 12 | G3: 1 | H3: =+G3+1 -> 2 | I3: =+H3+1 -> 3 | J3: 4 | K3: 5 | L3: 6 | M3: 7 | N3: 8 | O3: 9
B4: 10005 | C4: Alder Mutual | D4: 0.244 | E4: 0.294 | F4: 0.339 | G4: 0.355 | H4: 0.271 | I4: 0.252 | J4: 0.315 | K4: 0.237 | L4: 0.114 | M4: 0.087 | N4: 0.067 | O4: 0.189
B5: 10015 | C5: Asotin County PUD #1 | D5: 0.914 | E5: 1.084 | F5: 0.942 | G5: 0.875 | H5: 0.846 | I5: 0.763 | J5: 0.617 | K5: 0.897 | L5: 1.271 | M5: 1.015 | N5: 1.404 | O5: 1.037
B6: 10024 | C6: Benton County PUD #1 | D6: 39.696 | E6: 57.259 | F6: 45.258 | G6: 64.307 | H6: 77.589 | I6: 45.642 | J6: 38.215 | K6: 92.689 | L6: 76.249 | M6: 43.356 | N6: 66.886 | O6: 56.635
B7: 10025 | C7: Benton REA | D7: 10.082 | E7: 18.416 | F7: 14.592 | G7: 19.351 | H7: 24.799 | I7: 20.215 | J7: 21.046 | K7: 18.058 | L7: 15.269 | M7: 8.356 | N7: 10.485 | O7: 12.275
B8: 10027 | C8: Big Bend Elec Coop | D8: 11.759 | E8: 8.462 | F8: 6.63 | G8: 7.721 | H8: 11.915 | I8: 10.442 | J8: 15.145 | K8: 25.016 | L8: 15.09 | M8: 6.424 | N8: 4.755 | O8: 14.824
B9: 10029 | C9: Blachly Lane Elec Coop | D9: 5.878 | E9: 5.732 | F9: 7.035 | G9: 5.437 | H9: 6.304 | I9: 5.271 | J9: 6.477 | K9: 4.737 | L9: 2.885 | M9: 2.942 | N9: 1.878 | O9: 3.934
B10: 10044 | C10: Canby, City of | D10: 3.812 | E10: 5.687 | F10: 4.877 | G10: 5.156 | H10: 6.482 | I10: 4.714 | J10: 4.762 | K10: 3.73 | L10: 4.392 | M10: 5.959 | N10: 5.072 | O10: 3.931
B11: 10046 | C11: Central Electric Coop | D11: 49.109 | E11: 60.539 | F11: 52.265 | G11: 52.541 | H11: 65.196 | I11: 45.64 | J11: 44.617 | K11: 29.254 | L11: 14.999 | M11: 14.798 | N11: 11.539 | O11: 21.505
B12: 10047 | C12: Central Lincoln PUD | D12: 30.509 | E12: 41.689 | F12: 33.81 | G12: 36.45 | H12: 47.572 | I12: 33.5 | J12: 34.112 | K12: 26.236 | L12: 8.049 | M12: 2.439 | N12: 0 | O12: 16.614
B13: 10055 | C13: Albion, City of | D13: 0.176 | E13: 0.253 | F13: 0.171 | G13: 0.182 | H13: 0.204 | I13: 0.186 | J13: 0.312 | K13: 0.175 | L13: 0.093 | M13: 0.055 | N13: 0.061 | O13: 0.135
B14: 10057 | C14: Ashland, City of | D14: 5.166 | E14: 6.451 | F14: 5.869 | G14: 5.094 | H14: 5.616 | I14: 5.264 | J14: 4.651 | K14: 5.988 | L14: 8.027 | M14: 9.546 | N14: 8.644 | O14: 5.741
B15: 10059 | C15: Bandon, City of | D15: 3.428 | E15: 3.42 | F15: 3.326 | G15: 3.245 | H15: 4.088 | I15: 3.106 | J15: 3.656 | K15: 2.382 | L15: 1.213 | M15: 0.801 | N15: 0.935 | O15: 2.052
... 18 more rows

Sheet I_NLSL
B1: New Large Single Loads (self-supplied) (MWh)
A2: TOC | D2: 2015-10-01 | E2: 2015-10-01 | F2: 2015-11-01 | G2: 2015-11-01 | H2: 2015-12-01 | I2: 2015-12-01 | J2: 2016-01-01 | K2: 2016-01-01 | L2: 2016-02-01 | M2: 2016-02-01 | N2: 2016-03-01 | O2: 2016-03-01 | P2: 2016-04-01 | Q2: 2016-04-01 | R2: 2016-05-01 | S2: 2016-05-01 | T2: 2016-06-01 | U2: 2016-06-01 | V2: 2016-07-01 | W2: 2016-07-01 | X2: 2016-08-01 | Y2: 2016-08-01 | Z2: 2016-09-01 | AA2: 2016-09-01 | AB2: 2016-10-01 | AC2: 2016-10-01 | AD2: 2016-11-01 | AE2: 2016-11-01 | AF2: 2016-12-01 | AG2: 2016-12-01 | AH2: 2017-01-01 | AI2: 2017-01-01 | AJ2: 2017-02-01 | AK2: 2017-02-01 | AL2: 2017-03-01 | AM2: 2017-03-01 | AN2: 2017-04-01 | AO2: 2017-04-01 | AP2: 2017-05-01 | AQ2: 2017-05-01 | AR2: 2017-06-01 | AS2: 2017-06-01 | AT2: 2017-07-01 | AU2: 2017-07-01 | AV2: 2017-08-01 | AW2: 2017-08-01 | AX2: 2017-09-01 | AY2: 2017-09-01 | AZ2: 2017-10-01 | BA2: 2017-10-01 | BB2: 2017-11-01 | BC2: 2017-11-01 | BD2: 2017-12-01 | BE2: 2017-12-01 | BF2: 2018-01-01 | BG2: 2018-01-01 | BH2: 2018-02-01 | BI2: 2018-02-01 | BJ2: 2018-03-01 | BK2: 2018-03-01 | BL2: 2018-04-01 | BM2: 2018-04-01 | BN2: 2018-05-01 | BO2: 2018-05-01 | BP2: 2018-06-01 | BQ2: 2018-06-01 | BR2: 2018-07-01 | BS2: 2018-07-01 | BT2: 2018-08-01 | BU2: 2018-08-01 | BV2: 2018-09-01 | BW2: 2018-09-01 | BX2: 2018-10-01 | BY2: 2018-10-01 | BZ2: 2018-11-01 | CA2: 2018-11-01 | CB2: 2018-12-01 | CC2: 2018-12-01 | CD2: 2019-01-01 | CE2: 2019-01-01 | CF2: 2019-02-01 | CG2: 2019-02-01 | CH2: 2019-03-01 | CI2: 2019-03-01 | CJ2: 2019-04-01 | CK2: 2019-04-01 | CL2: 2019-05-01 | CM2: 2019-05-01 | CN2: 2019-06-01 | CO2: 2019-06-01 | CP2: 2019-07-01 | CQ2: 2019-07-01 | CR2: 2019-08-01 | CS2: 2019-08-01 | CT2: 2019-09-01 | CU2: 2019-09-01 | CV2: 2019-10-01 | CW2: 2019-10-01 | CX2: 2019-11-01 | CY2: 2019-11-01 | CZ2: 2019-12-01 | DA2: 2019-12-01 | DB2: 2020-01-01 | DC2: 2020-01-01 | DD2: 2020-02-01 | DE2: 2020-02-01 | DF2: 2020-03-01 | DG2: 2020-03-01 | DH2: 2020-04-01 | DI2: 2020-04-01 | DJ2: 2020-05-01 | DK2: 2020-05-01 | DL2: 2020-06-01 | DM2: 2020-06-01 | DN2: 2020-07-01 | DO2: 2020-07-01 | DP2: 2020-08-01 | DQ2: 2020-08-01 | DR2: 2020-09-01 | DS2: 2020-09-01 | DT2: 2020-10-01 | DU2: 2020-10-01 | DV2: 2020-11-01 | DW2: 2020-11-01 | DX2: 2020-12-01 | DY2: 2020-12-01 | DZ2: 2021-01-01 | EA2: 2021-01-01 | EB2: 2021-02-01 | EC2: 2021-02-01 | ED2: 2021-03-01 | EE2: 2021-03-01 | EF2: 2021-04-01 | EG2: 2021-04-01 | EH2: 2021-05-01 | EI2: 2021-05-01 | EJ2: 2021-06-01 | EK2: 2021-06-01 | EL2: 2021-07-01 | EM2: 2021-07-01 | EN2: 2021-08-01 | EO2: 2021-08-01 | EP2: 2021-09-01 | EQ2: 2021-09-01 | ER2: 2021-10-01 | ES2: 2021-10-01 | ET2: 2021-11-01 | EU2: 2021-11-01 | EV2: 2021-12-01 | EW2: 2021-12-01 | EX2: 2022-01-01 | EY2: 2022-01-01 | EZ2: 2022-02-01 | FA2: 2022-02-01 | FB2: 2022-03-01 | FC2: 2022-03-01 | FD2: 2022-04-01 | FE2: 2022-04-01 | FF2: 2022-05-01 | FG2: 2022-05-01 | FH2: 2022-06-01 | FI2: 2022-06-01 | FJ2: 2022-07-01 | FK2: 2022-07-01 | FL2: 2022-08-01 | FM2: 2022-08-01 | FN2: 2022-09-01 | FO2: 2022-09-01 | FP2: 2022-10-01 | FQ2: 2022-10-01 | FR2: 2022-11-01 | FS2: 2022-11-01 | FT2: 2022-12-01 | FU2: 2022-12-01 | FV2: 2023-01-01 | FW2: 2023-01-01 | FX2: 2023-02-01 | FY2: 2023-02-01 | FZ2: 2023-03-01 | GA2: 2023-03-01 | GB2: 2023-04-01 | GC2: 2023-04-01 | GD2: 2023-05-01 | GE2: 2023-05-01 | GF2: 2023-06-01 | GG2: 2023-06-01 | GH2: 2023-07-01 | GI2: 2023-07-01 | GJ2: 2023-08-01 | GK2: 2023-08-01 | GL2: 2023-09-01 | GM2: 2023-09-01 | GN2: 2023-10-01 | GO2: 2023-10-01 | GP2: 2023-11-01 | GQ2: 2023-11-01 | GR2: 2023-12-01 | GS2: 2023-12-01 | GT2: 2024-01-01 | GU2: 2024-01-01 | GV2: 2024-02-01 | GW2: 2024-02-01 | GX2: 2024-03-01 | GY2: 2024-03-01 | GZ2: 2024-04-01 | HA2: 2024-04-01 | HB2: 2024-05-01 | HC2: 2024-05-01 | HD2: 2024-06-01 | HE2: 2024-06-01 | HF2: 2024-07-01 | HG2: 2024-07-01 | HH2: 2024-08-01 | HI2: 2024-08-01 | HJ2: 2024-09-01 | HK2: 2024-09-01 | HL2: 2024-10-01 | HM2: 2024-10-01 | HN2: 2024-11-01 | HO2: 2024-11-01 | HP2: 2024-12-01 | HQ2: 2024-12-01 | HR2: 2025-01-01 | HS2: 2025-01-01 | HT2: 2025-02-01 | HU2: 2025-02-01 | HV2: 2025-03-01 | HW2: 2025-03-01 | HX2: 2025-04-01 | HY2: 2025-04-01 | HZ2: 2025-05-01 | IA2: 2025-05-01 | IB2: 2025-06-01 | IC2: 2025-06-01 | ID2: 2025-07-01 | IE2: 2025-07-01 | IF2: 2025-08-01 | IG2: 2025-08-01 | IH2: 2025-09-01 | II2: 2025-09-01 | IJ2: 2025-10-01 | IK2: 2025-10-01 | IL2: 2025-11-01 | IM2: 2025-11-01 | IN2: 2025-12-01 | IO2: 2025-12-01 | IP2: 2026-01-01 | IQ2: 2026-01-01 | IR2: 2026-02-01 | IS2: 2026-02-01 | IT2: 2026-03-01 | IU2: 2026-03-01 | IV2: 2026-04-01 | IW2: 2026-04-01 | IX2: 2026-05-01 | IY2: 2026-05-01 | IZ2: 2026-06-01 | JA2: 2026-06-01 | JB2: 2026-07-01 | JC2: 2026-07-01 | JD2: 2026-08-01 | JE2: 2026-08-01 | JF2: 2026-09-01 | JG2: 2026-09-01 | JH2: 2026-10-01 | JI2: 2026-10-01 | JJ2: 2026-11-01 | JK2: 2026-11-01 | JL2: 2026-12-01 | JM2: 2026-12-01 | JN2: 2027-01-01 | JO2: 2027-01-01 | JP2: 2027-02-01 | JQ2: 2027-02-01 | JR2: 2027-03-01 | JS2: 2027-03-01 | JT2: 2027-04-01 | JU2: 2027-04-01 | JV2: 2027-05-01 | JW2: 2027-05-01 | JX2: 2027-06-01 | JY2: 2027-06-01 | JZ2: 2027-07-01 | KA2: 2027-07-01 | KB2: 2027-08-01 | KC2: 2027-08-01 | KD2: 2027-09-01 | KE2: 2027-09-01 | KF2: 2027-10-01 | KG2: 2027-10-01 | KH2: 2027-11-01 | KI2: 2027-11-01 | KJ2: 2027-12-01 | KK2: 2027-12-01 | KL2: 2028-01-01 | KM2: 2028-01-01 | KN2: 2028-02-01 | KO2: 2028-02-01 | KP2: 2028-03-01 | KQ2: 2028-03-01 | KR2: 2028-04-01 | KS2: 2028-04-01 | KT2: 2028-05-01 | KU2: 2028-05-01 | KV2: 2028-06-01 | KW2: 2028-06-01 | KX2: 2028-07-01 | KY2: 2028-07-01 | KZ2: 2028-08-01 | LA2: 2028-08-01 | LB2: 2028-09-01 | LC2: 2028-09-01 | LD2: 2028-10-01 | LE2: 2028-10-01 | LF2: 2028-11-01 | LG2: 2028-11-01 | LH2: 2028-12-01 | LI2: 2028-12-01 | LJ2: 2029-01-01 | LK2: 2029-01-01 | LL2: 2029-02-01 | LM2: 2029-02-01 | LN2: 2029-03-01 | LO2: 2029-03-01 | LP2: 2029-04-01 | LQ2: 2029-04-01 | LR2: 2029-05-01 | LS2: 2029-05-01 | LT2: 2029-06-01 | LU2: 2029-06-01 | LV2: 2029-07-01 | LW2: 2029-07-01 | LX2: 2029-08-01 | LY2: 2029-08-01 | LZ2: 2029-09-01 | MA2: 2029-09-01 | MB2: 2029-10-01 | MC2: 2029-10-01 | MD2: 2029-11-01 | ME2: 2029-11-01 | MF2: 2029-12-01 | MG2: 2029-12-01 | MH2: 2030-01-01 | MI2: 2030-01-01 | MJ2: 2030-02-01 | MK2: 2030-02-01 | ML2: 2030-03-01 | MM2: 2030-03-01 | MN2: 2030-04-01 | MO2: 2030-04-01 | MP2: 2030-05-01 | MQ2: 2030-05-01 | MR2: 2030-06-01 | MS2: 2030-06-01 | MT2: 2030-07-01 | MU2: 2030-07-01 | MV2: 2030-08-01 | MW2: 2030-08-01 | MX2: 2030-09-01 | MY2: 2030-09-01 | MZ2: 2030-10-01 | NA2: 2030-10-01 | NB2: 2030-11-01 | NC2: 2030-11-01 | ND2: 2030-12-01 | NE2: 2030-12-01 | NF2: 2031-01-01 | NG2: 2031-01-01 | NH2: 2031-02-01 | NI2: 2031-02-01 | NJ2: 2031-03-01 | NK2: 2031-03-01 | NL2: 2031-04-01 | NM2: 2031-04-01 | NN2: 2031-05-01 | NO2: 2031-05-01 | NP2: 2031-06-01 | NQ2: 2031-06-01 | NR2: 2031-07-01 | NS2: 2031-07-01 | NT2: 2031-08-01 | NU2: 2031-08-01 | NV2: 2031-09-01 | NW2: 2031-09-01 | NX2: =DATE(YEAR(NV2),MONTH(NV2)+1,1) -> 2031-10-01 | NY2: 2031-10-01 | NZ2: 2031-11-01 | OA2: 2031-11-01 | OB2: 2031-12-01 | OC2: 2031-12-01 | OD2: 2032-01-01 | OE2: 2032-01-01 | OF2: 2032-02-01 | OG2: 2032-02-01 | OH2: 2032-03-01 | OI2: 2032-03-01 | OJ2: 2032-04-01 | OK2: 2032-04-01 | OL2: 2032-05-01 | OM2: 2032-05-01 | ON2: 2032-06-01 | OO2: 2032-06-01 | OP2: 2032-07-01 | OQ2: 2032-07-01 | OR2: 2032-08-01 | OS2: 2032-08-01 | OT2: 2032-09-01 | OU2: 2032-09-01 | OV2: 2032-10-01 | OW2: 2032-10-01 | OX2: 2032-11-01 | OY2: 2032-11-01 | OZ2: 2032-12-01 | PA2: 2032-12-01 | PB2: 2033-01-01 | PC2: 2033-01-01 | PD2: 2033-02-01 | PE2: 2033-02-01 | PF2: 2033-03-01 | PG2: 2033-03-01 | PH2: 2033-04-01 | PI2: 2033-04-01 | PJ2: 2033-05-01 | PK2: 2033-05-01 | PL2: 2033-06-01 | PM2: 2033-06-01 | PN2: 2033-07-01 | PO2: 2033-07-01 | PP2: 2033-08-01 | PQ2: 2033-08-01 | PR2: 2033-09-01 | PS2: 2033-09-01 | PT2: 2033-10-01 | PU2: 2033-10-01 | PV2: 2033-11-01 | PW2: 2033-11-01 | PX2: 2033-12-01 | PY2: 2033-12-01 | PZ2: 2034-01-01 | QA2: 2034-01-01 | QB2: 2034-02-01 | QC2: 2034-02-01 | QD2: 2034-03-01 | QE2: 2034-03-01 | QF2: 2034-04-01 | QG2: 2034-04-01 | QH2: 2034-05-01 | QI2: 2034-05-01 | QJ2: 2034-06-01 | QK2: 2034-06-01 | QL2: 2034-07-01 | QM2: 2034-07-01 | QN2: 2034-08-01 | QO2: 2034-08-01 | QP2: 2034-09-01 | QQ2: 2034-09-01 | QR2: 2034-10-01 | QS2: 2034-10-01 | QT2: 2034-11-01 | QU2: 2034-11-01 | QV2: 2034-12-01 | QW2: 2034-12-01 | QX2: 2035-01-01 | QY2: 2035-01-01 | QZ2: 2035-02-01 | RA2: 2035-02-01 | RB2: 2035-03-01 | RC2: 2035-03-01 | RD2: 2035-04-01 | RE2: 2035-04-01 | RF2: 2035-05-01 | RG2: 2035-05-01 | RH2: 2035-06-01 | RI2: 2035-06-01 | RJ2: 2035-07-01 | RK2: 2035-07-01 | RL2: 2035-08-01 | RM2: 2035-08-01 | RN2: 2035-09-01 | RO2: 2035-09-01 | RQ2: 2016 | RR2: 2017 | RS2: 2018 | RT2: 2019 | RU2: 2020 | RV2: 2021 | RW2: 2022 | RX2: 2023 | RY2: 2024 | RZ2: 2025 | SA2: 2026 | SB2: 2027 | SC2: 2028 | SD2: 2029 | SE2: 2030 | SF2: 2031 | SG2: 2032 | SH2: 2033 | SI2: 2034 | SJ2: 2035
B3: BESID | C3: AccountName | D3: HLH | E3: LLH | F3: HLH | G3: LLH | H3: HLH | I3: LLH | J3: HLH | K3: LLH | L3: HLH | M3: LLH | N3: HLH | O3: LLH | P3: HLH | Q3: LLH | R3: HLH | S3: LLH | T3: HLH | U3: LLH | V3: HLH | W3: LLH | X3: HLH | Y3: LLH | Z3: HLH | AA3: LLH | AB3: HLH | AC3: LLH | AD3: HLH | AE3: LLH | AF3: HLH | AG3: LLH | AH3: HLH | AI3: LLH | AJ3: HLH | AK3: LLH | AL3: HLH | AM3: LLH | AN3: HLH | AO3: LLH | AP3: HLH | AQ3: LLH | AR3: HLH | AS3: LLH | AT3: HLH | AU3: LLH | AV3: HLH | AW3: LLH | AX3: HLH | AY3: LLH | AZ3: HLH | BA3: LLH | BB3: HLH | BC3: LLH | BD3: HLH | BE3: LLH | BF3: HLH | BG3: LLH | BH3: HLH | BI3: LLH | BJ3: HLH | BK3: LLH | BL3: HLH | BM3: LLH | BN3: HLH | BO3: LLH | BP3: HLH | BQ3: LLH | BR3: HLH | BS3: LLH | BT3: HLH | BU3: LLH | BV3: HLH | BW3: LLH | BX3: HLH | BY3: LLH | BZ3: HLH | CA3: LLH | CB3: HLH | CC3: LLH | CD3: HLH | CE3: LLH | CF3: HLH | CG3: LLH | CH3: HLH | CI3: LLH | CJ3: HLH | CK3: LLH | CL3: HLH | CM3: LLH | CN3: HLH | CO3: LLH | CP3: HLH | CQ3: LLH | CR3: HLH | CS3: LLH | CT3: HLH | CU3: LLH | CV3: HLH | CW3: LLH | CX3: HLH | CY3: LLH | CZ3: HLH | DA3: LLH | DB3: HLH | DC3: LLH | DD3: HLH | DE3: LLH | DF3: HLH | DG3: LLH | DH3: HLH | DI3: LLH | DJ3: HLH | DK3: LLH | DL3: HLH | DM3: LLH | DN3: HLH | DO3: LLH | DP3: HLH | DQ3: LLH | DR3: HLH | DS3: LLH | DT3: HLH | DU3: LLH | DV3: HLH | DW3: LLH | DX3: HLH | DY3: LLH | DZ3: HLH | EA3: LLH | EB3: HLH | EC3: LLH | ED3: HLH | EE3: LLH | EF3: HLH | EG3: LLH | EH3: HLH | EI3: LLH | EJ3: HLH | EK3: LLH | EL3: HLH | EM3: LLH | EN3: HLH | EO3: LLH | EP3: HLH | EQ3: LLH | ER3: HLH | ES3: LLH | ET3: HLH | EU3: LLH | EV3: HLH | EW3: LLH | EX3: HLH | EY3: LLH | EZ3: HLH | FA3: LLH | FB3: HLH | FC3: LLH | FD3: HLH | FE3: LLH | FF3: HLH | FG3: LLH | FH3: HLH | FI3: LLH | FJ3: HLH | FK3: LLH | FL3: HLH | FM3: LLH | FN3: HLH | FO3: LLH | FP3: HLH | FQ3: LLH | FR3: HLH | FS3: LLH | FT3: HLH | FU3: LLH | FV3: HLH | FW3: LLH | FX3: HLH | FY3: LLH | FZ3: HLH | GA3: LLH | GB3: HLH | GC3: LLH | GD3: HLH | GE3: LLH | GF3: HLH | GG3: LLH | GH3: HLH | GI3: LLH | GJ3: HLH | GK3: LLH | GL3: HLH | GM3: LLH | GN3: HLH | GO3: LLH | GP3: HLH | GQ3: LLH | GR3: HLH | GS3: LLH | GT3: HLH | GU3: LLH | GV3: HLH | GW3: LLH | GX3: HLH | GY3: LLH | GZ3: HLH | HA3: LLH | HB3: HLH | HC3: LLH | HD3: HLH | HE3: LLH | HF3: HLH | HG3: LLH | HH3: HLH | HI3: LLH | HJ3: HLH | HK3: LLH | HL3: HLH | HM3: LLH | HN3: HLH | HO3: LLH | HP3: HLH | HQ3: LLH | HR3: HLH | HS3: LLH | HT3: HLH | HU3: LLH | HV3: HLH | HW3: LLH | HX3: HLH | HY3: LLH | HZ3: HLH | IA3: LLH | IB3: HLH | IC3: LLH | ID3: HLH | IE3: LLH | IF3: HLH | IG3: LLH | IH3: HLH | II3: LLH | IJ3: HLH | IK3: LLH | IL3: HLH | IM3: LLH | IN3: HLH | IO3: LLH | IP3: HLH | IQ3: LLH | IR3: HLH | IS3: LLH | IT3: HLH | IU3: LLH | IV3: HLH | IW3: LLH | IX3: HLH | IY3: LLH | IZ3: HLH | JA3: LLH | JB3: HLH | JC3: LLH | JD3: HLH | JE3: LLH | JF3: HLH | JG3: LLH | JH3: HLH | JI3: LLH | JJ3: HLH | JK3: LLH | JL3: HLH | JM3: LLH | JN3: HLH | JO3: LLH | JP3: HLH | JQ3: LLH | JR3: HLH | JS3: LLH | JT3: HLH | JU3: LLH | JV3: HLH | JW3: LLH | JX3: HLH | JY3: LLH | JZ3: HLH | KA3: LLH | KB3: HLH | KC3: LLH | KD3: HLH | KE3: LLH | KF3: HLH | KG3: LLH | KH3: HLH | KI3: LLH | KJ3: HLH | KK3: LLH | KL3: HLH | KM3: LLH | KN3: HLH | KO3: LLH | KP3: HLH | KQ3: LLH | KR3: HLH | KS3: LLH | KT3: HLH | KU3: LLH | KV3: HLH | KW3: LLH | KX3: HLH | KY3: LLH | KZ3: HLH | LA3: LLH | LB3: HLH | LC3: LLH | LD3: HLH | LE3: LLH | LF3: HLH | LG3: LLH | LH3: HLH | LI3: LLH | LJ3: HLH | LK3: LLH | LL3: HLH | LM3: LLH | LN3: HLH | LO3: LLH | LP3: HLH | LQ3: LLH | LR3: HLH | LS3: LLH | LT3: HLH | LU3: LLH | LV3: HLH | LW3: LLH | LX3: HLH | LY3: LLH | LZ3: HLH | MA3: LLH | MB3: HLH | MC3: LLH | MD3: HLH | ME3: LLH | MF3: HLH | MG3: LLH | MH3: HLH | MI3: LLH | MJ3: HLH | MK3: LLH | ML3: HLH | MM3: LLH | MN3: HLH | MO3: LLH | MP3: HLH | MQ3: LLH | MR3: HLH | MS3: LLH | MT3: HLH | MU3: LLH | MV3: HLH | MW3: LLH | MX3: HLH | MY3: LLH | MZ3: HLH | NA3: LLH | NB3: HLH | NC3: LLH | ND3: HLH | NE3: LLH | NF3: HLH | NG3: LLH | NH3: HLH | NI3: LLH | NJ3: HLH | NK3: LLH | NL3: HLH | NM3: LLH | NN3: HLH | NO3: LLH | NP3: HLH | NQ3: LLH | NR3: HLH | NS3: LLH | NT3: HLH | NU3: LLH | NV3: HLH | NW3: LLH | NX3: HLH | NY3: LLH | NZ3: HLH | OA3: LLH | OB3: HLH | OC3: LLH | OD3: HLH | OE3: LLH | OF3: HLH | OG3: LLH | OH3: HLH | OI3: LLH | OJ3: HLH | OK3: LLH | OL3: HLH | OM3: LLH | ON3: HLH | OO3: LLH | OP3: HLH | OQ3: LLH | OR3: HLH | OS3: LLH | OT3: HLH | OU3: LLH | OV3: HLH | OW3: LLH | OX3: HLH | OY3: LLH | OZ3: HLH | PA3: LLH | PB3: HLH | PC3: LLH | PD3: HLH | PE3: LLH | PF3: HLH | PG3: LLH | PH3: HLH | PI3: LLH | PJ3: HLH | PK3: LLH | PL3: HLH | PM3: LLH | PN3: HLH | PO3: LLH | PP3: HLH | PQ3: LLH | PR3: HLH | PS3: LLH | PT3: HLH | PU3: LLH | PV3: HLH | PW3: LLH | PX3: HLH | PY3: LLH | PZ3: HLH | QA3: LLH | QB3: HLH | QC3: LLH | QD3: HLH | QE3: LLH | QF3: HLH | QG3: LLH | QH3: HLH | QI3: LLH | QJ3: HLH | QK3: LLH | QL3: HLH | QM3: LLH | QN3: HLH | QO3: LLH | QP3: HLH | QQ3: LLH | QR3: HLH | QS3: LLH | QT3: HLH | QU3: LLH | QV3: HLH | QW3: LLH | QX3: HLH | QY3: LLH | QZ3: HLH | RA3: LLH | RB3: HLH | RC3: LLH | RD3: HLH | RE3: LLH | RF3: HLH | RG3: LLH | RH3: HLH | RI3: LLH | RJ3: HLH | RK3: LLH | RL3: HLH | RM3: LLH | RN3: HLH | RO3: LLH
B4: 10005 | C4: Alder Mutual | D4: 0 | E4: 0 | F4: 0 | G4: 0 | H4: 0 | I4: 0 | J4: 0 | K4: 0 | L4: 0 | M4: 0 | N4: 0 | O4: 0 | P4: 0 | Q4: 0 | R4: 0 | S4: 0 | T4: 0 | U4: 0 | V4: 0 | W4: 0 | X4: 0 | Y4: 0 | Z4: 0 | AA4: 0 | AB4: 0 | AC4: 0 | AD4: 0 | AE4: 0 | AF4: 0 | AG4: 0 | AH4: 0 | AI4: 0 | AJ4: 0 | AK4: 0 | AL4: 0 | AM4: 0 | AN4: 0 | AO4: 0 | AP4: 0 | AQ4: 0 | AR4: 0 | AS4: 0 | AT4: 0 | AU4: 0 | AV4: 0 | AW4: 0 | AX4: 0 | AY4: 0 | AZ4: 0 | BA4: 0 | BB4: 0 | BC4: 0 | BD4: 0 | BE4: 0 | BF4: 0 | BG4: 0 | BH4: 0 | BI4: 0 | BJ4: 0 | BK4: 0 | BL4: 0 | BM4: 0 | BN4: 0 | BO4: 0 | BP4: 0 | BQ4: 0 | BR4: 0 | BS4: 0 | BT4: 0 | BU4: 0 | BV4: 0 | BW4: 0 | BX4: 0 | BY4: 0 | BZ4: 0 | CA4: 0 | CB4: 0 | CC4: 0 | CD4: 0 | CE4: 0 | CF4: 0 | CG4: 0 | CH4: 0 | CI4: 0 | CJ4: 0 | CK4: 0 | CL4: 0 | CM4: 0 | CN4: 0 | CO4: 0 | CP4: 0 | CQ4: 0 | CR4: 0 | CS4: 0 | CT4: 0 | CU4: 0 | CV4: 0 | CW4: 0 | CX4: 0 | CY4: 0 | CZ4: 0 | DA4: 0 | DB4: 0 | DC4: 0 | DD4: 0 | DE4: 0 | DF4: 0 | DG4: 0 | DH4: 0 | DI4: 0 | DJ4: 0 | DK4: 0 | DL4: 0 | DM4: 0 | DN4: 0 | DO4: 0 | DP4: 0 | DQ4: 0 | DR4: 0 | DS4: 0 | DT4: 0 | DU4: 0 | DV4: 0 | DW4: 0 | DX4: 0 | DY4: 0 | DZ4: 0 | EA4: 0 | EB4: 0 | EC4: 0 | ED4: 0 | EE4: 0 | EF4: 0 | EG4: 0 | EH4: 0 | EI4: 0 | EJ4: 0 | EK4: 0 | EL4: 0 | EM4: 0 | EN4: 0 | EO4: 0 | EP4: 0 | EQ4: 0 | ER4: 0 | ES4: 0 | ET4: 0 | EU4: 0 | EV4: 0 | EW4: 0 | EX4: 0 | EY4: 0 | EZ4: 0 | FA4: 0 | FB4: 0 | FC4: 0 | FD4: 0 | FE4: 0 | FF4: 0 | FG4: 0 | FH4: 0 | FI4: 0 | FJ4: 0 | FK4: 0 | FL4: 0 | FM4: 0 | FN4: 0 | FO4: 0 | FP4: 0 | FQ4: 0 | FR4: 0 | FS4: 0 | FT4: 0 | FU4: 0 | FV4: 0 | FW4: 0 | FX4: 0 | FY4: 0 | FZ4: 0 | GA4: 0 | GB4: 0 | GC4: 0 | GD4: 0 | GE4: 0 | GF4: 0 | GG4: 0 | GH4: 0 | GI4: 0 | GJ4: 0 | GK4: 0 | GL4: 0 | GM4: 0 | GN4: 0 | GO4: 0 | GP4: 0 | GQ4: 0 | GR4: 0 | GS4: 0 | GT4: 0 | GU4: 0 | GV4: 0 | GW4: 0 | GX4: 0 | GY4: 0 | GZ4: 0 | HA4: 0 | HB4: 0 | HC4: 0 | HD4: 0 | HE4: 0 | HF4: 0 | HG4: 0 | HH4: 0 | HI4: 0 | HJ4: 0 | HK4: 0 | HL4: 0 | HM4: 0 | HN4: 0 | HO4: 0 | HP4: 0 | HQ4: 0 | HR4: 0 | HS4: 0 | HT4: 0 | HU4: 0 | HV4: 0 | HW4: 0 | HX4: 0 | HY4: 0 | HZ4: 0 | IA4: 0 | IB4: 0 | IC4: 0 | ID4: 0 | IE4: 0 | IF4: 0 | IG4: 0 | IH4: 0 | II4: 0 | IJ4: 0 | IK4: 0 | IL4: 0 | IM4: 0 | IN4: 0 | IO4: 0 | IP4: 0 | IQ4: 0 | IR4: 0 | IS4: 0 | IT4: 0 | IU4: 0 | IV4: 0 | IW4: 0 | IX4: 0 | IY4: 0 | IZ4: 0 | JA4: 0 | JB4: 0 | JC4: 0 | JD4: 0 | JE4: 0 | JF4: 0 | JG4: 0 | JH4: 0 | JI4: 0 | JJ4: 0 | JK4: 0 | JL4: 0 | JM4: 0 | JN4: 0 | JO4: 0 | JP4: 0 | JQ4: 0 | JR4: 0 | JS4: 0 | JT4: 0 | JU4: 0 | JV4: 0 | JW4: 0 | JX4: 0 | JY4: 0 | JZ4: 0 | KA4: 0 | KB4: 0 | KC4: 0 | KD4: 0 | KE4: 0 | KF4: 0 | KG4: 0 | KH4: 0 | KI4: 0 | KJ4: 0 | KK4: 0 | KL4: 0 | KM4: 0 | KN4: 0 | KO4: 0 | KP4: 0 | KQ4: 0 | KR4: 0 | KS4: 0 | KT4: 0 | KU4: 0 | KV4: 0 | KW4: 0 | KX4: 0 | KY4: 0 | KZ4: 0 | LA4: 0 | LB4: 0 | LC4: 0 | LD4: 0 | LE4: 0 | LF4: 0 | LG4: 0 | LH4: 0 | LI4: 0 | LJ4: 0 | LK4: 0 | LL4: 0 | LM4: 0 | LN4: 0 | LO4: 0 | LP4: 0 | LQ4: 0 | LR4: 0 | LS4: 0 | LT4: 0 | LU4: 0 | LV4: 0 | LW4: 0 | LX4: 0 | LY4: 0 | LZ4: 0 | MA4: 0 | MB4: 0 | MC4: 0 | MD4: 0 | ME4: 0 | MF4: 0 | MG4: 0 | MH4: 0 | MI4: 0 | MJ4: 0 | MK4: 0 | ML4: 0 | MM4: 0 | MN4: 0 | MO4: 0 | MP4: 0 | MQ4: 0 | MR4: 0 | MS4: 0 | MT4: 0 | MU4: 0 | MV4: 0 | MW4: 0 | MX4: 0 | MY4: 0 | MZ4: 0 | NA4: 0 | NB4: 0 | NC4: 0 | ND4: 0 | NE4: 0 | NF4: 0 | NG4: 0 | NH4: 0 | NI4: 0 | NJ4: 0 | NK4: 0 | NL4: 0 | NM4: 0 | NN4: 0 | NO4: 0 | NP4: 0 | NQ4: 0 | NR4: 0 | NS4: 0 | NT4: 0 | NU4: 0 | NV4: 0 | NW4: 0 | NX4: 0 | NY4: 0 | NZ4: 0 | OA4: 0 | OB4: 0 | OC4: 0 | OD4: 0 | OE4: 0 | OF4: 0 | OG4: 0 | OH4: 0 | OI4: 0 | OJ4: 0 | OK4: 0 | OL4: 0 | OM4: 0 | ON4: 0 | OO4: 0 | OP4: 0 | OQ4: 0 | OR4: 0 | OS4: 0 | OT4: 0 | OU4: 0 | OV4: 0 | OW4: 0 | OX4: 0 | OY4: 0 | OZ4: 0 | PA4: 0 | PB4: 0 | PC4: 0 | PD4: 0 | PE4: 0 | PF4: 0 | PG4: 0 | PH4: 0 | PI4: 0 | PJ4: 0 | PK4: 0 | PL4: 0 | PM4: 0 | PN4: 0 | PO4: 0 | PP4: 0 | PQ4: 0 | PR4: 0 | PS4: 0 | PT4: 0 | PU4: 0 | PV4: 0 | PW4: 0 | PX4: 0 | PY4: 0 | PZ4: 0 | QA4: 0 | QB4: 0 | QC4: 0 | QD4: 0 | QE4: 0 | QF4: 0 | QG4: 0 | QH4: 0 | QI4: 0 | QJ4: 0 | QK4: 0 | QL4: 0 | QM4: 0 | QN4: 0 | QO4: 0 | QP4: 0 | QQ4: 0 | QR4: 0 | QS4: 0 | QT4: 0 | QU4: 0 | QV4: 0 | QW4: 0 | QX4: 0 | QY4: 0 | QZ4: 0 | RA4: 0 | RB4: 0 | RC4: 0 | RD4: 0 | RE4: 0 | RF4: 0 | RG4: 0 | RH4: 0 | RI4: 0 | RJ4: 0 | RK4: 0 | RL4: 0 | RM4: 0 | RN4: 0 | RO4: 0 | RQ4: =+SUM(D4:AA4) -> 0 | RR4: =+SUM(AB4:AY4) -> 0 | RS4: =+SUM(AZ4:BW4) -> 0 | RT4: =+SUM(BX4:CU4) -> 0 | RU4: =+SUM(CV4:DS4) -> 0 | RV4: =+SUM(DT4:EQ4) -> 0 | RW4: =+SUM(ER4:FO4) -> 0 | RX4: =+SUM(FP4:GM4) -> 0 | RY4: =+SUM(GN4:HK4) -> 0 | RZ4: =+SUM(HL4:II4) -> 0 | SA4: =+SUM(IJ4:JG4) -> 0 | SB4: =+SUM(JH4:KE4) -> 0 | SC4: =+SUM(KF4:LC4) -> 0 | SD4: =+SUM(LD4:MA4) -> 0 | SE4: =+SUM(MB4:MY4) -> 0 | SF4: =+SUM(MZ4:NW4) -> 0 | SG4: =+SUM(NX4:OU4) -> 0 | SH4: =+SUM(OV4:PS4) -> 0 | SI4: =+SUM(PT4:QQ4) -> 0 | SJ4: =+SUM(QR4:RO4) -> 0
B5: 10015 | C5: Asotin County PUD #1 | D5: 0 | E5: 0 | F5: 0 | G5: 0 | H5: 0 | I5: 0 | J5: 0 | K5: 0 | L5: 0 | M5: 0 | N5: 0 | O5: 0 | P5: 0 | Q5: 0 | R5: 0 | S5: 0 | T5: 0 | U5: 0 | V5: 0 | W5: 0 | X5: 0 | Y5: 0 | Z5: 0 | AA5: 0 | AB5: 0 | AC5: 0 | AD5: 0 | AE5: 0 | AF5: 0 | AG5: 0 | AH5: 0 | AI5: 0 | AJ5: 0 | AK5: 0 | AL5: 0 | AM5: 0 | AN5: 0 | AO5: 0 | AP5: 0 | AQ5: 0 | AR5: 0 | AS5: 0 | AT5: 0 | AU5: 0 | AV5: 0 | AW5: 0 | AX5: 0 | AY5: 0 | AZ5: 0 | BA5: 0 | BB5: 0 | BC5: 0 | BD5: 0 | BE5: 0 | BF5: 0 | BG5: 0 | BH5: 0 | BI5: 0 | BJ5: 0 | BK5: 0 | BL5: 0 | BM5: 0 | BN5: 0 | BO5: 0 | BP5: 0 | BQ5: 0 | BR5: 0 | BS5: 0 | BT5: 0 | BU5: 0 | BV5: 0 | BW5: 0 | BX5: 0 | BY5: 0 | BZ5: 0 | CA5: 0 | CB5: 0 | CC5: 0 | CD5: 0 | CE5: 0 | CF5: 0 | CG5: 0 | CH5: 0 | CI5: 0 | CJ5: 0 | CK5: 0 | CL5: 0 | CM5: 0 | CN5: 0 | CO5: 0 | CP5: 0 | CQ5: 0 | CR5: 0 | CS5: 0 | CT5: 0 | CU5: 0 | CV5: 0 | CW5: 0 | CX5: 0 | CY5: 0 | CZ5: 0 | DA5: 0 | DB5: 0 | DC5: 0 | DD5: 0 | DE5: 0 | DF5: 0 | DG5: 0 | DH5: 0 | DI5: 0 | DJ5: 0 | DK5: 0 | DL5: 0 | DM5: 0 | DN5: 0 | DO5: 0 | DP5: 0 | DQ5: 0 | DR5: 0 | DS5: 0 | DT5: 0 | DU5: 0 | DV5: 0 | DW5: 0 | DX5: 0 | DY5: 0 | DZ5: 0 | EA5: 0 | EB5: 0 | EC5: 0 | ED5: 0 | EE5: 0 | EF5: 0 | EG5: 0 | EH5: 0 | EI5: 0 | EJ5: 0 | EK5: 0 | EL5: 0 | EM5: 0 | EN5: 0 | EO5: 0 | EP5: 0 | EQ5: 0 | ER5: 0 | ES5: 0 | ET5: 0 | EU5: 0 | EV5: 0 | EW5: 0 | EX5: 0 | EY5: 0 | EZ5: 0 | FA5: 0 | FB5: 0 | FC5: 0 | FD5: 0 | FE5: 0 | FF5: 0 | FG5: 0 | FH5: 0 | FI5: 0 | FJ5: 0 | FK5: 0 | FL5: 0 | FM5: 0 | FN5: 0 | FO5: 0 | FP5: 0 | FQ5: 0 | FR5: 0 | FS5: 0 | FT5: 0 | FU5: 0 | FV5: 0 | FW5: 0 | FX5: 0 | FY5: 0 | FZ5: 0 | GA5: 0 | GB5: 0 | GC5: 0 | GD5: 0 | GE5: 0 | GF5: 0 | GG5: 0 | GH5: 0 | GI5: 0 | GJ5: 0 | GK5: 0 | GL5: 0 | GM5: 0 | GN5: 0 | GO5: 0 | GP5: 0 | GQ5: 0 | GR5: 0 | GS5: 0 | GT5: 0 | GU5: 0 | GV5: 0 | GW5: 0 | GX5: 0 | GY5: 0 | GZ5: 0 | HA5: 0 | HB5: 0 | HC5: 0 | HD5: 0 | HE5: 0 | HF5: 0 | HG5: 0 | HH5: 0 | HI5: 0 | HJ5: 0 | HK5: 0 | HL5: 0 | HM5: 0 | HN5: 0 | HO5: 0 | HP5: 0 | HQ5: 0 | HR5: 0 | HS5: 0 | HT5: 0 | HU5: 0 | HV5: 0 | HW5: 0 | HX5: 0 | HY5: 0 | HZ5: 0 | IA5: 0 | IB5: 0 | IC5: 0 | ID5: 0 | IE5: 0 | IF5: 0 | IG5: 0 | IH5: 0 | II5: 0 | IJ5: 0 | IK5: 0 | IL5: 0 | IM5: 0 | IN5: 0 | IO5: 0 | IP5: 0 | IQ5: 0 | IR5: 0 | IS5: 0 | IT5: 0 | IU5: 0 | IV5: 0 | IW5: 0 | IX5: 0 | IY5: 0 | IZ5: 0 | JA5: 0 | JB5: 0 | JC5: 0 | JD5: 0 | JE5: 0 | JF5: 0 | JG5: 0 | JH5: 0 | JI5: 0 | JJ5: 0 | JK5: 0 | JL5: 0 | JM5: 0 | JN5: 0 | JO5: 0 | JP5: 0 | JQ5: 0 | JR5: 0 | JS5: 0 | JT5: 0 | JU5: 0 | JV5: 0 | JW5: 0 | JX5: 0 | JY5: 0 | JZ5: 0 | KA5: 0 | KB5: 0 | KC5: 0 | KD5: 0 | KE5: 0 | KF5: 0 | KG5: 0 | KH5: 0 | KI5: 0 | KJ5: 0 | KK5: 0 | KL5: 0 | KM5: 0 | KN5: 0 | KO5: 0 | KP5: 0 | KQ5: 0 | KR5: 0 | KS5: 0 | KT5: 0 | KU5: 0 | KV5: 0 | KW5: 0 | KX5: 0 | KY5: 0 | KZ5: 0 | LA5: 0 | LB5: 0 | LC5: 0 | LD5: 0 | LE5: 0 | LF5: 0 | LG5: 0 | LH5: 0 | LI5: 0 | LJ5: 0 | LK5: 0 | LL5: 0 | LM5: 0 | LN5: 0 | LO5: 0 | LP5: 0 | LQ5: 0 | LR5: 0 | LS5: 0 | LT5: 0 | LU5: 0 | LV5: 0 | LW5: 0 | LX5: 0 | LY5: 0 | LZ5: 0 | MA5: 0 | MB5: 0 | MC5: 0 | MD5: 0 | ME5: 0 | MF5: 0 | MG5: 0 | MH5: 0 | MI5: 0 | MJ5: 0 | MK5: 0 | ML5: 0 | MM5: 0 | MN5: 0 | MO5: 0 | MP5: 0 | MQ5: 0 | MR5: 0 | MS5: 0 | MT5: 0 | MU5: 0 | MV5: 0 | MW5: 0 | MX5: 0 | MY5: 0 | MZ5: 0 | NA5: 0 | NB5: 0 | NC5: 0 | ND5: 0 | NE5: 0 | NF5: 0 | NG5: 0 | NH5: 0 | NI5: 0 | NJ5: 0 | NK5: 0 | NL5: 0 | NM5: 0 | NN5: 0 | NO5: 0 | NP5: 0 | NQ5: 0 | NR5: 0 | NS5: 0 | NT5: 0 | NU5: 0 | NV5: 0 | NW5: 0 | NX5: 0 | NY5: 0 | NZ5: 0 | OA5: 0 | OB5: 0 | OC5: 0 | OD5: 0 | OE5: 0 | OF5: 0 | OG5: 0 | OH5: 0 | OI5: 0 | OJ5: 0 | OK5: 0 | OL5: 0 | OM5: 0 | ON5: 0 | OO5: 0 | OP5: 0 | OQ5: 0 | OR5: 0 | OS5: 0 | OT5: 0 | OU5: 0 | OV5: 0 | OW5: 0 | OX5: 0 | OY5: 0 | OZ5: 0 | PA5: 0 | PB5: 0 | PC5: 0 | PD5: 0 | PE5: 0 | PF5: 0 | PG5: 0 | PH5: 0 | PI5: 0 | PJ5: 0 | PK5: 0 | PL5: 0 | PM5: 0 | PN5: 0 | PO5: 0 | PP5: 0 | PQ5: 0 | PR5: 0 | PS5: 0 | PT5: 0 | PU5: 0 | PV5: 0 | PW5: 0 | PX5: 0 | PY5: 0 | PZ5: 0 | QA5: 0 | QB5: 0 | QC5: 0 | QD5: 0 | QE5: 0 | QF5: 0 | QG5: 0 | QH5: 0 | QI5: 0 | QJ5: 0 | QK5: 0 | QL5: 0 | QM5: 0 | QN5: 0 | QO5: 0 | QP5: 0 | QQ5: 0 | QR5: 0 | QS5: 0 | QT5: 0 | QU5: 0 | QV5: 0 | QW5: 0 | QX5: 0 | QY5: 0 | QZ5: 0 | RA5: 0 | RB5: 0 | RC5: 0 | RD5: 0 | RE5: 0 | RF5: 0 | RG5: 0 | RH5: 0 | RI5: 0 | RJ5: 0 | RK5: 0 | RL5: 0 | RM5: 0 | RN5: 0 | RO5: 0 | RQ5: =+SUM(D5:AA5) -> 0 | RR5: =+SUM(AB5:AY5) -> 0 | RS5: =+SUM(AZ5:BW5) -> 0 | RT5: =+SUM(BX5:CU5) -> 0 | RU5: =+SUM(CV5:DS5) -> 0 | RV5: =+SUM(DT5:EQ5) -> 0 | RW5: =+SUM(ER5:FO5) -> 0 | RX5: =+SUM(FP5:GM5) -> 0 | RY5: =+SUM(GN5:HK5) -> 0 | RZ5: =+SUM(HL5:II5) -> 0 | SA5: =+SUM(IJ5:JG5) -> 0 | SB5: =+SUM(JH5:KE5) -> 0 | SC5: =+SUM(KF5:LC5) -> 0 | SD5: =+SUM(LD5:MA5) -> 0 | SE5: =+SUM(MB5:MY5) -> 0 | SF5: =+SUM(MZ5:NW5) -> 0 | SG5: =+SUM(NX5:OU5) -> 0 | SH5: =+SUM(OV5:PS5) -> 0 | SI5: =+SUM(PT5:QQ5) -> 0 | SJ5: =+SUM(QR5:RO5) -> 0
B6: 10024 | C6: Benton County PUD #1 | D6: 0 | E6: 0 | F6: 0 | G6: 0 | H6: 0 | I6: 0 | J6: 0 | K6: 0 | L6: 0 | M6: 0 | N6: 0 | O6: 0 | P6: 0 | Q6: 0 | R6: 0 | S6: 0 | T6: 0 | U6: 0 | V6: 0 | W6: 0 | X6: 0 | Y6: 0 | Z6: 0 | AA6: 0 | AB6: 0 | AC6: 0 | AD6: 0 | AE6: 0 | AF6: 0 | AG6: 0 | AH6: 0 | AI6: 0 | AJ6: 0 | AK6: 0 | AL6: 0 | AM6: 0 | AN6: 0 | AO6: 0 | AP6: 0 | AQ6: 0 | AR6: 0 | AS6: 0 | AT6: 0 | AU6: 0 | AV6: 0 | AW6: 0 | AX6: 0 | AY6: 0 | AZ6: 0 | BA6: 0 | BB6: 0 | BC6: 0 | BD6: 0 | BE6: 0 | BF6: 0 | BG6: 0 | BH6: 0 | BI6: 0 | BJ6: 0 | BK6: 0 | BL6: 0 | BM6: 0 | BN6: 0 | BO6: 0 | BP6: 0 | BQ6: 0 | BR6: 0 | BS6: 0 | BT6: 0 | BU6: 0 | BV6: 0 | BW6: 0 | BX6: 0 | BY6: 0 | BZ6: 0 | CA6: 0 | CB6: 0 | CC6: 0 | CD6: 0 | CE6: 0 | CF6: 0 | CG6: 0 | CH6: 0 | CI6: 0 | CJ6: 0 | CK6: 0 | CL6: 0 | CM6: 0 | CN6: 0 | CO6: 0 | CP6: 0 | CQ6: 0 | CR6: 0 | CS6: 0 | CT6: 0 | CU6: 0 | CV6: 0 | CW6: 0 | CX6: 0 | CY6: 0 | CZ6: 0 | DA6: 0 | DB6: 0 | DC6: 0 | DD6: 0 | DE6: 0 | DF6: 0 | DG6: 0 | DH6: 0 | DI6: 0 | DJ6: 0 | DK6: 0 | DL6: 0 | DM6: 0 | DN6: 0 | DO6: 0 | DP6: 0 | DQ6: 0 | DR6: 0 | DS6: 0 | DT6: 0 | DU6: 0 | DV6: 0 | DW6: 0 | DX6: 0 | DY6: 0 | DZ6: 0 | EA6: 0 | EB6: 0 | EC6: 0 | ED6: 0 | EE6: 0 | EF6: 0 | EG6: 0 | EH6: 0 | EI6: 0 | EJ6: 0 | EK6: 0 | EL6: 0 | EM6: 0 | EN6: 0 | EO6: 0 | EP6: 0 | EQ6: 0 | ER6: 0 | ES6: 0 | ET6: 0 | EU6: 0 | EV6: 0 | EW6: 0 | EX6: 0 | EY6: 0 | EZ6: 0 | FA6: 0 | FB6: 0 | FC6: 0 | FD6: 0 | FE6: 0 | FF6: 0 | FG6: 0 | FH6: 0 | FI6: 0 | FJ6: 0 | FK6: 0 | FL6: 0 | FM6: 0 | FN6: 0 | FO6: 0 | FP6: 0 | FQ6: 0 | FR6: 0 | FS6: 0 | FT6: 0 | FU6: 0 | FV6: 0 | FW6: 0 | FX6: 0 | FY6: 0 | FZ6: 0 | GA6: 0 | GB6: 0 | GC6: 0 | GD6: 0 | GE6: 0 | GF6: 0 | GG6: 0 | GH6: 0 | GI6: 0 | GJ6: 0 | GK6: 0 | GL6: 0 | GM6: 0 | GN6: 0 | GO6: 0 | GP6: 0 | GQ6: 0 | GR6: 0 | GS6: 0 | GT6: 0 | GU6: 0 | GV6: 0 | GW6: 0 | GX6: 0 | GY6: 0 | GZ6: 0 | HA6: 0 | HB6: 0 | HC6: 0 | HD6: 0 | HE6: 0 | HF6: 0 | HG6: 0 | HH6: 0 | HI6: 0 | HJ6: 0 | HK6: 0 | HL6: 0 | HM6: 0 | HN6: 0 | HO6: 0 | HP6: 0 | HQ6: 0 | HR6: 0 | HS6: 0 | HT6: 0 | HU6: 0 | HV6: 0 | HW6: 0 | HX6: 0 | HY6: 0 | HZ6: 0 | IA6: 0 | IB6: 0 | IC6: 0 | ID6: 0 | IE6: 0 | IF6: 0 | IG6: 0 | IH6: 0 | II6: 0 | IJ6: 0 | IK6: 0 | IL6: 0 | IM6: 0 | IN6: 0 | IO6: 0 | IP6: 0 | IQ6: 0 | IR6: 0 | IS6: 0 | IT6: 0 | IU6: 0 | IV6: 0 | IW6: 0 | IX6: 0 | IY6: 0 | IZ6: 0 | JA6: 0 | JB6: 0 | JC6: 0 | JD6: 0 | JE6: 0 | JF6: 0 | JG6: 0 | JH6: 0 | JI6: 0 | JJ6: 0 | JK6: 0 | JL6: 0 | JM6: 0 | JN6: 0 | JO6: 0 | JP6: 0 | JQ6: 0 | JR6: 0 | JS6: 0 | JT6: 0 | JU6: 0 | JV6: 0 | JW6: 0 | JX6: 0 | JY6: 0 | JZ6: 0 | KA6: 0 | KB6: 0 | KC6: 0 | KD6: 0 | KE6: 0 | KF6: 0 | KG6: 0 | KH6: 0 | KI6: 0 | KJ6: 0 | KK6: 0 | KL6: 0 | KM6: 0 | KN6: 0 | KO6: 0 | KP6: 0 | KQ6: 0 | KR6: 0 | KS6: 0 | KT6: 0 | KU6: 0 | KV6: 0 | KW6: 0 | KX6: 0 | KY6: 0 | KZ6: 0 | LA6: 0 | LB6: 0 | LC6: 0 | LD6: 0 | LE6: 0 | LF6: 0 | LG6: 0 | LH6: 0 | LI6: 0 | LJ6: 0 | LK6: 0 | LL6: 0 | LM6: 0 | LN6: 0 | LO6: 0 | LP6: 0 | LQ6: 0 | LR6: 0 | LS6: 0 | LT6: 0 | LU6: 0 | LV6: 0 | LW6: 0 | LX6: 0 | LY6: 0 | LZ6: 0 | MA6: 0 | MB6: 0 | MC6: 0 | MD6: 0 | ME6: 0 | MF6: 0 | MG6: 0 | MH6: 0 | MI6: 0 | MJ6: 0 | MK6: 0 | ML6: 0 | MM6: 0 | MN6: 0 | MO6: 0 | MP6: 0 | MQ6: 0 | MR6: 0 | MS6: 0 | MT6: 0 | MU6: 0 | MV6: 0 | MW6: 0 | MX6: 0 | MY6: 0 | MZ6: 0 | NA6: 0 | NB6: 0 | NC6: 0 | ND6: 0 | NE6: 0 | NF6: 0 | NG6: 0 | NH6: 0 | NI6: 0 | NJ6: 0 | NK6: 0 | NL6: 0 | NM6: 0 | NN6: 0 | NO6: 0 | NP6: 0 | NQ6: 0 | NR6: 0 | NS6: 0 | NT6: 0 | NU6: 0 | NV6: 0 | NW6: 0 | NX6: 0 | NY6: 0 | NZ6: 0 | OA6: 0 | OB6: 0 | OC6: 0 | OD6: 0 | OE6: 0 | OF6: 0 | OG6: 0 | OH6: 0 | OI6: 0 | OJ6: 0 | OK6: 0 | OL6: 0 | OM6: 0 | ON6: 0 | OO6: 0 | OP6: 0 | OQ6: 0 | OR6: 0 | OS6: 0 | OT6: 0 | OU6: 0 | OV6: 0 | OW6: 0 | OX6: 0 | OY6: 0 | OZ6: 0 | PA6: 0 | PB6: 0 | PC6: 0 | PD6: 0 | PE6: 0 | PF6: 0 | PG6: 0 | PH6: 0 | PI6: 0 | PJ6: 0 | PK6: 0 | PL6: 0 | PM6: 0 | PN6: 0 | PO6: 0 | PP6: 0 | PQ6: 0 | PR6: 0 | PS6: 0 | PT6: 0 | PU6: 0 | PV6: 0 | PW6: 0 | PX6: 0 | PY6: 0 | PZ6: 0 | QA6: 0 | QB6: 0 | QC6: 0 | QD6: 0 | QE6: 0 | QF6: 0 | QG6: 0 | QH6: 0 | QI6: 0 | QJ6: 0 | QK6: 0 | QL6: 0 | QM6: 0 | QN6: 0 | QO6: 0 | QP6: 0 | QQ6: 0 | QR6: 0 | QS6: 0 | QT6: 0 | QU6: 0 | QV6: 0 | QW6: 0 | QX6: 0 | QY6: 0 | QZ6: 0 | RA6: 0 | RB6: 0 | RC6: 0 | RD6: 0 | RE6: 0 | RF6: 0 | RG6: 0 | RH6: 0 | RI6: 0 | RJ6: 0 | RK6: 0 | RL6: 0 | RM6: 0 | RN6: 0 | RO6: 0 | RQ6: 0 | RR6: 0 | RS6: 0 | RT6: 0 | RU6: 0 | RV6: 0 | RW6: 0 | RX6: 0 | RY6: 0 | RZ6: 0 | SA6: 0 | SB6: 0 | SC6: 0 | SD6: 0 | SE6: 0 | SF6: 0 | SG6: 0 | SH6: 0 | SI6: 0 | SJ6: 0
B7: 10025 | C7: Benton REA | D7: 0 | E7: 0 | F7: 0 | G7: 0 | H7: 0 | I7: 0 | J7: 0 | K7: 0 | L7: 0 | M7: 0 | N7: 0 | O7: 0 | P7: 0 | Q7: 0 | R7: 0 | S7: 0 | T7: 0 | U7: 0 | V7: 0 | W7: 0 | X7: 0 | Y7: 0 | Z7: 0 | AA7: 0 | AB7: 0 | AC7: 0 | AD7: 0 | AE7: 0 | AF7: 0 | AG7: 0 | AH7: 0 | AI7: 0 | AJ7: 0 | AK7: 0 | AL7: 0 | AM7: 0 | AN7: 0 | AO7: 0 | AP7: 0 | AQ7: 0 | AR7: 0 | AS7: 0 | AT7: 0 | AU7: 0 | AV7: 0 | AW7: 0 | AX7: 0 | AY7: 0 | AZ7: 0 | BA7: 0 | BB7: 0 | BC7: 0 | BD7: 0 | BE7: 0 | BF7: 0 | BG7: 0 | BH7: 0 | BI7: 0 | BJ7: 0 | BK7: 0 | BL7: 0 | BM7: 0 | BN7: 0 | BO7: 0 | BP7: 0 | BQ7: 0 | BR7: 0 | BS7: 0 | BT7: 0 | BU7: 0 | BV7: 0 | BW7: 0 | BX7: 0 | BY7: 0 | BZ7: 0 | CA7: 0 | CB7: 0 | CC7: 0 | CD7: 0 | CE7: 0 | CF7: 0 | CG7: 0 | CH7: 0 | CI7: 0 | CJ7: 0 | CK7: 0 | CL7: 0 | CM7: 0 | CN7: 0 | CO7: 0 | CP7: 0 | CQ7: 0 | CR7: 0 | CS7: 0 | CT7: 0 | CU7: 0 | CV7: 0 | CW7: 0 | CX7: 0 | CY7: 0 | CZ7: 0 | DA7: 0 | DB7: 0 | DC7: 0 | DD7: 0 | DE7: 0 | DF7: 0 | DG7: 0 | DH7: 0 | DI7: 0 | DJ7: 0 | DK7: 0 | DL7: 0 | DM7: 0 | DN7: 0 | DO7: 0 | DP7: 0 | DQ7: 0 | DR7: 0 | DS7: 0 | DT7: 0 | DU7: 0 | DV7: 0 | DW7: 0 | DX7: 0 | DY7: 0 | DZ7: 0 | EA7: 0 | EB7: 0 | EC7: 0 | ED7: 0 | EE7: 0 | EF7: 0 | EG7: 0 | EH7: 0 | EI7: 0 | EJ7: 0 | EK7: 0 | EL7: 0 | EM7: 0 | EN7: 0 | EO7: 0 | EP7: 0 | EQ7: 0 | ER7: 0 | ES7: 0 | ET7: 0 | EU7: 0 | EV7: 0 | EW7: 0 | EX7: 0 | EY7: 0 | EZ7: 0 | FA7: 0 | FB7: 0 | FC7: 0 | FD7: 0 | FE7: 0 | FF7: 0 | FG7: 0 | FH7: 0 | FI7: 0 | FJ7: 0 | FK7: 0 | FL7: 0 | FM7: 0 | FN7: 0 | FO7: 0 | FP7: 0 | FQ7: 0 | FR7: 0 | FS7: 0 | FT7: 0 | FU7: 0 | FV7: 0 | FW7: 0 | FX7: 0 | FY7: 0 | FZ7: 0 | GA7: 0 | GB7: 0 | GC7: 0 | GD7: 0 | GE7: 0 | GF7: 0 | GG7: 0 | GH7: 0 | GI7: 0 | GJ7: 0 | GK7: 0 | GL7: 0 | GM7: 0 | GN7: 0 | GO7: 0 | GP7: 0 | GQ7: 0 | GR7: 0 | GS7: 0 | GT7: 0 | GU7: 0 | GV7: 0 | GW7: 0 | GX7: 0 | GY7: 0 | GZ7: 0 | HA7: 0 | HB7: 0 | HC7: 0 | HD7: 0 | HE7: 0 | HF7: 0 | HG7: 0 | HH7: 0 | HI7: 0 | HJ7: 0 | HK7: 0 | HL7: 0 | HM7: 0 | HN7: 0 | HO7: 0 | HP7: 0 | HQ7: 0 | HR7: 0 | HS7: 0 | HT7: 0 | HU7: 0 | HV7: 0 | HW7: 0 | HX7: 0 | HY7: 0 | HZ7: 0 | IA7: 0 | IB7: 0 | IC7: 0 | ID7: 0 | IE7: 0 | IF7: 0 | IG7: 0 | IH7: 0 | II7: 0 | IJ7: 0 | IK7: 0 | IL7: 0 | IM7: 0 | IN7: 0 | IO7: 0 | IP7: 0 | IQ7: 0 | IR7: 0 | IS7: 0 | IT7: 0 | IU7: 0 | IV7: 0 | IW7: 0 | IX7: 0 | IY7: 0 | IZ7: 0 | JA7: 0 | JB7: 0 | JC7: 0 | JD7: 0 | JE7: 0 | JF7: 0 | JG7: 0 | JH7: 0 | JI7: 0 | JJ7: 0 | JK7: 0 | JL7: 0 | JM7: 0 | JN7: 0 | JO7: 0 | JP7: 0 | JQ7: 0 | JR7: 0 | JS7: 0 | JT7: 0 | JU7: 0 | JV7: 0 | JW7: 0 | JX7: 0 | JY7: 0 | JZ7: 0 | KA7: 0 | KB7: 0 | KC7: 0 | KD7: 0 | KE7: 0 | KF7: 0 | KG7: 0 | KH7: 0 | KI7: 0 | KJ7: 0 | KK7: 0 | KL7: 0 | KM7: 0 | KN7: 0 | KO7: 0 | KP7: 0 | KQ7: 0 | KR7: 0 | KS7: 0 | KT7: 0 | KU7: 0 | KV7: 0 | KW7: 0 | KX7: 0 | KY7: 0 | KZ7: 0 | LA7: 0 | LB7: 0 | LC7: 0 | LD7: 0 | LE7: 0 | LF7: 0 | LG7: 0 | LH7: 0 | LI7: 0 | LJ7: 0 | LK7: 0 | LL7: 0 | LM7: 0 | LN7: 0 | LO7: 0 | LP7: 0 | LQ7: 0 | LR7: 0 | LS7: 0 | LT7: 0 | LU7: 0 | LV7: 0 | LW7: 0 | LX7: 0 | LY7: 0 | LZ7: 0 | MA7: 0 | MB7: 0 | MC7: 0 | MD7: 0 | ME7: 0 | MF7: 0 | MG7: 0 | MH7: 0 | MI7: 0 | MJ7: 0 | MK7: 0 | ML7: 0 | MM7: 0 | MN7: 0 | MO7: 0 | MP7: 0 | MQ7: 0 | MR7: 0 | MS7: 0 | MT7: 0 | MU7: 0 | MV7: 0 | MW7: 0 | MX7: 0 | MY7: 0 | MZ7: 0 | NA7: 0 | NB7: 0 | NC7: 0 | ND7: 0 | NE7: 0 | NF7: 0 | NG7: 0 | NH7: 0 | NI7: 0 | NJ7: 0 | NK7: 0 | NL7: 0 | NM7: 0 | NN7: 0 | NO7: 0 | NP7: 0 | NQ7: 0 | NR7: 0 | NS7: 0 | NT7: 0 | NU7: 0 | NV7: 0 | NW7: 0 | NX7: 0 | NY7: 0 | NZ7: 0 | OA7: 0 | OB7: 0 | OC7: 0 | OD7: 0 | OE7: 0 | OF7: 0 | OG7: 0 | OH7: 0 | OI7: 0 | OJ7: 0 | OK7: 0 | OL7: 0 | OM7: 0 | ON7: 0 | OO7: 0 | OP7: 0 | OQ7: 0 | OR7: 0 | OS7: 0 | OT7: 0 | OU7: 0 | OV7: 0 | OW7: 0 | OX7: 0 | OY7: 0 | OZ7: 0 | PA7: 0 | PB7: 0 | PC7: 0 | PD7: 0 | PE7: 0 | PF7: 0 | PG7: 0 | PH7: 0 | PI7: 0 | PJ7: 0 | PK7: 0 | PL7: 0 | PM7: 0 | PN7: 0 | PO7: 0 | PP7: 0 | PQ7: 0 | PR7: 0 | PS7: 0 | PT7: 0 | PU7: 0 | PV7: 0 | PW7: 0 | PX7: 0 | PY7: 0 | PZ7: 0 | QA7: 0 | QB7: 0 | QC7: 0 | QD7: 0 | QE7: 0 | QF7: 0 | QG7: 0 | QH7: 0 | QI7: 0 | QJ7: 0 | QK7: 0 | QL7: 0 | QM7: 0 | QN7: 0 | QO7: 0 | QP7: 0 | QQ7: 0 | QR7: 0 | QS7: 0 | QT7: 0 | QU7: 0 | QV7: 0 | QW7: 0 | QX7: 0 | QY7: 0 | QZ7: 0 | RA7: 0 | RB7: 0 | RC7: 0 | RD7: 0 | RE7: 0 | RF7: 0 | RG7: 0 | RH7: 0 | RI7: 0 | RJ7: 0 | RK7: 0 | RL7: 0 | RM7: 0 | RN7: 0 | RO7: 0 | RQ7: 0 | RR7: 0 | RS7: 0 | RT7: 0 | RU7: 0 | RV7: 0 | RW7: 0 | RX7: 0 | RY7: 0 | RZ7: 0 | SA7: 0 | SB7: 0 | SC7: 0 | SD7: 0 | SE7: 0 | SF7: 0 | SG7: 0 | SH7: 0 | SI7: 0 | SJ7: 0
B8: 10027 | C8: Big Bend Elec Coop | D8: 0 | E8: 0 | F8: 0 | G8: 0 | H8: 0 | I8: 0 | J8: 0 | K8: 0 | L8: 0 | M8: 0 | N8: 0 | O8: 0 | P8: 0 | Q8: 0 | R8: 0 | S8: 0 | T8: 0 | U8: 0 | V8: 0 | W8: 0 | X8: 0 | Y8: 0 | Z8: 0 | AA8: 0 | AB8: 0 | AC8: 0 | AD8: 0 | AE8: 0 | AF8: 0 | AG8: 0 | AH8: 0 | AI8: 0 | AJ8: 0 | AK8: 0 | AL8: 0 | AM8: 0 | AN8: 0 | AO8: 0 | AP8: 0 | AQ8: 0 | AR8: 0 | AS8: 0 | AT8: 0 | AU8: 0 | AV8: 0 | AW8: 0 | AX8: 0 | AY8: 0 | AZ8: 0 | BA8: 0 | BB8: 0 | BC8: 0 | BD8: 0 | BE8: 0 | BF8: 0 | BG8: 0 | BH8: 0 | BI8: 0 | BJ8: 0 | BK8: 0 | BL8: 0 | BM8: 0 | BN8: 0 | BO8: 0 | BP8: 0 | BQ8: 0 | BR8: 0 | BS8: 0 | BT8: 0 | BU8: 0 | BV8: 0 | BW8: 0 | BX8: 0 | BY8: 0 | BZ8: 0 | CA8: 0 | CB8: 0 | CC8: 0 | CD8: 0 | CE8: 0 | CF8: 0 | CG8: 0 | CH8: 0 | CI8: 0 | CJ8: 0 | CK8: 0 | CL8: 0 | CM8: 0 | CN8: 0 | CO8: 0 | CP8: 0 | CQ8: 0 | CR8: 0 | CS8: 0 | CT8: 0 | CU8: 0 | CV8: 0 | CW8: 0 | CX8: 0 | CY8: 0 | CZ8: 0 | DA8: 0 | DB8: 0 | DC8: 0 | DD8: 0 | DE8: 0 | DF8: 0 | DG8: 0 | DH8: 0 | DI8: 0 | DJ8: 0 | DK8: 0 | DL8: 0 | DM8: 0 | DN8: 0 | DO8: 0 | DP8: 0 | DQ8: 0 | DR8: 0 | DS8: 0 | DT8: 0 | DU8: 0 | DV8: 0 | DW8: 0 | DX8: 0 | DY8: 0 | DZ8: 0 | EA8: 0 | EB8: 0 | EC8: 0 | ED8: 0 | EE8: 0 | EF8: 0 | EG8: 0 | EH8: 0 | EI8: 0 | EJ8: 0 | EK8: 0 | EL8: 0 | EM8: 0 | EN8: 0 | EO8: 0 | EP8: 0 | EQ8: 0 | ER8: 0 | ES8: 0 | ET8: 0 | EU8: 0 | EV8: 0 | EW8: 0 | EX8: 0 | EY8: 0 | EZ8: 0 | FA8: 0 | FB8: 0 | FC8: 0 | FD8: 0 | FE8: 0 | FF8: 0 | FG8: 0 | FH8: 0 | FI8: 0 | FJ8: 0 | FK8: 0 | FL8: 0 | FM8: 0 | FN8: 0 | FO8: 0 | FP8: 0 | FQ8: 0 | FR8: 0 | FS8: 0 | FT8: 0 | FU8: 0 | FV8: 0 | FW8: 0 | FX8: 0 | FY8: 0 | FZ8: 0 | GA8: 0 | GB8: 0 | GC8: 0 | GD8: 0 | GE8: 0 | GF8: 0 | GG8: 0 | GH8: 0 | GI8: 0 | GJ8: 0 | GK8: 0 | GL8: 0 | GM8: 0 | GN8: 0 | GO8: 0 | GP8: 0 | GQ8: 0 | GR8: 0 | GS8: 0 | GT8: 0 | GU8: 0 | GV8: 0 | GW8: 0 | GX8: 0 | GY8: 0 | GZ8: 0 | HA8: 0 | HB8: 0 | HC8: 0 | HD8: 0 | HE8: 0 | HF8: 0 | HG8: 0 | HH8: 0 | HI8: 0 | HJ8: 0 | HK8: 0 | HL8: 0 | HM8: 0 | HN8: 0 | HO8: 0 | HP8: 0 | HQ8: 0 | HR8: 0 | HS8: 0 | HT8: 0 | HU8: 0 | HV8: 0 | HW8: 0 | HX8: 0 | HY8: 0 | HZ8: 0 | IA8: 0 | IB8: 0 | IC8: 0 | ID8: 0 | IE8: 0 | IF8: 0 | IG8: 0 | IH8: 0 | II8: 0 | IJ8: 0 | IK8: 0 | IL8: 0 | IM8: 0 | IN8: 0 | IO8: 0 | IP8: 0 | IQ8: 0 | IR8: 0 | IS8: 0 | IT8: 0 | IU8: 0 | IV8: 0 | IW8: 0 | IX8: 0 | IY8: 0 | IZ8: 0 | JA8: 0 | JB8: 0 | JC8: 0 | JD8: 0 | JE8: 0 | JF8: 0 | JG8: 0 | JH8: 0 | JI8: 0 | JJ8: 0 | JK8: 0 | JL8: 0 | JM8: 0 | JN8: 0 | JO8: 0 | JP8: 0 | JQ8: 0 | JR8: 0 | JS8: 0 | JT8: 0 | JU8: 0 | JV8: 0 | JW8: 0 | JX8: 0 | JY8: 0 | JZ8: 0 | KA8: 0 | KB8: 0 | KC8: 0 | KD8: 0 | KE8: 0 | KF8: 0 | KG8: 0 | KH8: 0 | KI8: 0 | KJ8: 0 | KK8: 0 | KL8: 0 | KM8: 0 | KN8: 0 | KO8: 0 | KP8: 0 | KQ8: 0 | KR8: 0 | KS8: 0 | KT8: 0 | KU8: 0 | KV8: 0 | KW8: 0 | KX8: 0 | KY8: 0 | KZ8: 0 | LA8: 0 | LB8: 0 | LC8: 0 | LD8: 0 | LE8: 0 | LF8: 0 | LG8: 0 | LH8: 0 | LI8: 0 | LJ8: 0 | LK8: 0 | LL8: 0 | LM8: 0 | LN8: 0 | LO8: 0 | LP8: 0 | LQ8: 0 | LR8: 0 | LS8: 0 | LT8: 0 | LU8: 0 | LV8: 0 | LW8: 0 | LX8: 0 | LY8: 0 | LZ8: 0 | MA8: 0 | MB8: 0 | MC8: 0 | MD8: 0 | ME8: 0 | MF8: 0 | MG8: 0 | MH8: 0 | MI8: 0 | MJ8: 0 | MK8: 0 | ML8: 0 | MM8: 0 | MN8: 0 | MO8: 0 | MP8: 0 | MQ8: 0 | MR8: 0 | MS8: 0 | MT8: 0 | MU8: 0 | MV8: 0 | MW8: 0 | MX8: 0 | MY8: 0 | MZ8: 0 | NA8: 0 | NB8: 0 | NC8: 0 | ND8: 0 | NE8: 0 | NF8: 0 | NG8: 0 | NH8: 0 | NI8: 0 | NJ8: 0 | NK8: 0 | NL8: 0 | NM8: 0 | NN8: 0 | NO8: 0 | NP8: 0 | NQ8: 0 | NR8: 0 | NS8: 0 | NT8: 0 | NU8: 0 | NV8: 0 | NW8: 0 | NX8: 0 | NY8: 0 | NZ8: 0 | OA8: 0 | OB8: 0 | OC8: 0 | OD8: 0 | OE8: 0 | OF8: 0 | OG8: 0 | OH8: 0 | OI8: 0 | OJ8: 0 | OK8: 0 | OL8: 0 | OM8: 0 | ON8: 0 | OO8: 0 | OP8: 0 | OQ8: 0 | OR8: 0 | OS8: 0 | OT8: 0 | OU8: 0 | OV8: 0 | OW8: 0 | OX8: 0 | OY8: 0 | OZ8: 0 | PA8: 0 | PB8: 0 | PC8: 0 | PD8: 0 | PE8: 0 | PF8: 0 | PG8: 0 | PH8: 0 | PI8: 0 | PJ8: 0 | PK8: 0 | PL8: 0 | PM8: 0 | PN8: 0 | PO8: 0 | PP8: 0 | PQ8: 0 | PR8: 0 | PS8: 0 | PT8: 0 | PU8: 0 | PV8: 0 | PW8: 0 | PX8: 0 | PY8: 0 | PZ8: 0 | QA8: 0 | QB8: 0 | QC8: 0 | QD8: 0 | QE8: 0 | QF8: 0 | QG8: 0 | QH8: 0 | QI8: 0 | QJ8: 0 | QK8: 0 | QL8: 0 | QM8: 0 | QN8: 0 | QO8: 0 | QP8: 0 | QQ8: 0 | QR8: 0 | QS8: 0 | QT8: 0 | QU8: 0 | QV8: 0 | QW8: 0 | QX8: 0 | QY8: 0 | QZ8: 0 | RA8: 0 | RB8: 0 | RC8: 0 | RD8: 0 | RE8: 0 | RF8: 0 | RG8: 0 | RH8: 0 | RI8: 0 | RJ8: 0 | RK8: 0 | RL8: 0 | RM8: 0 | RN8: 0 | RO8: 0 | RQ8: 0 | RR8: 0 | RS8: 0 | RT8: 0 | RU8: 0 | RV8: 0 | RW8: 0 | RX8: 0 | RY8: 0 | RZ8: 0 | SA8: 0 | SB8: 0 | SC8: 0 | SD8: 0 | SE8: 0 | SF8: 0 | SG8: 0 | SH8: 0 | SI8: 0 | SJ8: 0
B9: 10029 | C9: Blachly Lane Elec Coop | D9: 0 | E9: 0 | F9: 0 | G9: 0 | H9: 0 | I9: 0 | J9: 0 | K9: 0 | L9: 0 | M9: 0 | N9: 0 | O9: 0 | P9: 0 | Q9: 0 | R9: 0 | S9: 0 | T9: 0 | U9: 0 | V9: 0 | W9: 0 | X9: 0 | Y9: 0 | Z9: 0 | AA9: 0 | AB9: 0 | AC9: 0 | AD9: 0 | AE9: 0 | AF9: 0 | AG9: 0 | AH9: 0 | AI9: 0 | AJ9: 0 | AK9: 0 | AL9: 0 | AM9: 0 | AN9: 0 | AO9: 0 | AP9: 0 | AQ9: 0 | AR9: 0 | AS9: 0 | AT9: 0 | AU9: 0 | AV9: 0 | AW9: 0 | AX9: 0 | AY9: 0 | AZ9: 0 | BA9: 0 | BB9: 0 | BC9: 0 | BD9: 0 | BE9: 0 | BF9: 0 | BG9: 0 | BH9: 0 | BI9: 0 | BJ9: 0 | BK9: 0 | BL9: 0 | BM9: 0 | BN9: 0 | BO9: 0 | BP9: 0 | BQ9: 0 | BR9: 0 | BS9: 0 | BT9: 0 | BU9: 0 | BV9: 0 | BW9: 0 | BX9: 0 | BY9: 0 | BZ9: 0 | CA9: 0 | CB9: 0 | CC9: 0 | CD9: 0 | CE9: 0 | CF9: 0 | CG9: 0 | CH9: 0 | CI9: 0 | CJ9: 0 | CK9: 0 | CL9: 0 | CM9: 0 | CN9: 0 | CO9: 0 | CP9: 0 | CQ9: 0 | CR9: 0 | CS9: 0 | CT9: 0 | CU9: 0 | CV9: 0 | CW9: 0 | CX9: 0 | CY9: 0 | CZ9: 0 | DA9: 0 | DB9: 0 | DC9: 0 | DD9: 0 | DE9: 0 | DF9: 0 | DG9: 0 | DH9: 0 | DI9: 0 | DJ9: 0 | DK9: 0 | DL9: 0 | DM9: 0 | DN9: 0 | DO9: 0 | DP9: 0 | DQ9: 0 | DR9: 0 | DS9: 0 | DT9: 0 | DU9: 0 | DV9: 0 | DW9: 0 | DX9: 0 | DY9: 0 | DZ9: 0 | EA9: 0 | EB9: 0 | EC9: 0 | ED9: 0 | EE9: 0 | EF9: 0 | EG9: 0 | EH9: 0 | EI9: 0 | EJ9: 0 | EK9: 0 | EL9: 0 | EM9: 0 | EN9: 0 | EO9: 0 | EP9: 0 | EQ9: 0 | ER9: 0 | ES9: 0 | ET9: 0 | EU9: 0 | EV9: 0 | EW9: 0 | EX9: 0 | EY9: 0 | EZ9: 0 | FA9: 0 | FB9: 0 | FC9: 0 | FD9: 0 | FE9: 0 | FF9: 0 | FG9: 0 | FH9: 0 | FI9: 0 | FJ9: 0 | FK9: 0 | FL9: 0 | FM9: 0 | FN9: 0 | FO9: 0 | FP9: 0 | FQ9: 0 | FR9: 0 | FS9: 0 | FT9: 0 | FU9: 0 | FV9: 0 | FW9: 0 | FX9: 0 | FY9: 0 | FZ9: 0 | GA9: 0 | GB9: 0 | GC9: 0 | GD9: 0 | GE9: 0 | GF9: 0 | GG9: 0 | GH9: 0 | GI9: 0 | GJ9: 0 | GK9: 0 | GL9: 0 | GM9: 0 | GN9: 0 | GO9: 0 | GP9: 0 | GQ9: 0 | GR9: 0 | GS9: 0 | GT9: 0 | GU9: 0 | GV9: 0 | GW9: 0 | GX9: 0 | GY9: 0 | GZ9: 0 | HA9: 0 | HB9: 0 | HC9: 0 | HD9: 0 | HE9: 0 | HF9: 0 | HG9: 0 | HH9: 0 | HI9: 0 | HJ9: 0 | HK9: 0 | HL9: 0 | HM9: 0 | HN9: 0 | HO9: 0 | HP9: 0 | HQ9: 0 | HR9: 0 | HS9: 0 | HT9: 0 | HU9: 0 | HV9: 0 | HW9: 0 | HX9: 0 | HY9: 0 | HZ9: 0 | IA9: 0 | IB9: 0 | IC9: 0 | ID9: 0 | IE9: 0 | IF9: 0 | IG9: 0 | IH9: 0 | II9: 0 | IJ9: 0 | IK9: 0 | IL9: 0 | IM9: 0 | IN9: 0 | IO9: 0 | IP9: 0 | IQ9: 0 | IR9: 0 | IS9: 0 | IT9: 0 | IU9: 0 | IV9: 0 | IW9: 0 | IX9: 0 | IY9: 0 | IZ9: 0 | JA9: 0 | JB9: 0 | JC9: 0 | JD9: 0 | JE9: 0 | JF9: 0 | JG9: 0 | JH9: 0 | JI9: 0 | JJ9: 0 | JK9: 0 | JL9: 0 | JM9: 0 | JN9: 0 | JO9: 0 | JP9: 0 | JQ9: 0 | JR9: 0 | JS9: 0 | JT9: 0 | JU9: 0 | JV9: 0 | JW9: 0 | JX9: 0 | JY9: 0 | JZ9: 0 | KA9: 0 | KB9: 0 | KC9: 0 | KD9: 0 | KE9: 0 | KF9: 0 | KG9: 0 | KH9: 0 | KI9: 0 | KJ9: 0 | KK9: 0 | KL9: 0 | KM9: 0 | KN9: 0 | KO9: 0 | KP9: 0 | KQ9: 0 | KR9: 0 | KS9: 0 | KT9: 0 | KU9: 0 | KV9: 0 | KW9: 0 | KX9: 0 | KY9: 0 | KZ9: 0 | LA9: 0 | LB9: 0 | LC9: 0 | LD9: 0 | LE9: 0 | LF9: 0 | LG9: 0 | LH9: 0 | LI9: 0 | LJ9: 0 | LK9: 0 | LL9: 0 | LM9: 0 | LN9: 0 | LO9: 0 | LP9: 0 | LQ9: 0 | LR9: 0 | LS9: 0 | LT9: 0 | LU9: 0 | LV9: 0 | LW9: 0 | LX9: 0 | LY9: 0 | LZ9: 0 | MA9: 0 | MB9: 0 | MC9: 0 | MD9: 0 | ME9: 0 | MF9: 0 | MG9: 0 | MH9: 0 | MI9: 0 | MJ9: 0 | MK9: 0 | ML9: 0 | MM9: 0 | MN9: 0 | MO9: 0 | MP9: 0 | MQ9: 0 | MR9: 0 | MS9: 0 | MT9: 0 | MU9: 0 | MV9: 0 | MW9: 0 | MX9: 0 | MY9: 0 | MZ9: 0 | NA9: 0 | NB9: 0 | NC9: 0 | ND9: 0 | NE9: 0 | NF9: 0 | NG9: 0 | NH9: 0 | NI9: 0 | NJ9: 0 | NK9: 0 | NL9: 0 | NM9: 0 | NN9: 0 | NO9: 0 | NP9: 0 | NQ9: 0 | NR9: 0 | NS9: 0 | NT9: 0 | NU9: 0 | NV9: 0 | NW9: 0 | NX9: 0 | NY9: 0 | NZ9: 0 | OA9: 0 | OB9: 0 | OC9: 0 | OD9: 0 | OE9: 0 | OF9: 0 | OG9: 0 | OH9: 0 | OI9: 0 | OJ9: 0 | OK9: 0 | OL9: 0 | OM9: 0 | ON9: 0 | OO9: 0 | OP9: 0 | OQ9: 0 | OR9: 0 | OS9: 0 | OT9: 0 | OU9: 0 | OV9: 0 | OW9: 0 | OX9: 0 | OY9: 0 | OZ9: 0 | PA9: 0 | PB9: 0 | PC9: 0 | PD9: 0 | PE9: 0 | PF9: 0 | PG9: 0 | PH9: 0 | PI9: 0 | PJ9: 0 | PK9: 0 | PL9: 0 | PM9: 0 | PN9: 0 | PO9: 0 | PP9: 0 | PQ9: 0 | PR9: 0 | PS9: 0 | PT9: 0 | PU9: 0 | PV9: 0 | PW9: 0 | PX9: 0 | PY9: 0 | PZ9: 0 | QA9: 0 | QB9: 0 | QC9: 0 | QD9: 0 | QE9: 0 | QF9: 0 | QG9: 0 | QH9: 0 | QI9: 0 | QJ9: 0 | QK9: 0 | QL9: 0 | QM9: 0 | QN9: 0 | QO9: 0 | QP9: 0 | QQ9: 0 | QR9: 0 | QS9: 0 | QT9: 0 | QU9: 0 | QV9: 0 | QW9: 0 | QX9: 0 | QY9: 0 | QZ9: 0 | RA9: 0 | RB9: 0 | RC9: 0 | RD9: 0 | RE9: 0 | RF9: 0 | RG9: 0 | RH9: 0 | RI9: 0 | RJ9: 0 | RK9: 0 | RL9: 0 | RM9: 0 | RN9: 0 | RO9: 0 | RQ9: 0 | RR9: 0 | RS9: 0 | RT9: 0 | RU9: 0 | RV9: 0 | RW9: 0 | RX9: 0 | RY9: 0 | RZ9: 0 | SA9: 0 | SB9: 0 | SC9: 0 | SD9: 0 | SE9: 0 | SF9: 0 | SG9: 0 | SH9: 0 | SI9: 0 | SJ9: 0
B10: 10044 | C10: Canby, City of | D10: 0 | E10: 0 | F10: 0 | G10: 0 | H10: 0 | I10: 0 | J10: 0 | K10: 0 | L10: 0 | M10: 0 | N10: 0 | O10: 0 | P10: 0 | Q10: 0 | R10: 0 | S10: 0 | T10: 0 | U10: 0 | V10: 0 | W10: 0 | X10: 0 | Y10: 0 | Z10: 0 | AA10: 0 | AB10: 0 | AC10: 0 | AD10: 0 | AE10: 0 | AF10: 0 | AG10: 0 | AH10: 0 | AI10: 0 | AJ10: 0 | AK10: 0 | AL10: 0 | AM10: 0 | AN10: 0 | AO10: 0 | AP10: 0 | AQ10: 0 | AR10: 0 | AS10: 0 | AT10: 0 | AU10: 0 | AV10: 0 | AW10: 0 | AX10: 0 | AY10: 0 | AZ10: 0 | BA10: 0 | BB10: 0 | BC10: 0 | BD10: 0 | BE10: 0 | BF10: 0 | BG10: 0 | BH10: 0 | BI10: 0 | BJ10: 0 | BK10: 0 | BL10: 0 | BM10: 0 | BN10: 0 | BO10: 0 | BP10: 0 | BQ10: 0 | BR10: 0 | BS10: 0 | BT10: 0 | BU10: 0 | BV10: 0 | BW10: 0 | BX10: 0 | BY10: 0 | BZ10: 0 | CA10: 0 | CB10: 0 | CC10: 0 | CD10: 0 | CE10: 0 | CF10: 0 | CG10: 0 | CH10: 0 | CI10: 0 | CJ10: 0 | CK10: 0 | CL10: 0 | CM10: 0 | CN10: 0 | CO10: 0 | CP10: 0 | CQ10: 0 | CR10: 0 | CS10: 0 | CT10: 0 | CU10: 0 | CV10: 0 | CW10: 0 | CX10: 0 | CY10: 0 | CZ10: 0 | DA10: 0 | DB10: 0 | DC10: 0 | DD10: 0 | DE10: 0 | DF10: 0 | DG10: 0 | DH10: 0 | DI10: 0 | DJ10: 0 | DK10: 0 | DL10: 0 | DM10: 0 | DN10: 0 | DO10: 0 | DP10: 0 | DQ10: 0 | DR10: 0 | DS10: 0 | DT10: 0 | DU10: 0 | DV10: 0 | DW10: 0 | DX10: 0 | DY10: 0 | DZ10: 0 | EA10: 0 | EB10: 0 | EC10: 0 | ED10: 0 | EE10: 0 | EF10: 0 | EG10: 0 | EH10: 0 | EI10: 0 | EJ10: 0 | EK10: 0 | EL10: 0 | EM10: 0 | EN10: 0 | EO10: 0 | EP10: 0 | EQ10: 0 | ER10: 0 | ES10: 0 | ET10: 0 | EU10: 0 | EV10: 0 | EW10: 0 | EX10: 0 | EY10: 0 | EZ10: 0 | FA10: 0 | FB10: 0 | FC10: 0 | FD10: 0 | FE10: 0 | FF10: 0 | FG10: 0 | FH10: 0 | FI10: 0 | FJ10: 0 | FK10: 0 | FL10: 0 | FM10: 0 | FN10: 0 | FO10: 0 | FP10: 0 | FQ10: 0 | FR10: 0 | FS10: 0 | FT10: 0 | FU10: 0 | FV10: 0 | FW10: 0 | FX10: 0 | FY10: 0 | FZ10: 0 | GA10: 0 | GB10: 0 | GC10: 0 | GD10: 0 | GE10: 0 | GF10: 0 | GG10: 0 | GH10: 0 | GI10: 0 | GJ10: 0 | GK10: 0 | GL10: 0 | GM10: 0 | GN10: 0 | GO10: 0 | GP10: 0 | GQ10: 0 | GR10: 0 | GS10: 0 | GT10: 0 | GU10: 0 | GV10: 0 | GW10: 0 | GX10: 0 | GY10: 0 | GZ10: 0 | HA10: 0 | HB10: 0 | HC10: 0 | HD10: 0 | HE10: 0 | HF10: 0 | HG10: 0 | HH10: 0 | HI10: 0 | HJ10: 0 | HK10: 0 | HL10: 0 | HM10: 0 | HN10: 0 | HO10: 0 | HP10: 0 | HQ10: 0 | HR10: 0 | HS10: 0 | HT10: 0 | HU10: 0 | HV10: 0 | HW10: 0 | HX10: 0 | HY10: 0 | HZ10: 0 | IA10: 0 | IB10: 0 | IC10: 0 | ID10: 0 | IE10: 0 | IF10: 0 | IG10: 0 | IH10: 0 | II10: 0 | IJ10: 0 | IK10: 0 | IL10: 0 | IM10: 0 | IN10: 0 | IO10: 0 | IP10: 0 | IQ10: 0 | IR10: 0 | IS10: 0 | IT10: 0 | IU10: 0 | IV10: 0 | IW10: 0 | IX10: 0 | IY10: 0 | IZ10: 0 | JA10: 0 | JB10: 0 | JC10: 0 | JD10: 0 | JE10: 0 | JF10: 0 | JG10: 0 | JH10: 0 | JI10: 0 | JJ10: 0 | JK10: 0 | JL10: 0 | JM10: 0 | JN10: 0 | JO10: 0 | JP10: 0 | JQ10: 0 | JR10: 0 | JS10: 0 | JT10: 0 | JU10: 0 | JV10: 0 | JW10: 0 | JX10: 0 | JY10: 0 | JZ10: 0 | KA10: 0 | KB10: 0 | KC10: 0 | KD10: 0 | KE10: 0 | KF10: 0 | KG10: 0 | KH10: 0 | KI10: 0 | KJ10: 0 | KK10: 0 | KL10: 0 | KM10: 0 | KN10: 0 | KO10: 0 | KP10: 0 | KQ10: 0 | KR10: 0 | KS10: 0 | KT10: 0 | KU10: 0 | KV10: 0 | KW10: 0 | KX10: 0 | KY10: 0 | KZ10: 0 | LA10: 0 | LB10: 0 | LC10: 0 | LD10: 0 | LE10: 0 | LF10: 0 | LG10: 0 | LH10: 0 | LI10: 0 | LJ10: 0 | LK10: 0 | LL10: 0 | LM10: 0 | LN10: 0 | LO10: 0 | LP10: 0 | LQ10: 0 | LR10: 0 | LS10: 0 | LT10: 0 | LU10: 0 | LV10: 0 | LW10: 0 | LX10: 0 | LY10: 0 | LZ10: 0 | MA10: 0 | MB10: 0 | MC10: 0 | MD10: 0 | ME10: 0 | MF10: 0 | MG10: 0 | MH10: 0 | MI10: 0 | MJ10: 0 | MK10: 0 | ML10: 0 | MM10: 0 | MN10: 0 | MO10: 0 | MP10: 0 | MQ10: 0 | MR10: 0 | MS10: 0 | MT10: 0 | MU10: 0 | MV10: 0 | MW10: 0 | MX10: 0 | MY10: 0 | MZ10: 0 | NA10: 0 | NB10: 0 | NC10: 0 | ND10: 0 | NE10: 0 | NF10: 0 | NG10: 0 | NH10: 0 | NI10: 0 | NJ10: 0 | NK10: 0 | NL10: 0 | NM10: 0 | NN10: 0 | NO10: 0 | NP10: 0 | NQ10: 0 | NR10: 0 | NS10: 0 | NT10: 0 | NU10: 0 | NV10: 0 | NW10: 0 | NX10: 0 | NY10: 0 | NZ10: 0 | OA10: 0 | OB10: 0 | OC10: 0 | OD10: 0 | OE10: 0 | OF10: 0 | OG10: 0 | OH10: 0 | OI10: 0 | OJ10: 0 | OK10: 0 | OL10: 0 | OM10: 0 | ON10: 0 | OO10: 0 | OP10: 0 | OQ10: 0 | OR10: 0 | OS10: 0 | OT10: 0 | OU10: 0 | OV10: 0 | OW10: 0 | OX10: 0 | OY10: 0 | OZ10: 0 | PA10: 0 | PB10: 0 | PC10: 0 | PD10: 0 | PE10: 0 | PF10: 0 | PG10: 0 | PH10: 0 | PI10: 0 | PJ10: 0 | PK10: 0 | PL10: 0 | PM10: 0 | PN10: 0 | PO10: 0 | PP10: 0 | PQ10: 0 | PR10: 0 | PS10: 0 | PT10: 0 | PU10: 0 | PV10: 0 | PW10: 0 | PX10: 0 | PY10: 0 | PZ10: 0 | QA10: 0 | QB10: 0 | QC10: 0 | QD10: 0 | QE10: 0 | QF10: 0 | QG10: 0 | QH10: 0 | QI10: 0 | QJ10: 0 | QK10: 0 | QL10: 0 | QM10: 0 | QN10: 0 | QO10: 0 | QP10: 0 | QQ10: 0 | QR10: 0 | QS10: 0 | QT10: 0 | QU10: 0 | QV10: 0 | QW10: 0 | QX10: 0 | QY10: 0 | QZ10: 0 | RA10: 0 | RB10: 0 | RC10: 0 | RD10: 0 | RE10: 0 | RF10: 0 | RG10: 0 | RH10: 0 | RI10: 0 | RJ10: 0 | RK10: 0 | RL10: 0 | RM10: 0 | RN10: 0 | RO10: 0 | RQ10: 0 | RR10: 0 | RS10: 0 | RT10: 0 | RU10: 0 | RV10: 0 | RW10: 0 | RX10: 0 | RY10: 0 | RZ10: 0 | SA10: 0 | SB10: 0 | SC10: 0 | SD10: 0 | SE10: 0 | SF10: 0 | SG10: 0 | SH10: 0 | SI10: 0 | SJ10: 0
B11: 10046 | C11: Central Electric Coop | D11: 0 | E11: 0 | F11: 0 | G11: 0 | H11: 0 | I11: 0 | J11: 0 | K11: 0 | L11: 0 | M11: 0 | N11: 0 | O11: 0 | P11: 0 | Q11: 0 | R11: 0 | S11: 0 | T11: 0 | U11: 0 | V11: 0 | W11: 0 | X11: 0 | Y11: 0 | Z11: 0 | AA11: 0 | AB11: 0 | AC11: 0 | AD11: 0 | AE11: 0 | AF11: 0 | AG11: 0 | AH11: 0 | AI11: 0 | AJ11: 0 | AK11: 0 | AL11: 0 | AM11: 0 | AN11: 0 | AO11: 0 | AP11: 0 | AQ11: 0 | AR11: 0 | AS11: 0 | AT11: 0 | AU11: 0 | AV11: 0 | AW11: 0 | AX11: 0 | AY11: 0 | AZ11: 0 | BA11: 0 | BB11: 0 | BC11: 0 | BD11: 0 | BE11: 0 | BF11: 0 | BG11: 0 | BH11: 0 | BI11: 0 | BJ11: 0 | BK11: 0 | BL11: 0 | BM11: 0 | BN11: 0 | BO11: 0 | BP11: 0 | BQ11: 0 | BR11: 0 | BS11: 0 | BT11: 0 | BU11: 0 | BV11: 0 | BW11: 0 | BX11: 0 | BY11: 0 | BZ11: 0 | CA11: 0 | CB11: 0 | CC11: 0 | CD11: 0 | CE11: 0 | CF11: 0 | CG11: 0 | CH11: 0 | CI11: 0 | CJ11: 0 | CK11: 0 | CL11: 0 | CM11: 0 | CN11: 0 | CO11: 0 | CP11: 0 | CQ11: 0 | CR11: 0 | CS11: 0 | CT11: 0 | CU11: 0 | CV11: 0 | CW11: 0 | CX11: 0 | CY11: 0 | CZ11: 0 | DA11: 0 | DB11: 0 | DC11: 0 | DD11: 0 | DE11: 0 | DF11: 0 | DG11: 0 | DH11: 0 | DI11: 0 | DJ11: 0 | DK11: 0 | DL11: 0 | DM11: 0 | DN11: 0 | DO11: 0 | DP11: 0 | DQ11: 0 | DR11: 0 | DS11: 0 | DT11: 0 | DU11: 0 | DV11: 0 | DW11: 0 | DX11: 0 | DY11: 0 | DZ11: 0 | EA11: 0 | EB11: 0 | EC11: 0 | ED11: 0 | EE11: 0 | EF11: 0 | EG11: 0 | EH11: 0 | EI11: 0 | EJ11: 0 | EK11: 0 | EL11: 0 | EM11: 0 | EN11: 0 | EO11: 0 | EP11: 0 | EQ11: 0 | ER11: 0 | ES11: 0 | ET11: 0 | EU11: 0 | EV11: 0 | EW11: 0 | EX11: 0 | EY11: 0 | EZ11: 0 | FA11: 0 | FB11: 0 | FC11: 0 | FD11: 0 | FE11: 0 | FF11: 0 | FG11: 0 | FH11: 0 | FI11: 0 | FJ11: 0 | FK11: 0 | FL11: 0 | FM11: 0 | FN11: 0 | FO11: 0 | FP11: 0 | FQ11: 0 | FR11: 0 | FS11: 0 | FT11: 0 | FU11: 0 | FV11: 0 | FW11: 0 | FX11: 0 | FY11: 0 | FZ11: 0 | GA11: 0 | GB11: 0 | GC11: 0 | GD11: 0 | GE11: 0 | GF11: 0 | GG11: 0 | GH11: 0 | GI11: 0 | GJ11: 0 | GK11: 0 | GL11: 0 | GM11: 0 | GN11: 0 | GO11: 0 | GP11: 0 | GQ11: 0 | GR11: 0 | GS11: 0 | GT11: 0 | GU11: 0 | GV11: 0 | GW11: 0 | GX11: 0 | GY11: 0 | GZ11: 0 | HA11: 0 | HB11: 0 | HC11: 0 | HD11: 0 | HE11: 0 | HF11: 0 | HG11: 0 | HH11: 0 | HI11: 0 | HJ11: 0 | HK11: 0 | HL11: 0 | HM11: 0 | HN11: 0 | HO11: 0 | HP11: 0 | HQ11: 0 | HR11: 0 | HS11: 0 | HT11: 0 | HU11: 0 | HV11: 0 | HW11: 0 | HX11: 0 | HY11: 0 | HZ11: 0 | IA11: 0 | IB11: 0 | IC11: 0 | ID11: 0 | IE11: 0 | IF11: 0 | IG11: 0 | IH11: 0 | II11: 0 | IJ11: 0 | IK11: 0 | IL11: 0 | IM11: 0 | IN11: 0 | IO11: 0 | IP11: 0 | IQ11: 0 | IR11: 0 | IS11: 0 | IT11: 0 | IU11: 0 | IV11: 0 | IW11: 0 | IX11: 0 | IY11: 0 | IZ11: 0 | JA11: 0 | JB11: 0 | JC11: 0 | JD11: 0 | JE11: 0 | JF11: 0 | JG11: 0 | JH11: 0 | JI11: 0 | JJ11: 0 | JK11: 0 | JL11: 0 | JM11: 0 | JN11: 0 | JO11: 0 | JP11: 0 | JQ11: 0 | JR11: 0 | JS11: 0 | JT11: 0 | JU11: 0 | JV11: 0 | JW11: 0 | JX11: 0 | JY11: 0 | JZ11: 0 | KA11: 0 | KB11: 0 | KC11: 0 | KD11: 0 | KE11: 0 | KF11: 0 | KG11: 0 | KH11: 0 | KI11: 0 | KJ11: 0 | KK11: 0 | KL11: 0 | KM11: 0 | KN11: 0 | KO11: 0 | KP11: 0 | KQ11: 0 | KR11: 0 | KS11: 0 | KT11: 0 | KU11: 0 | KV11: 0 | KW11: 0 | KX11: 0 | KY11: 0 | KZ11: 0 | LA11: 0 | LB11: 0 | LC11: 0 | LD11: 0 | LE11: 0 | LF11: 0 | LG11: 0 | LH11: 0 | LI11: 0 | LJ11: 0 | LK11: 0 | LL11: 0 | LM11: 0 | LN11: 0 | LO11: 0 | LP11: 0 | LQ11: 0 | LR11: 0 | LS11: 0 | LT11: 0 | LU11: 0 | LV11: 0 | LW11: 0 | LX11: 0 | LY11: 0 | LZ11: 0 | MA11: 0 | MB11: 0 | MC11: 0 | MD11: 0 | ME11: 0 | MF11: 0 | MG11: 0 | MH11: 0 | MI11: 0 | MJ11: 0 | MK11: 0 | ML11: 0 | MM11: 0 | MN11: 0 | MO11: 0 | MP11: 0 | MQ11: 0 | MR11: 0 | MS11: 0 | MT11: 0 | MU11: 0 | MV11: 0 | MW11: 0 | MX11: 0 | MY11: 0 | MZ11: 0 | NA11: 0 | NB11: 0 | NC11: 0 | ND11: 0 | NE11: 0 | NF11: 0 | NG11: 0 | NH11: 0 | NI11: 0 | NJ11: 0 | NK11: 0 | NL11: 0 | NM11: 0 | NN11: 0 | NO11: 0 | NP11: 0 | NQ11: 0 | NR11: 0 | NS11: 0 | NT11: 0 | NU11: 0 | NV11: 0 | NW11: 0 | NX11: 0 | NY11: 0 | NZ11: 0 | OA11: 0 | OB11: 0 | OC11: 0 | OD11: 0 | OE11: 0 | OF11: 0 | OG11: 0 | OH11: 0 | OI11: 0 | OJ11: 0 | OK11: 0 | OL11: 0 | OM11: 0 | ON11: 0 | OO11: 0 | OP11: 0 | OQ11: 0 | OR11: 0 | OS11: 0 | OT11: 0 | OU11: 0 | OV11: 0 | OW11: 0 | OX11: 0 | OY11: 0 | OZ11: 0 | PA11: 0 | PB11: 0 | PC11: 0 | PD11: 0 | PE11: 0 | PF11: 0 | PG11: 0 | PH11: 0 | PI11: 0 | PJ11: 0 | PK11: 0 | PL11: 0 | PM11: 0 | PN11: 0 | PO11: 0 | PP11: 0 | PQ11: 0 | PR11: 0 | PS11: 0 | PT11: 0 | PU11: 0 | PV11: 0 | PW11: 0 | PX11: 0 | PY11: 0 | PZ11: 0 | QA11: 0 | QB11: 0 | QC11: 0 | QD11: 0 | QE11: 0 | QF11: 0 | QG11: 0 | QH11: 0 | QI11: 0 | QJ11: 0 | QK11: 0 | QL11: 0 | QM11: 0 | QN11: 0 | QO11: 0 | QP11: 0 | QQ11: 0 | QR11: 0 | QS11: 0 | QT11: 0 | QU11: 0 | QV11: 0 | QW11: 0 | QX11: 0 | QY11: 0 | QZ11: 0 | RA11: 0 | RB11: 0 | RC11: 0 | RD11: 0 | RE11: 0 | RF11: 0 | RG11: 0 | RH11: 0 | RI11: 0 | RJ11: 0 | RK11: 0 | RL11: 0 | RM11: 0 | RN11: 0 | RO11: 0 | RQ11: 0 | RR11: 0 | RS11: 0 | RT11: 0 | RU11: 0 | RV11: 0 | RW11: 0 | RX11: 0 | RY11: 0 | RZ11: 0 | SA11: 0 | SB11: 0 | SC11: 0 | SD11: 0 | SE11: 0 | SF11: 0 | SG11: 0 | SH11: 0 | SI11: 0 | SJ11: 0
B12: 10047 | C12: Central Lincoln PUD | D12: 0 | E12: 0 | F12: 0 | G12: 0 | H12: 0 | I12: 0 | J12: 0 | K12: 0 | L12: 0 | M12: 0 | N12: 0 | O12: 0 | P12: 0 | Q12: 0 | R12: 0 | S12: 0 | T12: 0 | U12: 0 | V12: 0 | W12: 0 | X12: 0 | Y12: 0 | Z12: 0 | AA12: 0 | AB12: 0 | AC12: 0 | AD12: 0 | AE12: 0 | AF12: 0 | AG12: 0 | AH12: 0 | AI12: 0 | AJ12: 0 | AK12: 0 | AL12: 0 | AM12: 0 | AN12: 0 | AO12: 0 | AP12: 0 | AQ12: 0 | AR12: 0 | AS12: 0 | AT12: 0 | AU12: 0 | AV12: 0 | AW12: 0 | AX12: 0 | AY12: 0 | AZ12: 0 | BA12: 0 | BB12: 0 | BC12: 0 | BD12: 0 | BE12: 0 | BF12: 0 | BG12: 0 | BH12: 0 | BI12: 0 | BJ12: 0 | BK12: 0 | BL12: 0 | BM12: 0 | BN12: 0 | BO12: 0 | BP12: 0 | BQ12: 0 | BR12: 0 | BS12: 0 | BT12: 0 | BU12: 0 | BV12: 0 | BW12: 0 | BX12: 0 | BY12: 0 | BZ12: 0 | CA12: 0 | CB12: 0 | CC12: 0 | CD12: 0 | CE12: 0 | CF12: 0 | CG12: 0 | CH12: 0 | CI12: 0 | CJ12: 0 | CK12: 0 | CL12: 0 | CM12: 0 | CN12: 0 | CO12: 0 | CP12: 0 | CQ12: 0 | CR12: 0 | CS12: 0 | CT12: 0 | CU12: 0 | CV12: 0 | CW12: 0 | CX12: 0 | CY12: 0 | CZ12: 0 | DA12: 0 | DB12: 0 | DC12: 0 | DD12: 0 | DE12: 0 | DF12: 0 | DG12: 0 | DH12: 0 | DI12: 0 | DJ12: 0 | DK12: 0 | DL12: 0 | DM12: 0 | DN12: 0 | DO12: 0 | DP12: 0 | DQ12: 0 | DR12: 0 | DS12: 0 | DT12: 0 | DU12: 0 | DV12: 0 | DW12: 0 | DX12: 0 | DY12: 0 | DZ12: 0 | EA12: 0 | EB12: 0 | EC12: 0 | ED12: 0 | EE12: 0 | EF12: 0 | EG12: 0 | EH12: 0 | EI12: 0 | EJ12: 0 | EK12: 0 | EL12: 0 | EM12: 0 | EN12: 0 | EO12: 0 | EP12: 0 | EQ12: 0 | ER12: 0 | ES12: 0 | ET12: 0 | EU12: 0 | EV12: 0 | EW12: 0 | EX12: 0 | EY12: 0 | EZ12: 0 | FA12: 0 | FB12: 0 | FC12: 0 | FD12: 0 | FE12: 0 | FF12: 0 | FG12: 0 | FH12: 0 | FI12: 0 | FJ12: 0 | FK12: 0 | FL12: 0 | FM12: 0 | FN12: 0 | FO12: 0 | FP12: 0 | FQ12: 0 | FR12: 0 | FS12: 0 | FT12: 0 | FU12: 0 | FV12: 0 | FW12: 0 | FX12: 0 | FY12: 0 | FZ12: 0 | GA12: 0 | GB12: 0 | GC12: 0 | GD12: 0 | GE12: 0 | GF12: 0 | GG12: 0 | GH12: 0 | GI12: 0 | GJ12: 0 | GK12: 0 | GL12: 0 | GM12: 0 | GN12: 0 | GO12: 0 | GP12: 0 | GQ12: 0 | GR12: 0 | GS12: 0 | GT12: 0 | GU12: 0 | GV12: 0 | GW12: 0 | GX12: 0 | GY12: 0 | GZ12: 0 | HA12: 0 | HB12: 0 | HC12: 0 | HD12: 0 | HE12: 0 | HF12: 0 | HG12: 0 | HH12: 0 | HI12: 0 | HJ12: 0 | HK12: 0 | HL12: 0 | HM12: 0 | HN12: 0 | HO12: 0 | HP12: 0 | HQ12: 0 | HR12: 0 | HS12: 0 | HT12: 0 | HU12: 0 | HV12: 0 | HW12: 0 | HX12: 0 | HY12: 0 | HZ12: 0 | IA12: 0 | IB12: 0 | IC12: 0 | ID12: 0 | IE12: 0 | IF12: 0 | IG12: 0 | IH12: 0 | II12: 0 | IJ12: 0 | IK12: 0 | IL12: 0 | IM12: 0 | IN12: 0 | IO12: 0 | IP12: 0 | IQ12: 0 | IR12: 0 | IS12: 0 | IT12: 0 | IU12: 0 | IV12: 0 | IW12: 0 | IX12: 0 | IY12: 0 | IZ12: 0 | JA12: 0 | JB12: 0 | JC12: 0 | JD12: 0 | JE12: 0 | JF12: 0 | JG12: 0 | JH12: 0 | JI12: 0 | JJ12: 0 | JK12: 0 | JL12: 0 | JM12: 0 | JN12: 0 | JO12: 0 | JP12: 0 | JQ12: 0 | JR12: 0 | JS12: 0 | JT12: 0 | JU12: 0 | JV12: 0 | JW12: 0 | JX12: 0 | JY12: 0 | JZ12: 0 | KA12: 0 | KB12: 0 | KC12: 0 | KD12: 0 | KE12: 0 | KF12: 0 | KG12: 0 | KH12: 0 | KI12: 0 | KJ12: 0 | KK12: 0 | KL12: 0 | KM12: 0 | KN12: 0 | KO12: 0 | KP12: 0 | KQ12: 0 | KR12: 0 | KS12: 0 | KT12: 0 | KU12: 0 | KV12: 0 | KW12: 0 | KX12: 0 | KY12: 0 | KZ12: 0 | LA12: 0 | LB12: 0 | LC12: 0 | LD12: 0 | LE12: 0 | LF12: 0 | LG12: 0 | LH12: 0 | LI12: 0 | LJ12: 0 | LK12: 0 | LL12: 0 | LM12: 0 | LN12: 0 | LO12: 0 | LP12: 0 | LQ12: 0 | LR12: 0 | LS12: 0 | LT12: 0 | LU12: 0 | LV12: 0 | LW12: 0 | LX12: 0 | LY12: 0 | LZ12: 0 | MA12: 0 | MB12: 0 | MC12: 0 | MD12: 0 | ME12: 0 | MF12: 0 | MG12: 0 | MH12: 0 | MI12: 0 | MJ12: 0 | MK12: 0 | ML12: 0 | MM12: 0 | MN12: 0 | MO12: 0 | MP12: 0 | MQ12: 0 | MR12: 0 | MS12: 0 | MT12: 0 | MU12: 0 | MV12: 0 | MW12: 0 | MX12: 0 | MY12: 0 | MZ12: 0 | NA12: 0 | NB12: 0 | NC12: 0 | ND12: 0 | NE12: 0 | NF12: 0 | NG12: 0 | NH12: 0 | NI12: 0 | NJ12: 0 | NK12: 0 | NL12: 0 | NM12: 0 | NN12: 0 | NO12: 0 | NP12: 0 | NQ12: 0 | NR12: 0 | NS12: 0 | NT12: 0 | NU12: 0 | NV12: 0 | NW12: 0 | NX12: 0 | NY12: 0 | NZ12: 0 | OA12: 0 | OB12: 0 | OC12: 0 | OD12: 0 | OE12: 0 | OF12: 0 | OG12: 0 | OH12: 0 | OI12: 0 | OJ12: 0 | OK12: 0 | OL12: 0 | OM12: 0 | ON12: 0 | OO12: 0 | OP12: 0 | OQ12: 0 | OR12: 0 | OS12: 0 | OT12: 0 | OU12: 0 | OV12: 0 | OW12: 0 | OX12: 0 | OY12: 0 | OZ12: 0 | PA12: 0 | PB12: 0 | PC12: 0 | PD12: 0 | PE12: 0 | PF12: 0 | PG12: 0 | PH12: 0 | PI12: 0 | PJ12: 0 | PK12: 0 | PL12: 0 | PM12: 0 | PN12: 0 | PO12: 0 | PP12: 0 | PQ12: 0 | PR12: 0 | PS12: 0 | PT12: 0 | PU12: 0 | PV12: 0 | PW12: 0 | PX12: 0 | PY12: 0 | PZ12: 0 | QA12: 0 | QB12: 0 | QC12: 0 | QD12: 0 | QE12: 0 | QF12: 0 | QG12: 0 | QH12: 0 | QI12: 0 | QJ12: 0 | QK12: 0 | QL12: 0 | QM12: 0 | QN12: 0 | QO12: 0 | QP12: 0 | QQ12: 0 | QR12: 0 | QS12: 0 | QT12: 0 | QU12: 0 | QV12: 0 | QW12: 0 | QX12: 0 | QY12: 0 | QZ12: 0 | RA12: 0 | RB12: 0 | RC12: 0 | RD12: 0 | RE12: 0 | RF12: 0 | RG12: 0 | RH12: 0 | RI12: 0 | RJ12: 0 | RK12: 0 | RL12: 0 | RM12: 0 | RN12: 0 | RO12: 0 | RQ12: 0 | RR12: 0 | RS12: 0 | RT12: 0 | RU12: 0 | RV12: 0 | RW12: 0 | RX12: 0 | RY12: 0 | RZ12: 0 | SA12: 0 | SB12: 0 | SC12: 0 | SD12: 0 | SE12: 0 | SF12: 0 | SG12: 0 | SH12: 0 | SI12: 0 | SJ12: 0
B13: 10055 | C13: Albion, City of | D13: 0 | E13: 0 | F13: 0 | G13: 0 | H13: 0 | I13: 0 | J13: 0 | K13: 0 | L13: 0 | M13: 0 | N13: 0 | O13: 0 | P13: 0 | Q13: 0 | R13: 0 | S13: 0 | T13: 0 | U13: 0 | V13: 0 | W13: 0 | X13: 0 | Y13: 0 | Z13: 0 | AA13: 0 | AB13: 0 | AC13: 0 | AD13: 0 | AE13: 0 | AF13: 0 | AG13: 0 | AH13: 0 | AI13: 0 | AJ13: 0 | AK13: 0 | AL13: 0 | AM13: 0 | AN13: 0 | AO13: 0 | AP13: 0 | AQ13: 0 | AR13: 0 | AS13: 0 | AT13: 0 | AU13: 0 | AV13: 0 | AW13: 0 | AX13: 0 | AY13: 0 | AZ13: 0 | BA13: 0 | BB13: 0 | BC13: 0 | BD13: 0 | BE13: 0 | BF13: 0 | BG13: 0 | BH13: 0 | BI13: 0 | BJ13: 0 | BK13: 0 | BL13: 0 | BM13: 0 | BN13: 0 | BO13: 0 | BP13: 0 | BQ13: 0 | BR13: 0 | BS13: 0 | BT13: 0 | BU13: 0 | BV13: 0 | BW13: 0 | BX13: 0 | BY13: 0 | BZ13: 0 | CA13: 0 | CB13: 0 | CC13: 0 | CD13: 0 | CE13: 0 | CF13: 0 | CG13: 0 | CH13: 0 | CI13: 0 | CJ13: 0 | CK13: 0 | CL13: 0 | CM13: 0 | CN13: 0 | CO13: 0 | CP13: 0 | CQ13: 0 | CR13: 0 | CS13: 0 | CT13: 0 | CU13: 0 | CV13: 0 | CW13: 0 | CX13: 0 | CY13: 0 | CZ13: 0 | DA13: 0 | DB13: 0 | DC13: 0 | DD13: 0 | DE13: 0 | DF13: 0 | DG13: 0 | DH13: 0 | DI13: 0 | DJ13: 0 | DK13: 0 | DL13: 0 | DM13: 0 | DN13: 0 | DO13: 0 | DP13: 0 | DQ13: 0 | DR13: 0 | DS13: 0 | DT13: 0 | DU13: 0 | DV13: 0 | DW13: 0 | DX13: 0 | DY13: 0 | DZ13: 0 | EA13: 0 | EB13: 0 | EC13: 0 | ED13: 0 | EE13: 0 | EF13: 0 | EG13: 0 | EH13: 0 | EI13: 0 | EJ13: 0 | EK13: 0 | EL13: 0 | EM13: 0 | EN13: 0 | EO13: 0 | EP13: 0 | EQ13: 0 | ER13: 0 | ES13: 0 | ET13: 0 | EU13: 0 | EV13: 0 | EW13: 0 | EX13: 0 | EY13: 0 | EZ13: 0 | FA13: 0 | FB13: 0 | FC13: 0 | FD13: 0 | FE13: 0 | FF13: 0 | FG13: 0 | FH13: 0 | FI13: 0 | FJ13: 0 | FK13: 0 | FL13: 0 | FM13: 0 | FN13: 0 | FO13: 0 | FP13: 0 | FQ13: 0 | FR13: 0 | FS13: 0 | FT13: 0 | FU13: 0 | FV13: 0 | FW13: 0 | FX13: 0 | FY13: 0 | FZ13: 0 | GA13: 0 | GB13: 0 | GC13: 0 | GD13: 0 | GE13: 0 | GF13: 0 | GG13: 0 | GH13: 0 | GI13: 0 | GJ13: 0 | GK13: 0 | GL13: 0 | GM13: 0 | GN13: 0 | GO13: 0 | GP13: 0 | GQ13: 0 | GR13: 0 | GS13: 0 | GT13: 0 | GU13: 0 | GV13: 0 | GW13: 0 | GX13: 0 | GY13: 0 | GZ13: 0 | HA13: 0 | HB13: 0 | HC13: 0 | HD13: 0 | HE13: 0 | HF13: 0 | HG13: 0 | HH13: 0 | HI13: 0 | HJ13: 0 | HK13: 0 | HL13: 0 | HM13: 0 | HN13: 0 | HO13: 0 | HP13: 0 | HQ13: 0 | HR13: 0 | HS13: 0 | HT13: 0 | HU13: 0 | HV13: 0 | HW13: 0 | HX13: 0 | HY13: 0 | HZ13: 0 | IA13: 0 | IB13: 0 | IC13: 0 | ID13: 0 | IE13: 0 | IF13: 0 | IG13: 0 | IH13: 0 | II13: 0 | IJ13: 0 | IK13: 0 | IL13: 0 | IM13: 0 | IN13: 0 | IO13: 0 | IP13: 0 | IQ13: 0 | IR13: 0 | IS13: 0 | IT13: 0 | IU13: 0 | IV13: 0 | IW13: 0 | IX13: 0 | IY13: 0 | IZ13: 0 | JA13: 0 | JB13: 0 | JC13: 0 | JD13: 0 | JE13: 0 | JF13: 0 | JG13: 0 | JH13: 0 | JI13: 0 | JJ13: 0 | JK13: 0 | JL13: 0 | JM13: 0 | JN13: 0 | JO13: 0 | JP13: 0 | JQ13: 0 | JR13: 0 | JS13: 0 | JT13: 0 | JU13: 0 | JV13: 0 | JW13: 0 | JX13: 0 | JY13: 0 | JZ13: 0 | KA13: 0 | KB13: 0 | KC13: 0 | KD13: 0 | KE13: 0 | KF13: 0 | KG13: 0 | KH13: 0 | KI13: 0 | KJ13: 0 | KK13: 0 | KL13: 0 | KM13: 0 | KN13: 0 | KO13: 0 | KP13: 0 | KQ13: 0 | KR13: 0 | KS13: 0 | KT13: 0 | KU13: 0 | KV13: 0 | KW13: 0 | KX13: 0 | KY13: 0 | KZ13: 0 | LA13: 0 | LB13: 0 | LC13: 0 | LD13: 0 | LE13: 0 | LF13: 0 | LG13: 0 | LH13: 0 | LI13: 0 | LJ13: 0 | LK13: 0 | LL13: 0 | LM13: 0 | LN13: 0 | LO13: 0 | LP13: 0 | LQ13: 0 | LR13: 0 | LS13: 0 | LT13: 0 | LU13: 0 | LV13: 0 | LW13: 0 | LX13: 0 | LY13: 0 | LZ13: 0 | MA13: 0 | MB13: 0 | MC13: 0 | MD13: 0 | ME13: 0 | MF13: 0 | MG13: 0 | MH13: 0 | MI13: 0 | MJ13: 0 | MK13: 0 | ML13: 0 | MM13: 0 | MN13: 0 | MO13: 0 | MP13: 0 | MQ13: 0 | MR13: 0 | MS13: 0 | MT13: 0 | MU13: 0 | MV13: 0 | MW13: 0 | MX13: 0 | MY13: 0 | MZ13: 0 | NA13: 0 | NB13: 0 | NC13: 0 | ND13: 0 | NE13: 0 | NF13: 0 | NG13: 0 | NH13: 0 | NI13: 0 | NJ13: 0 | NK13: 0 | NL13: 0 | NM13: 0 | NN13: 0 | NO13: 0 | NP13: 0 | NQ13: 0 | NR13: 0 | NS13: 0 | NT13: 0 | NU13: 0 | NV13: 0 | NW13: 0 | NX13: 0 | NY13: 0 | NZ13: 0 | OA13: 0 | OB13: 0 | OC13: 0 | OD13: 0 | OE13: 0 | OF13: 0 | OG13: 0 | OH13: 0 | OI13: 0 | OJ13: 0 | OK13: 0 | OL13: 0 | OM13: 0 | ON13: 0 | OO13: 0 | OP13: 0 | OQ13: 0 | OR13: 0 | OS13: 0 | OT13: 0 | OU13: 0 | OV13: 0 | OW13: 0 | OX13: 0 | OY13: 0 | OZ13: 0 | PA13: 0 | PB13: 0 | PC13: 0 | PD13: 0 | PE13: 0 | PF13: 0 | PG13: 0 | PH13: 0 | PI13: 0 | PJ13: 0 | PK13: 0 | PL13: 0 | PM13: 0 | PN13: 0 | PO13: 0 | PP13: 0 | PQ13: 0 | PR13: 0 | PS13: 0 | PT13: 0 | PU13: 0 | PV13: 0 | PW13: 0 | PX13: 0 | PY13: 0 | PZ13: 0 | QA13: 0 | QB13: 0 | QC13: 0 | QD13: 0 | QE13: 0 | QF13: 0 | QG13: 0 | QH13: 0 | QI13: 0 | QJ13: 0 | QK13: 0 | QL13: 0 | QM13: 0 | QN13: 0 | QO13: 0 | QP13: 0 | QQ13: 0 | QR13: 0 | QS13: 0 | QT13: 0 | QU13: 0 | QV13: 0 | QW13: 0 | QX13: 0 | QY13: 0 | QZ13: 0 | RA13: 0 | RB13: 0 | RC13: 0 | RD13: 0 | RE13: 0 | RF13: 0 | RG13: 0 | RH13: 0 | RI13: 0 | RJ13: 0 | RK13: 0 | RL13: 0 | RM13: 0 | RN13: 0 | RO13: 0 | RQ13: 0 | RR13: 0 | RS13: 0 | RT13: 0 | RU13: 0 | RV13: 0 | RW13: 0 | RX13: 0 | RY13: 0 | RZ13: 0 | SA13: 0 | SB13: 0 | SC13: 0 | SD13: 0 | SE13: 0 | SF13: 0 | SG13: 0 | SH13: 0 | SI13: 0 | SJ13: 0
B14: 10057 | C14: Ashland, City of | D14: 0 | E14: 0 | F14: 0 | G14: 0 | H14: 0 | I14: 0 | J14: 0 | K14: 0 | L14: 0 | M14: 0 | N14: 0 | O14: 0 | P14: 0 | Q14: 0 | R14: 0 | S14: 0 | T14: 0 | U14: 0 | V14: 0 | W14: 0 | X14: 0 | Y14: 0 | Z14: 0 | AA14: 0 | AB14: 0 | AC14: 0 | AD14: 0 | AE14: 0 | AF14: 0 | AG14: 0 | AH14: 0 | AI14: 0 | AJ14: 0 | AK14: 0 | AL14: 0 | AM14: 0 | AN14: 0 | AO14: 0 | AP14: 0 | AQ14: 0 | AR14: 0 | AS14: 0 | AT14: 0 | AU14: 0 | AV14: 0 | AW14: 0 | AX14: 0 | AY14: 0 | AZ14: 0 | BA14: 0 | BB14: 0 | BC14: 0 | BD14: 0 | BE14: 0 | BF14: 0 | BG14: 0 | BH14: 0 | BI14: 0 | BJ14: 0 | BK14: 0 | BL14: 0 | BM14: 0 | BN14: 0 | BO14: 0 | BP14: 0 | BQ14: 0 | BR14: 0 | BS14: 0 | BT14: 0 | BU14: 0 | BV14: 0 | BW14: 0 | BX14: 0 | BY14: 0 | BZ14: 0 | CA14: 0 | CB14: 0 | CC14: 0 | CD14: 0 | CE14: 0 | CF14: 0 | CG14: 0 | CH14: 0 | CI14: 0 | CJ14: 0 | CK14: 0 | CL14: 0 | CM14: 0 | CN14: 0 | CO14: 0 | CP14: 0 | CQ14: 0 | CR14: 0 | CS14: 0 | CT14: 0 | CU14: 0 | CV14: 0 | CW14: 0 | CX14: 0 | CY14: 0 | CZ14: 0 | DA14: 0 | DB14: 0 | DC14: 0 | DD14: 0 | DE14: 0 | DF14: 0 | DG14: 0 | DH14: 0 | DI14: 0 | DJ14: 0 | DK14: 0 | DL14: 0 | DM14: 0 | DN14: 0 | DO14: 0 | DP14: 0 | DQ14: 0 | DR14: 0 | DS14: 0 | DT14: 0 | DU14: 0 | DV14: 0 | DW14: 0 | DX14: 0 | DY14: 0 | DZ14: 0 | EA14: 0 | EB14: 0 | EC14: 0 | ED14: 0 | EE14: 0 | EF14: 0 | EG14: 0 | EH14: 0 | EI14: 0 | EJ14: 0 | EK14: 0 | EL14: 0 | EM14: 0 | EN14: 0 | EO14: 0 | EP14: 0 | EQ14: 0 | ER14: 0 | ES14: 0 | ET14: 0 | EU14: 0 | EV14: 0 | EW14: 0 | EX14: 0 | EY14: 0 | EZ14: 0 | FA14: 0 | FB14: 0 | FC14: 0 | FD14: 0 | FE14: 0 | FF14: 0 | FG14: 0 | FH14: 0 | FI14: 0 | FJ14: 0 | FK14: 0 | FL14: 0 | FM14: 0 | FN14: 0 | FO14: 0 | FP14: 0 | FQ14: 0 | FR14: 0 | FS14: 0 | FT14: 0 | FU14: 0 | FV14: 0 | FW14: 0 | FX14: 0 | FY14: 0 | FZ14: 0 | GA14: 0 | GB14: 0 | GC14: 0 | GD14: 0 | GE14: 0 | GF14: 0 | GG14: 0 | GH14: 0 | GI14: 0 | GJ14: 0 | GK14: 0 | GL14: 0 | GM14: 0 | GN14: 0 | GO14: 0 | GP14: 0 | GQ14: 0 | GR14: 0 | GS14: 0 | GT14: 0 | GU14: 0 | GV14: 0 | GW14: 0 | GX14: 0 | GY14: 0 | GZ14: 0 | HA14: 0 | HB14: 0 | HC14: 0 | HD14: 0 | HE14: 0 | HF14: 0 | HG14: 0 | HH14: 0 | HI14: 0 | HJ14: 0 | HK14: 0 | HL14: 0 | HM14: 0 | HN14: 0 | HO14: 0 | HP14: 0 | HQ14: 0 | HR14: 0 | HS14: 0 | HT14: 0 | HU14: 0 | HV14: 0 | HW14: 0 | HX14: 0 | HY14: 0 | HZ14: 0 | IA14: 0 | IB14: 0 | IC14: 0 | ID14: 0 | IE14: 0 | IF14: 0 | IG14: 0 | IH14: 0 | II14: 0 | IJ14: 0 | IK14: 0 | IL14: 0 | IM14: 0 | IN14: 0 | IO14: 0 | IP14: 0 | IQ14: 0 | IR14: 0 | IS14: 0 | IT14: 0 | IU14: 0 | IV14: 0 | IW14: 0 | IX14: 0 | IY14: 0 | IZ14: 0 | JA14: 0 | JB14: 0 | JC14: 0 | JD14: 0 | JE14: 0 | JF14: 0 | JG14: 0 | JH14: 0 | JI14: 0 | JJ14: 0 | JK14: 0 | JL14: 0 | JM14: 0 | JN14: 0 | JO14: 0 | JP14: 0 | JQ14: 0 | JR14: 0 | JS14: 0 | JT14: 0 | JU14: 0 | JV14: 0 | JW14: 0 | JX14: 0 | JY14: 0 | JZ14: 0 | KA14: 0 | KB14: 0 | KC14: 0 | KD14: 0 | KE14: 0 | KF14: 0 | KG14: 0 | KH14: 0 | KI14: 0 | KJ14: 0 | KK14: 0 | KL14: 0 | KM14: 0 | KN14: 0 | KO14: 0 | KP14: 0 | KQ14: 0 | KR14: 0 | KS14: 0 | KT14: 0 | KU14: 0 | KV14: 0 | KW14: 0 | KX14: 0 | KY14: 0 | KZ14: 0 | LA14: 0 | LB14: 0 | LC14: 0 | LD14: 0 | LE14: 0 | LF14: 0 | LG14: 0 | LH14: 0 | LI14: 0 | LJ14: 0 | LK14: 0 | LL14: 0 | LM14: 0 | LN14: 0 | LO14: 0 | LP14: 0 | LQ14: 0 | LR14: 0 | LS14: 0 | LT14: 0 | LU14: 0 | LV14: 0 | LW14: 0 | LX14: 0 | LY14: 0 | LZ14: 0 | MA14: 0 | MB14: 0 | MC14: 0 | MD14: 0 | ME14: 0 | MF14: 0 | MG14: 0 | MH14: 0 | MI14: 0 | MJ14: 0 | MK14: 0 | ML14: 0 | MM14: 0 | MN14: 0 | MO14: 0 | MP14: 0 | MQ14: 0 | MR14: 0 | MS14: 0 | MT14: 0 | MU14: 0 | MV14: 0 | MW14: 0 | MX14: 0 | MY14: 0 | MZ14: 0 | NA14: 0 | NB14: 0 | NC14: 0 | ND14: 0 | NE14: 0 | NF14: 0 | NG14: 0 | NH14: 0 | NI14: 0 | NJ14: 0 | NK14: 0 | NL14: 0 | NM14: 0 | NN14: 0 | NO14: 0 | NP14: 0 | NQ14: 0 | NR14: 0 | NS14: 0 | NT14: 0 | NU14: 0 | NV14: 0 | NW14: 0 | NX14: 0 | NY14: 0 | NZ14: 0 | OA14: 0 | OB14: 0 | OC14: 0 | OD14: 0 | OE14: 0 | OF14: 0 | OG14: 0 | OH14: 0 | OI14: 0 | OJ14: 0 | OK14: 0 | OL14: 0 | OM14: 0 | ON14: 0 | OO14: 0 | OP14: 0 | OQ14: 0 | OR14: 0 | OS14: 0 | OT14: 0 | OU14: 0 | OV14: 0 | OW14: 0 | OX14: 0 | OY14: 0 | OZ14: 0 | PA14: 0 | PB14: 0 | PC14: 0 | PD14: 0 | PE14: 0 | PF14: 0 | PG14: 0 | PH14: 0 | PI14: 0 | PJ14: 0 | PK14: 0 | PL14: 0 | PM14: 0 | PN14: 0 | PO14: 0 | PP14: 0 | PQ14: 0 | PR14: 0 | PS14: 0 | PT14: 0 | PU14: 0 | PV14: 0 | PW14: 0 | PX14: 0 | PY14: 0 | PZ14: 0 | QA14: 0 | QB14: 0 | QC14: 0 | QD14: 0 | QE14: 0 | QF14: 0 | QG14: 0 | QH14: 0 | QI14: 0 | QJ14: 0 | QK14: 0 | QL14: 0 | QM14: 0 | QN14: 0 | QO14: 0 | QP14: 0 | QQ14: 0 | QR14: 0 | QS14: 0 | QT14: 0 | QU14: 0 | QV14: 0 | QW14: 0 | QX14: 0 | QY14: 0 | QZ14: 0 | RA14: 0 | RB14: 0 | RC14: 0 | RD14: 0 | RE14: 0 | RF14: 0 | RG14: 0 | RH14: 0 | RI14: 0 | RJ14: 0 | RK14: 0 | RL14: 0 | RM14: 0 | RN14: 0 | RO14: 0 | RQ14: 0 | RR14: 0 | RS14: 0 | RT14: 0 | RU14: 0 | RV14: 0 | RW14: 0 | RX14: 0 | RY14: 0 | RZ14: 0 | SA14: 0 | SB14: 0 | SC14: 0 | SD14: 0 | SE14: 0 | SF14: 0 | SG14: 0 | SH14: 0 | SI14: 0 | SJ14: 0
B15: 10059 | C15: Bandon, City of | D15: 0 | E15: 0 | F15: 0 | G15: 0 | H15: 0 | I15: 0 | J15: 0 | K15: 0 | L15: 0 | M15: 0 | N15: 0 | O15: 0 | P15: 0 | Q15: 0 | R15: 0 | S15: 0 | T15: 0 | U15: 0 | V15: 0 | W15: 0 | X15: 0 | Y15: 0 | Z15: 0 | AA15: 0 | AB15: 0 | AC15: 0 | AD15: 0 | AE15: 0 | AF15: 0 | AG15: 0 | AH15: 0 | AI15: 0 | AJ15: 0 | AK15: 0 | AL15: 0 | AM15: 0 | AN15: 0 | AO15: 0 | AP15: 0 | AQ15: 0 | AR15: 0 | AS15: 0 | AT15: 0 | AU15: 0 | AV15: 0 | AW15: 0 | AX15: 0 | AY15: 0 | AZ15: 0 | BA15: 0 | BB15: 0 | BC15: 0 | BD15: 0 | BE15: 0 | BF15: 0 | BG15: 0 | BH15: 0 | BI15: 0 | BJ15: 0 | BK15: 0 | BL15: 0 | BM15: 0 | BN15: 0 | BO15: 0 | BP15: 0 | BQ15: 0 | BR15: 0 | BS15: 0 | BT15: 0 | BU15: 0 | BV15: 0 | BW15: 0 | BX15: 0 | BY15: 0 | BZ15: 0 | CA15: 0 | CB15: 0 | CC15: 0 | CD15: 0 | CE15: 0 | CF15: 0 | CG15: 0 | CH15: 0 | CI15: 0 | CJ15: 0 | CK15: 0 | CL15: 0 | CM15: 0 | CN15: 0 | CO15: 0 | CP15: 0 | CQ15: 0 | CR15: 0 | CS15: 0 | CT15: 0 | CU15: 0 | CV15: 0 | CW15: 0 | CX15: 0 | CY15: 0 | CZ15: 0 | DA15: 0 | DB15: 0 | DC15: 0 | DD15: 0 | DE15: 0 | DF15: 0 | DG15: 0 | DH15: 0 | DI15: 0 | DJ15: 0 | DK15: 0 | DL15: 0 | DM15: 0 | DN15: 0 | DO15: 0 | DP15: 0 | DQ15: 0 | DR15: 0 | DS15: 0 | DT15: 0 | DU15: 0 | DV15: 0 | DW15: 0 | DX15: 0 | DY15: 0 | DZ15: 0 | EA15: 0 | EB15: 0 | EC15: 0 | ED15: 0 | EE15: 0 | EF15: 0 | EG15: 0 | EH15: 0 | EI15: 0 | EJ15: 0 | EK15: 0 | EL15: 0 | EM15: 0 | EN15: 0 | EO15: 0 | EP15: 0 | EQ15: 0 | ER15: 0 | ES15: 0 | ET15: 0 | EU15: 0 | EV15: 0 | EW15: 0 | EX15: 0 | EY15: 0 | EZ15: 0 | FA15: 0 | FB15: 0 | FC15: 0 | FD15: 0 | FE15: 0 | FF15: 0 | FG15: 0 | FH15: 0 | FI15: 0 | FJ15: 0 | FK15: 0 | FL15: 0 | FM15: 0 | FN15: 0 | FO15: 0 | FP15: 0 | FQ15: 0 | FR15: 0 | FS15: 0 | FT15: 0 | FU15: 0 | FV15: 0 | FW15: 0 | FX15: 0 | FY15: 0 | FZ15: 0 | GA15: 0 | GB15: 0 | GC15: 0 | GD15: 0 | GE15: 0 | GF15: 0 | GG15: 0 | GH15: 0 | GI15: 0 | GJ15: 0 | GK15: 0 | GL15: 0 | GM15: 0 | GN15: 0 | GO15: 0 | GP15: 0 | GQ15: 0 | GR15: 0 | GS15: 0 | GT15: 0 | GU15: 0 | GV15: 0 | GW15: 0 | GX15: 0 | GY15: 0 | GZ15: 0 | HA15: 0 | HB15: 0 | HC15: 0 | HD15: 0 | HE15: 0 | HF15: 0 | HG15: 0 | HH15: 0 | HI15: 0 | HJ15: 0 | HK15: 0 | HL15: 0 | HM15: 0 | HN15: 0 | HO15: 0 | HP15: 0 | HQ15: 0 | HR15: 0 | HS15: 0 | HT15: 0 | HU15: 0 | HV15: 0 | HW15: 0 | HX15: 0 | HY15: 0 | HZ15: 0 | IA15: 0 | IB15: 0 | IC15: 0 | ID15: 0 | IE15: 0 | IF15: 0 | IG15: 0 | IH15: 0 | II15: 0 | IJ15: 0 | IK15: 0 | IL15: 0 | IM15: 0 | IN15: 0 | IO15: 0 | IP15: 0 | IQ15: 0 | IR15: 0 | IS15: 0 | IT15: 0 | IU15: 0 | IV15: 0 | IW15: 0 | IX15: 0 | IY15: 0 | IZ15: 0 | JA15: 0 | JB15: 0 | JC15: 0 | JD15: 0 | JE15: 0 | JF15: 0 | JG15: 0 | JH15: 0 | JI15: 0 | JJ15: 0 | JK15: 0 | JL15: 0 | JM15: 0 | JN15: 0 | JO15: 0 | JP15: 0 | JQ15: 0 | JR15: 0 | JS15: 0 | JT15: 0 | JU15: 0 | JV15: 0 | JW15: 0 | JX15: 0 | JY15: 0 | JZ15: 0 | KA15: 0 | KB15: 0 | KC15: 0 | KD15: 0 | KE15: 0 | KF15: 0 | KG15: 0 | KH15: 0 | KI15: 0 | KJ15: 0 | KK15: 0 | KL15: 0 | KM15: 0 | KN15: 0 | KO15: 0 | KP15: 0 | KQ15: 0 | KR15: 0 | KS15: 0 | KT15: 0 | KU15: 0 | KV15: 0 | KW15: 0 | KX15: 0 | KY15: 0 | KZ15: 0 | LA15: 0 | LB15: 0 | LC15: 0 | LD15: 0 | LE15: 0 | LF15: 0 | LG15: 0 | LH15: 0 | LI15: 0 | LJ15: 0 | LK15: 0 | LL15: 0 | LM15: 0 | LN15: 0 | LO15: 0 | LP15: 0 | LQ15: 0 | LR15: 0 | LS15: 0 | LT15: 0 | LU15: 0 | LV15: 0 | LW15: 0 | LX15: 0 | LY15: 0 | LZ15: 0 | MA15: 0 | MB15: 0 | MC15: 0 | MD15: 0 | ME15: 0 | MF15: 0 | MG15: 0 | MH15: 0 | MI15: 0 | MJ15: 0 | MK15: 0 | ML15: 0 | MM15: 0 | MN15: 0 | MO15: 0 | MP15: 0 | MQ15: 0 | MR15: 0 | MS15: 0 | MT15: 0 | MU15: 0 | MV15: 0 | MW15: 0 | MX15: 0 | MY15: 0 | MZ15: 0 | NA15: 0 | NB15: 0 | NC15: 0 | ND15: 0 | NE15: 0 | NF15: 0 | NG15: 0 | NH15: 0 | NI15: 0 | NJ15: 0 | NK15: 0 | NL15: 0 | NM15: 0 | NN15: 0 | NO15: 0 | NP15: 0 | NQ15: 0 | NR15: 0 | NS15: 0 | NT15: 0 | NU15: 0 | NV15: 0 | NW15: 0 | NX15: 0 | NY15: 0 | NZ15: 0 | OA15: 0 | OB15: 0 | OC15: 0 | OD15: 0 | OE15: 0 | OF15: 0 | OG15: 0 | OH15: 0 | OI15: 0 | OJ15: 0 | OK15: 0 | OL15: 0 | OM15: 0 | ON15: 0 | OO15: 0 | OP15: 0 | OQ15: 0 | OR15: 0 | OS15: 0 | OT15: 0 | OU15: 0 | OV15: 0 | OW15: 0 | OX15: 0 | OY15: 0 | OZ15: 0 | PA15: 0 | PB15: 0 | PC15: 0 | PD15: 0 | PE15: 0 | PF15: 0 | PG15: 0 | PH15: 0 | PI15: 0 | PJ15: 0 | PK15: 0 | PL15: 0 | PM15: 0 | PN15: 0 | PO15: 0 | PP15: 0 | PQ15: 0 | PR15: 0 | PS15: 0 | PT15: 0 | PU15: 0 | PV15: 0 | PW15: 0 | PX15: 0 | PY15: 0 | PZ15: 0 | QA15: 0 | QB15: 0 | QC15: 0 | QD15: 0 | QE15: 0 | QF15: 0 | QG15: 0 | QH15: 0 | QI15: 0 | QJ15: 0 | QK15: 0 | QL15: 0 | QM15: 0 | QN15: 0 | QO15: 0 | QP15: 0 | QQ15: 0 | QR15: 0 | QS15: 0 | QT15: 0 | QU15: 0 | QV15: 0 | QW15: 0 | QX15: 0 | QY15: 0 | QZ15: 0 | RA15: 0 | RB15: 0 | RC15: 0 | RD15: 0 | RE15: 0 | RF15: 0 | RG15: 0 | RH15: 0 | RI15: 0 | RJ15: 0 | RK15: 0 | RL15: 0 | RM15: 0 | RN15: 0 | RO15: 0 | RQ15: 0 | RR15: 0 | RS15: 0 | RT15: 0 | RU15: 0 | RV15: 0 | RW15: 0 | RX15: 0 | RY15: 0 | RZ15: 0 | SA15: 0 | SB15: 0 | SC15: 0 | SD15: 0 | SE15: 0 | SF15: 0 | SG15: 0 | SH15: 0 | SI15: 0 | SJ15: 0
... 18 more rows

Sheet I_ER
B1: Exhibit A Exisiting Resources (MWh)
A2: TOC | D2: 2015-10-01 | E2: 2015-10-01 | F2: 2015-11-01 | G2: 2015-11-01 | H2: 2015-12-01 | I2: 2015-12-01 | J2: 2016-01-01 | K2: 2016-01-01 | L2: 2016-02-01 | M2: 2016-02-01 | N2: 2016-03-01 | O2: 2016-03-01 | P2: 2016-04-01 | Q2: 2016-04-01 | R2: 2016-05-01 | S2: 2016-05-01 | T2: 2016-06-01 | U2: 2016-06-01 | V2: 2016-07-01 | W2: 2016-07-01 | X2: 2016-08-01 | Y2: 2016-08-01 | Z2: 2016-09-01 | AA2: 2016-09-01 | AB2: 2016-10-01 | AC2: 2016-10-01 | AD2: 2016-11-01 | AE2: 2016-11-01 | AF2: 2016-12-01 | AG2: 2016-12-01 | AH2: 2017-01-01 | AI2: 2017-01-01 | AJ2: 2017-02-01 | AK2: 2017-02-01 | AL2: 2017-03-01 | AM2: 2017-03-01 | AN2: 2017-04-01 | AO2: 2017-04-01 | AP2: 2017-05-01 | AQ2: 2017-05-01 | AR2: 2017-06-01 | AS2: 2017-06-01 | AT2: 2017-07-01 | AU2: 2017-07-01 | AV2: 2017-08-01 | AW2: 2017-08-01 | AX2: 2017-09-01 | AY2: 2017-09-01 | AZ2: 2017-10-01 | BA2: 2017-10-01 | BB2: 2017-11-01 | BC2: 2017-11-01 | BD2: 2017-12-01 | BE2: 2017-12-01 | BF2: 2018-01-01 | BG2: 2018-01-01 | BH2: 2018-02-01 | BI2: 2018-02-01 | BJ2: 2018-03-01 | BK2: 2018-03-01 | BL2: 2018-04-01 | BM2: 2018-04-01 | BN2: 2018-05-01 | BO2: 2018-05-01 | BP2: 2018-06-01 | BQ2: 2018-06-01 | BR2: 2018-07-01 | BS2: 2018-07-01 | BT2: 2018-08-01 | BU2: 2018-08-01 | BV2: 2018-09-01 | BW2: 2018-09-01 | BX2: 2018-10-01 | BY2: 2018-10-01 | BZ2: 2018-11-01 | CA2: 2018-11-01 | CB2: 2018-12-01 | CC2: 2018-12-01 | CD2: 2019-01-01 | CE2: 2019-01-01 | CF2: 2019-02-01 | CG2: 2019-02-01 | CH2: 2019-03-01 | CI2: 2019-03-01 | CJ2: 2019-04-01 | CK2: 2019-04-01 | CL2: 2019-05-01 | CM2: 2019-05-01 | CN2: 2019-06-01 | CO2: 2019-06-01 | CP2: 2019-07-01 | CQ2: 2019-07-01 | CR2: 2019-08-01 | CS2: 2019-08-01 | CT2: 2019-09-01 | CU2: 2019-09-01 | CV2: 2019-10-01 | CW2: 2019-10-01 | CX2: 2019-11-01 | CY2: 2019-11-01 | CZ2: 2019-12-01 | DA2: 2019-12-01 | DB2: 2020-01-01 | DC2: 2020-01-01 | DD2: 2020-02-01 | DE2: 2020-02-01 | DF2: 2020-03-01 | DG2: 2020-03-01 | DH2: 2020-04-01 | DI2: 2020-04-01 | DJ2: 2020-05-01 | DK2: 2020-05-01 | DL2: 2020-06-01 | DM2: 2020-06-01 | DN2: 2020-07-01 | DO2: 2020-07-01 | DP2: 2020-08-01 | DQ2: 2020-08-01 | DR2: 2020-09-01 | DS2: 2020-09-01 | DT2: 2020-10-01 | DU2: 2020-10-01 | DV2: 2020-11-01 | DW2: 2020-11-01 | DX2: 2020-12-01 | DY2: 2020-12-01 | DZ2: 2021-01-01 | EA2: 2021-01-01 | EB2: 2021-02-01 | EC2: 2021-02-01 | ED2: 2021-03-01 | EE2: 2021-03-01 | EF2: 2021-04-01 | EG2: 2021-04-01 | EH2: 2021-05-01 | EI2: 2021-05-01 | EJ2: 2021-06-01 | EK2: 2021-06-01 | EL2: 2021-07-01 | EM2: 2021-07-01 | EN2: 2021-08-01 | EO2: 2021-08-01 | EP2: 2021-09-01 | EQ2: 2021-09-01 | ER2: 2021-10-01 | ES2: 2021-10-01 | ET2: 2021-11-01 | EU2: 2021-11-01 | EV2: 2021-12-01 | EW2: 2021-12-01 | EX2: 2022-01-01 | EY2: 2022-01-01 | EZ2: 2022-02-01 | FA2: 2022-02-01 | FB2: 2022-03-01 | FC2: 2022-03-01 | FD2: 2022-04-01 | FE2: 2022-04-01 | FF2: 2022-05-01 | FG2: 2022-05-01 | FH2: 2022-06-01 | FI2: 2022-06-01 | FJ2: 2022-07-01 | FK2: 2022-07-01 | FL2: 2022-08-01 | FM2: 2022-08-01 | FN2: 2022-09-01 | FO2: 2022-09-01 | FP2: 2022-10-01 | FQ2: 2022-10-01 | FR2: 2022-11-01 | FS2: 2022-11-01 | FT2: 2022-12-01 | FU2: 2022-12-01 | FV2: 2023-01-01 | FW2: 2023-01-01 | FX2: 2023-02-01 | FY2: 2023-02-01 | FZ2: 2023-03-01 | GA2: 2023-03-01 | GB2: 2023-04-01 | GC2: 2023-04-01 | GD2: 2023-05-01 | GE2: 2023-05-01 | GF2: 2023-06-01 | GG2: 2023-06-01 | GH2: 2023-07-01 | GI2: 2023-07-01 | GJ2: 2023-08-01 | GK2: 2023-08-01 | GL2: 2023-09-01 | GM2: 2023-09-01 | GN2: 2023-10-01 | GO2: 2023-10-01 | GP2: 2023-11-01 | GQ2: 2023-11-01 | GR2: 2023-12-01 | GS2: 2023-12-01 | GT2: 2024-01-01 | GU2: 2024-01-01 | GV2: 2024-02-01 | GW2: 2024-02-01 | GX2: 2024-03-01 | GY2: 2024-03-01 | GZ2: 2024-04-01 | HA2: 2024-04-01 | HB2: 2024-05-01 | HC2: 2024-05-01 | HD2: 2024-06-01 | HE2: 2024-06-01 | HF2: 2024-07-01 | HG2: 2024-07-01 | HH2: 2024-08-01 | HI2: 2024-08-01 | HJ2: 2024-09-01 | HK2: 2024-09-01 | HL2: 2024-10-01 | HM2: 2024-10-01 | HN2: 2024-11-01 | HO2: 2024-11-01 | HP2: 2024-12-01 | HQ2: 2024-12-01 | HR2: 2025-01-01 | HS2: 2025-01-01 | HT2: 2025-02-01 | HU2: 2025-02-01 | HV2: 2025-03-01 | HW2: 2025-03-01 | HX2: 2025-04-01 | HY2: 2025-04-01 | HZ2: 2025-05-01 | IA2: 2025-05-01 | IB2: 2025-06-01 | IC2: 2025-06-01 | ID2: 2025-07-01 | IE2: 2025-07-01 | IF2: 2025-08-01 | IG2: 2025-08-01 | IH2: 2025-09-01 | II2: 2025-09-01 | IJ2: 2025-10-01 | IK2: 2025-10-01 | IL2: 2025-11-01 | IM2: 2025-11-01 | IN2: 2025-12-01 | IO2: 2025-12-01 | IP2: 2026-01-01 | IQ2: 2026-01-01 | IR2: 2026-02-01 | IS2: 2026-02-01 | IT2: 2026-03-01 | IU2: 2026-03-01 | IV2: 2026-04-01 | IW2: 2026-04-01 | IX2: 2026-05-01 | IY2: 2026-05-01 | IZ2: 2026-06-01 | JA2: 2026-06-01 | JB2: 2026-07-01 | JC2: 2026-07-01 | JD2: 2026-08-01 | JE2: 2026-08-01 | JF2: 2026-09-01 | JG2: 2026-09-01 | JH2: 2026-10-01 | JI2: 2026-10-01 | JJ2: 2026-11-01 | JK2: 2026-11-01 | JL2: 2026-12-01 | JM2: 2026-12-01 | JN2: 2027-01-01 | JO2: 2027-01-01 | JP2: 2027-02-01 | JQ2: 2027-02-01 | JR2: 2027-03-01 | JS2: 2027-03-01 | JT2: 2027-04-01 | JU2: 2027-04-01 | JV2: 2027-05-01 | JW2: 2027-05-01 | JX2: 2027-06-01 | JY2: 2027-06-01 | JZ2: 2027-07-01 | KA2: 2027-07-01 | KB2: 2027-08-01 | KC2: 2027-08-01 | KD2: 2027-09-01 | KE2: 2027-09-01 | KF2: 2027-10-01 | KG2: 2027-10-01 | KH2: 2027-11-01 | KI2: 2027-11-01 | KJ2: 2027-12-01 | KK2: 2027-12-01 | KL2: 2028-01-01 | KM2: 2028-01-01 | KN2: 2028-02-01 | KO2: 2028-02-01 | KP2: 2028-03-01 | KQ2: 2028-03-01 | KR2: 2028-04-01 | KS2: 2028-04-01 | KT2: 2028-05-01 | KU2: 2028-05-01 | KV2: 2028-06-01 | KW2: 2028-06-01 | KX2: 2028-07-01 | KY2: 2028-07-01 | KZ2: 2028-08-01 | LA2: 2028-08-01 | LB2: 2028-09-01 | LC2: 2028-09-01 | LD2: 2028-10-01 | LE2: 2028-10-01 | LF2: 2028-11-01 | LG2: 2028-11-01 | LH2: 2028-12-01 | LI2: 2028-12-01 | LJ2: 2029-01-01 | LK2: 2029-01-01 | LL2: 2029-02-01 | LM2: 2029-02-01 | LN2: 2029-03-01 | LO2: 2029-03-01 | LP2: 2029-04-01 | LQ2: 2029-04-01 | LR2: 2029-05-01 | LS2: 2029-05-01 | LT2: 2029-06-01 | LU2: 2029-06-01 | LV2: 2029-07-01 | LW2: 2029-07-01 | LX2: 2029-08-01 | LY2: 2029-08-01 | LZ2: 2029-09-01 | MA2: 2029-09-01 | MB2: 2029-10-01 | MC2: 2029-10-01 | MD2: 2029-11-01 | ME2: 2029-11-01 | MF2: 2029-12-01 | MG2: 2029-12-01 | MH2: 2030-01-01 | MI2: 2030-01-01 | MJ2: 2030-02-01 | MK2: 2030-02-01 | ML2: 2030-03-01 | MM2: 2030-03-01 | MN2: 2030-04-01 | MO2: 2030-04-01 | MP2: 2030-05-01 | MQ2: 2030-05-01 | MR2: 2030-06-01 | MS2: 2030-06-01 | MT2: 2030-07-01 | MU2: 2030-07-01 | MV2: 2030-08-01 | MW2: 2030-08-01 | MX2: 2030-09-01 | MY2: 2030-09-01 | MZ2: 2030-10-01 | NA2: 2030-10-01 | NB2: 2030-11-01 | NC2: 2030-11-01 | ND2: 2030-12-01 | NE2: 2030-12-01 | NF2: 2031-01-01 | NG2: 2031-01-01 | NH2: 2031-02-01 | NI2: 2031-02-01 | NJ2: 2031-03-01 | NK2: 2031-03-01 | NL2: 2031-04-01 | NM2: 2031-04-01 | NN2: 2031-05-01 | NO2: 2031-05-01 | NP2: 2031-06-01 | NQ2: 2031-06-01 | NR2: 2031-07-01 | NS2: 2031-07-01 | NT2: 2031-08-01 | NU2: 2031-08-01 | NV2: 2031-09-01 | NW2: 2031-09-01 | NX2: =DATE(YEAR(NV2),MONTH(NV2)+1,1) -> 2031-10-01 | NY2: 2031-10-01 | NZ2: 2031-11-01 | OA2: 2031-11-01 | OB2: 2031-12-01 | OC2: 2031-12-01 | OD2: 2032-01-01 | OE2: 2032-01-01 | OF2: 2032-02-01 | OG2: 2032-02-01 | OH2: 2032-03-01 | OI2: 2032-03-01 | OJ2: 2032-04-01 | OK2: 2032-04-01 | OL2: 2032-05-01 | OM2: 2032-05-01 | ON2: 2032-06-01 | OO2: 2032-06-01 | OP2: 2032-07-01 | OQ2: 2032-07-01 | OR2: 2032-08-01 | OS2: 2032-08-01 | OT2: 2032-09-01 | OU2: 2032-09-01 | OV2: 2032-10-01 | OW2: 2032-10-01 | OX2: 2032-11-01 | OY2: 2032-11-01 | OZ2: 2032-12-01 | PA2: 2032-12-01 | PB2: 2033-01-01 | PC2: 2033-01-01 | PD2: 2033-02-01 | PE2: 2033-02-01 | PF2: 2033-03-01 | PG2: 2033-03-01 | PH2: 2033-04-01 | PI2: 2033-04-01 | PJ2: 2033-05-01 | PK2: 2033-05-01 | PL2: 2033-06-01 | PM2: 2033-06-01 | PN2: 2033-07-01 | PO2: 2033-07-01 | PP2: 2033-08-01 | PQ2: 2033-08-01 | PR2: 2033-09-01 | PS2: 2033-09-01 | PT2: 2033-10-01 | PU2: 2033-10-01 | PV2: 2033-11-01 | PW2: 2033-11-01 | PX2: 2033-12-01 | PY2: 2033-12-01 | PZ2: 2034-01-01 | QA2: 2034-01-01 | QB2: 2034-02-01 | QC2: 2034-02-01 | QD2: 2034-03-01 | QE2: 2034-03-01 | QF2: 2034-04-01 | QG2: 2034-04-01 | QH2: 2034-05-01 | QI2: 2034-05-01 | QJ2: 2034-06-01 | QK2: 2034-06-01 | QL2: 2034-07-01 | QM2: 2034-07-01 | QN2: 2034-08-01 | QO2: 2034-08-01 | QP2: 2034-09-01 | QQ2: 2034-09-01 | QR2: 2034-10-01 | QS2: 2034-10-01 | QT2: 2034-11-01 | QU2: 2034-11-01 | QV2: 2034-12-01 | QW2: 2034-12-01 | QX2: 2035-01-01 | QY2: 2035-01-01 | QZ2: 2035-02-01 | RA2: 2035-02-01 | RB2: 2035-03-01 | RC2: 2035-03-01 | RD2: 2035-04-01 | RE2: 2035-04-01 | RF2: 2035-05-01 | RG2: 2035-05-01 | RH2: 2035-06-01 | RI2: 2035-06-01 | RJ2: 2035-07-01 | RK2: 2035-07-01 | RL2: 2035-08-01 | RM2: 2035-08-01 | RN2: 2035-09-01 | RO2: 2035-09-01 | RQ2: 2016 | RR2: 2017 | RS2: 2018 | RT2: 2019 | RU2: 2020 | RV2: 2021 | RW2: 2022 | RX2: 2023 | RY2: 2024 | RZ2: 2025 | SA2: 2026 | SB2: 2027 | SC2: 2028 | SD2: 2029 | SE2: 2030 | SF2: 2031 | SG2: 2032 | SH2: 2033 | SI2: 2034 | SJ2: 2035
B3: BESID | C3: AccountName | D3: HLH | E3: LLH | F3: HLH | G3: LLH | H3: HLH | I3: LLH | J3: HLH | K3: LLH | L3: HLH | M3: LLH | N3: HLH | O3: LLH | P3: HLH | Q3: LLH | R3: HLH | S3: LLH | T3: HLH | U3: LLH | V3: HLH | W3: LLH | X3: HLH | Y3: LLH | Z3: HLH | AA3: LLH | AB3: HLH | AC3: LLH | AD3: HLH | AE3: LLH | AF3: HLH | AG3: LLH | AH3: HLH | AI3: LLH | AJ3: HLH | AK3: LLH | AL3: HLH | AM3: LLH | AN3: HLH | AO3: LLH | AP3: HLH | AQ3: LLH | AR3: HLH | AS3: LLH | AT3: HLH | AU3: LLH | AV3: HLH | AW3: LLH | AX3: HLH | AY3: LLH | AZ3: HLH | BA3: LLH | BB3: HLH | BC3: LLH | BD3: HLH | BE3: LLH | BF3: HLH | BG3: LLH | BH3: HLH | BI3: LLH | BJ3: HLH | BK3: LLH | BL3: HLH | BM3: LLH | BN3: HLH | BO3: LLH | BP3: HLH | BQ3: LLH | BR3: HLH | BS3: LLH | BT3: HLH | BU3: LLH | BV3: HLH | BW3: LLH | BX3: HLH | BY3: LLH | BZ3: HLH | CA3: LLH | CB3: HLH | CC3: LLH | CD3: HLH | CE3: LLH | CF3: HLH | CG3: LLH | CH3: HLH | CI3: LLH | CJ3: HLH | CK3: LLH | CL3: HLH | CM3: LLH | CN3: HLH | CO3: LLH | CP3: HLH | CQ3: LLH | CR3: HLH | CS3: LLH | CT3: HLH | CU3: LLH | CV3: HLH | CW3: LLH | CX3: HLH | CY3: LLH | CZ3: HLH | DA3: LLH | DB3: HLH | DC3: LLH | DD3: HLH | DE3: LLH | DF3: HLH | DG3: LLH | DH3: HLH | DI3: LLH | DJ3: HLH | DK3: LLH | DL3: HLH | DM3: LLH | DN3: HLH | DO3: LLH | DP3: HLH | DQ3: LLH | DR3: HLH | DS3: LLH | DT3: HLH | DU3: LLH | DV3: HLH | DW3: LLH | DX3: HLH | DY3: LLH | DZ3: HLH | EA3: LLH | EB3: HLH | EC3: LLH | ED3: HLH | EE3: LLH | EF3: HLH | EG3: LLH | EH3: HLH | EI3: LLH | EJ3: HLH | EK3: LLH | EL3: HLH | EM3: LLH | EN3: HLH | EO3: LLH | EP3: HLH | EQ3: LLH | ER3: HLH | ES3: LLH | ET3: HLH | EU3: LLH | EV3: HLH | EW3: LLH | EX3: HLH | EY3: LLH | EZ3: HLH | FA3: LLH | FB3: HLH | FC3: LLH | FD3: HLH | FE3: LLH | FF3: HLH | FG3: LLH | FH3: HLH | FI3: LLH | FJ3: HLH | FK3: LLH | FL3: HLH | FM3: LLH | FN3: HLH | FO3: LLH | FP3: HLH | FQ3: LLH | FR3: HLH | FS3: LLH | FT3: HLH | FU3: LLH | FV3: HLH | FW3: LLH | FX3: HLH | FY3: LLH | FZ3: HLH | GA3: LLH | GB3: HLH | GC3: LLH | GD3: HLH | GE3: LLH | GF3: HLH | GG3: LLH | GH3: HLH | GI3: LLH | GJ3: HLH | GK3: LLH | GL3: HLH | GM3: LLH | GN3: HLH | GO3: LLH | GP3: HLH | GQ3: LLH | GR3: HLH | GS3: LLH | GT3: HLH | GU3: LLH | GV3: HLH | GW3: LLH | GX3: HLH | GY3: LLH | GZ3: HLH | HA3: LLH | HB3: HLH | HC3: LLH | HD3: HLH | HE3: LLH | HF3: HLH | HG3: LLH | HH3: HLH | HI3: LLH | HJ3: HLH | HK3: LLH | HL3: HLH | HM3: LLH | HN3: HLH | HO3: LLH | HP3: HLH | HQ3: LLH | HR3: HLH | HS3: LLH | HT3: HLH | HU3: LLH | HV3: HLH | HW3: LLH | HX3: HLH | HY3: LLH | HZ3: HLH | IA3: LLH | IB3: HLH | IC3: LLH | ID3: HLH | IE3: LLH | IF3: HLH | IG3: LLH | IH3: HLH | II3: LLH | IJ3: HLH | IK3: LLH | IL3: HLH | IM3: LLH | IN3: HLH | IO3: LLH | IP3: HLH | IQ3: LLH | IR3: HLH | IS3: LLH | IT3: HLH | IU3: LLH | IV3: HLH | IW3: LLH | IX3: HLH | IY3: LLH | IZ3: HLH | JA3: LLH | JB3: HLH | JC3: LLH | JD3: HLH | JE3: LLH | JF3: HLH | JG3: LLH | JH3: HLH | JI3: LLH | JJ3: HLH | JK3: LLH | JL3: HLH | JM3: LLH | JN3: HLH | JO3: LLH | JP3: HLH | JQ3: LLH | JR3: HLH | JS3: LLH | JT3: HLH | JU3: LLH | JV3: HLH | JW3: LLH | JX3: HLH | JY3: LLH | JZ3: HLH | KA3: LLH | KB3: HLH | KC3: LLH | KD3: HLH | KE3: LLH | KF3: HLH | KG3: LLH | KH3: HLH | KI3: LLH | KJ3: HLH | KK3: LLH | KL3: HLH | KM3: LLH | KN3: HLH | KO3: LLH | KP3: HLH | KQ3: LLH | KR3: HLH | KS3: LLH | KT3: HLH | KU3: LLH | KV3: HLH | KW3: LLH | KX3: HLH | KY3: LLH | KZ3: HLH | LA3: LLH | LB3: HLH | LC3: LLH | LD3: HLH | LE3: LLH | LF3: HLH | LG3: LLH | LH3: HLH | LI3: LLH | LJ3: HLH | LK3: LLH | LL3: HLH | LM3: LLH | LN3: HLH | LO3: LLH | LP3: HLH | LQ3: LLH | LR3: HLH | LS3: LLH | LT3: HLH | LU3: LLH | LV3: HLH | LW3: LLH | LX3: HLH | LY3: LLH | LZ3: HLH | MA3: LLH | MB3: HLH | MC3: LLH | MD3: HLH | ME3: LLH | MF3: HLH | MG3: LLH | MH3: HLH | MI3: LLH | MJ3: HLH | MK3: LLH | ML3: HLH | MM3: LLH | MN3: HLH | MO3: LLH | MP3: HLH | MQ3: LLH | MR3: HLH | MS3: LLH | MT3: HLH | MU3: LLH | MV3: HLH | MW3: LLH | MX3: HLH | MY3: LLH | MZ3: HLH | NA3: LLH | NB3: HLH | NC3: LLH | ND3: HLH | NE3: LLH | NF3: HLH | NG3: LLH | NH3: HLH | NI3: LLH | NJ3: HLH | NK3: LLH | NL3: HLH | NM3: LLH | NN3: HLH | NO3: LLH | NP3: HLH | NQ3: LLH | NR3: HLH | NS3: LLH | NT3: HLH | NU3: LLH | NV3: HLH | NW3: LLH | NX3: HLH | NY3: LLH | NZ3: HLH | OA3: LLH | OB3: HLH | OC3: LLH | OD3: HLH | OE3: LLH | OF3: HLH | OG3: LLH | OH3: HLH | OI3: LLH | OJ3: HLH | OK3: LLH | OL3: HLH | OM3: LLH | ON3: HLH | OO3: LLH | OP3: HLH | OQ3: LLH | OR3: HLH | OS3: LLH | OT3: HLH | OU3: LLH | OV3: HLH | OW3: LLH | OX3: HLH | OY3: LLH | OZ3: HLH | PA3: LLH | PB3: HLH | PC3: LLH | PD3: HLH | PE3: LLH | PF3: HLH | PG3: LLH | PH3: HLH | PI3: LLH | PJ3: HLH | PK3: LLH | PL3: HLH | PM3: LLH | PN3: HLH | PO3: LLH | PP3: HLH | PQ3: LLH | PR3: HLH | PS3: LLH | PT3: HLH | PU3: LLH | PV3: HLH | PW3: LLH | PX3: HLH | PY3: LLH | PZ3: HLH | QA3: LLH | QB3: HLH | QC3: LLH | QD3: HLH | QE3: LLH | QF3: HLH | QG3: LLH | QH3: HLH | QI3: LLH | QJ3: HLH | QK3: LLH | QL3: HLH | QM3: LLH | QN3: HLH | QO3: LLH | QP3: HLH | QQ3: LLH | QR3: HLH | QS3: LLH | QT3: HLH | QU3: LLH | QV3: HLH | QW3: LLH | QX3: HLH | QY3: LLH | QZ3: HLH | RA3: LLH | RB3: HLH | RC3: LLH | RD3: HLH | RE3: LLH | RF3: HLH | RG3: LLH | RH3: HLH | RI3: LLH | RJ3: HLH | RK3: LLH | RL3: HLH | RM3: LLH | RN3: HLH | RO3: LLH
B4: 10005 | C4: Alder Mutual | D4: 0 | E4: 0 | F4: 0 | G4: 0 | H4: 0 | I4: 0 | J4: 0 | K4: 0 | L4: 0 | M4: 0 | N4: 0 | O4: 0 | P4: 0 | Q4: 0 | R4: 0 | S4: 0 | T4: 0 | U4: 0 | V4: 0 | W4: 0 | X4: 0 | Y4: 0 | Z4: 0 | AA4: 0 | AB4: 0 | AC4: 0 | AD4: 0 | AE4: 0 | AF4: 0 | AG4: 0 | AH4: 0 | AI4: 0 | AJ4: 0 | AK4: 0 | AL4: 0 | AM4: 0 | AN4: 0 | AO4: 0 | AP4: 0 | AQ4: 0 | AR4: 0 | AS4: 0 | AT4: 0 | AU4: 0 | AV4: 0 | AW4: 0 | AX4: 0 | AY4: 0 | AZ4: 0 | BA4: 0 | BB4: 0 | BC4: 0 | BD4: 0 | BE4: 0 | BF4: 0 | BG4: 0 | BH4: 0 | BI4: 0 | BJ4: 0 | BK4: 0 | BL4: 0 | BM4: 0 | BN4: 0 | BO4: 0 | BP4: 0 | BQ4: 0 | BR4: 0 | BS4: 0 | BT4: 0 | BU4: 0 | BV4: 0 | BW4: 0 | BX4: 0 | BY4: 0 | BZ4: 0 | CA4: 0 | CB4: 0 | CC4: 0 | CD4: 0 | CE4: 0 | CF4: 0 | CG4: 0 | CH4: 0 | CI4: 0 | CJ4: 0 | CK4: 0 | CL4: 0 | CM4: 0 | CN4: 0 | CO4: 0 | CP4: 0 | CQ4: 0 | CR4: 0 | CS4: 0 | CT4: 0 | CU4: 0 | CV4: 0 | CW4: 0 | CX4: 0 | CY4: 0 | CZ4: 0 | DA4: 0 | DB4: 0 | DC4: 0 | DD4: 0 | DE4: 0 | DF4: 0 | DG4: 0 | DH4: 0 | DI4: 0 | DJ4: 0 | DK4: 0 | DL4: 0 | DM4: 0 | DN4: 0 | DO4: 0 | DP4: 0 | DQ4: 0 | DR4: 0 | DS4: 0 | DT4: 0 | DU4: 0 | DV4: 0 | DW4: 0 | DX4: 0 | DY4: 0 | DZ4: 0 | EA4: 0 | EB4: 0 | EC4: 0 | ED4: 0 | EE4: 0 | EF4: 0 | EG4: 0 | EH4: 0 | EI4: 0 | EJ4: 0 | EK4: 0 | EL4: 0 | EM4: 0 | EN4: 0 | EO4: 0 | EP4: 0 | EQ4: 0 | ER4: 0 | ES4: 0 | ET4: 0 | EU4: 0 | EV4: 0 | EW4: 0 | EX4: 0 | EY4: 0 | EZ4: 0 | FA4: 0 | FB4: 0 | FC4: 0 | FD4: 0 | FE4: 0 | FF4: 0 | FG4: 0 | FH4: 0 | FI4: 0 | FJ4: 0 | FK4: 0 | FL4: 0 | FM4: 0 | FN4: 0 | FO4: 0 | FP4: 0 | FQ4: 0 | FR4: 0 | FS4: 0 | FT4: 0 | FU4: 0 | FV4: 0 | FW4: 0 | FX4: 0 | FY4: 0 | FZ4: 0 | GA4: 0 | GB4: 0 | GC4: 0 | GD4: 0 | GE4: 0 | GF4: 0 | GG4: 0 | GH4: 0 | GI4: 0 | GJ4: 0 | GK4: 0 | GL4: 0 | GM4: 0 | GN4: 0 | GO4: 0 | GP4: 0 | GQ4: 0 | GR4: 0 | GS4: 0 | GT4: 0 | GU4: 0 | GV4: 0 | GW4: 0 | GX4: 0 | GY4: 0 | GZ4: 0 | HA4: 0 | HB4: 0 | HC4: 0 | HD4: 0 | HE4: 0 | HF4: 0 | HG4: 0 | HH4: 0 | HI4: 0 | HJ4: 0 | HK4: 0 | HL4: 0 | HM4: 0 | HN4: 0 | HO4: 0 | HP4: 0 | HQ4: 0 | HR4: 0 | HS4: 0 | HT4: 0 | HU4: 0 | HV4: 0 | HW4: 0 | HX4: 0 | HY4: 0 | HZ4: 0 | IA4: 0 | IB4: 0 | IC4: 0 | ID4: 0 | IE4: 0 | IF4: 0 | IG4: 0 | IH4: 0 | II4: 0 | IJ4: 0 | IK4: 0 | IL4: 0 | IM4: 0 | IN4: 0 | IO4: 0 | IP4: 0 | IQ4: 0 | IR4: 0 | IS4: 0 | IT4: 0 | IU4: 0 | IV4: 0 | IW4: 0 | IX4: 0 | IY4: 0 | IZ4: 0 | JA4: 0 | JB4: 0 | JC4: 0 | JD4: 0 | JE4: 0 | JF4: 0 | JG4: 0 | JH4: 0 | JI4: 0 | JJ4: 0 | JK4: 0 | JL4: 0 | JM4: 0 | JN4: 0 | JO4: 0 | JP4: 0 | JQ4: 0 | JR4: 0 | JS4: 0 | JT4: 0 | JU4: 0 | JV4: 0 | JW4: 0 | JX4: 0 | JY4: 0 | JZ4: 0 | KA4: 0 | KB4: 0 | KC4: 0 | KD4: 0 | KE4: 0 | KF4: 0 | KG4: 0 | KH4: 0 | KI4: 0 | KJ4: 0 | KK4: 0 | KL4: 0 | KM4: 0 | KN4: 0 | KO4: 0 | KP4: 0 | KQ4: 0 | KR4: 0 | KS4: 0 | KT4: 0 | KU4: 0 | KV4: 0 | KW4: 0 | KX4: 0 | KY4: 0 | KZ4: 0 | LA4: 0 | LB4: 0 | LC4: 0 | LD4: 0 | LE4: 0 | LF4: 0 | LG4: 0 | LH4: 0 | LI4: 0 | LJ4: 0 | LK4: 0 | LL4: 0 | LM4: 0 | LN4: 0 | LO4: 0 | LP4: 0 | LQ4: 0 | LR4: 0 | LS4: 0 | LT4: 0 | LU4: 0 | LV4: 0 | LW4: 0 | LX4: 0 | LY4: 0 | LZ4: 0 | MA4: 0 | MB4: 0 | MC4: 0 | MD4: 0 | ME4: 0 | MF4: 0 | MG4: 0 | MH4: 0 | MI4: 0 | MJ4: 0 | MK4: 0 | ML4: 0 | MM4: 0 | MN4: 0 | MO4: 0 | MP4: 0 | MQ4: 0 | MR4: 0 | MS4: 0 | MT4: 0 | MU4: 0 | MV4: 0 | MW4: 0 | MX4: 0 | MY4: 0 | MZ4: 0 | NA4: 0 | NB4: 0 | NC4: 0 | ND4: 0 | NE4: 0 | NF4: 0 | NG4: 0 | NH4: 0 | NI4: 0 | NJ4: 0 | NK4: 0 | NL4: 0 | NM4: 0 | NN4: 0 | NO4: 0 | NP4: 0 | NQ4: 0 | NR4: 0 | NS4: 0 | NT4: 0 | NU4: 0 | NV4: 0 | NW4: 0 | NX4: 0 | NY4: 0 | NZ4: 0 | OA4: 0 | OB4: 0 | OC4: 0 | OD4: 0 | OE4: 0 | OF4: 0 | OG4: 0 | OH4: 0 | OI4: 0 | OJ4: 0 | OK4: 0 | OL4: 0 | OM4: 0 | ON4: 0 | OO4: 0 | OP4: 0 | OQ4: 0 | OR4: 0 | OS4: 0 | OT4: 0 | OU4: 0 | OV4: 0 | OW4: 0 | OX4: 0 | OY4: 0 | OZ4: 0 | PA4: 0 | PB4: 0 | PC4: 0 | PD4: 0 | PE4: 0 | PF4: 0 | PG4: 0 | PH4: 0 | PI4: 0 | PJ4: 0 | PK4: 0 | PL4: 0 | PM4: 0 | PN4: 0 | PO4: 0 | PP4: 0 | PQ4: 0 | PR4: 0 | PS4: 0 | PT4: 0 | PU4: 0 | PV4: 0 | PW4: 0 | PX4: 0 | PY4: 0 | PZ4: 0 | QA4: 0 | QB4: 0 | QC4: 0 | QD4: 0 | QE4: 0 | QF4: 0 | QG4: 0 | QH4: 0 | QI4: 0 | QJ4: 0 | QK4: 0 | QL4: 0 | QM4: 0 | QN4: 0 | QO4: 0 | QP4: 0 | QQ4: 0 | QR4: 0 | QS4: 0 | QT4: 0 | QU4: 0 | QV4: 0 | QW4: 0 | QX4: 0 | QY4: 0 | QZ4: 0 | RA4: 0 | RB4: 0 | RC4: 0 | RD4: 0 | RE4: 0 | RF4: 0 | RG4: 0 | RH4: 0 | RI4: 0 | RJ4: 0 | RK4: 0 | RL4: 0 | RM4: 0 | RN4: 0 | RO4: 0 | RQ4: =+SUM(D4:AA4) -> 0 | RR4: =+SUM(AB4:AY4) -> 0 | RS4: =+SUM(AZ4:BW4) -> 0 | RT4: =+SUM(BX4:CU4) -> 0 | RU4: =+SUM(CV4:DS4) -> 0 | RV4: =+SUM(DT4:EQ4) -> 0 | RW4: =+SUM(ER4:FO4) -> 0 | RX4: =+SUM(FP4:GM4) -> 0 | RY4: =+SUM(GN4:HK4) -> 0 | RZ4: =+SUM(HL4:II4) -> 0 | SA4: =+SUM(IJ4:JG4) -> 0 | SB4: =+SUM(JH4:KE4) -> 0 | SC4: =+SUM(KF4:LC4) -> 0 | SD4: =+SUM(LD4:MA4) -> 0 | SE4: =+SUM(MB4:MY4) -> 0 | SF4: =+SUM(MZ4:NW4) -> 0 | SG4: =+SUM(NX4:OU4) -> 0 | SH4: =+SUM(OV4:PS4) -> 0 | SI4: =+SUM(PT4:QQ4) -> 0 | SJ4: =+SUM(QR4:RO4) -> 0
B5: 10015 | C5: Asotin County PUD #1 | D5: 0 | E5: 0 | F5: 0 | G5: 0 | H5: 0 | I5: 0 | J5: 0 | K5: 0 | L5: 0 | M5: 0 | N5: 0 | O5: 0 | P5: 0 | Q5: 0 | R5: 0 | S5: 0 | T5: 0 | U5: 0 | V5: 0 | W5: 0 | X5: 0 | Y5: 0 | Z5: 0 | AA5: 0 | AB5: 0 | AC5: 0 | AD5: 0 | AE5: 0 | AF5: 0 | AG5: 0 | AH5: 0 | AI5: 0 | AJ5: 0 | AK5: 0 | AL5: 0 | AM5: 0 | AN5: 0 | AO5: 0 | AP5: 0 | AQ5: 0 | AR5: 0 | AS5: 0 | AT5: 0 | AU5: 0 | AV5: 0 | AW5: 0 | AX5: 0 | AY5: 0 | AZ5: 0 | BA5: 0 | BB5: 0 | BC5: 0 | BD5: 0 | BE5: 0 | BF5: 0 | BG5: 0 | BH5: 0 | BI5: 0 | BJ5: 0 | BK5: 0 | BL5: 0 | BM5: 0 | BN5: 0 | BO5: 0 | BP5: 0 | BQ5: 0 | BR5: 0 | BS5: 0 | BT5: 0 | BU5: 0 | BV5: 0 | BW5: 0 | BX5: 0 | BY5: 0 | BZ5: 0 | CA5: 0 | CB5: 0 | CC5: 0 | CD5: 0 | CE5: 0 | CF5: 0 | CG5: 0 | CH5: 0 | CI5: 0 | CJ5: 0 | CK5: 0 | CL5: 0 | CM5: 0 | CN5: 0 | CO5: 0 | CP5: 0 | CQ5: 0 | CR5: 0 | CS5: 0 | CT5: 0 | CU5: 0 | CV5: 0 | CW5: 0 | CX5: 0 | CY5: 0 | CZ5: 0 | DA5: 0 | DB5: 0 | DC5: 0 | DD5: 0 | DE5: 0 | DF5: 0 | DG5: 0 | DH5: 0 | DI5: 0 | DJ5: 0 | DK5: 0 | DL5: 0 | DM5: 0 | DN5: 0 | DO5: 0 | DP5: 0 | DQ5: 0 | DR5: 0 | DS5: 0 | DT5: 0 | DU5: 0 | DV5: 0 | DW5: 0 | DX5: 0 | DY5: 0 | DZ5: 0 | EA5: 0 | EB5: 0 | EC5: 0 | ED5: 0 | EE5: 0 | EF5: 0 | EG5: 0 | EH5: 0 | EI5: 0 | EJ5: 0 | EK5: 0 | EL5: 0 | EM5: 0 | EN5: 0 | EO5: 0 | EP5: 0 | EQ5: 0 | ER5: 0 | ES5: 0 | ET5: 0 | EU5: 0 | EV5: 0 | EW5: 0 | EX5: 0 | EY5: 0 | EZ5: 0 | FA5: 0 | FB5: 0 | FC5: 0 | FD5: 0 | FE5: 0 | FF5: 0 | FG5: 0 | FH5: 0 | FI5: 0 | FJ5: 0 | FK5: 0 | FL5: 0 | FM5: 0 | FN5: 0 | FO5: 0 | FP5: 0 | FQ5: 0 | FR5: 0 | FS5: 0 | FT5: 0 | FU5: 0 | FV5: 0 | FW5: 0 | FX5: 0 | FY5: 0 | FZ5: 0 | GA5: 0 | GB5: 0 | GC5: 0 | GD5: 0 | GE5: 0 | GF5: 0 | GG5: 0 | GH5: 0 | GI5: 0 | GJ5: 0 | GK5: 0 | GL5: 0 | GM5: 0 | GN5: 0 | GO5: 0 | GP5: 0 | GQ5: 0 | GR5: 0 | GS5: 0 | GT5: 0 | GU5: 0 | GV5: 0 | GW5: 0 | GX5: 0 | GY5: 0 | GZ5: 0 | HA5: 0 | HB5: 0 | HC5: 0 | HD5: 0 | HE5: 0 | HF5: 0 | HG5: 0 | HH5: 0 | HI5: 0 | HJ5: 0 | HK5: 0 | HL5: 0 | HM5: 0 | HN5: 0 | HO5: 0 | HP5: 0 | HQ5: 0 | HR5: 0 | HS5: 0 | HT5: 0 | HU5: 0 | HV5: 0 | HW5: 0 | HX5: 0 | HY5: 0 | HZ5: 0 | IA5: 0 | IB5: 0 | IC5: 0 | ID5: 0 | IE5: 0 | IF5: 0 | IG5: 0 | IH5: 0 | II5: 0 | IJ5: 0 | IK5: 0 | IL5: 0 | IM5: 0 | IN5: 0 | IO5: 0 | IP5: 0 | IQ5: 0 | IR5: 0 | IS5: 0 | IT5: 0 | IU5: 0 | IV5: 0 | IW5: 0 | IX5: 0 | IY5: 0 | IZ5: 0 | JA5: 0 | JB5: 0 | JC5: 0 | JD5: 0 | JE5: 0 | JF5: 0 | JG5: 0 | JH5: 0 | JI5: 0 | JJ5: 0 | JK5: 0 | JL5: 0 | JM5: 0 | JN5: 0 | JO5: 0 | JP5: 0 | JQ5: 0 | JR5: 0 | JS5: 0 | JT5: 0 | JU5: 0 | JV5: 0 | JW5: 0 | JX5: 0 | JY5: 0 | JZ5: 0 | KA5: 0 | KB5: 0 | KC5: 0 | KD5: 0 | KE5: 0 | KF5: 0 | KG5: 0 | KH5: 0 | KI5: 0 | KJ5: 0 | KK5: 0 | KL5: 0 | KM5: 0 | KN5: 0 | KO5: 0 | KP5: 0 | KQ5: 0 | KR5: 0 | KS5: 0 | KT5: 0 | KU5: 0 | KV5: 0 | KW5: 0 | KX5: 0 | KY5: 0 | KZ5: 0 | LA5: 0 | LB5: 0 | LC5: 0 | LD5: 0 | LE5: 0 | LF5: 0 | LG5: 0 | LH5: 0 | LI5: 0 | LJ5: 0 | LK5: 0 | LL5: 0 | LM5: 0 | LN5: 0 | LO5: 0 | LP5: 0 | LQ5: 0 | LR5: 0 | LS5: 0 | LT5: 0 | LU5: 0 | LV5: 0 | LW5: 0 | LX5: 0 | LY5: 0 | LZ5: 0 | MA5: 0 | MB5: 0 | MC5: 0 | MD5: 0 | ME5: 0 | MF5: 0 | MG5: 0 | MH5: 0 | MI5: 0 | MJ5: 0 | MK5: 0 | ML5: 0 | MM5: 0 | MN5: 0 | MO5: 0 | MP5: 0 | MQ5: 0 | MR5: 0 | MS5: 0 | MT5: 0 | MU5: 0 | MV5: 0 | MW5: 0 | MX5: 0 | MY5: 0 | MZ5: 0 | NA5: 0 | NB5: 0 | NC5: 0 | ND5: 0 | NE5: 0 | NF5: 0 | NG5: 0 | NH5: 0 | NI5: 0 | NJ5: 0 | NK5: 0 | NL5: 0 | NM5: 0 | NN5: 0 | NO5: 0 | NP5: 0 | NQ5: 0 | NR5: 0 | NS5: 0 | NT5: 0 | NU5: 0 | NV5: 0 | NW5: 0 | NX5: 0 | NY5: 0 | NZ5: 0 | OA5: 0 | OB5: 0 | OC5: 0 | OD5: 0 | OE5: 0 | OF5: 0 | OG5: 0 | OH5: 0 | OI5: 0 | OJ5: 0 | OK5: 0 | OL5: 0 | OM5: 0 | ON5: 0 | OO5: 0 | OP5: 0 | OQ5: 0 | OR5: 0 | OS5: 0 | OT5: 0 | OU5: 0 | OV5: 0 | OW5: 0 | OX5: 0 | OY5: 0 | OZ5: 0 | PA5: 0 | PB5: 0 | PC5: 0 | PD5: 0 | PE5: 0 | PF5: 0 | PG5: 0 | PH5: 0 | PI5: 0 | PJ5: 0 | PK5: 0 | PL5: 0 | PM5: 0 | PN5: 0 | PO5: 0 | PP5: 0 | PQ5: 0 | PR5: 0 | PS5: 0 | PT5: 0 | PU5: 0 | PV5: 0 | PW5: 0 | PX5: 0 | PY5: 0 | PZ5: 0 | QA5: 0 | QB5: 0 | QC5: 0 | QD5: 0 | QE5: 0 | QF5: 0 | QG5: 0 | QH5: 0 | QI5: 0 | QJ5: 0 | QK5: 0 | QL5: 0 | QM5: 0 | QN5: 0 | QO5: 0 | QP5: 0 | QQ5: 0 | QR5: 0 | QS5: 0 | QT5: 0 | QU5: 0 | QV5: 0 | QW5: 0 | QX5: 0 | QY5: 0 | QZ5: 0 | RA5: 0 | RB5: 0 | RC5: 0 | RD5: 0 | RE5: 0 | RF5: 0 | RG5: 0 | RH5: 0 | RI5: 0 | RJ5: 0 | RK5: 0 | RL5: 0 | RM5: 0 | RN5: 0 | RO5: 0 | RQ5: =+SUM(D5:AA5) -> 0 | RR5: =+SUM(AB5:AY5) -> 0 | RS5: =+SUM(AZ5:BW5) -> 0 | RT5: =+SUM(BX5:CU5) -> 0 | RU5: =+SUM(CV5:DS5) -> 0 | RV5: =+SUM(DT5:EQ5) -> 0 | RW5: =+SUM(ER5:FO5) -> 0 | RX5: =+SUM(FP5:GM5) -> 0 | RY5: =+SUM(GN5:HK5) -> 0 | RZ5: =+SUM(HL5:II5) -> 0 | SA5: =+SUM(IJ5:JG5) -> 0 | SB5: =+SUM(JH5:KE5) -> 0 | SC5: =+SUM(KF5:LC5) -> 0 | SD5: =+SUM(LD5:MA5) -> 0 | SE5: =+SUM(MB5:MY5) -> 0 | SF5: =+SUM(MZ5:NW5) -> 0 | SG5: =+SUM(NX5:OU5) -> 0 | SH5: =+SUM(OV5:PS5) -> 0 | SI5: =+SUM(PT5:QQ5) -> 0 | SJ5: =+SUM(QR5:RO5) -> 0
